Workbook

Sheet Notes
A1: RsEMA.xlsm; Traders Tip spreadsheet created for the May 2022 Issue
A2: Coded beginning 2022-Mar-03 by Ronald McAllister (rpmac_xltt@sprynet.com)
A4: This Workbook demonstrates an EXCEL version of the ideas presented
A5: by Vitali Apirine in an article titled "The Relative Strength Exponential Moving Average (RS EMA)", which originally appeared in the January 2022 issue of
A6: "Technical Analysis of Stocks and Commodities" magazine.
A8: To get data and set the time frame to replicate a figure: | H8: To complete the replication of a figure:
A9: Charts for Figure 2 of this article may be replicated | H9: In the User Controls area set the EMA and RsEMA parameters per the Figure caption in the article.
A10: by retrieving Daily data for symbol ^RUT (Russell 2000 index). | H10: In the Clutter Control Area: Use the Pricechart buttons to display one or both of the Price Charts.
A11: Then set cell B26 to 7/26/2019 and cell B27 to 11/19/2019. | H11: Then set the indicator buttons to display the appropriate combination for each price chart
A12: Finally click the "I Would Like to Chart These Dates" button in cell B25.
A14: Charts for Figure 3 of this article may be replicated
A15: by retrieving Daily data for symbol ^MID (S&P Midcap index).
A16: Then set cell B26 to 8/5/2004 and cell B27 to 6/9/2006
A17: Finally click the "I Would Like to Chart These Dates" button in cell B25.
A19: Charts for Figure 4 of this article may be replicated
A20: by retrieving Daily data for symbol GSPC (S&P 500 index).
A21: Then set cell B26 to 3/16/2009 and cell B27 to 9/28/2018
A22: Finally click the "I Would Like to Chart These Dates" button in cell B25.
A24: Charts for Figure 5 of this article may be replicated
A25: by retrieving Daily data for symbol ^FTSE (FTSE 100 index).
A26: Then set cell B26 to 9/20/2017 and cell B27 to 5/11/2018
A27: Finally click the "I Would Like to Chart These Dates" button in cell B25.
A29: Charts for Figure 6 of this article may be replicated
A30: by retrieving Daily data for symbol ^NYA (NYSE Composit index).
A31: Then set cell B26 to 5/21/2015 and cell B27 to 2/23/2017.
A32: Finally click the "I Would Like to Chart These Dates" button in cell B25.
A34: Charts for Figure 7 of this article may be replicated
A35: by retrieving Weekly data for symbol ^NDX (Nasddaq 100 index).
A36: Daily, Weekly, and Monthly are the possible choices on the
A37: InputPriceData tab. Click on cell B7 for dropdown choices.
A38: before initiating a data retrieval.
A39: Then set cell B26 to 6/27/2016 and cell B27 to 9/3/2018.
A40: Finally click the "I Would Like to Chart These Dates" button in cell B25.
A42: * * * * * * * * * * * * * * * *
A43: March 15 2022 - for the May 2022 traders tip
A44: Built an alternative method to show/hide a series on a chart. This is driven by a user check box settings in the
A45: clutter control area and uses the "visible" property of a given series.
A46: Check box labels change on the fly to reflect changes to indicator parameters as the chnges happen.
A47: Set up paralel price charts to contrast indicator settings as Mr. Apirine has done in the May 2022 article.
A48: Chart visibilities controlled by check box settings.
A49: Changed chart window shade logic to show all of the Volume Chart or overlay the upper portion of the
A50: volume chart to provide more vertical space for other charts. This partial overlay leaves the volume chart
A51: date labels visible so that no other chart needs to have labels providing more vertical spaceof actual charting.
A52: Refined my dynamic horizontal Tick interval and Tick Lable placement settings logic.
A54: January 18 2022 - Random "Name of Company" Retrieval Errors
A55: For the last couple of months my data retrievals would randomly get a soft error on the company name.
A56: By soft I mean that the HTML Get request for a summary for the InputPriceData tab target symbol would have a good return code but the company name field would contain garbage.
A57: Simply clicking the get data button on the InputPriceData tab to rerun the data retrieval would fix" it.
A58: Remarkably, the historical pricing data is always retrieved and is correct.
A60: Sunday (Jan 16) while working on this spreadsheet, five out of six tries for the same symbol displayed junk in the company name.
A61: So I set a trap to copy the HTML text to disc for the bad return and the good return so that I could compare them.
A62: (for those with a technical bent Notepad++ has a really nice Compare addin)
A63: As it turns out the correct required data is present in both versions.
A64: But the formatting of the new version does not contain the landmarks I was using to parse out what was needed.
A66: I think Yahoo Finance is experimenting with a new/upgraded HTML generator and perhaps does not have it installed on all of their servers.
A67: So the randomness of the "failure" is probably an artifact of which server answered my HTML request.
A69: The result is that I spent the last day and a half comparing the two formats and have come up with a new set of landmarks
A70: that are common to both formats. It requires a few extra steps to ignore minor internal differences in these landmarks and the result is
A71: code that does not care which HTML format is returned.
A73: The fix - What Changed:
A74: Complete rewrite of:
A75: VBA Procedure: ExtractCompanyIdFromSummaryText as found in VBA Module: InputPriceDataLoader
A77: Retrofiting to older Traders Tips spreadsheets:
A78: For those of you with some familiarity with the EXCEL VBA editor, you can try the following copy and paste steps.
A80: First we need to grab a copy of the corrected ExtractCompanyIdFromSummaryText Sub.
A81: Open the VBA editor in this spreadsheet and navigate to module InputPriceDataLoader and then to procedure ExtractCompanyIdFromSummaryText
A82: Copy all of procedure ExtractCompanyIdFromSummaryText from the beginning Sub statement to and including the closing End Sub statement to a new Notepad or Notepad++ text document.
A83: Close this workbook, but do not close the Notepad or Notepad++ document.
A85: Now for the target of your retrofit attempt.
A86: Make a backup copy of this retrofit target spreadsheet in case you have a problem and need to start over with a fresh copy.
A87: Open the retrofit target.
A88: Open the VBA editor in this target spreadsheet and navigate to module InputPriceDataLoader and then to procedure ExtractCompanyIdFromSummaryText
A90: Delete all of the ExtractCompanyIdFromSummaryText procedure starting with the begining Sub statement to and including the closing End Sub statement.
A92: Do not close the VBA editor or the spread sheet.
A94: Navigate (Alt-Tab) to your Notepad or Notepad++ instance and select all of the text (Ctrl-a). Then Copy the selected text (Ctrl-c).
A95: Navigate (Alt-Tab) back to the VBA editor window. The VBA editor cursor should still be on the line where you just deleted the old version of ExtractCompanyIdFromSummaryText.
A96: This is probably a blank line just above a line that reads "Sub FormatPriceHistory(..."
A97: If there is no blank line above the "Sub FormatPriceHistory(..." line then click on the "S" of Sub and press enter to insert a blank line.
A98: Move your mouse cursor to this blank line and left-click to be sure of the VBA cursor location.
A99: Then (Ctrl-v) to paste the new version of ExtractCompanyIdFromSummaryText that you copied from the Notepad or Notepad++ text document.
A101: You are done with the tricky part. Close the VBA editor and save the now retrofitted spreadsheet.
A103: Go to the inputPriceData tab and retrieve some data to verify that nothing is broken.
A104: Easter egg time: (Curious minds want to know...)
A105: If the data retrieval encounters a new format HTML response, the company name this code will display will have an asterisk(*) as a prefix.
A107: Foot Note: Today (Jan 19 2022) I have not encountered a single instance of the new format HTML while testing this spreadsheet for submission to the editors.
A108: So maybe YahooFinance is not test/using the new version right now?
A110: New for May 2021
A111: Upgraded the data download logic to do a better job of catching the common data download errors and provide a more graceful resolution.
A112: This includes better user notification of the nature of the error and some user control over how the error should be handled.
A113: User notification comes in the form of a MSGbox display that includes the (sometimes cryptic) description of the error and offers the user three options.
A115: Abort - If I could customize the title, I would rename this button to "Debug"
A116: This choice places you in Debug mode at the failing VBA statement.
A117: Unless you are feeling good about your VBA (and Network) debugging skills, this is probably not for you.
A119: Retry
A120: Lets the code retry the failed download request.
A121: This is a reasonable option if the download request timed out (similar to video buffering) or your network connection has dropped out..
A122: Probably a good idea to make sure your internet connection is alive and well before you select Retry.
A124: Ignore
A125: Lets the code fall thru to a (hopefully) graceful error completion with the error indicated at the top of the InputPriceData tab
A127: New for August 2020
A128: Restructured my Symbol-Not-Found detection and now stop further processing in the not found case
A130: New with the May 2020 version of my T-Tips template: VBA to implement a "Perpetual" U.S. Markets Closed Holiday Calendar.
A132: Why we need one: The Yahoo Finance recently has begun having occasional filtration problems where bars for U.S. Market Closed Holidays
A133: make their way onto the Historical Data web page and into the Historical Data download.
A135: While testing this May 2020 spreadsheet with different symbols, I found that I sometimes had bars with the text "null" in the price fields.
A136: My code always translates the "null" text price values to zeros.
A137: The resulting zeros cause real problems with indicator computations and the amount of blank space below price candles on the price chart.
A139: "null" price bars can be valid for very lightly traded penny sheet symbols which may not trade every day the markets are open.
A140: But is definitely not normal for symbols on the big boards.
A142: A closer look determined that these "bars" were for holiday dates when the US markets are normally closed.
A143: I found it interesting that some times the next download for the same symbol would not contain any of these "holiday" bars. Weird!
A145: My approach here was to write code to determine if the DATE on a null price values bar falls on one of the 9 market closed U.S. Holidays.
A146: If the bar date corresponds to one of these market closed holidays, I drop the bar before it reaches the InputPriceData tab.
A147: If the date is not a holiday, I let the bar through with the resulting zero values.
A149: No messy tables to update over the years as there are good solid rules that can be used in VBA or any other programming language to determine
A150: the dates for U.S. Market Closed Holidays for any given calendar year.
A152: This workbook contains and uses VBA macros and may take advantage of user defined VBA Class structures.
A153: Input Data:
A154: The data in this workbook is sorted date-descending (most recent date at the top). All cell formulas and
A155: VBA routines are built assuming this date sequence.
A157: ERROR 9 (already fixed in this spreadsheet)
A158: On or about Jan 29, 2020 Yahoo Finance changed the format of the split factor expression used their historical data downloads.
A159: The Split expression went from using "/" as in "New Share Number/Old Share Number",
A160: to using ":" as in "New Share Number:Old Share Number".
A161: This caused the then current version of my VBA code to fail with a "Runtime Error '9': subscript out of range".
A163: Fix for this ERROR 9
A164: For T-Tip spreadsheets from September 2018 up to present:
A165: Selecting the Debug option takes one into the VBA at the code line which causes the failure:
A166: CellArray(C_A_RowNdx, C_A_ColNdx + 1) = SplitFactors(1)
A167: Two lines above the failing VBA line is a line that reads:
A168: SplitFactors = Split(CsvColumns(CsvColNdx), "/")
A169: Change the / to a :
A170: The corrected line should now read
A171: SplitFactors = Split(CsvColumns(CsvColNdx), ":")
A173: If you are fixing several spreadsheets and do not want to use the failure to find the fix location,
A174: you can use VBA’s FIND dialog (Ctrl F) to look for the substring
A175: SplitFactors =
A176: Do include one space and the equal sign in your FIND string
A177: Select the "Current Project" option
A178: There should only be one instance.
A180: T-Tip spreadsheets prior to the September 2018 spreadsheet do not hard fail.
A182: They just get weird results in the split columns of the Input Price Data tab (soft fail).
A183: These older spreadsheets used different data retrieval and formatting logic.
A185: To fix these older spreadsheets:
A186: In the VBA editor, use find (CTRL-F).
A187: Select the "Current Project" option, and search for the following:
A188: OtherChar:="/"
A189: You are looking for a hit in a line reading:
A190: Other:=True, OtherChar:="/", _
A191: This line is part of a multiline block of code starting with a line that reads:
A192: SplitRange.Offset(0, 1).Resize(SpRows, 1).TextToColumns
A193: Change the / to a : so that the line reads
A194: Other:=True, OtherChar:=":", _
A197: 2019-04-04 Finally came up with a mechanism to align the left location and overall length of the cursor scroll bar so that the left most and right most
A198: scroll bar thumb positions visually align reasonably well with the left and right ends of the price chart horizontal axis.
A199: Makes it a little easier to visually align the Thumb and thus the cursor with points of interest on the charts.
A201: Older:
B202: My sincere apologies to our Macintosh based readers: Neither MSXML nor WinHttpRequest are supported in your environment. So as it stands this version of the spreadsheet will not work for you.
B203: See "Why this approach does not work for Macintosh" below.
B204: I am investigating cURL as a non-Querytable based approach for the Macintosh environment.
A206: The new Yahoo Finance history download interface has changed rather radically. The biggest hurdle being a pseudo-security requirement of adding a
B207: crumb character string to any URL requesting any type of history download. That crumb must match up (by way of some sort of hash algorithm) with
B208: the Yahoo Finance cookie that must also be sent with any request to the new Yahoo History down load interface.
B210: A crumb value is returned, buried in the HTML for any of what I call the "entry level" Yahoo Finance web pages (no crumb security requirement for entry level pages).
B211: A crumb may come with other Yahoo Finance pages. A crumb may even accompany some of the secured pages as well. I have not checked.
B213: Entry level pages are the top level pages of the various Yahoo Finance dialogs and include: Quote Lookup, Stock Summary Quote, and any of the pages
B214: with links in the horizontal row with the "Summary" link on the quote summary page such as Options, Historical Data, and the rest.
B216: To date I have found no way to get at this crumb value using any native EXCEL capabilities.
B218: So this crumb requirement effectively shuts out any solution that attempts to exclusively use built-in facilities of EXCEL, which is to say a purely Querytables solution.
B220: The approach built for this Traders Tip spreadsheet uses WINHTTP calls to Load the InputPriceData worksheet.
B222: First I call to get the HTML text for the Yahoo Summary Quote page using the requested symbol. From this HTML text I extract the full company name,
B223: the market it trades, the market status and time stamp, and finally the associated crumb string. There is a bunch of other useful bits buried in this HTML
B224: text that do not necessarily appear on the web page your browser presents. Perhaps some day I will go after and build a worksheet with these other bits.
B226: Next I add the freshly extracted crumb string to the URLs I use in three separate WINHTTP calls to retrieve Price history, Split history, and Dividend history respectively.
B228: From there VBA code proceeds as in the past to fill in the cell formulas and formatting that make the "prettied up" InputPriceData sheet.
A230: Why this approach works for Windows:
B231: WINHTTP maintains a temporary computer memory cache where cookies are maintained for as long as the WINHTTP object is instantiated.
B232: WINHTTP updates this cache any time a "set cookie" header accompanies a web response.
B233: Subsequent WINHTTP calls automatically search this cache for cookies and add any "appropriate" cookies to the headers
B234: of any web requests that get sent out.
B235: This cookie handling automation means that even if the response to our WINHTTP call for the Summary web page includes a new version of
B236: the Yahoo Finance cookie, the imbedded Crumb value will always match the cookie newly installed in the cache!
A239: Why this approach does not work for Macintosh:
B240: For what it is worth, the Macintosh version of the MS Office suite of products do in fact maintain a special, shared amongst themselves only, cookie cache.
B241: They automate cookie handling into and from this cache JUST for the Office products and any Querytable activity they might originate.
B243: This cache is not tied to, nor shared with, any browser that might be installed on the MAC. And I have not found anything with HTTP capabilities similar to
B244: MSXML that can work with that Office product cookie cache.
B246: When working in the MAC EXCEL environment, I have not yet become conversant with a Mac based WINHTTP like capability.
B247: So l currently have no mechanism to replicate the non-Querytable data retrieval process I am using in Windows environments.
B248: A software product called CURL has been suggested as providing this capability in the MAC environment.
B249: A version of CURL is available for the Windows So some day I may explore its capabilities and how to access those capabilities from VBA.
A251: Calculation and Chart Worksheet Usage Comments:
C252: In General, Items in Bolded BLUE are items you may freely change to play what-if games.
C253: Be sure to have a backup copy of the spreadsheet before you alter anything else.
A255: Features carried forward from the June 2016 version of my T-Tips Template
A256: Added a pair of buttons near cell F12 that will allow the user to step the charting window forward or backward one bar for each click.
A257: I find this to be a good way to test my understanding of the author's ideas as I step through the evolution of the price behavior and the indicators.
B259: First: In the "Help! I would like to plot data" area.
B260: Added button to resolve #NA problems by locating the bar in the input data with a slightly more recent date than what the user actually requested.
B261: I find this particularly useful when I have a general idea of where I want to be date wise. Now I can pick a set of dates "out of the air".
... 16 more rows

Sheet InputPriceData
A1: S&P MID CAP 400 INDEX (^MID) -NYSE (Daily)
M2: To retrieve data for symbols traded on non US Exchanges, | II2: 241.79
A3: Request Online Yahoo History for: | F3: Market State == > | G3: At close: | H3: 16:04:00 | I3: EDT | M3: you will need to append the dot-suffix for the exchange to the symbol.
A4: Symbol | B4: ^MID | D4: Valid | I4: =OFFSET(I4,-2,0,1,1) -> 0 | M4: The following links provide a description of how to use the exchange suffix
A5: From | B5: 1950-10-01 | D5: Data | M5: along with a list of suffixes for the major world exchanges. | AD5: Trailing 12 Div return (Cur Close)
A6: To | B6: =NOW() -> 2022-03-16T15:05:06.300 | D6: Types | E6: =VLOOKUP(B7,D7:E10,2,FALSE) -> d | M6: https://help.yahoo.com/kb/finance/SLN2310.html
A7: Data Type | B7: Daily | D7: Daily | E7: d | M7: And
A8: Crumb | B8: iINEOOmNwy5 | D8: Weekly | E8: w | M8: https://www.stockmarketeye.com/users-guide/ticker-symbols-and-data-providers/data-providers.html
A9: Available Data | D9: Monthly | E9: m
A10: Bar Count: | B10: 10389 | M10: You may search on “exchange suffixes” for additional discussions | AD10: =OFFSET(AC15,1,0,1,1)/OFFSET(N15,1,0,1,1) -> 0
A11: From: | B11: =IF(B10<=0,"",OFFSET(B15,B10,IF(HistReqDataType="v",1,0),1,1)) -> 1981-01-02 | W11: Trailing 12 Month Dividend Returns
A12: To: | B12: =IF(B10<=0,"",IF(HistReqDataType="v",OFFSET(B15,2,1,1,1),OFFSET(B15,1,0,1,1))) -> 2022-03-15 | E12: 76 | F12: Holiday (market closed) dates have been filtered out. | W12: Raw Close price on Dividend date | X12: Div Year and Month | Y12: Looking for year ago Div Year and Month | Z12: Year ago Div Date we found | AA12: row offset to year ago div Date | AB12: Same month flag | AC12: Trailing 12 Div Total | AD12: Trailing 12 Div return
Q13: Split History | S13: 0 | T13: Running | U13: Dividend History
B14: Raw Data Values | H14: Adjusted | I14: Price Adjust | J14: Vol Adjust | K14: Adjusted Values | P14: Last | Q14: Effective | R14: Shares | T14: Vol Adjust | V14: 0
A15: RelRow | B15: Date | C15: Open | D15: High | E15: Low | F15: Close | G15: Volume | H15: Close | I15: Factor | J15: Factor | K15: Open | L15: High | M15: Low | N15: Close | O15: Volume | P15: Trade | Q15: 44636 | R15: New | S15: Old | T15: 1 | U15: Date | V15: $ / Share
A16: 1 | B16: 2022-03-15 | C16: 0 | D16: 0 | E16: 0 | F16: 2585.330078 | G16: 0 | H16: 2585.330078 | I16: =IF(F16=0,1,H16/F16) -> 1 | J16: =INDEX(OFFSET($T$15,0,0,$S$13+1,1),MATCH(B16,OFFSET($Q$15,0,0,$S$13+1,1),-1)) -> 1 | K16: =ROUND($I16*C16,2) -> 0 | L16: =ROUND($I16*D16,2) -> 0 | M16: 0 | N16: 2585.33 | O16: =G16*J16 -> 0
A17: 2 | B17: 2022-03-14 | C17: 2570.76001 | D17: 2591.300049 | E17: 2535.629883 | F17: 2547.149902 | G17: 0 | H17: 2547.149902 | I17: =IF(F17=0,1,H17/F17) -> 1 | J17: =INDEX(OFFSET($T$15,0,0,$S$13+1,1),MATCH(B17,OFFSET($Q$15,0,0,$S$13+1,1),-1)) -> 1 | K17: =ROUND($I17*C17,2) -> 2570.76 | L17: =ROUND($I17*D17,2) -> 2591.3 | M17: =ROUND($I17*E17,2) -> 2535.63 | N17: =ROUND($I17*F17,2) -> 2547.15 | O17: =G17*J17 -> 0
A18: 3 | B18: 2022-03-11 | C18: 2596.370117 | D18: 2620.389893 | E18: 2569.98999 | F18: 2570.76001 | G18: 0 | H18: 2570.76001 | I18: 1 | J18: 1 | K18: 2596.37 | L18: 2620.39 | M18: 2569.99 | N18: 2570.76 | O18: 0
A19: 4 | B19: 2022-03-10 | C19: 2597.110107 | D19: 2600.570068 | E19: 2560.909912 | F19: 2596.370117 | G19: 0 | H19: 2596.370117 | I19: 1 | J19: 1 | K19: 2597.11 | L19: 2600.57 | M19: 2560.91 | N19: 2596.37 | O19: 0
A20: 5 | B20: 2022-03-09 | C20: 2526.219971 | D20: 2610.02002 | E20: 2526.219971 | F20: 2597.110107 | G20: 0 | H20: 2597.110107 | I20: 1 | J20: 1 | K20: 2526.22 | L20: 2610.02 | M20: 2526.22 | N20: 2597.11 | O20: 0
A21: 6 | B21: 2022-03-08 | C21: 2517.179932 | D21: 2585.060059 | E21: 2506.179932 | F21: 2526.219971 | G21: 0 | H21: 2526.219971 | I21: 1 | J21: 1 | K21: 2517.18 | L21: 2585.06 | M21: 2506.18 | N21: 2526.22 | O21: 0
A22: 7 | B22: 2022-03-07 | C22: 2615.469971 | D22: 2615.469971 | E22: 2516.429932 | F22: 2517.179932 | G22: 0 | H22: 2517.179932 | I22: 1 | J22: 1 | K22: 2615.47 | L22: 2615.47 | M22: 2516.43 | N22: 2517.18 | O22: 0
A23: 8 | B23: 2022-03-04 | C23: 2657.439941 | D23: 2657.439941 | E23: 2591 | F23: 2615.469971 | G23: 0 | H23: 2615.469971 | I23: 1 | J23: 1 | K23: 2657.44 | L23: 2657.44 | M23: 2591 | N23: 2615.47 | O23: 0
A24: 9 | B24: 2022-03-03 | C24: 2679.600098 | D24: 2691.290039 | E24: 2638.590088 | F24: 2657.439941 | G24: 0 | H24: 2657.439941 | I24: 1 | J24: 1 | K24: 2679.6 | L24: 2691.29 | M24: 2638.59 | N24: 2657.44 | O24: 0
A25: 10 | B25: 2022-03-02 | C25: 2609.310059 | D25: 2690.449951 | E25: 2609.310059 | F25: 2679.600098 | G25: 0 | H25: 2679.600098 | I25: 1 | J25: 1 | K25: 2609.31 | L25: 2690.45 | M25: 2609.31 | N25: 2679.6 | O25: 0
A26: 11 | B26: 2022-03-01 | C26: 2661.47998 | D26: 2666.669922 | E26: 2591.310059 | F26: 2609.310059 | G26: 0 | H26: 2609.310059 | I26: 1 | J26: 1 | K26: 2661.48 | L26: 2666.67 | M26: 2591.31 | N26: 2609.31 | O26: 0
A27: 12 | B27: 2022-02-28 | C27: 2661.600098 | D27: 2675.070068 | E27: 2632.97998 | F27: 2661.47998 | G27: 0 | H27: 2661.47998 | I27: 1 | J27: 1 | K27: 2661.6 | L27: 2675.07 | M27: 2632.98 | N27: 2661.48 | O27: 0
A28: 13 | B28: 2022-02-25 | C28: 2588.870117 | D28: 2662.620117 | E28: 2585.409912 | F28: 2661.600098 | G28: 0 | H28: 2661.600098 | I28: 1 | J28: 1 | K28: 2588.87 | L28: 2662.62 | M28: 2585.41 | N28: 2661.6 | O28: 0
A29: 14 | B29: 2022-02-24 | C29: 2553.310059 | D29: 2593.899902 | E29: 2484.040039 | F29: 2588.870117 | G29: 0 | H29: 2588.870117 | I29: 1 | J29: 1 | K29: 2553.31 | L29: 2593.9 | M29: 2484.04 | N29: 2588.87 | O29: 0
A30: 15 | B30: 2022-02-23 | C30: 2596.25 | D30: 2620.600098 | E30: 2550.22998 | F30: 2553.310059 | G30: 0 | H30: 2553.310059 | I30: 1 | J30: 1 | K30: 2596.25 | L30: 2620.6 | M30: 2550.23 | N30: 2553.31 | O30: 0
A31: 16 | B31: 2022-02-22 | C31: 2632.48999 | D31: 2641.439941 | E31: 2581.52002 | F31: 2596.25 | G31: 0 | H31: 2596.25 | I31: 1 | J31: 1 | K31: 2632.49 | L31: 2641.44 | M31: 2581.52 | N31: 2596.25 | O31: 0
A32: 17 | B32: 2022-02-18 | C32: 2644.929932 | D32: 2669.27002 | E32: 2625.530029 | F32: 2632.48999 | G32: 0 | H32: 2632.48999 | I32: 1 | J32: 1 | K32: 2644.93 | L32: 2669.27 | M32: 2625.53 | N32: 2632.49 | O32: 0
A33: 18 | B33: 2022-02-17 | C33: 2702.370117 | D33: 2702.370117 | E33: 2641.919922 | F33: 2644.929932 | G33: 0 | H33: 2644.929932 | I33: 1 | J33: 1 | K33: 2702.37 | L33: 2702.37 | M33: 2641.92 | N33: 2644.93 | O33: 0
A34: 19 | B34: 2022-02-16 | C34: 2695.080078 | D34: 2710.610107 | E34: 2678.870117 | F34: 2702.370117 | G34: 0 | H34: 2702.370117 | I34: 1 | J34: 1 | K34: 2695.08 | L34: 2710.61 | M34: 2678.87 | N34: 2702.37 | O34: 0
A35: 20 | B35: 2022-02-15 | C35: 2636.48999 | D35: 2698.48999 | E35: 2636.48999 | F35: 2695.080078 | G35: 0 | H35: 2695.080078 | I35: 1 | J35: 1 | K35: 2636.49 | L35: 2698.49 | M35: 2636.49 | N35: 2695.08 | O35: 0
A36: 21 | B36: 2022-02-14 | C36: 2647.459961 | D36: 2669 | E36: 2620.879883 | F36: 2636.48999 | G36: 0 | H36: 2636.48999 | I36: 1 | J36: 1 | K36: 2647.46 | L36: 2669 | M36: 2620.88 | N36: 2636.49 | O36: 0
A37: 22 | B37: 2022-02-11 | C37: 2681.780029 | D37: 2703.100098 | E37: 2633.209961 | F37: 2647.459961 | G37: 0 | H37: 2647.459961 | I37: 1 | J37: 1 | K37: 2681.78 | L37: 2703.1 | M37: 2633.21 | N37: 2647.46 | O37: 0
A38: 23 | B38: 2022-02-10 | C38: 2721.540039 | D38: 2745.699951 | E38: 2668.699951 | F38: 2681.780029 | G38: 0 | H38: 2681.780029 | I38: 1 | J38: 1 | K38: 2721.54 | L38: 2745.7 | M38: 2668.7 | N38: 2681.78 | O38: 0
A39: 24 | B39: 2022-02-09 | C39: 2672.409912 | D39: 2721.949951 | E39: 2672.409912 | F39: 2721.540039 | G39: 0 | H39: 2721.540039 | I39: 1 | J39: 1 | K39: 2672.41 | L39: 2721.95 | M39: 2672.41 | N39: 2721.54 | O39: 0
A40: 25 | B40: 2022-02-08 | C40: 2622.810059 | D40: 2676.370117 | E40: 2622.810059 | F40: 2672.409912 | G40: 0 | H40: 2672.409912 | I40: 1 | J40: 1 | K40: 2622.81 | L40: 2676.37 | M40: 2622.81 | N40: 2672.41 | O40: 0
A41: 26 | B41: 2022-02-07 | C41: 2623.179932 | D41: 2641.590088 | E41: 2614.719971 | F41: 2622.810059 | G41: 0 | H41: 2622.810059 | I41: 1 | J41: 1 | K41: 2623.18 | L41: 2641.59 | M41: 2614.72 | N41: 2622.81 | O41: 0
A42: 27 | B42: 2022-02-04 | C42: 2618.860107 | D42: 2643.310059 | E42: 2588 | F42: 2623.179932 | G42: 0 | H42: 2623.179932 | I42: 1 | J42: 1 | K42: 2618.86 | L42: 2643.31 | M42: 2588 | N42: 2623.18 | O42: 0
A43: 28 | B43: 2022-02-03 | C43: 2662.379883 | D43: 2662.379883 | E43: 2616.360107 | F43: 2618.860107 | G43: 0 | H43: 2618.860107 | I43: 1 | J43: 1 | K43: 2662.38 | L43: 2662.38 | M43: 2616.36 | N43: 2618.86 | O43: 0
A44: 29 | B44: 2022-02-02 | C44: 2662.48999 | D44: 2672.040039 | E44: 2642.870117 | F44: 2662.379883 | G44: 0 | H44: 2662.379883 | I44: 1 | J44: 1 | K44: 2662.49 | L44: 2672.04 | M44: 2642.87 | N44: 2662.38 | O44: 0
A45: 30 | B45: 2022-02-01 | C45: 2635.379883 | D45: 2665.620117 | E45: 2611.330078 | F45: 2662.48999 | G45: 0 | H45: 2662.48999 | I45: 1 | J45: 1 | K45: 2635.38 | L45: 2665.62 | M45: 2611.33 | N45: 2662.49 | O45: 0
A46: 31 | B46: 2022-01-31 | C46: 2578.310059 | D46: 2635.419922 | E46: 2565.360107 | F46: 2635.379883 | G46: 0 | H46: 2635.379883 | I46: 1 | J46: 1 | K46: 2578.31 | L46: 2635.42 | M46: 2565.36 | N46: 2635.38 | O46: 0
A47: 32 | B47: 2022-01-28 | C47: 2529.820068 | D47: 2578.439941 | E47: 2497.659912 | F47: 2578.310059 | G47: 0 | H47: 2578.310059 | I47: 1 | J47: 1 | K47: 2529.82 | L47: 2578.44 | M47: 2497.66 | N47: 2578.31 | O47: 0
A48: 33 | B48: 2022-01-27 | C48: 2569.530029 | D48: 2617.330078 | E48: 2519.159912 | F48: 2529.820068 | G48: 0 | H48: 2529.820068 | I48: 1 | J48: 1 | K48: 2569.53 | L48: 2617.33 | M48: 2519.16 | N48: 2529.82 | O48: 0
A49: 34 | B49: 2022-01-26 | C49: 2595.149902 | D49: 2652.040039 | E49: 2545.850098 | F49: 2569.530029 | G49: 0 | H49: 2569.530029 | I49: 1 | J49: 1 | K49: 2595.15 | L49: 2652.04 | M49: 2545.85 | N49: 2569.53 | O49: 0
A50: 35 | B50: 2022-01-25 | C50: 2641.48999 | D50: 2641.48999 | E50: 2550.870117 | F50: 2595.149902 | G50: 0 | H50: 2595.149902 | I50: 1 | J50: 1 | K50: 2641.49 | L50: 2641.49 | M50: 2550.87 | N50: 2595.15 | O50: 0
A51: 36 | B51: 2022-01-24 | C51: 2594.48999 | D51: 2646.879883 | E51: 2523.139893 | F51: 2641.48999 | G51: 0 | H51: 2641.48999 | I51: 1 | J51: 1 | K51: 2594.49 | L51: 2646.88 | M51: 2523.14 | N51: 2641.49 | O51: 0
A52: 37 | B52: 2022-01-21 | C52: 2639.280029 | D52: 2654.320068 | E52: 2592.790039 | F52: 2594.48999 | G52: 0 | H52: 2594.48999 | I52: 1 | J52: 1 | K52: 2639.28 | L52: 2654.32 | M52: 2592.79 | N52: 2594.49 | O52: 0
A53: 38 | B53: 2022-01-20 | C53: 2687.060059 | D53: 2731.280029 | E53: 2636.719971 | F53: 2639.280029 | G53: 0 | H53: 2639.280029 | I53: 1 | J53: 1 | K53: 2687.06 | L53: 2731.28 | M53: 2636.72 | N53: 2639.28 | O53: 0
A54: 39 | B54: 2022-01-19 | C54: 2724.070068 | D54: 2742.73999 | E54: 2686.070068 | F54: 2687.060059 | G54: 0 | H54: 2687.060059 | I54: 1 | J54: 1 | K54: 2724.07 | L54: 2742.74 | M54: 2686.07 | N54: 2687.06 | O54: 0
A55: 40 | B55: 2022-01-18 | C55: 2782.639893 | D55: 2782.639893 | E55: 2719.800049 | F55: 2724.070068 | G55: 0 | H55: 2724.070068 | I55: 1 | J55: 1 | K55: 2782.64 | L55: 2782.64 | M55: 2719.8 | N55: 2724.07 | O55: 0
A56: 41 | B56: 2022-01-14 | C56: 2791.76001 | D56: 2791.76001 | E56: 2744.449951 | F56: 2782.639893 | G56: 0 | H56: 2782.639893 | I56: 1 | J56: 1 | K56: 2791.76 | L56: 2791.76 | M56: 2744.45 | N56: 2782.64 | O56: 0
A57: 42 | B57: 2022-01-13 | C57: 2798.790039 | D57: 2828.129883 | E57: 2785.310059 | F57: 2791.76001 | G57: 0 | H57: 2791.76001 | I57: 1 | J57: 1 | K57: 2798.79 | L57: 2828.13 | M57: 2785.31 | N57: 2791.76 | O57: 0
A58: 43 | B58: 2022-01-12 | C58: 2807.040039 | D58: 2830.97998 | E58: 2785.610107 | F58: 2798.790039 | G58: 0 | H58: 2798.790039 | I58: 1 | J58: 1 | K58: 2807.04 | L58: 2830.98 | M58: 2785.61 | N58: 2798.79 | O58: 0
A59: 44 | B59: 2022-01-11 | C59: 2782.189941 | D59: 2807.449951 | E59: 2757.48999 | F59: 2807.040039 | G59: 0 | H59: 2807.040039 | I59: 1 | J59: 1 | K59: 2782.19 | L59: 2807.45 | M59: 2757.49 | N59: 2807.04 | O59: 0
A60: 45 | B60: 2022-01-10 | C60: 2793.139893 | D60: 2793.139893 | E60: 2736.590088 | F60: 2782.189941 | G60: 0 | H60: 2782.189941 | I60: 1 | J60: 1 | K60: 2793.14 | L60: 2793.14 | M60: 2736.59 | N60: 2782.19 | O60: 0
A61: 46 | B61: 2022-01-07 | C61: 2814.810059 | D61: 2827.419922 | E61: 2785.25 | F61: 2793.139893 | G61: 0 | H61: 2793.139893 | I61: 1 | J61: 1 | K61: 2814.81 | L61: 2827.42 | M61: 2785.25 | N61: 2793.14 | O61: 0
A62: 47 | B62: 2022-01-06 | C62: 2801.070068 | D62: 2832.280029 | E62: 2786.899902 | F62: 2814.810059 | G62: 0 | H62: 2814.810059 | I62: 1 | J62: 1 | K62: 2801.07 | L62: 2832.28 | M62: 2786.9 | N62: 2814.81 | O62: 0
A63: 48 | B63: 2022-01-05 | C63: 2865.540039 | D63: 2875.959961 | E63: 2800.629883 | F63: 2801.070068 | G63: 0 | H63: 2801.070068 | I63: 1 | J63: 1 | K63: 2865.54 | L63: 2875.96 | M63: 2800.63 | N63: 2801.07 | O63: 0
A64: 49 | B64: 2022-01-04 | C64: 2851.050049 | D64: 2877.350098 | E64: 2851.050049 | F64: 2865.540039 | G64: 0 | H64: 2865.540039 | I64: 1 | J64: 1 | K64: 2851.05 | L64: 2877.35 | M64: 2851.05 | N64: 2865.54 | O64: 0
A65: 50 | B65: 2022-01-03 | C65: 2842 | D65: 2868.209961 | E65: 2830.300049 | F65: 2851.050049 | G65: 0 | H65: 2851.050049 | I65: 1 | J65: 1 | K65: 2842 | L65: 2868.21 | M65: 2830.3 | N65: 2851.05 | O65: 0
A66: 51 | B66: 2021-12-31 | C66: 2839.330078 | D66: 2856.27002 | E66: 2836.899902 | F66: 2842 | G66: 0 | H66: 2842 | I66: 1 | J66: 1 | K66: 2839.33 | L66: 2856.27 | M66: 2836.9 | N66: 2842 | O66: 0
A67: 52 | B67: 2021-12-30 | C67: 2847.830078 | D67: 2864.709961 | E67: 2838.040039 | F67: 2839.330078 | G67: 0 | H67: 2839.330078 | I67: 1 | J67: 1 | K67: 2847.83 | L67: 2864.71 | M67: 2838.04 | N67: 2839.33 | O67: 0
A68: 53 | B68: 2021-12-29 | C68: 2832.23999 | D68: 2851.810059 | E68: 2831.090088 | F68: 2847.830078 | G68: 0 | H68: 2847.830078 | I68: 1 | J68: 1 | K68: 2832.24 | L68: 2851.81 | M68: 2831.09 | N68: 2847.83 | O68: 0
A69: 54 | B69: 2021-12-28 | C69: 2833.179932 | D69: 2852.449951 | E69: 2827.219971 | F69: 2832.23999 | G69: 0 | H69: 2832.23999 | I69: 1 | J69: 1 | K69: 2833.18 | L69: 2852.45 | M69: 2827.22 | N69: 2832.24 | O69: 0
A70: 55 | B70: 2021-12-27 | C70: 2795.820068 | D70: 2833.540039 | E70: 2789.939941 | F70: 2833.179932 | G70: 0 | H70: 2833.179932 | I70: 1 | J70: 1 | K70: 2795.82 | L70: 2833.54 | M70: 2789.94 | N70: 2833.18 | O70: 0
A71: 56 | B71: 2021-12-23 | C71: 2776.560059 | D71: 2803.050049 | E71: 2776.560059 | F71: 2795.820068 | G71: 0 | H71: 2795.820068 | I71: 1 | J71: 1 | K71: 2776.56 | L71: 2803.05 | M71: 2776.56 | N71: 2795.82 | O71: 0
A72: 57 | B72: 2021-12-22 | C72: 2750.669922 | D72: 2777.959961 | E72: 2750.120117 | F72: 2776.560059 | G72: 0 | H72: 2776.560059 | I72: 1 | J72: 1 | K72: 2750.67 | L72: 2777.96 | M72: 2750.12 | N72: 2776.56 | O72: 0
A73: 58 | B73: 2021-12-21 | C73: 2680.889893 | D73: 2750.870117 | E73: 2680.889893 | F73: 2750.669922 | G73: 0 | H73: 2750.669922 | I73: 1 | J73: 1 | K73: 2680.89 | L73: 2750.87 | M73: 2680.89 | N73: 2750.67 | O73: 0
A74: 59 | B74: 2021-12-20 | C74: 2728.080078 | D74: 2728.080078 | E74: 2645.580078 | F74: 2680.889893 | G74: 0 | H74: 2680.889893 | I74: 1 | J74: 1 | K74: 2728.08 | L74: 2728.08 | M74: 2645.58 | N74: 2680.89 | O74: 0
A75: 60 | B75: 2021-12-17 | C75: 2731.5 | D75: 2752.780029 | E75: 2700.310059 | F75: 2728.080078 | G75: 0 | H75: 2728.080078 | I75: 1 | J75: 1 | K75: 2731.5 | L75: 2752.78 | M75: 2700.31 | N75: 2728.08 | O75: 0
A76: 61 | B76: 2021-12-16 | C76: 2766.649902 | D76: 2787.120117 | E76: 2722.540039 | F76: 2731.5 | G76: 0 | H76: 2731.5 | I76: 1 | J76: 1 | K76: 2766.65 | L76: 2787.12 | M76: 2722.54 | N76: 2731.5 | O76: 0
A77: 62 | B77: 2021-12-15 | C77: 2737.919922 | D77: 2769.189941 | E77: 2709.629883 | F77: 2766.649902 | G77: 0 | H77: 2766.649902 | I77: 1 | J77: 1 | K77: 2737.92 | L77: 2769.19 | M77: 2709.63 | N77: 2766.65 | O77: 0
A78: 63 | B78: 2021-12-14 | C78: 2750.72998 | D78: 2765.570068 | E78: 2729.209961 | F78: 2737.919922 | G78: 0 | H78: 2737.919922 | I78: 1 | J78: 1 | K78: 2750.73 | L78: 2765.57 | M78: 2729.21 | N78: 2737.92 | O78: 0
A79: 64 | B79: 2021-12-13 | C79: 2779.840088 | D79: 2779.840088 | E79: 2741.879883 | F79: 2750.72998 | G79: 0 | H79: 2750.72998 | I79: 1 | J79: 1 | K79: 2779.84 | L79: 2779.84 | M79: 2741.88 | N79: 2750.73 | O79: 0
A80: 65 | B80: 2021-12-10 | C80: 2777.320068 | D80: 2798.23999 | E80: 2756.379883 | F80: 2779.840088 | G80: 0 | H80: 2779.840088 | I80: 1 | J80: 1 | K80: 2777.32 | L80: 2798.24 | M80: 2756.38 | N80: 2779.84 | O80: 0
A81: 66 | B81: 2021-12-09 | C81: 2818.070068 | D81: 2818.070068 | E81: 2777.280029 | F81: 2777.320068 | G81: 0 | H81: 2777.320068 | I81: =IF(F81=0,1,H81/F81) -> 1 | J81: =INDEX(OFFSET($T$15,0,0,$S$13+1,1),MATCH(B81,OFFSET($Q$15,0,0,$S$13+1,1),-1)) -> 1 | K81: =ROUND($I81*C81,2) -> 2818.07 | L81: =ROUND($I81*D81,2) -> 2818.07 | M81: =ROUND($I81*E81,2) -> 2777.28 | N81: =ROUND($I81*F81,2) -> 2777.32 | O81: =G81*J81 -> 0
A82: 67 | B82: 2021-12-08 | C82: 2802.060059 | D82: 2823.179932 | E82: 2800.399902 | F82: 2818.070068 | G82: 0 | H82: 2818.070068 | I82: 1 | J82: 1 | K82: 2802.06 | L82: 2823.18 | M82: 2800.4 | N82: 2818.07 | O82: 0
A83: 68 | B83: 2021-12-07 | C83: 2755.899902 | D83: 2826.780029 | E83: 2755.899902 | F83: 2802.060059 | G83: 0 | H83: 2802.060059 | I83: 1 | J83: 1 | K83: 2755.9 | L83: 2826.78 | M83: 2755.9 | N83: 2802.06 | O83: 0
A84: 69 | B84: 2021-12-06 | C84: 2702.139893 | D84: 2774.48999 | E84: 2702.139893 | F84: 2755.899902 | G84: 0 | H84: 2755.899902 | I84: 1 | J84: 1 | K84: 2702.14 | L84: 2774.49 | M84: 2702.14 | N84: 2755.9 | O84: 0
A85: 70 | B85: 2021-12-03 | C85: 2737.290039 | D85: 2750.100098 | E85: 2682.429932 | F85: 2702.139893 | G85: 0 | H85: 2702.139893 | I85: 1 | J85: 1 | K85: 2737.29 | L85: 2750.1 | M85: 2682.43 | N85: 2702.14 | O85: 0
A86: 71 | B86: 2021-12-02 | C86: 2664.52002 | D86: 2746.459961 | E86: 2664.52002 | F86: 2737.290039 | G86: 0 | H86: 2737.290039 | I86: 1 | J86: 1 | K86: 2664.52 | L86: 2746.46 | M86: 2664.52 | N86: 2737.29 | O86: 0
A87: 72 | B87: 2021-12-01 | C87: 2708.649902 | D87: 2776.540039 | E87: 2664.110107 | F87: 2664.52002 | G87: 0 | H87: 2664.52002 | I87: 1 | J87: 1 | K87: 2708.65 | L87: 2776.54 | M87: 2664.11 | N87: 2664.52 | O87: 0
A88: 73 | B88: 2021-11-30 | C88: 2781.810059 | D88: 2781.810059 | E88: 2703.360107 | F88: 2708.649902 | G88: 0 | H88: 2708.649902 | I88: 1 | J88: 1 | K88: 2781.81 | L88: 2781.81 | M88: 2703.36 | N88: 2708.65 | O88: 0
A89: 74 | B89: 2021-11-29 | C89: 2779.409912 | D89: 2813.540039 | E89: 2766.610107 | F89: 2781.810059 | G89: 0 | H89: 2781.810059 | I89: 1 | J89: 1 | K89: 2779.41 | L89: 2813.54 | M89: 2766.61 | N89: 2781.81 | O89: 0
A90: 75 | B90: 2021-11-26 | C90: 2870.149902 | D90: 2870.149902 | E90: 2758.419922 | F90: 2779.409912 | G90: 0 | H90: 2779.409912 | I90: 1 | J90: 1 | K90: 2870.15 | L90: 2870.15 | M90: 2758.42 | N90: 2779.41 | O90: 0
A91: 76 | B91: 2021-11-24 | C91: 2873.389893 | D91: 2874.030029 | E91: 2849.090088 | F91: 2870.149902 | G91: 0 | H91: 2870.149902 | I91: 1 | J91: 1 | K91: 2873.39 | L91: 2874.03 | M91: 2849.09 | N91: 2870.15 | O91: 0
A92: 77 | B92: 2021-11-23 | C92: 2875.23999 | D92: 2888.620117 | E92: 2847.879883 | F92: 2873.389893 | G92: 0 | H92: 2873.389893 | I92: 1 | J92: 1 | K92: 2875.24 | L92: 2888.62 | M92: 2847.88 | N92: 2873.39 | O92: 0
A93: 78 | B93: 2021-11-22 | C93: 2870.719971 | D93: 2903.689941 | E93: 2870.719971 | F93: 2875.23999 | G93: 0 | H93: 2875.23999 | I93: 1 | J93: 1 | K93: 2870.72 | L93: 2903.69 | M93: 2870.72 | N93: 2875.24 | O93: 0
A94: 79 | B94: 2021-11-19 | C94: 2883.389893 | D94: 2883.389893 | E94: 2862.27002 | F94: 2870.719971 | G94: 0 | H94: 2870.719971 | I94: 1 | J94: 1 | K94: 2883.39 | L94: 2883.39 | M94: 2862.27 | N94: 2870.72 | O94: 0
A95: 80 | B95: 2021-11-18 | C95: 2888.629883 | D95: 2899.969971 | E95: 2864.540039 | F95: 2883.389893 | G95: 0 | H95: 2883.389893 | I95: 1 | J95: 1 | K95: 2888.63 | L95: 2899.97 | M95: 2864.54 | N95: 2883.39 | O95: 0
A96: 81 | B96: 2021-11-17 | C96: 2910.699951 | D96: 2910.699951 | E96: 2872.870117 | F96: 2888.629883 | G96: 0 | H96: 2888.629883 | I96: 1 | J96: 1 | K96: 2910.7 | L96: 2910.7 | M96: 2872.87 | N96: 2888.63 | O96: 0
A97: 82 | B97: 2021-11-16 | C97: 2907.919922 | D97: 2923.909912 | E97: 2901.719971 | F97: 2910.699951 | G97: 0 | H97: 2910.699951 | I97: 1 | J97: 1 | K97: 2907.92 | L97: 2923.91 | M97: 2901.72 | N97: 2910.7 | O97: 0
A98: 83 | B98: 2021-11-15 | C98: 2902.189941 | D98: 2915.72998 | E98: 2901.350098 | F98: 2907.919922 | G98: 0 | H98: 2907.919922 | I98: 1 | J98: 1 | K98: 2902.19 | L98: 2915.73 | M98: 2901.35 | N98: 2907.92 | O98: 0
A99: 84 | B99: 2021-11-12 | C99: 2893.27002 | D99: 2905.300049 | E99: 2893.27002 | F99: 2902.189941 | G99: 0 | H99: 2902.189941 | I99: 1 | J99: 1 | K99: 2893.27 | L99: 2905.3 | M99: 2893.27 | N99: 2902.19 | O99: 0
A100: 85 | B100: 2021-11-11 | C100: 2878.120117 | D100: 2900.080078 | E100: 2878.120117 | F100: 2893.27002 | G100: 0 | H100: 2893.27002 | I100: 1 | J100: 1 | K100: 2878.12 | L100: 2900.08 | M100: 2878.12 | N100: 2893.27 | O100: 0
A101: 86 | B101: 2021-11-10 | C101: 2903.080078 | D101: 2907.370117 | E101: 2866.169922 | F101: 2878.120117 | G101: 0 | H101: 2878.120117 | I101: 1 | J101: 1 | K101: 2903.08 | L101: 2907.37 | M101: 2866.17 | N101: 2878.12 | O101: 0
A102: 87 | B102: 2021-11-09 | C102: 2907.399902 | D102: 2913.060059 | E102: 2893.780029 | F102: 2903.080078 | G102: 0 | H102: 2903.080078 | I102: 1 | J102: 1 | K102: 2907.4 | L102: 2913.06 | M102: 2893.78 | N102: 2903.08 | O102: 0
A103: 88 | B103: 2021-11-08 | C103: 2905.110107 | D103: 2925.929932 | E103: 2901.699951 | F103: 2907.399902 | G103: 0 | H103: 2907.399902 | I103: 1 | J103: 1 | K103: 2905.11 | L103: 2925.93 | M103: 2901.7 | N103: 2907.4 | O103: 0
A104: 89 | B104: 2021-11-05 | C104: 2880.070068 | D104: 2923.060059 | E104: 2880.070068 | F104: 2905.110107 | G104: 0 | H104: 2905.110107 | I104: 1 | J104: 1 | K104: 2880.07 | L104: 2923.06 | M104: 2880.07 | N104: 2905.11 | O104: 0
A105: 90 | B105: 2021-11-04 | C105: 2889.649902 | D105: 2907.699951 | E105: 2873.77002 | F105: 2880.070068 | G105: 0 | H105: 2880.070068 | I105: 1 | J105: 1 | K105: 2889.65 | L105: 2907.7 | M105: 2873.77 | N105: 2880.07 | O105: 0
A106: 91 | B106: 2021-11-03 | C106: 2857.379883 | D106: 2899.590088 | E106: 2851.060059 | F106: 2889.649902 | G106: 0 | H106: 2889.649902 | I106: 1 | J106: 1 | K106: 2857.38 | L106: 2899.59 | M106: 2851.06 | N106: 2889.65 | O106: 0
A107: 92 | B107: 2021-11-02 | C107: 2851.810059 | D107: 2864.800049 | E107: 2840.419922 | F107: 2857.379883 | G107: 0 | H107: 2857.379883 | I107: 1 | J107: 1 | K107: 2851.81 | L107: 2864.8 | M107: 2840.42 | N107: 2857.38 | O107: 0
A108: 93 | B108: 2021-11-01 | C108: 2794.110107 | D108: 2853.5 | E108: 2794.110107 | F108: 2851.810059 | G108: 0 | H108: 2851.810059 | I108: 1 | J108: 1 | K108: 2794.11 | L108: 2853.5 | M108: 2794.11 | N108: 2851.81 | O108: 0
A109: 94 | B109: 2021-10-29 | C109: 2793.409912 | D109: 2806.719971 | E109: 2783.620117 | F109: 2794.110107 | G109: 0 | H109: 2794.110107 | I109: 1 | J109: 1 | K109: 2793.41 | L109: 2806.72 | M109: 2783.62 | N109: 2794.11 | O109: 0
A110: 95 | B110: 2021-10-28 | C110: 2749.370117 | D110: 2793.919922 | E110: 2749.370117 | F110: 2793.409912 | G110: 0 | H110: 2793.409912 | I110: 1 | J110: 1 | K110: 2749.37 | L110: 2793.92 | M110: 2749.37 | N110: 2793.41 | O110: 0
A111: 96 | B111: 2021-10-27 | C111: 2792.73999 | D111: 2793.76001 | E111: 2749.25 | F111: 2749.370117 | G111: 0 | H111: 2749.370117 | I111: 1 | J111: 1 | K111: 2792.74 | L111: 2793.76 | M111: 2749.25 | N111: 2749.37 | O111: 0
A112: 97 | B112: 2021-10-26 | C112: 2809.719971 | D112: 2819.169922 | E112: 2792.709961 | F112: 2792.73999 | G112: 0 | H112: 2792.73999 | I112: 1 | J112: 1 | K112: 2809.72 | L112: 2819.17 | M112: 2792.71 | N112: 2792.74 | O112: 0
A113: 98 | B113: 2021-10-25 | C113: 2796.840088 | D113: 2820.540039 | E113: 2793.77002 | F113: 2809.719971 | G113: 0 | H113: 2809.719971 | I113: 1 | J113: 1 | K113: 2796.84 | L113: 2820.54 | M113: 2793.77 | N113: 2809.72 | O113: 0
A114: 99 | B114: 2021-10-22 | C114: 2793.73999 | D114: 2812.360107 | E114: 2785.100098 | F114: 2796.840088 | G114: 0 | H114: 2796.840088 | I114: 1 | J114: 1 | K114: 2793.74 | L114: 2812.36 | M114: 2785.1 | N114: 2796.84 | O114: 0
A115: 100 | B115: 2021-10-21 | C115: 2784.199951 | D115: 2794.5 | E115: 2775.090088 | F115: 2793.73999 | G115: 0 | H115: 2793.73999 | I115: 1 | J115: 1 | K115: 2784.2 | L115: 2794.5 | M115: 2775.09 | N115: 2793.74 | O115: 0
A116: 101 | B116: 2021-10-20 | C116: 2762.76001 | D116: 2789.73999 | E116: 2762.179932 | F116: 2784.199951 | G116: 0 | H116: 2784.199951 | I116: 1 | J116: 1 | K116: 2762.76 | L116: 2789.74 | M116: 2762.18 | N116: 2784.2 | O116: 0
A117: 102 | B117: 2021-10-19 | C117: 2755.51001 | D117: 2771.110107 | E117: 2754.469971 | F117: 2762.76001 | G117: 0 | H117: 2762.76001 | I117: 1 | J117: 1 | K117: 2755.51 | L117: 2771.11 | M117: 2754.47 | N117: 2762.76 | O117: 0
A118: 103 | B118: 2021-10-18 | C118: 2748.280029 | D118: 2759.850098 | E118: 2732.949951 | F118: 2755.51001 | G118: 0 | H118: 2755.51001 | I118: 1 | J118: 1 | K118: 2748.28 | L118: 2759.85 | M118: 2732.95 | N118: 2755.51 | O118: 0
A119: 104 | B119: 2021-10-15 | C119: 2746.399902 | D119: 2777.179932 | E119: 2746.399902 | F119: 2748.280029 | G119: 0 | H119: 2748.280029 | I119: 1 | J119: 1 | K119: 2746.4 | L119: 2777.18 | M119: 2746.4 | N119: 2748.28 | O119: 0
A120: 105 | B120: 2021-10-14 | C120: 2700.26001 | D120: 2747.719971 | E120: 2700.26001 | F120: 2746.399902 | G120: 0 | H120: 2746.399902 | I120: 1 | J120: 1 | K120: 2700.26 | L120: 2747.72 | M120: 2700.26 | N120: 2746.4 | O120: 0
A121: 106 | B121: 2021-10-13 | C121: 2691.669922 | D121: 2705.570068 | E121: 2672.679932 | F121: 2700.26001 | G121: 0 | H121: 2700.26001 | I121: 1 | J121: 1 | K121: 2691.67 | L121: 2705.57 | M121: 2672.68 | N121: 2700.26 | O121: 0
A122: 107 | B122: 2021-10-12 | C122: 2676.139893 | D122: 2703.050049 | E122: 2676.139893 | F122: 2691.669922 | G122: 0 | H122: 2691.669922 | I122: 1 | J122: 1 | K122: 2676.14 | L122: 2703.05 | M122: 2676.14 | N122: 2691.67 | O122: 0
A123: 108 | B123: 2021-10-11 | C123: 2690.219971 | D123: 2711.909912 | E123: 2675.949951 | F123: 2676.139893 | G123: 0 | H123: 2676.139893 | I123: 1 | J123: 1 | K123: 2690.22 | L123: 2711.91 | M123: 2675.95 | N123: 2676.14 | O123: 0
A124: 109 | B124: 2021-10-08 | C124: 2705.26001 | D124: 2714.649902 | E124: 2689.850098 | F124: 2690.219971 | G124: 0 | H124: 2690.219971 | I124: 1 | J124: 1 | K124: 2705.26 | L124: 2714.65 | M124: 2689.85 | N124: 2690.22 | O124: 0
A125: 110 | B125: 2021-10-07 | C125: 2667.26001 | D125: 2723.179932 | E125: 2667.26001 | F125: 2705.26001 | G125: 0 | H125: 2705.26001 | I125: 1 | J125: 1 | K125: 2667.26 | L125: 2723.18 | M125: 2667.26 | N125: 2705.26 | O125: 0
A126: 111 | B126: 2021-10-06 | C126: 2672.639893 | D126: 2672.639893 | E126: 2622.360107 | F126: 2667.26001 | G126: 0 | H126: 2667.26001 | I126: 1 | J126: 1 | K126: 2672.64 | L126: 2672.64 | M126: 2622.36 | N126: 2667.26 | O126: 0
A127: 112 | B127: 2021-10-05 | C127: 2667.22998 | D127: 2695.689941 | E127: 2664.040039 | F127: 2672.639893 | G127: 0 | H127: 2672.639893 | I127: 1 | J127: 1 | K127: 2667.23 | L127: 2695.69 | M127: 2664.04 | N127: 2672.64 | O127: 0
A128: 113 | B128: 2021-10-04 | C128: 2683.639893 | D128: 2695.97998 | E128: 2659.040039 | F128: 2667.22998 | G128: 0 | H128: 2667.22998 | I128: 1 | J128: 1 | K128: 2683.64 | L128: 2695.98 | M128: 2659.04 | N128: 2667.23 | O128: 0
A129: 114 | B129: 2021-10-01 | C129: 2640.540039 | D129: 2699.820068 | E129: 2632.800049 | F129: 2683.639893 | G129: 0 | H129: 2683.639893 | I129: 1 | J129: 1 | K129: 2640.54 | L129: 2699.82 | M129: 2632.8 | N129: 2683.64 | O129: 0
A130: 115 | B130: 2021-09-30 | C130: 2681.870117 | D130: 2695.23999 | E130: 2640.429932 | F130: 2640.540039 | G130: 0 | H130: 2640.540039 | I130: 1 | J130: 1 | K130: 2681.87 | L130: 2695.24 | M130: 2640.43 | N130: 2640.54 | O130: 0
A131: 116 | B131: 2021-09-29 | C131: 2681.899902 | D131: 2695.899902 | E131: 2676.02002 | F131: 2681.870117 | G131: 0 | H131: 2681.870117 | I131: 1 | J131: 1 | K131: 2681.9 | L131: 2695.9 | M131: 2676.02 | N131: 2681.87 | O131: 0
A132: 117 | B132: 2021-09-28 | C132: 2723.449951 | D132: 2723.449951 | E132: 2679.659912 | F132: 2681.899902 | G132: 0 | H132: 2681.899902 | I132: 1 | J132: 1 | K132: 2723.45 | L132: 2723.45 | M132: 2679.66 | N132: 2681.9 | O132: 0
A133: 118 | B133: 2021-09-27 | C133: 2699.379883 | D133: 2737.629883 | E133: 2699.379883 | F133: 2723.449951 | G133: 0 | H133: 2723.449951 | I133: 1 | J133: 1 | K133: 2699.38 | L133: 2737.63 | M133: 2699.38 | N133: 2723.45 | O133: 0
A134: 119 | B134: 2021-09-24 | C134: 2703.780029 | D134: 2708.540039 | E134: 2687.02002 | F134: 2699.379883 | G134: 0 | H134: 2699.379883 | I134: 1 | J134: 1 | K134: 2703.78 | L134: 2708.54 | M134: 2687.02 | N134: 2699.38 | O134: 0
A135: 120 | B135: 2021-09-23 | C135: 2665.560059 | D135: 2717.790039 | E135: 2665.560059 | F135: 2703.780029 | G135: 0 | H135: 2703.780029 | I135: 1 | J135: 1 | K135: 2665.56 | L135: 2717.79 | M135: 2665.56 | N135: 2703.78 | O135: 0
A136: 121 | B136: 2021-09-22 | C136: 2631.199951 | D136: 2684.449951 | E136: 2631.199951 | F136: 2665.560059 | G136: 0 | H136: 2665.560059 | I136: 1 | J136: 1 | K136: 2631.2 | L136: 2684.45 | M136: 2631.2 | N136: 2665.56 | O136: 0
A137: 122 | B137: 2021-09-21 | C137: 2635.52002 | D137: 2655.709961 | E137: 2617.429932 | F137: 2631.199951 | G137: 0 | H137: 2631.199951 | I137: 1 | J137: 1 | K137: 2635.52 | L137: 2655.71 | M137: 2617.43 | N137: 2631.2 | O137: 0
A138: 123 | B138: 2021-09-20 | C138: 2678.060059 | D138: 2678.060059 | E138: 2602.27002 | F138: 2635.52002 | G138: 0 | H138: 2635.52002 | I138: 1 | J138: 1 | K138: 2678.06 | L138: 2678.06 | M138: 2602.27 | N138: 2635.52 | O138: 0
A139: 124 | B139: 2021-09-17 | C139: 2697.300049 | D139: 2701.75 | E139: 2670.469971 | F139: 2678.060059 | G139: 0 | H139: 2678.060059 | I139: 1 | J139: 1 | K139: 2697.3 | L139: 2701.75 | M139: 2670.47 | N139: 2678.06 | O139: 0
A140: 125 | B140: 2021-09-16 | C140: 2701.629883 | D140: 2711.330078 | E140: 2684.840088 | F140: 2697.300049 | G140: 0 | H140: 2697.300049 | I140: 1 | J140: 1 | K140: 2701.63 | L140: 2711.33 | M140: 2684.84 | N140: 2697.3 | O140: 0
A141: 126 | B141: 2021-09-15 | C141: 2673.25 | D141: 2703.23999 | E141: 2670.080078 | F141: 2701.629883 | G141: 0 | H141: 2701.629883 | I141: 1 | J141: 1 | K141: 2673.25 | L141: 2703.24 | M141: 2670.08 | N141: 2701.63 | O141: 0
A142: 127 | B142: 2021-09-14 | C142: 2703.280029 | D142: 2711.01001 | E142: 2667.149902 | F142: 2673.25 | G142: 0 | H142: 2673.25 | I142: 1 | J142: 1 | K142: 2703.28 | L142: 2711.01 | M142: 2667.15 | N142: 2673.25 | O142: 0
A143: 128 | B143: 2021-09-13 | C143: 2686.530029 | D143: 2710.530029 | E143: 2685.699951 | F143: 2703.280029 | G143: 0 | H143: 2703.280029 | I143: 1 | J143: 1 | K143: 2686.53 | L143: 2710.53 | M143: 2685.7 | N143: 2703.28 | O143: 0
A144: 129 | B144: 2021-09-10 | C144: 2711.800049 | D144: 2727.429932 | E144: 2686.169922 | F144: 2686.530029 | G144: 0 | H144: 2686.530029 | I144: 1 | J144: 1 | K144: 2711.8 | L144: 2727.43 | M144: 2686.17 | N144: 2686.53 | O144: 0
A145: 130 | B145: 2021-09-09 | C145: 2718.560059 | D145: 2735.73999 | E145: 2711.030029 | F145: 2711.800049 | G145: 0 | H145: 2711.800049 | I145: =IF(F145=0,1,H145/F145) -> 1 | J145: =INDEX(OFFSET($T$15,0,0,$S$13+1,1),MATCH(B145,OFFSET($Q$15,0,0,$S$13+1,1),-1)) -> 1 | K145: =ROUND($I145*C145,2) -> 2718.56 | L145: =ROUND($I145*D145,2) -> 2735.74 | M145: =ROUND($I145*E145,2) -> 2711.03 | N145: =ROUND($I145*F145,2) -> 2711.8 | O145: =G145*J145 -> 0
A146: 131 | B146: 2021-09-08 | C146: 2728.169922 | D146: 2729.459961 | E146: 2703.469971 | F146: 2718.560059 | G146: 0 | H146: 2718.560059 | I146: 1 | J146: 1 | K146: 2728.17 | L146: 2729.46 | M146: 2703.47 | N146: 2718.56 | O146: 0
A147: 132 | B147: 2021-09-07 | C147: 2760.550049 | D147: 2760.550049 | E147: 2727.879883 | F147: 2728.169922 | G147: 0 | H147: 2728.169922 | I147: 1 | J147: 1 | K147: 2760.55 | L147: 2760.55 | M147: 2727.88 | N147: 2728.17 | O147: 0
A148: 133 | B148: 2021-09-03 | C148: 2773.830078 | D148: 2773.830078 | E148: 2754.120117 | F148: 2760.550049 | G148: 0 | H148: 2760.550049 | I148: 1 | J148: 1 | K148: 2773.83 | L148: 2773.83 | M148: 2754.12 | N148: 2760.55 | O148: 0
A149: 134 | B149: 2021-09-02 | C149: 2760.219971 | D149: 2780.429932 | E149: 2760.219971 | F149: 2773.830078 | G149: 0 | H149: 2773.830078 | I149: 1 | J149: 1 | K149: 2760.22 | L149: 2780.43 | M149: 2760.22 | N149: 2773.83 | O149: 0
A150: 135 | B150: 2021-09-01 | C150: 2753.159912 | D150: 2769.780029 | E150: 2737.25 | F150: 2760.219971 | G150: 0 | H150: 2760.219971 | I150: 1 | J150: 1 | K150: 2753.16 | L150: 2769.78 | M150: 2737.25 | N150: 2760.22 | O150: 0
A151: 136 | B151: 2021-08-31 | C151: 2760.48999 | D151: 2763.280029 | E151: 2745.629883 | F151: 2753.159912 | G151: 0 | H151: 2753.159912 | I151: 1 | J151: 1 | K151: 2760.49 | L151: 2763.28 | M151: 2745.63 | N151: 2753.16 | O151: 0
A152: 137 | B152: 2021-08-30 | C152: 2767.060059 | D152: 2775.669922 | E152: 2757.429932 | F152: 2760.48999 | G152: 0 | H152: 2760.48999 | I152: 1 | J152: 1 | K152: 2767.06 | L152: 2775.67 | M152: 2757.43 | N152: 2760.49 | O152: 0
A153: 138 | B153: 2021-08-27 | C153: 2716.689941 | D153: 2772.800049 | E153: 2716.689941 | F153: 2767.060059 | G153: 0 | H153: 2767.060059 | I153: 1 | J153: 1 | K153: 2716.69 | L153: 2772.8 | M153: 2716.69 | N153: 2767.06 | O153: 0
A154: 139 | B154: 2021-08-26 | C154: 2741.389893 | D154: 2741.840088 | E154: 2714.389893 | F154: 2716.689941 | G154: 0 | H154: 2716.689941 | I154: 1 | J154: 1 | K154: 2741.39 | L154: 2741.84 | M154: 2714.39 | N154: 2716.69 | O154: 0
A155: 140 | B155: 2021-08-25 | C155: 2726.159912 | D155: 2754.360107 | E155: 2725.629883 | F155: 2741.389893 | G155: 0 | H155: 2741.389893 | I155: 1 | J155: 1 | K155: 2726.16 | L155: 2754.36 | M155: 2725.63 | N155: 2741.39 | O155: 0
A156: 141 | B156: 2021-08-24 | C156: 2698.98999 | D156: 2731.47998 | E156: 2698.98999 | F156: 2726.159912 | G156: 0 | H156: 2726.159912 | I156: 1 | J156: 1 | K156: 2698.99 | L156: 2731.48 | M156: 2698.99 | N156: 2726.16 | O156: 0
A157: 142 | B157: 2021-08-23 | C157: 2675.669922 | D157: 2703.47998 | E157: 2675.669922 | F157: 2698.98999 | G157: 0 | H157: 2698.98999 | I157: 1 | J157: 1 | K157: 2675.67 | L157: 2703.48 | M157: 2675.67 | N157: 2698.99 | O157: 0
A158: 143 | B158: 2021-08-20 | C158: 2644.709961 | D158: 2677.199951 | E158: 2642.830078 | F158: 2675.669922 | G158: 0 | H158: 2675.669922 | I158: 1 | J158: 1 | K158: 2644.71 | L158: 2677.2 | M158: 2642.83 | N158: 2675.67 | O158: 0
A159: 144 | B159: 2021-08-19 | C159: 2667.070068 | D159: 2667.070068 | E159: 2630.5 | F159: 2644.709961 | G159: 0 | H159: 2644.709961 | I159: 1 | J159: 1 | K159: 2667.07 | L159: 2667.07 | M159: 2630.5 | N159: 2644.71 | O159: 0
A160: 145 | B160: 2021-08-18 | C160: 2692.5 | D160: 2702.75 | E160: 2666.179932 | F160: 2667.070068 | G160: 0 | H160: 2667.070068 | I160: 1 | J160: 1 | K160: 2692.5 | L160: 2702.75 | M160: 2666.18 | N160: 2667.07 | O160: 0
A161: 146 | B161: 2021-08-17 | C161: 2724.790039 | D161: 2724.790039 | E161: 2665.679932 | F161: 2692.5 | G161: 0 | H161: 2692.5 | I161: 1 | J161: 1 | K161: 2724.79 | L161: 2724.79 | M161: 2665.68 | N161: 2692.5 | O161: 0
A162: 147 | B162: 2021-08-16 | C162: 2731.459961 | D162: 2731.459961 | E162: 2703.070068 | F162: 2724.790039 | G162: 0 | H162: 2724.790039 | I162: 1 | J162: 1 | K162: 2731.46 | L162: 2731.46 | M162: 2703.07 | N162: 2724.79 | O162: 0
A163: 148 | B163: 2021-08-13 | C163: 2737.47998 | D163: 2739.389893 | E163: 2727.560059 | F163: 2731.459961 | G163: 0 | H163: 2731.459961 | I163: 1 | J163: 1 | K163: 2737.48 | L163: 2739.39 | M163: 2727.56 | N163: 2731.46 | O163: 0
A164: 149 | B164: 2021-08-12 | C164: 2741.909912 | D164: 2743.540039 | E164: 2724.110107 | F164: 2737.47998 | G164: 0 | H164: 2737.47998 | I164: 1 | J164: 1 | K164: 2741.91 | L164: 2743.54 | M164: 2724.11 | N164: 2737.48 | O164: 0
A165: 150 | B165: 2021-08-11 | C165: 2719.310059 | D165: 2742.139893 | E165: 2710.959961 | F165: 2741.909912 | G165: 0 | H165: 2741.909912 | I165: 1 | J165: 1 | K165: 2719.31 | L165: 2742.14 | M165: 2710.96 | N165: 2741.91 | O165: 0
A166: 151 | B166: 2021-08-10 | C166: 2709.800049 | D166: 2727.820068 | E166: 2705.080078 | F166: 2719.310059 | G166: 0 | H166: 2719.310059 | I166: 1 | J166: 1 | K166: 2709.8 | L166: 2727.82 | M166: 2705.08 | N166: 2719.31 | O166: 0
A167: 152 | B167: 2021-08-09 | C167: 2717.360107 | D167: 2719.649902 | E167: 2697.840088 | F167: 2709.800049 | G167: 0 | H167: 2709.800049 | I167: 1 | J167: 1 | K167: 2717.36 | L167: 2719.65 | M167: 2697.84 | N167: 2709.8 | O167: 0
A168: 153 | B168: 2021-08-06 | C168: 2706.169922 | D168: 2731.209961 | E168: 2706.169922 | F168: 2717.360107 | G168: 0 | H168: 2717.360107 | I168: 1 | J168: 1 | K168: 2706.17 | L168: 2731.21 | M168: 2706.17 | N168: 2717.36 | O168: 0
A169: 154 | B169: 2021-08-05 | C169: 2681.310059 | D169: 2709.689941 | E169: 2681.310059 | F169: 2706.169922 | G169: 0 | H169: 2706.169922 | I169: 1 | J169: 1 | K169: 2681.31 | L169: 2709.69 | M169: 2681.31 | N169: 2706.17 | O169: 0
A170: 155 | B170: 2021-08-04 | C170: 2708.879883 | D170: 2710.530029 | E170: 2681.25 | F170: 2681.310059 | G170: 0 | H170: 2681.310059 | I170: 1 | J170: 1 | K170: 2708.88 | L170: 2710.53 | M170: 2681.25 | N170: 2681.31 | O170: 0
A171: 156 | B171: 2021-08-03 | C171: 2692.01001 | D171: 2709.23999 | E171: 2670.689941 | F171: 2708.879883 | G171: 0 | H171: 2708.879883 | I171: 1 | J171: 1 | K171: 2692.01 | L171: 2709.24 | M171: 2670.69 | N171: 2708.88 | O171: 0
A172: 157 | B172: 2021-08-02 | C172: 2703.669922 | D172: 2743.399902 | E172: 2690.310059 | F172: 2692.01001 | G172: 0 | H172: 2692.01001 | I172: 1 | J172: 1 | K172: 2703.67 | L172: 2743.4 | M172: 2690.31 | N172: 2692.01 | O172: 0
A173: 158 | B173: 2021-07-30 | C173: 2706.429932 | D173: 2726.139893 | E173: 2693.840088 | F173: 2703.669922 | G173: 0 | H173: 2703.669922 | I173: 1 | J173: 1 | K173: 2706.43 | L173: 2726.14 | M173: 2693.84 | N173: 2703.67 | O173: 0
A174: 159 | B174: 2021-07-29 | C174: 2679.709961 | D174: 2722.649902 | E174: 2679.709961 | F174: 2706.429932 | G174: 0 | H174: 2706.429932 | I174: 1 | J174: 1 | K174: 2679.71 | L174: 2722.65 | M174: 2679.71 | N174: 2706.43 | O174: 0
A175: 160 | B175: 2021-07-28 | C175: 2660.580078 | D175: 2694.01001 | E175: 2645.469971 | F175: 2679.709961 | G175: 0 | H175: 2679.709961 | I175: 1 | J175: 1 | K175: 2660.58 | L175: 2694.01 | M175: 2645.47 | N175: 2679.71 | O175: 0
A176: 161 | B176: 2021-07-27 | C176: 2675.929932 | D176: 2675.929932 | E176: 2643.22998 | F176: 2660.580078 | G176: 0 | H176: 2660.580078 | I176: 1 | J176: 1 | K176: 2675.93 | L176: 2675.93 | M176: 2643.23 | N176: 2660.58 | O176: 0
A177: 162 | B177: 2021-07-26 | C177: 2672.73999 | D177: 2690.320068 | E177: 2669.01001 | F177: 2675.929932 | G177: 0 | H177: 2675.929932 | I177: 1 | J177: 1 | K177: 2672.74 | L177: 2690.32 | M177: 2669.01 | N177: 2675.93 | O177: 0
A178: 163 | B178: 2021-07-23 | C178: 2649.629883 | D178: 2674.550049 | E178: 2648.73999 | F178: 2672.73999 | G178: 0 | H178: 2672.73999 | I178: 1 | J178: 1 | K178: 2649.63 | L178: 2674.55 | M178: 2648.74 | N178: 2672.74 | O178: 0
A179: 164 | B179: 2021-07-22 | C179: 2674.300049 | D179: 2674.300049 | E179: 2637.820068 | F179: 2649.629883 | G179: 0 | H179: 2649.629883 | I179: 1 | J179: 1 | K179: 2674.3 | L179: 2674.3 | M179: 2637.82 | N179: 2649.63 | O179: 0
A180: 165 | B180: 2021-07-21 | C180: 2642.179932 | D180: 2685.820068 | E180: 2642.179932 | F180: 2674.300049 | G180: 0 | H180: 2674.300049 | I180: 1 | J180: 1 | K180: 2642.18 | L180: 2685.82 | M180: 2642.18 | N180: 2674.3 | O180: 0
A181: 166 | B181: 2021-07-20 | C181: 2571.030029 | D181: 2656.27002 | E181: 2571.030029 | F181: 2642.179932 | G181: 0 | H181: 2642.179932 | I181: 1 | J181: 1 | K181: 2571.03 | L181: 2656.27 | M181: 2571.03 | N181: 2642.18 | O181: 0
A182: 167 | B182: 2021-07-19 | C182: 2616.959961 | D182: 2616.959961 | E182: 2550.620117 | F182: 2571.030029 | G182: 0 | H182: 2571.030029 | I182: 1 | J182: 1 | K182: 2616.96 | L182: 2616.96 | M182: 2550.62 | N182: 2571.03 | O182: 0
A183: 168 | B183: 2021-07-16 | C183: 2648.540039 | D183: 2662.810059 | E183: 2614.879883 | F183: 2616.959961 | G183: 0 | H183: 2616.959961 | I183: 1 | J183: 1 | K183: 2648.54 | L183: 2662.81 | M183: 2614.88 | N183: 2616.96 | O183: 0
A184: 169 | B184: 2021-07-15 | C184: 2656.429932 | D184: 2659 | E184: 2628.689941 | F184: 2648.540039 | G184: 0 | H184: 2648.540039 | I184: 1 | J184: 1 | K184: 2656.43 | L184: 2659 | M184: 2628.69 | N184: 2648.54 | O184: 0
A185: 170 | B185: 2021-07-14 | C185: 2671.76001 | D185: 2698.320068 | E185: 2652.530029 | F185: 2656.429932 | G185: 0 | H185: 2656.429932 | I185: 1 | J185: 1 | K185: 2671.76 | L185: 2698.32 | M185: 2652.53 | N185: 2656.43 | O185: 0
A186: 171 | B186: 2021-07-13 | C186: 2713.389893 | D186: 2713.389893 | E186: 2671.310059 | F186: 2671.76001 | G186: 0 | H186: 2671.76001 | I186: 1 | J186: 1 | K186: 2713.39 | L186: 2713.39 | M186: 2671.31 | N186: 2671.76 | O186: 0
A187: 172 | B187: 2021-07-12 | C187: 2706.419922 | D187: 2716.370117 | E187: 2688.909912 | F187: 2713.389893 | G187: 0 | H187: 2713.389893 | I187: 1 | J187: 1 | K187: 2706.42 | L187: 2716.37 | M187: 2688.91 | N187: 2713.39 | O187: 0
A188: 173 | B188: 2021-07-09 | C188: 2648.429932 | D188: 2707.459961 | E188: 2648.429932 | F188: 2706.419922 | G188: 0 | H188: 2706.419922 | I188: 1 | J188: 1 | K188: 2648.43 | L188: 2707.46 | M188: 2648.43 | N188: 2706.42 | O188: 0
A189: 174 | B189: 2021-07-08 | C189: 2682.810059 | D189: 2682.810059 | E189: 2618.780029 | F189: 2648.429932 | G189: 0 | H189: 2648.429932 | I189: 1 | J189: 1 | K189: 2682.81 | L189: 2682.81 | M189: 2618.78 | N189: 2648.43 | O189: 0
A190: 175 | B190: 2021-07-07 | C190: 2679.899902 | D190: 2694.149902 | E190: 2657.090088 | F190: 2682.810059 | G190: 0 | H190: 2682.810059 | I190: 1 | J190: 1 | K190: 2679.9 | L190: 2694.15 | M190: 2657.09 | N190: 2682.81 | O190: 0
A191: 176 | B191: 2021-07-06 | C191: 2709.570068 | D191: 2709.570068 | E191: 2657.939941 | F191: 2679.899902 | G191: 0 | H191: 2679.899902 | I191: 1 | J191: 1 | K191: 2709.57 | L191: 2709.57 | M191: 2657.94 | N191: 2679.9 | O191: 0
A192: 177 | B192: 2021-07-02 | C192: 2717.040039 | D192: 2721.320068 | E192: 2701.48999 | F192: 2709.570068 | G192: 0 | H192: 2709.570068 | I192: 1 | J192: 1 | K192: 2717.04 | L192: 2721.32 | M192: 2701.49 | N192: 2709.57 | O192: 0
A193: 178 | B193: 2021-07-01 | C193: 2696.120117 | D193: 2725.449951 | E193: 2696.120117 | F193: 2717.040039 | G193: 0 | H193: 2717.040039 | I193: 1 | J193: 1 | K193: 2696.12 | L193: 2725.45 | M193: 2696.12 | N193: 2717.04 | O193: 0
A194: 179 | B194: 2021-06-30 | C194: 2693.800049 | D194: 2700.600098 | E194: 2688.300049 | F194: 2696.120117 | G194: 0 | H194: 2696.120117 | I194: 1 | J194: 1 | K194: 2693.8 | L194: 2700.6 | M194: 2688.3 | N194: 2696.12 | O194: 0
A195: 180 | B195: 2021-06-29 | C195: 2699.850098 | D195: 2715.879883 | E195: 2690.189941 | F195: 2693.800049 | G195: 0 | H195: 2693.800049 | I195: 1 | J195: 1 | K195: 2699.85 | L195: 2715.88 | M195: 2690.19 | N195: 2693.8 | O195: 0
A196: 181 | B196: 2021-06-28 | C196: 2726.47998 | D196: 2727.689941 | E196: 2686.47998 | F196: 2699.850098 | G196: 0 | H196: 2699.850098 | I196: 1 | J196: 1 | K196: 2726.48 | L196: 2727.69 | M196: 2686.48 | N196: 2699.85 | O196: 0
A197: 182 | B197: 2021-06-25 | C197: 2702.040039 | D197: 2729.570068 | E197: 2702.040039 | F197: 2726.47998 | G197: 0 | H197: 2726.47998 | I197: 1 | J197: 1 | K197: 2702.04 | L197: 2729.57 | M197: 2702.04 | N197: 2726.48 | O197: 0
A198: 183 | B198: 2021-06-24 | C198: 2676.800049 | D198: 2703.689941 | E198: 2676.800049 | F198: 2702.040039 | G198: 0 | H198: 2702.040039 | I198: 1 | J198: 1 | K198: 2676.8 | L198: 2703.69 | M198: 2676.8 | N198: 2702.04 | O198: 0
A199: 184 | B199: 2021-06-23 | C199: 2674.310059 | D199: 2689.350098 | E199: 2674.310059 | F199: 2676.800049 | G199: 0 | H199: 2676.800049 | I199: 1 | J199: 1 | K199: 2674.31 | L199: 2689.35 | M199: 2674.31 | N199: 2676.8 | O199: 0
A200: 185 | B200: 2021-06-22 | C200: 2671.850098 | D200: 2681.590088 | E200: 2652.790039 | F200: 2674.310059 | G200: 0 | H200: 2674.310059 | I200: 1 | J200: 1 | K200: 2671.85 | L200: 2681.59 | M200: 2652.79 | N200: 2674.31 | O200: 0
... 4300 more rows

Sheet CalculationsAndCharts
A1: RsEMA.xlsm
A2: =InputPriceData!A1 -> S&P MID CAP 400 INDEX (^MID) -NYSE (Daily)
A4: User Charting Controls | E4: Click to Shift Chart One Bar:
A5: Data Control | C5: FALSE
A6: =MIN(InputPriceData!$B$10) -> 10389 | B6: Available Input Data Rows | E6: Earliest: | F6: =OFFSET(InputPriceData!B15,CalculationsAndCharts!A6,0,1,1) -> 1981-01-02
A7: =MAX(A33:A56896) -> 2700 | B7: Available Calculation Rows | E7: Latest: | F7: =OFFSET(InputPriceData!B15,1,0,1,1) -> 2022-03-15
A8: =MIN(AvailableInputRows-DataPanRows,A7) -> 2700 | B8: Logically Available for Calc / Plot | E8: $ Change: | F8: =G33-G34 -> -1.440003
A10: Historical Price Windowing Specifications | F10: Click to Shift
A11: 3968 | B11: Input Data Offset (Pan) | F11: Points to Plot
A12: 466 | B12: Data Points to Plot (Zoom)
B13: First: | C13: =OFFSET(B32,A12,0,1,1) -> 2004-08-05
B14: ="Last: " & IF(OFFSET(InputPriceData!P15,1+A11,0,1,1)="","",TEXT(OFFSET(InputPriceData!P15,1+A11,0,1,1),"H:MM AM/PM")) -> Last: | C14: =B33 -> 2006-06-09
A15: User Controls | C15: Coefs
A16: EMA 1 | B16: 200 | C16: =2/(B16+1) -> 0.009950248756
A17: EMA 2 | B17: 50 | C17: =2/(B17+1) -> 0.03921568627
B19: Mltp1
B20: Periods | C20: PDS | D20: Mltp
A21: RsEMA 1 | B21: 50 | C21: 50 | D21: 10 | E21: =IF(B21<C21,"<== Periods < PDS!","") -> 
A22: Coefs: | B22: =2/(B21+1) -> 0.03921568627 | C22: =2/(C21+1) -> 0.03921568627
A23: RsEMA 2 | B23: 200 | C23: 200 | D23: 10 | E23: =IF(B23<C23,"<== Periods < PDS!","") -> 
A24: Coefs: | B24: =2/(B23+1) -> 0.009950248756 | C24: =2/(C23+1) -> 0.009950248756
A25: Help! I would like to plot data
A26: From | B26: 2004-08-05 | C26: =OFFSET(InputPriceData!$A$15,MATCH(B26,OFFSET(InputPriceData!B15,1,0,InputPriceData!$B$10,1),0),0,1,1)-C27 -> 466 | E26: 464
A27: To | B27: 2006-06-09 | C27: =OFFSET(InputPriceData!$A$15,MATCH(B27,OFFSET(InputPriceData!$B$15,1,0,InputPriceData!$B$10,1),0),0,1,1)-1 -> 3968 | E27: =$A$12-$E$26+1 -> 3
H28: Value @ Cursor => | I28: =OFFSET(A32,$E$27,0,1,1)&"(RR)" -> 3(RR) | J28: =OFFSET($B$32,E27,0,1,1) -> 2006-06-07 | K28: =TEXT(OFFSET(D32,$E$27,0,1,1),"#,##0.00")&"(o)" -> 756.72(o) | L28: =TEXT(OFFSET(E32,$E$27,0,1,1),"#,##0.00")&"(h)" -> 762.94(h) | M28: =TEXT(OFFSET(F32,$E$27,0,1,1),"#,##0.00")&"(l)" -> 750.25(l) | N28: =TEXT(OFFSET(G32,$E$27,0,1,1),"#,##0.00")&"(c)" -> 750.33(c) | O28: =TEXT(OFFSET(C32,$E$27,0,1,1),"#,##0.00,,""M""")&"(v)" -> 0.00M(v)
E29: Cursor ==> | AY29: Work Area For Chart Cursors
B30: =LogicallyAvailableRows -> 2700 | C30: <== Calculation Rel Row Limits ==> | H30: =B30-B16+1 -> 2501 | I30: =B30-B17+1 -> 2651 | J30: =B30-1 -> 2699 | L30: =J30-B21+1 -> 2650 | P30: =B30-C21-D21+1 -> 2641 | Q30: =J30-B23+1 -> 2500 | U30: =B30-C23-D23+1 -> 2491
A31: Rel Row | B31: =InputPriceData!A1 -> S&P MID CAP 400 INDEX (^MID) -NYSE (Daily) | H31: EMA 1 | I31: EMA 2 | P31: RsEMA 1 | U31: RsEMA 2 | AW31: Used To Color Vol Bars
B32: Date | C32: Volume | D32: Open | E32: High | F32: Low | G32: Close | H32: ="EMA("&B16&")" -> EMA(200) | I32: ="EMA["&B17&"]" -> EMA[50] | J32: Cup | K32: Cdn | L32: ="EMA("&$J$32&","&$B$21&")" -> EMA(Cup,50) | M32: ="EMA("&$K$32&","&$B$21&")" -> EMA(Cdn,50) | N32: ="Rs("&$B$21&")*"&$D$21 -> Rs(50)*10 | O32: Rate | P32: ="RsEMA("&B21&","&C21&","&D21&")" -> RsEMA(50,50,10) | Q32: ="EMA("&$J$32&","&$B$23&")" -> EMA(Cup,200) | R32: ="EMA("&$K$32&","&$B$23&")" -> EMA(Cdn,200) | S32: ="Rs("&$B$23&")*"&$D$23 -> Rs(200)*10 | T32: Rate | U32: ="RsEMA["&B23&","&C23&","&D23&"]" -> RsEMA[200,200,10] | AW32: Up Vol | AX32: Dn Vol | AY32: Volume Cursor | AZ32: =MAX(OFFSET(C33,0,0,A12,1)) -> 4150600 | BA32: Price Chart Cursor | BC32: Indicator 01 Cursor | BE32: Indicator 02 Cursor | BG32: Indicator 03 Cursor | BI32: Indicator 04 Cursor | BK32: Price Chart2 Cursor
A33: 1 | B33: =IF($A33>$B$30,NA(),IF($A33>$A$8,"",OFFSET(InputPriceData!$B$15,$A33+$A$11,0,1,1))) -> 2006-06-09 | C33: =IF($A33>$B$30,NA(),IF($A33>$A$8,"",OFFSET(InputPriceData!$G$15,CalculationsAndCharts!$A33+$A$11,IF($C$5,8,0),1,1))) -> 0 | D33: =IF($A33>$B$30,NA(),IF($A33>$A$8,"",OFFSET(InputPriceData!$C$15,CalculationsAndCharts!$A33+$A$11,IF($C$5,8,0),1,1))) -> 746.799988 | E33: =IF($A33>$B$30,NA(),IF($A33>$A$8,"",OFFSET(InputPriceData!$D$15,CalculationsAndCharts!$A33+$A$11,IF($C$5,8,0),1,1))) -> 754.369995 | F33: =IF($A33>$B$30,NA(),IF($A33>$A$8,"",OFFSET(InputPriceData!$E$15,CalculationsAndCharts!$A33+$A$11,IF($C$5,8,0),1,1))) -> 742.700012 | G33: =IF($A33>$B$30,NA(),IF($A33>$A$8,"",OFFSET(InputPriceData!$F$15,CalculationsAndCharts!$A33+$A$11,IF($C$5,8,0),1,1))) -> 745.359985 | H33: =IF($A33>H$30,NA(),IF($A33=H$30,AVERAGE(OFFSET($G33,0,0,$B$16,1)),(G33-H34)*$C$16+H34)) -> 751.8623555 | I33: =IF(A33>$I$30,NA(),IF(A33=$I$30,AVERAGE(OFFSET($G33,0,0,$B$17,1)),(G33-I34)*$C$17+I34)) -> 776.2756523 | J33: =IF(A33>$J$30,NA(),IF(G33>G34,G33-G34,0)) -> 0 | K33: =IF(A33>$J$30,NA(),IF(G33<G34,G34-G33,0)) -> 1.440003 | L33: =IF($A33>$L$30,NA(),IF($A33=$L$30,AVERAGE(OFFSET($J33,0,0,$C$21,1)),($J33-L34)*$C$22+L34)) -> 2.158840537 | M33: =IF($A33>$L$30,NA(),IF($A33=$L$30,AVERAGE(OFFSET($K33,0,0,$C$21,1)),($K33-M34)*$C$22+M34)) -> 3.420704511 | N33: =IF($A33>$L$30,NA(),ABS((L33-M33))/(L33+M33))*$D$21 -> 2.261589363 | O33: =IF($A33>$L$30,NA(),$B$22*(N33+1)) -> 0.1279054652 | P33: =IF($A33>$P$30,NA(),IF($A33=$P$30,$G33,O33*($G33-P34)+P34)) -> 761.8045925 | Q33: =IF($A33>$Q$30,NA(),IF($A33=$Q$30,AVERAGE(OFFSET($J33,0,0,$C$23,1)),($J33-Q34)*$C$24+Q34)) -> 2.308822162 | R33: =IF($A33>$Q$30,NA(),IF($A33=$Q$30,AVERAGE(OFFSET($K33,0,0,$C$23,1)),($K33-R34)*$C$24+R34)) -> 2.374172619 | S33: =IF($A33>$Q$30,NA(),ABS((Q33-R33))/(Q33+R33))*$D$23 -> 0.1395484302 | T33: =IF($A33>$Q$30,NA(),$B$24*(S33+1)) -> 0.01133879035 | U33: =IF($A33>$U$30,NA(),IF($A33=$U$30,$G33,T33*($G33-U34)+U34)) -> 778.7319188 | AW33: =IF(G33>=D33,C33,NA()) ->  | AX33: =IF(G33<D33,C33,NA()) -> 0 | AY33: =$E$27 -> 3 | AZ33: 0 | BA33: =$E$27 -> 3 | BB33: 548.289978 | BC33: =$E$27 -> 3 | BE33: =$E$27 -> 3 | BG33: =$E$27 -> 3 | BI33: =$E$27 -> 3 | BK33: =$E$27 -> 3 | BL33: 548.289978
A34: 2 | B34: =IF(A34>$B$30,NA(),IF($A34>$A$8,"",OFFSET(InputPriceData!$B$15,$A34+$A$11,0,1,1))) -> 2006-06-08 | C34: =IF(A34>$B$30,NA(),IF($A34>$A$8,"",OFFSET(InputPriceData!$G$15,CalculationsAndCharts!$A34+$A$11,IF($C$5,8,0),1,1))) -> 0 | D34: =IF(A34>$B$30,NA(),IF(A34>$A$8,"",OFFSET(InputPriceData!$C$15,CalculationsAndCharts!$A34+$A$11,IF($C$5,8,0),1,1))) -> 750.330017 | E34: =IF(A34>$B$30,NA(),IF(A34>$A$8,"",OFFSET(InputPriceData!$D$15,CalculationsAndCharts!$A34+$A$11,IF($C$5,8,0),1,1))) -> 750.330017 | F34: =IF(A34>$B$30,NA(),IF(A34>$A$8,"",OFFSET(InputPriceData!$E$15,CalculationsAndCharts!$A34+$A$11,IF($C$5,8,0),1,1))) -> 730.619995 | G34: =IF(A34>$B$30,NA(),IF(A34>$A$8,"",OFFSET(InputPriceData!$F$15,CalculationsAndCharts!$A34+$A$11,IF($C$5,8,0),1,1))) -> 746.799988 | H34: =IF(A34>$H$30,NA(),IF(A34=$H$30,AVERAGE(OFFSET(G34,0,0,$B$16,1)),(G34-H35)*$C$16+H35)) -> 751.9277059 | I34: =IF(A34>$I$30,NA(),IF(A34=$I$30,AVERAGE(OFFSET($G34,0,0,$B$17,1)),(G34-I35)*$C$17+I35)) -> 777.5375163 | J34: 0 | K34: 3.530029 | L34: =IF($A34>$L$30,NA(),IF($A34=$L$30,AVERAGE(OFFSET($J34,0,0,$C$21,1)),($J34-L35)*$C$22+L35)) -> 2.246956478 | M34: =IF($A34>$L$30,NA(),IF($A34=$L$30,AVERAGE(OFFSET($K34,0,0,$C$21,1)),($K34-M35)*$C$22+M35)) -> 3.50154947 | N34: =IF($A34>$L$30,NA(),ABS((L34-M34))/(L34+M34))*$D$21 -> 2.182467939 | O34: =IF($A34>$L$30,NA(),$B$22*(N34+1)) -> 0.1248026643 | P34: =IF($A34>$P$30,NA(),IF($A34=$P$30,G34,O34*(G34-P35)+P35)) -> 764.2164356 | Q34: =IF($A34>$Q$30,NA(),IF($A34=$Q$30,AVERAGE(OFFSET($J34,0,0,$C$23,1)),($J34-Q35)*$C$24+Q35)) -> 2.332026405 | R34: =IF($A34>$Q$30,NA(),IF($A34=$Q$30,AVERAGE(OFFSET($K34,0,0,$C$23,1)),($K34-R35)*$C$24+R35)) -> 2.383561259 | S34: =IF($A34>$Q$30,NA(),ABS((Q34-R34))/(Q34+R34))*$D$23 -> 0.1092861744 | T34: =IF($A34>$Q$30,NA(),$B$24*(S34+1)) -> 0.01103767338 | U34: =IF($A34>$U$30,NA(),IF($A34=$U$30,$G34,T34*($G34-U35)+U35)) -> 779.114656 | AX34: 0 | AY34: =$E$27 -> 3 | AZ34: =CEILING(AZ32,10^INT(LOG10(AZ32))/8) -> 4250000 | BA34: =$E$27 -> 3 | BB34: 818.869995 | BC34: =$E$27 -> 3 | BD34: 0 | BE34: =$E$27 -> 3 | BF34: 0 | BG34: =$E$27 -> 3 | BH34: 0 | BI34: =$E$27 -> 3 | BJ34: 0 | BK34: =$E$27 -> 3 | BL34: 818.869995
A35: 3 | B35: =IF(A35>$B$30,NA(),IF($A35>$A$8,"",OFFSET(InputPriceData!$B$15,$A35+$A$11,0,1,1))) -> 2006-06-07 | C35: =IF(A35>$B$30,NA(),IF($A35>$A$8,"",OFFSET(InputPriceData!$G$15,CalculationsAndCharts!$A35+$A$11,IF($C$5,8,0),1,1))) -> 0 | D35: =IF(A35>$B$30,NA(),IF(A35>$A$8,"",OFFSET(InputPriceData!$C$15,CalculationsAndCharts!$A35+$A$11,IF($C$5,8,0),1,1))) -> 756.719971 | E35: =IF(A35>$B$30,NA(),IF(A35>$A$8,"",OFFSET(InputPriceData!$D$15,CalculationsAndCharts!$A35+$A$11,IF($C$5,8,0),1,1))) -> 762.940002 | F35: =IF(A35>$B$30,NA(),IF(A35>$A$8,"",OFFSET(InputPriceData!$E$15,CalculationsAndCharts!$A35+$A$11,IF($C$5,8,0),1,1))) -> 750.25 | G35: =IF(A35>$B$30,NA(),IF(A35>$A$8,"",OFFSET(InputPriceData!$F$15,CalculationsAndCharts!$A35+$A$11,IF($C$5,8,0),1,1))) -> 750.330017 | H35: 751.9792408 | I35: 778.7921093 | J35: 0 | K35: 6.389954 | L35: 2.338668987 | M35: 3.50038704 | N35: 1.989564834 | O35: 0.1172378366 | P35: 766.7000115 | Q35: 2.355463856 | R35: 2.37203897 | S35: 0.03506103336 | T35: 0.01029911476 | U35: 779.4753156 | AX35: 0
A36: 4 | B36: =IF(A36>$B$30,NA(),IF($A36>$A$8,"",OFFSET(InputPriceData!$B$15,$A36+$A$11,0,1,1))) -> 2006-06-06 | C36: =IF(A36>$B$30,NA(),IF($A36>$A$8,"",OFFSET(InputPriceData!$G$15,CalculationsAndCharts!$A36+$A$11,IF($C$5,8,0),1,1))) -> 0 | D36: =IF(A36>$B$30,NA(),IF(A36>$A$8,"",OFFSET(InputPriceData!$C$15,CalculationsAndCharts!$A36+$A$11,IF($C$5,8,0),1,1))) -> 760.98999 | E36: =IF(A36>$B$30,NA(),IF(A36>$A$8,"",OFFSET(InputPriceData!$D$15,CalculationsAndCharts!$A36+$A$11,IF($C$5,8,0),1,1))) -> 762.369995 | F36: =IF(A36>$B$30,NA(),IF(A36>$A$8,"",OFFSET(InputPriceData!$E$15,CalculationsAndCharts!$A36+$A$11,IF($C$5,8,0),1,1))) -> 749.309998 | G36: =IF(A36>$B$30,NA(),IF(A36>$A$8,"",OFFSET(InputPriceData!$F$15,CalculationsAndCharts!$A36+$A$11,IF($C$5,8,0),1,1))) -> 756.719971 | H36: 751.9958159 | I36: 779.9538274 | J36: 0 | K36: 4.270019 | L36: 2.434124864 | M36: 3.382445532 | N36: 1.630377703 | O36: 0.1031520668 | P36: 768.874077 | Q36: 2.37913686 | R36: 2.331657914 | S36: 0.1007875486 | T36: 0.01095310994 | U36: 779.77861 | AX36: 0
A37: 5 | B37: =IF(A37>$B$30,NA(),IF($A37>$A$8,"",OFFSET(InputPriceData!$B$15,$A37+$A$11,0,1,1))) -> 2006-06-05 | C37: =IF(A37>$B$30,NA(),IF($A37>$A$8,"",OFFSET(InputPriceData!$G$15,CalculationsAndCharts!$A37+$A$11,IF($C$5,8,0),1,1))) -> 0 | D37: =IF(A37>$B$30,NA(),IF(A37>$A$8,"",OFFSET(InputPriceData!$C$15,CalculationsAndCharts!$A37+$A$11,IF($C$5,8,0),1,1))) -> 780.030029 | E37: =IF(A37>$B$30,NA(),IF(A37>$A$8,"",OFFSET(InputPriceData!$D$15,CalculationsAndCharts!$A37+$A$11,IF($C$5,8,0),1,1))) -> 780.030029 | F37: =IF(A37>$B$30,NA(),IF(A37>$A$8,"",OFFSET(InputPriceData!$E$15,CalculationsAndCharts!$A37+$A$11,IF($C$5,8,0),1,1))) -> 760.02002 | G37: =IF(A37>$B$30,NA(),IF(A37>$A$8,"",OFFSET(InputPriceData!$F$15,CalculationsAndCharts!$A37+$A$11,IF($C$5,8,0),1,1))) -> 760.98999 | H37: 751.948337 | I37: 780.902148 | J37: 0 | K37: 19.040039 | L37: 2.533476899 | M37: 3.346218043 | N37: 1.382284544 | O37: 0.09342292329 | P37: 770.2719964 | Q37: 2.403047783 | R37: 2.312176898 | S37: 0.1927180379 | T37: 0.01186784117 | U37: 780.0339708 | AX37: 0
A38: 6 | B38: =IF(A38>$B$30,NA(),IF($A38>$A$8,"",OFFSET(InputPriceData!$B$15,$A38+$A$11,0,1,1))) -> 2006-06-02 | C38: =IF(A38>$B$30,NA(),IF($A38>$A$8,"",OFFSET(InputPriceData!$G$15,CalculationsAndCharts!$A38+$A$11,IF($C$5,8,0),1,1))) -> 0 | D38: =IF(A38>$B$30,NA(),IF(A38>$A$8,"",OFFSET(InputPriceData!$C$15,CalculationsAndCharts!$A38+$A$11,IF($C$5,8,0),1,1))) -> 777.130005 | E38: =IF(A38>$B$30,NA(),IF(A38>$A$8,"",OFFSET(InputPriceData!$D$15,CalculationsAndCharts!$A38+$A$11,IF($C$5,8,0),1,1))) -> 783.01001 | F38: =IF(A38>$B$30,NA(),IF(A38>$A$8,"",OFFSET(InputPriceData!$E$15,CalculationsAndCharts!$A38+$A$11,IF($C$5,8,0),1,1))) -> 774.76001 | G38: =IF(A38>$B$30,NA(),IF(A38>$A$8,"",OFFSET(InputPriceData!$F$15,CalculationsAndCharts!$A38+$A$11,IF($C$5,8,0),1,1))) -> 780.030029 | H38: 751.8574661 | I38: 781.7148892 | J38: 2.900024 | K38: 0 | L38: 2.63688412 | M38: 2.705653923 | N38: 0.128721223 | O38: 0.04426357737 | P38: 771.2285088 | Q38: 2.427199017 | R38: 2.144057681 | S38: 0.61939496 | T38: 0.01611338269 | U38: 780.2626962 | AW38: 0
A39: 7 | B39: =IF(A39>$B$30,NA(),IF($A39>$A$8,"",OFFSET(InputPriceData!$B$15,$A39+$A$11,0,1,1))) -> 2006-06-01 | C39: =IF(A39>$B$30,NA(),IF($A39>$A$8,"",OFFSET(InputPriceData!$G$15,CalculationsAndCharts!$A39+$A$11,IF($C$5,8,0),1,1))) -> 0 | D39: =IF(A39>$B$30,NA(),IF(A39>$A$8,"",OFFSET(InputPriceData!$C$15,CalculationsAndCharts!$A39+$A$11,IF($C$5,8,0),1,1))) -> 765.559998 | E39: =IF(A39>$B$30,NA(),IF(A39>$A$8,"",OFFSET(InputPriceData!$D$15,CalculationsAndCharts!$A39+$A$11,IF($C$5,8,0),1,1))) -> 777.130005 | F39: =IF(A39>$B$30,NA(),IF(A39>$A$8,"",OFFSET(InputPriceData!$E$15,CalculationsAndCharts!$A39+$A$11,IF($C$5,8,0),1,1))) -> 765.22998 | G39: =IF(A39>$B$30,NA(),IF(A39>$A$8,"",OFFSET(InputPriceData!$F$15,CalculationsAndCharts!$A39+$A$11,IF($C$5,8,0),1,1))) -> 777.130005 | H39: 751.5743247 | I39: 781.783659 | J39: 11.570007 | K39: 0 | L39: 2.626143716 | M39: 2.816088777 | N39: 0.3490204812 | O39: 0.05290276397 | P39: 770.8208788 | Q39: 2.422447007 | R39: 2.165606 | S39: 0.5598039241 | T39: 0.01552043706 | U39: 780.2665067 | AW39: 0
A40: 8 | B40: =IF(A40>$B$30,NA(),IF($A40>$A$8,"",OFFSET(InputPriceData!$B$15,$A40+$A$11,0,1,1))) -> 2006-05-31 | C40: =IF(A40>$B$30,NA(),IF($A40>$A$8,"",OFFSET(InputPriceData!$G$15,CalculationsAndCharts!$A40+$A$11,IF($C$5,8,0),1,1))) -> 0 | D40: =IF(A40>$B$30,NA(),IF(A40>$A$8,"",OFFSET(InputPriceData!$C$15,CalculationsAndCharts!$A40+$A$11,IF($C$5,8,0),1,1))) -> 754.169983 | E40: =IF(A40>$B$30,NA(),IF(A40>$A$8,"",OFFSET(InputPriceData!$D$15,CalculationsAndCharts!$A40+$A$11,IF($C$5,8,0),1,1))) -> 765.599976 | F40: =IF(A40>$B$30,NA(),IF(A40>$A$8,"",OFFSET(InputPriceData!$E$15,CalculationsAndCharts!$A40+$A$11,IF($C$5,8,0),1,1))) -> 754.159973 | G40: =IF(A40>$B$30,NA(),IF(A40>$A$8,"",OFFSET(InputPriceData!$F$15,CalculationsAndCharts!$A40+$A$11,IF($C$5,8,0),1,1))) -> 765.559998 | H40: 751.3174837 | I40: 781.973604 | J40: 11.390015 | K40: 0 | L40: 2.261088072 | M40: 2.931031176 | N40: 1.290307621 | O40: 0.08981598515 | P40: 770.468465 | Q40: 2.330511731 | R40: 2.187370884 | S40: 0.316831709 | T40: 0.01310280307 | U40: 780.315954 | AW40: 0
A41: 9 | B41: =IF(A41>$B$30,NA(),IF($A41>$A$8,"",OFFSET(InputPriceData!$B$15,$A41+$A$11,0,1,1))) -> 2006-05-30 | C41: =IF(A41>$B$30,NA(),IF($A41>$A$8,"",OFFSET(InputPriceData!$G$15,CalculationsAndCharts!$A41+$A$11,IF($C$5,8,0),1,1))) -> 0 | D41: =IF(A41>$B$30,NA(),IF(A41>$A$8,"",OFFSET(InputPriceData!$C$15,CalculationsAndCharts!$A41+$A$11,IF($C$5,8,0),1,1))) -> 766.440002 | E41: =IF(A41>$B$30,NA(),IF(A41>$A$8,"",OFFSET(InputPriceData!$D$15,CalculationsAndCharts!$A41+$A$11,IF($C$5,8,0),1,1))) -> 766.440002 | F41: =IF(A41>$B$30,NA(),IF(A41>$A$8,"",OFFSET(InputPriceData!$E$15,CalculationsAndCharts!$A41+$A$11,IF($C$5,8,0),1,1))) -> 754.049988 | G41: =IF(A41>$B$30,NA(),IF(A41>$A$8,"",OFFSET(InputPriceData!$F$15,CalculationsAndCharts!$A41+$A$11,IF($C$5,8,0),1,1))) -> 754.169983 | H41: 751.1743429 | I41: 782.6435471 | J41: 0 | K41: 12.270019 | L41: 1.88847881 | M41: 3.050665101 | N41: 2.3530116 | O41: 0.131490651 | P41: 770.9528272 | Q41: 2.239461447 | R41: 2.209354511 | S41: 0.06767404222 | T41: 0.01062362231 | U41: 780.5118654 | AX41: 0
A42: 10 | B42: =IF(A42>$B$30,NA(),IF($A42>$A$8,"",OFFSET(InputPriceData!$B$15,$A42+$A$11,0,1,1))) -> 2006-05-26 | C42: =IF(A42>$B$30,NA(),IF($A42>$A$8,"",OFFSET(InputPriceData!$G$15,CalculationsAndCharts!$A42+$A$11,IF($C$5,8,0),1,1))) -> 0 | D42: =IF(A42>$B$30,NA(),IF(A42>$A$8,"",OFFSET(InputPriceData!$C$15,CalculationsAndCharts!$A42+$A$11,IF($C$5,8,0),1,1))) -> 761.460022 | E42: =IF(A42>$B$30,NA(),IF(A42>$A$8,"",OFFSET(InputPriceData!$D$15,CalculationsAndCharts!$A42+$A$11,IF($C$5,8,0),1,1))) -> 766.659973 | F42: =IF(A42>$B$30,NA(),IF(A42>$A$8,"",OFFSET(InputPriceData!$E$15,CalculationsAndCharts!$A42+$A$11,IF($C$5,8,0),1,1))) -> 761.419983 | G42: =IF(A42>$B$30,NA(),IF(A42>$A$8,"",OFFSET(InputPriceData!$F$15,CalculationsAndCharts!$A42+$A$11,IF($C$5,8,0),1,1))) -> 766.440002 | H42: 751.1442359 | I42: 783.8057334 | J42: 4.97998 | K42: 0 | L42: 1.965559577 | M42: 2.674364942 | N42: 1.527622619 | O42: 0.09912245565 | P42: 773.4937177 | Q42: 2.261968597 | R42: 2.108242305 | S42: 0.3517594356 | T42: 0.01345034264 | U42: 780.7947165 | AW42: 0
A43: 11 | B43: =IF(A43>$B$30,NA(),IF($A43>$A$8,"",OFFSET(InputPriceData!$B$15,$A43+$A$11,0,1,1))) -> 2006-05-25 | C43: =IF(A43>$B$30,NA(),IF($A43>$A$8,"",OFFSET(InputPriceData!$G$15,CalculationsAndCharts!$A43+$A$11,IF($C$5,8,0),1,1))) -> 0 | D43: =IF(A43>$B$30,NA(),IF(A43>$A$8,"",OFFSET(InputPriceData!$C$15,CalculationsAndCharts!$A43+$A$11,IF($C$5,8,0),1,1))) -> 752.359985 | E43: =IF(A43>$B$30,NA(),IF(A43>$A$8,"",OFFSET(InputPriceData!$D$15,CalculationsAndCharts!$A43+$A$11,IF($C$5,8,0),1,1))) -> 761.710022 | F43: =IF(A43>$B$30,NA(),IF(A43>$A$8,"",OFFSET(InputPriceData!$E$15,CalculationsAndCharts!$A43+$A$11,IF($C$5,8,0),1,1))) -> 752.359985 | G43: =IF(A43>$B$30,NA(),IF(A43>$A$8,"",OFFSET(InputPriceData!$F$15,CalculationsAndCharts!$A43+$A$11,IF($C$5,8,0),1,1))) -> 761.460022 | H43: 750.9905097 | I43: 784.5145388 | J43: 9.100037 | K43: 0 | L43: 1.842522009 | M43: 2.783522695 | N43: 2.034136602 | O43: 0.1189857491 | P43: 774.2698294 | Q43: 2.2346519 | R43: 2.12943067 | S43: 0.2411073301 | T43: 0.01234932667 | U43: 780.9904247 | AW43: 0
A44: 12 | B44: =IF(A44>$B$30,NA(),IF($A44>$A$8,"",OFFSET(InputPriceData!$B$15,$A44+$A$11,0,1,1))) -> 2006-05-24 | C44: =IF(A44>$B$30,NA(),IF($A44>$A$8,"",OFFSET(InputPriceData!$G$15,CalculationsAndCharts!$A44+$A$11,IF($C$5,8,0),1,1))) -> 0 | D44: =IF(A44>$B$30,NA(),IF(A44>$A$8,"",OFFSET(InputPriceData!$C$15,CalculationsAndCharts!$A44+$A$11,IF($C$5,8,0),1,1))) -> 753.559998 | E44: =IF(A44>$B$30,NA(),IF(A44>$A$8,"",OFFSET(InputPriceData!$D$15,CalculationsAndCharts!$A44+$A$11,IF($C$5,8,0),1,1))) -> 759.330017 | F44: =IF(A44>$B$30,NA(),IF(A44>$A$8,"",OFFSET(InputPriceData!$E$15,CalculationsAndCharts!$A44+$A$11,IF($C$5,8,0),1,1))) -> 740.210022 | G44: =IF(A44>$B$30,NA(),IF(A44>$A$8,"",OFFSET(InputPriceData!$F$15,CalculationsAndCharts!$A44+$A$11,IF($C$5,8,0),1,1))) -> 752.359985 | H44: 750.8852884 | I44: 785.4555395 | J44: 0 | K44: 1.200013 | L44: 1.546296907 | M44: 2.897135866 | N44: 3.040079658 | O44: 0.1584344964 | P44: 775.9998633 | Q44: 2.165653054 | R44: 2.150831983 | S44: 0.03433597249 | T44: 0.01029190022 | U44: 781.2346277 | AX44: 0
A45: 13 | B45: =IF(A45>$B$30,NA(),IF($A45>$A$8,"",OFFSET(InputPriceData!$B$15,$A45+$A$11,0,1,1))) -> 2006-05-23 | C45: =IF(A45>$B$30,NA(),IF($A45>$A$8,"",OFFSET(InputPriceData!$G$15,CalculationsAndCharts!$A45+$A$11,IF($C$5,8,0),1,1))) -> 0 | D45: =IF(A45>$B$30,NA(),IF(A45>$A$8,"",OFFSET(InputPriceData!$C$15,CalculationsAndCharts!$A45+$A$11,IF($C$5,8,0),1,1))) -> 757.309998 | E45: =IF(A45>$B$30,NA(),IF(A45>$A$8,"",OFFSET(InputPriceData!$D$15,CalculationsAndCharts!$A45+$A$11,IF($C$5,8,0),1,1))) -> 768.140015 | F45: =IF(A45>$B$30,NA(),IF(A45>$A$8,"",OFFSET(InputPriceData!$E$15,CalculationsAndCharts!$A45+$A$11,IF($C$5,8,0),1,1))) -> 753.559998 | G45: =IF(A45>$B$30,NA(),IF(A45>$A$8,"",OFFSET(InputPriceData!$F$15,CalculationsAndCharts!$A45+$A$11,IF($C$5,8,0),1,1))) -> 753.559998 | H45: 750.8704673 | I45: 786.8063784 | J45: 0 | K45: 3.75 | L45: 1.609411067 | M45: 2.966406187 | N45: 2.965579797 | O45: 0.1555129332 | P45: 780.4503454 | Q45: 2.187418412 | R45: 2.160387953 | S45: 0.06217033725 | T45: 0.01056885908 | U45: 781.534893 | AX45: 0
A46: 14 | B46: =IF(A46>$B$30,NA(),IF($A46>$A$8,"",OFFSET(InputPriceData!$B$15,$A46+$A$11,0,1,1))) -> 2006-05-22 | C46: =IF(A46>$B$30,NA(),IF($A46>$A$8,"",OFFSET(InputPriceData!$G$15,CalculationsAndCharts!$A46+$A$11,IF($C$5,8,0),1,1))) -> 0 | D46: =IF(A46>$B$30,NA(),IF(A46>$A$8,"",OFFSET(InputPriceData!$C$15,CalculationsAndCharts!$A46+$A$11,IF($C$5,8,0),1,1))) -> 763.25 | E46: =IF(A46>$B$30,NA(),IF(A46>$A$8,"",OFFSET(InputPriceData!$D$15,CalculationsAndCharts!$A46+$A$11,IF($C$5,8,0),1,1))) -> 763.25 | F46: =IF(A46>$B$30,NA(),IF(A46>$A$8,"",OFFSET(InputPriceData!$E$15,CalculationsAndCharts!$A46+$A$11,IF($C$5,8,0),1,1))) -> 747.75 | G46: =IF(A46>$B$30,NA(),IF(A46>$A$8,"",OFFSET(InputPriceData!$F$15,CalculationsAndCharts!$A46+$A$11,IF($C$5,8,0),1,1))) -> 757.309998 | H46: 750.8434369 | I46: 788.1633736 | J46: 0 | K46: 5.940002 | L46: 1.675101315 | M46: 2.934422766 | N46: 2.731998856 | O46: 0.1463528963 | P46: 785.4022233 | Q46: 2.209402516 | R46: 2.144411952 | S46: 0.1492726996 | T46: 0.01143554925 | U46: 781.8337139 | AX46: 0
A47: 15 | B47: =IF(A47>$B$30,NA(),IF($A47>$A$8,"",OFFSET(InputPriceData!$B$15,$A47+$A$11,0,1,1))) -> 2006-05-19 | C47: =IF(A47>$B$30,NA(),IF($A47>$A$8,"",OFFSET(InputPriceData!$G$15,CalculationsAndCharts!$A47+$A$11,IF($C$5,8,0),1,1))) -> 0 | D47: =IF(A47>$B$30,NA(),IF(A47>$A$8,"",OFFSET(InputPriceData!$C$15,CalculationsAndCharts!$A47+$A$11,IF($C$5,8,0),1,1))) -> 761.630005 | E47: =IF(A47>$B$30,NA(),IF(A47>$A$8,"",OFFSET(InputPriceData!$D$15,CalculationsAndCharts!$A47+$A$11,IF($C$5,8,0),1,1))) -> 767.77002 | F47: =IF(A47>$B$30,NA(),IF(A47>$A$8,"",OFFSET(InputPriceData!$E$15,CalculationsAndCharts!$A47+$A$11,IF($C$5,8,0),1,1))) -> 756.340027 | G47: =IF(A47>$B$30,NA(),IF(A47>$A$8,"",OFFSET(InputPriceData!$F$15,CalculationsAndCharts!$A47+$A$11,IF($C$5,8,0),1,1))) -> 763.25 | H47: 750.7784463 | I47: 789.422695 | J47: 1.619995 | K47: 0 | L47: 1.743472797 | M47: 2.811746063 | N47: 2.345163424 | O47: 0.1311828794 | P47: 790.2184741 | Q47: 2.231607567 | R47: 2.106265319 | S47: 0.2889486421 | T47: 0.01282535962 | U47: 782.1174001 | AW47: 0
A48: 16 | B48: =IF(A48>$B$30,NA(),IF($A48>$A$8,"",OFFSET(InputPriceData!$B$15,$A48+$A$11,0,1,1))) -> 2006-05-18 | C48: =IF(A48>$B$30,NA(),IF($A48>$A$8,"",OFFSET(InputPriceData!$G$15,CalculationsAndCharts!$A48+$A$11,IF($C$5,8,0),1,1))) -> 0 | D48: =IF(A48>$B$30,NA(),IF(A48>$A$8,"",OFFSET(InputPriceData!$C$15,CalculationsAndCharts!$A48+$A$11,IF($C$5,8,0),1,1))) -> 768.799988 | E48: =IF(A48>$B$30,NA(),IF(A48>$A$8,"",OFFSET(InputPriceData!$D$15,CalculationsAndCharts!$A48+$A$11,IF($C$5,8,0),1,1))) -> 773.219971 | F48: =IF(A48>$B$30,NA(),IF(A48>$A$8,"",OFFSET(InputPriceData!$E$15,CalculationsAndCharts!$A48+$A$11,IF($C$5,8,0),1,1))) -> 761.559998 | G48: =IF(A48>$B$30,NA(),IF(A48>$A$8,"",OFFSET(InputPriceData!$F$15,CalculationsAndCharts!$A48+$A$11,IF($C$5,8,0),1,1))) -> 761.630005 | H48: 750.6531041 | I48: 790.4909683 | J48: 0 | K48: 7.169983 | L48: 1.748512707 | M48: 2.926511208 | N48: 2.51977 | O48: 0.1380301961 | P48: 794.2904496 | Q48: 2.237754427 | R48: 2.127433814 | S48: 0.2527281899 | T48: 0.01246495711 | U48: 782.3625252 | AX48: 0
A49: 17 | B49: =IF(A49>$B$30,NA(),IF($A49>$A$8,"",OFFSET(InputPriceData!$B$15,$A49+$A$11,0,1,1))) -> 2006-05-17 | C49: =IF(A49>$B$30,NA(),IF($A49>$A$8,"",OFFSET(InputPriceData!$G$15,CalculationsAndCharts!$A49+$A$11,IF($C$5,8,0),1,1))) -> 0 | D49: =IF(A49>$B$30,NA(),IF(A49>$A$8,"",OFFSET(InputPriceData!$C$15,CalculationsAndCharts!$A49+$A$11,IF($C$5,8,0),1,1))) -> 782.77002 | E49: =IF(A49>$B$30,NA(),IF(A49>$A$8,"",OFFSET(InputPriceData!$D$15,CalculationsAndCharts!$A49+$A$11,IF($C$5,8,0),1,1))) -> 782.77002 | F49: =IF(A49>$B$30,NA(),IF(A49>$A$8,"",OFFSET(InputPriceData!$E$15,CalculationsAndCharts!$A49+$A$11,IF($C$5,8,0),1,1))) -> 767.940002 | G49: =IF(A49>$B$30,NA(),IF(A49>$A$8,"",OFFSET(InputPriceData!$F$15,CalculationsAndCharts!$A49+$A$11,IF($C$5,8,0),1,1))) -> 768.799988 | H49: 750.5427835 | I49: 791.6689668 | J49: 0 | K49: 13.970032 | L49: 1.819880572 | M49: 2.753308278 | N49: 2.041087162 | O49: 0.1192583201 | P49: 799.5204792 | Q49: 2.260244421 | R49: 2.076754928 | S49: 0.4230793644 | T49: 0.01415999368 | U49: 782.6242171 | AX49: 0
A50: 18 | B50: =IF(A50>$B$30,NA(),IF($A50>$A$8,"",OFFSET(InputPriceData!$B$15,$A50+$A$11,0,1,1))) -> 2006-05-16 | C50: =IF(A50>$B$30,NA(),IF($A50>$A$8,"",OFFSET(InputPriceData!$G$15,CalculationsAndCharts!$A50+$A$11,IF($C$5,8,0),1,1))) -> 0 | D50: =IF(A50>$B$30,NA(),IF(A50>$A$8,"",OFFSET(InputPriceData!$C$15,CalculationsAndCharts!$A50+$A$11,IF($C$5,8,0),1,1))) -> 784.669983 | E50: =IF(A50>$B$30,NA(),IF(A50>$A$8,"",OFFSET(InputPriceData!$D$15,CalculationsAndCharts!$A50+$A$11,IF($C$5,8,0),1,1))) -> 788.280029 | F50: =IF(A50>$B$30,NA(),IF(A50>$A$8,"",OFFSET(InputPriceData!$E$15,CalculationsAndCharts!$A50+$A$11,IF($C$5,8,0),1,1))) -> 779.109985 | G50: =IF(A50>$B$30,NA(),IF(A50>$A$8,"",OFFSET(InputPriceData!$F$15,CalculationsAndCharts!$A50+$A$11,IF($C$5,8,0),1,1))) -> 782.77002 | H50: 750.359294 | I50: 792.6023945 | J50: 0 | K50: 1.899963 | L50: 1.894161412 | M50: 2.29548282 | N50: 0.9578889887 | O50: 0.07677996034 | P50: 803.6802394 | Q50: 2.282960445 | R50: 1.957224505 | S50: 0.7682116317 | T50: 0.01759414559 | U50: 782.8227798 | AX50: 0
A51: 19 | B51: =IF(A51>$B$30,NA(),IF($A51>$A$8,"",OFFSET(InputPriceData!$B$15,$A51+$A$11,0,1,1))) -> 2006-05-15 | C51: =IF(A51>$B$30,NA(),IF($A51>$A$8,"",OFFSET(InputPriceData!$G$15,CalculationsAndCharts!$A51+$A$11,IF($C$5,8,0),1,1))) -> 0 | D51: =IF(A51>$B$30,NA(),IF(A51>$A$8,"",OFFSET(InputPriceData!$C$15,CalculationsAndCharts!$A51+$A$11,IF($C$5,8,0),1,1))) -> 789.75 | E51: =IF(A51>$B$30,NA(),IF(A51>$A$8,"",OFFSET(InputPriceData!$D$15,CalculationsAndCharts!$A51+$A$11,IF($C$5,8,0),1,1))) -> 789.75 | F51: =IF(A51>$B$30,NA(),IF(A51>$A$8,"",OFFSET(InputPriceData!$E$15,CalculationsAndCharts!$A51+$A$11,IF($C$5,8,0),1,1))) -> 779.219971 | G51: =IF(A51>$B$30,NA(),IF(A51>$A$8,"",OFFSET(InputPriceData!$F$15,CalculationsAndCharts!$A51+$A$11,IF($C$5,8,0),1,1))) -> 784.669983 | H51: 750.033558 | I51: 793.0037159 | J51: 0 | K51: 5.080017 | L51: 1.971474123 | M51: 2.311626486 | N51: 0.7941731799 | O51: 0.07035973255 | P51: 805.4192461 | Q51: 2.305904771 | R51: 1.957799998 | S51: 0.8164373295 | T51: 0.01807400328 | U51: 782.8237246 | AX51: 0
A52: 20 | B52: =IF(A52>$B$30,NA(),IF($A52>$A$8,"",OFFSET(InputPriceData!$B$15,$A52+$A$11,0,1,1))) -> 2006-05-12 | C52: =IF(A52>$B$30,NA(),IF($A52>$A$8,"",OFFSET(InputPriceData!$G$15,CalculationsAndCharts!$A52+$A$11,IF($C$5,8,0),1,1))) -> 0 | D52: =IF(A52>$B$30,NA(),IF(A52>$A$8,"",OFFSET(InputPriceData!$C$15,CalculationsAndCharts!$A52+$A$11,IF($C$5,8,0),1,1))) -> 803.859985 | E52: =IF(A52>$B$30,NA(),IF(A52>$A$8,"",OFFSET(InputPriceData!$D$15,CalculationsAndCharts!$A52+$A$11,IF($C$5,8,0),1,1))) -> 803.859985 | F52: =IF(A52>$B$30,NA(),IF(A52>$A$8,"",OFFSET(InputPriceData!$E$15,CalculationsAndCharts!$A52+$A$11,IF($C$5,8,0),1,1))) -> 789.440002 | G52: =IF(A52>$B$30,NA(),IF(A52>$A$8,"",OFFSET(InputPriceData!$F$15,CalculationsAndCharts!$A52+$A$11,IF($C$5,8,0),1,1))) -> 789.75 | H52: 749.6854533 | I52: 793.3438683 | J52: 0 | K52: 14.109985 | L52: 2.051942454 | M52: 2.198630955 | N52: 0.3451028513 | O52: 0.05274913142 | P52: 806.989652 | Q52: 2.329079694 | R52: 1.926420932 | S52: 0.9462077358 | T52: 0.0193652511 | U52: 782.7897411 | AX52: 0
A53: 21 | B53: =IF(A53>$B$30,NA(),IF($A53>$A$8,"",OFFSET(InputPriceData!$B$15,$A53+$A$11,0,1,1))) -> 2006-05-11 | C53: =IF(A53>$B$30,NA(),IF($A53>$A$8,"",OFFSET(InputPriceData!$G$15,CalculationsAndCharts!$A53+$A$11,IF($C$5,8,0),1,1))) -> 0 | D53: =IF(A53>$B$30,NA(),IF(A53>$A$8,"",OFFSET(InputPriceData!$C$15,CalculationsAndCharts!$A53+$A$11,IF($C$5,8,0),1,1))) -> 814.539978 | E53: =IF(A53>$B$30,NA(),IF(A53>$A$8,"",OFFSET(InputPriceData!$D$15,CalculationsAndCharts!$A53+$A$11,IF($C$5,8,0),1,1))) -> 815.840027 | F53: =IF(A53>$B$30,NA(),IF(A53>$A$8,"",OFFSET(InputPriceData!$E$15,CalculationsAndCharts!$A53+$A$11,IF($C$5,8,0),1,1))) -> 803.659973 | G53: =IF(A53>$B$30,NA(),IF(A53>$A$8,"",OFFSET(InputPriceData!$F$15,CalculationsAndCharts!$A53+$A$11,IF($C$5,8,0),1,1))) -> 803.859985 | H53: 749.2827945 | I53: 793.4905568 | J53: 0 | K53: 10.679993 | L53: 2.135695208 | M53: 1.712453239 | N53: 1.099858737 | O53: 0.08234740146 | P53: 807.9496688 | Q53: 2.35248753 | R53: 1.803973052 | S53: 1.319667218 | T53: 0.02308126585 | U53: 782.6522922 | AX53: 0
A54: 22 | B54: =IF(A54>$B$30,NA(),IF($A54>$A$8,"",OFFSET(InputPriceData!$B$15,$A54+$A$11,0,1,1))) -> 2006-05-10 | C54: =IF(A54>$B$30,NA(),IF($A54>$A$8,"",OFFSET(InputPriceData!$G$15,CalculationsAndCharts!$A54+$A$11,IF($C$5,8,0),1,1))) -> 0 | D54: =IF(A54>$B$30,NA(),IF(A54>$A$8,"",OFFSET(InputPriceData!$C$15,CalculationsAndCharts!$A54+$A$11,IF($C$5,8,0),1,1))) -> 816.140015 | E54: =IF(A54>$B$30,NA(),IF(A54>$A$8,"",OFFSET(InputPriceData!$D$15,CalculationsAndCharts!$A54+$A$11,IF($C$5,8,0),1,1))) -> 816.140015 | F54: =IF(A54>$B$30,NA(),IF(A54>$A$8,"",OFFSET(InputPriceData!$E$15,CalculationsAndCharts!$A54+$A$11,IF($C$5,8,0),1,1))) -> 811.400024 | G54: =IF(A54>$B$30,NA(),IF(A54>$A$8,"",OFFSET(InputPriceData!$F$15,CalculationsAndCharts!$A54+$A$11,IF($C$5,8,0),1,1))) -> 814.539978 | H54: 748.73428 | I54: 793.0673148 | J54: 0 | K54: 1.600037 | L54: 2.222866441 | M54: 1.346431207 | N54: 2.455483738 | O54: 0.1355091662 | P54: 808.3166648 | Q54: 2.376130621 | R54: 1.714766822 | S54: 1.616671667 | T54: 0.026036534 | U54: 782.1512266 | AX54: 0
A55: 23 | B55: =IF(A55>$B$30,NA(),IF($A55>$A$8,"",OFFSET(InputPriceData!$B$15,$A55+$A$11,0,1,1))) -> 2006-05-09 | C55: =IF(A55>$B$30,NA(),IF($A55>$A$8,"",OFFSET(InputPriceData!$G$15,CalculationsAndCharts!$A55+$A$11,IF($C$5,8,0),1,1))) -> 0 | D55: =IF(A55>$B$30,NA(),IF(A55>$A$8,"",OFFSET(InputPriceData!$C$15,CalculationsAndCharts!$A55+$A$11,IF($C$5,8,0),1,1))) -> 817.950012 | E55: =IF(A55>$B$30,NA(),IF(A55>$A$8,"",OFFSET(InputPriceData!$D$15,CalculationsAndCharts!$A55+$A$11,IF($C$5,8,0),1,1))) -> 817.950012 | F55: =IF(A55>$B$30,NA(),IF(A55>$A$8,"",OFFSET(InputPriceData!$E$15,CalculationsAndCharts!$A55+$A$11,IF($C$5,8,0),1,1))) -> 815.330017 | G55: =IF(A55>$B$30,NA(),IF(A55>$A$8,"",OFFSET(InputPriceData!$F$15,CalculationsAndCharts!$A55+$A$11,IF($C$5,8,0),1,1))) -> 816.140015 | H55: 748.0729162 | I55: 792.1908796 | J55: 0 | K55: 1.809997 | L55: 2.313595683 | M55: 1.336079951 | N55: 2.678363314 | O55: 0.1442495417 | P55: 807.3411588 | Q55: 2.40001133 | R55: 1.715919885 | S55: 1.662057525 | T55: 0.02648813458 | U55: 781.2853925 | AX55: 0
A56: 24 | B56: =IF(A56>$B$30,NA(),IF($A56>$A$8,"",OFFSET(InputPriceData!$B$15,$A56+$A$11,0,1,1))) -> 2006-05-08 | C56: =IF(A56>$B$30,NA(),IF($A56>$A$8,"",OFFSET(InputPriceData!$G$15,CalculationsAndCharts!$A56+$A$11,IF($C$5,8,0),1,1))) -> 0 | D56: =IF(A56>$B$30,NA(),IF(A56>$A$8,"",OFFSET(InputPriceData!$C$15,CalculationsAndCharts!$A56+$A$11,IF($C$5,8,0),1,1))) -> 816.690002 | E56: =IF(A56>$B$30,NA(),IF(A56>$A$8,"",OFFSET(InputPriceData!$D$15,CalculationsAndCharts!$A56+$A$11,IF($C$5,8,0),1,1))) -> 818.869995 | F56: =IF(A56>$B$30,NA(),IF(A56>$A$8,"",OFFSET(InputPriceData!$E$15,CalculationsAndCharts!$A56+$A$11,IF($C$5,8,0),1,1))) -> 815 | G56: =IF(A56>$B$30,NA(),IF(A56>$A$8,"",OFFSET(InputPriceData!$F$15,CalculationsAndCharts!$A56+$A$11,IF($C$5,8,0),1,1))) -> 817.950012 | H56: 747.3888248 | I56: 791.2133638 | J56: 1.26001 | K56: 0 | L56: 2.40802816 | M56: 1.316736398 | N56: 2.929827498 | O56: 0.1541108823 | P56: 805.8579799 | Q56: 2.424132047 | R56: 1.714974387 | S56: 1.713311005 | T56: 0.02699811946 | U56: 780.3370384 | AW56: 0
A57: 25 | B57: =IF(A57>$B$30,NA(),IF($A57>$A$8,"",OFFSET(InputPriceData!$B$15,$A57+$A$11,0,1,1))) -> 2006-05-05 | C57: =IF(A57>$B$30,NA(),IF($A57>$A$8,"",OFFSET(InputPriceData!$G$15,CalculationsAndCharts!$A57+$A$11,IF($C$5,8,0),1,1))) -> 0 | D57: =IF(A57>$B$30,NA(),IF(A57>$A$8,"",OFFSET(InputPriceData!$C$15,CalculationsAndCharts!$A57+$A$11,IF($C$5,8,0),1,1))) -> 808.549988 | E57: =IF(A57>$B$30,NA(),IF(A57>$A$8,"",OFFSET(InputPriceData!$D$15,CalculationsAndCharts!$A57+$A$11,IF($C$5,8,0),1,1))) -> 816.909973 | F57: =IF(A57>$B$30,NA(),IF(A57>$A$8,"",OFFSET(InputPriceData!$E$15,CalculationsAndCharts!$A57+$A$11,IF($C$5,8,0),1,1))) -> 808.549988 | G57: =IF(A57>$B$30,NA(),IF(A57>$A$8,"",OFFSET(InputPriceData!$F$15,CalculationsAndCharts!$A57+$A$11,IF($C$5,8,0),1,1))) -> 816.690002 | H57: 746.6796671 | I57: 790.1220721 | J57: 8.140014 | K57: 0 | L57: 2.454886044 | M57: 1.37048074 | N57: 2.834774715 | O57: 0.1503833222 | P57: 803.6549563 | Q57: 2.435831766 | R57: 1.73221031 | S57: 1.688134244 | T57: 0.02674760442 | U57: 779.2933821 | AW57: 0
A58: 26 | B58: =IF(A58>$B$30,NA(),IF($A58>$A$8,"",OFFSET(InputPriceData!$B$15,$A58+$A$11,0,1,1))) -> 2006-05-04 | C58: =IF(A58>$B$30,NA(),IF($A58>$A$8,"",OFFSET(InputPriceData!$G$15,CalculationsAndCharts!$A58+$A$11,IF($C$5,8,0),1,1))) -> 0 | D58: =IF(A58>$B$30,NA(),IF(A58>$A$8,"",OFFSET(InputPriceData!$C$15,CalculationsAndCharts!$A58+$A$11,IF($C$5,8,0),1,1))) -> 803.950012 | E58: =IF(A58>$B$30,NA(),IF(A58>$A$8,"",OFFSET(InputPriceData!$D$15,CalculationsAndCharts!$A58+$A$11,IF($C$5,8,0),1,1))) -> 810.059998 | F58: =IF(A58>$B$30,NA(),IF(A58>$A$8,"",OFFSET(InputPriceData!$E$15,CalculationsAndCharts!$A58+$A$11,IF($C$5,8,0),1,1))) -> 803.950012 | G58: =IF(A58>$B$30,NA(),IF(A58>$A$8,"",OFFSET(InputPriceData!$F$15,CalculationsAndCharts!$A58+$A$11,IF($C$5,8,0),1,1))) -> 808.549988 | H58: 745.9760457 | I58: 789.0376668 | J58: 4.599976 | K58: 0 | L58: 2.222840005 | M58: 1.42641873 | N58: 2.182419316 | O58: 0.1248007575 | P58: 801.3477352 | Q58: 2.378503302 | R58: 1.749619459 | S58: 1.523413617 | T58: 0.0251085932 | U58: 778.265622 | AW58: 0
A59: 27 | B59: =IF(A59>$B$30,NA(),IF($A59>$A$8,"",OFFSET(InputPriceData!$B$15,$A59+$A$11,0,1,1))) -> 2006-05-03 | C59: =IF(A59>$B$30,NA(),IF($A59>$A$8,"",OFFSET(InputPriceData!$G$15,CalculationsAndCharts!$A59+$A$11,IF($C$5,8,0),1,1))) -> 0 | D59: =IF(A59>$B$30,NA(),IF(A59>$A$8,"",OFFSET(InputPriceData!$C$15,CalculationsAndCharts!$A59+$A$11,IF($C$5,8,0),1,1))) -> 804.98999 | E59: =IF(A59>$B$30,NA(),IF(A59>$A$8,"",OFFSET(InputPriceData!$D$15,CalculationsAndCharts!$A59+$A$11,IF($C$5,8,0),1,1))) -> 806.130005 | F59: =IF(A59>$B$30,NA(),IF(A59>$A$8,"",OFFSET(InputPriceData!$E$15,CalculationsAndCharts!$A59+$A$11,IF($C$5,8,0),1,1))) -> 800.909973 | G59: =IF(A59>$B$30,NA(),IF(A59>$A$8,"",OFFSET(InputPriceData!$F$15,CalculationsAndCharts!$A59+$A$11,IF($C$5,8,0),1,1))) -> 803.950012 | H59: 745.3471618 | I59: 788.2412455 | J59: 0 | K59: 1.039978 | L59: 2.125814046 | M59: 1.484639902 | N59: 1.775882348 | O59: 0.1088581313 | P59: 800.3207158 | Q59: 2.356176943 | R59: 1.767203574 | S59: 1.42837501 | T59: 0.02416293542 | U59: 777.4856399 | AX59: 0
A60: 28 | B60: =IF(A60>$B$30,NA(),IF($A60>$A$8,"",OFFSET(InputPriceData!$B$15,$A60+$A$11,0,1,1))) -> 2006-05-02 | C60: =IF(A60>$B$30,NA(),IF($A60>$A$8,"",OFFSET(InputPriceData!$G$15,CalculationsAndCharts!$A60+$A$11,IF($C$5,8,0),1,1))) -> 0 | D60: =IF(A60>$B$30,NA(),IF(A60>$A$8,"",OFFSET(InputPriceData!$C$15,CalculationsAndCharts!$A60+$A$11,IF($C$5,8,0),1,1))) -> 801.140015 | E60: =IF(A60>$B$30,NA(),IF(A60>$A$8,"",OFFSET(InputPriceData!$D$15,CalculationsAndCharts!$A60+$A$11,IF($C$5,8,0),1,1))) -> 804.98999 | F60: =IF(A60>$B$30,NA(),IF(A60>$A$8,"",OFFSET(InputPriceData!$E$15,CalculationsAndCharts!$A60+$A$11,IF($C$5,8,0),1,1))) -> 800.77002 | G60: =IF(A60>$B$30,NA(),IF(A60>$A$8,"",OFFSET(InputPriceData!$F$15,CalculationsAndCharts!$A60+$A$11,IF($C$5,8,0),1,1))) -> 804.98999 | H60: 744.7581884 | I60: 787.6000713 | J60: 3.849975 | K60: 0 | L60: 2.212581966 | M60: 1.502789368 | N60: 1.91042169 | O60: 0.1141341839 | P60: 799.8773763 | Q60: 2.379857113 | R60: 1.774512374 | S60: 1.457127829 | T60: 0.02444903313 | U60: 776.8303492 | AW60: 0
A61: 29 | B61: =IF(A61>$B$30,NA(),IF($A61>$A$8,"",OFFSET(InputPriceData!$B$15,$A61+$A$11,0,1,1))) -> 2006-05-01 | C61: =IF(A61>$B$30,NA(),IF($A61>$A$8,"",OFFSET(InputPriceData!$G$15,CalculationsAndCharts!$A61+$A$11,IF($C$5,8,0),1,1))) -> 0 | D61: =IF(A61>$B$30,NA(),IF(A61>$A$8,"",OFFSET(InputPriceData!$C$15,CalculationsAndCharts!$A61+$A$11,IF($C$5,8,0),1,1))) -> 802.690002 | E61: =IF(A61>$B$30,NA(),IF(A61>$A$8,"",OFFSET(InputPriceData!$D$15,CalculationsAndCharts!$A61+$A$11,IF($C$5,8,0),1,1))) -> 807.780029 | F61: =IF(A61>$B$30,NA(),IF(A61>$A$8,"",OFFSET(InputPriceData!$E$15,CalculationsAndCharts!$A61+$A$11,IF($C$5,8,0),1,1))) -> 801.140015 | G61: =IF(A61>$B$30,NA(),IF(A61>$A$8,"",OFFSET(InputPriceData!$F$15,CalculationsAndCharts!$A61+$A$11,IF($C$5,8,0),1,1))) -> 801.140015 | H61: 744.1528437 | I61: 786.8902787 | J61: 0 | K61: 1.549987 | L61: 2.145749598 | M61: 1.564127709 | N61: 1.567765832 | O61: 0.1006966993 | P61: 799.2186716 | Q61: 2.365082059 | R61: 1.792346669 | S61: 1.377619263 | T61: 0.02365790311 | U61: 776.1246188 | AX61: 0
A62: 30 | B62: =IF(A62>$B$30,NA(),IF($A62>$A$8,"",OFFSET(InputPriceData!$B$15,$A62+$A$11,0,1,1))) -> 2006-04-28 | C62: =IF(A62>$B$30,NA(),IF($A62>$A$8,"",OFFSET(InputPriceData!$G$15,CalculationsAndCharts!$A62+$A$11,IF($C$5,8,0),1,1))) -> 0 | D62: =IF(A62>$B$30,NA(),IF(A62>$A$8,"",OFFSET(InputPriceData!$C$15,CalculationsAndCharts!$A62+$A$11,IF($C$5,8,0),1,1))) -> 799.559998 | E62: =IF(A62>$B$30,NA(),IF(A62>$A$8,"",OFFSET(InputPriceData!$D$15,CalculationsAndCharts!$A62+$A$11,IF($C$5,8,0),1,1))) -> 805.809998 | F62: =IF(A62>$B$30,NA(),IF(A62>$A$8,"",OFFSET(InputPriceData!$E$15,CalculationsAndCharts!$A62+$A$11,IF($C$5,8,0),1,1))) -> 798.27002 | G62: =IF(A62>$B$30,NA(),IF(A62>$A$8,"",OFFSET(InputPriceData!$F$15,CalculationsAndCharts!$A62+$A$11,IF($C$5,8,0),1,1))) -> 802.690002 | H62: 743.5801083 | I62: 786.3086569 | J62: 3.130004 | K62: 0 | L62: 2.233331214 | M62: 1.564704881 | N62: 1.760452813 | O62: 0.1082530515 | P62: 799.0035351 | Q62: 2.388851728 | R62: 1.794782445 | S62: 1.41998382 | T62: 0.02407944099 | U62: 775.5184667 | AW62: 0
A63: 31 | B63: =IF(A63>$B$30,NA(),IF($A63>$A$8,"",OFFSET(InputPriceData!$B$15,$A63+$A$11,0,1,1))) -> 2006-04-27 | C63: =IF(A63>$B$30,NA(),IF($A63>$A$8,"",OFFSET(InputPriceData!$G$15,CalculationsAndCharts!$A63+$A$11,IF($C$5,8,0),1,1))) -> 0 | D63: =IF(A63>$B$30,NA(),IF(A63>$A$8,"",OFFSET(InputPriceData!$C$15,CalculationsAndCharts!$A63+$A$11,IF($C$5,8,0),1,1))) -> 799.309998 | E63: =IF(A63>$B$30,NA(),IF(A63>$A$8,"",OFFSET(InputPriceData!$D$15,CalculationsAndCharts!$A63+$A$11,IF($C$5,8,0),1,1))) -> 804.98999 | F63: =IF(A63>$B$30,NA(),IF(A63>$A$8,"",OFFSET(InputPriceData!$E$15,CalculationsAndCharts!$A63+$A$11,IF($C$5,8,0),1,1))) -> 791.02002 | G63: =IF(A63>$B$30,NA(),IF(A63>$A$8,"",OFFSET(InputPriceData!$F$15,CalculationsAndCharts!$A63+$A$11,IF($C$5,8,0),1,1))) -> 799.559998 | H63: 742.986039 | I63: 785.6400305 | J63: 0.25 | K63: 0 | L63: 2.196732325 | M63: 1.628570387 | N63: 1.485273143 | O63: 0.09746169188 | P63: 798.5560188 | Q63: 2.381402961 | R63: 1.812820459 | S63: 1.355632367 | T63: 0.02343912803 | U63: 774.848048 | AW63: 0
A64: 32 | B64: =IF(A64>$B$30,NA(),IF($A64>$A$8,"",OFFSET(InputPriceData!$B$15,$A64+$A$11,0,1,1))) -> 2006-04-26 | C64: =IF(A64>$B$30,NA(),IF($A64>$A$8,"",OFFSET(InputPriceData!$G$15,CalculationsAndCharts!$A64+$A$11,IF($C$5,8,0),1,1))) -> 0 | D64: =IF(A64>$B$30,NA(),IF(A64>$A$8,"",OFFSET(InputPriceData!$C$15,CalculationsAndCharts!$A64+$A$11,IF($C$5,8,0),1,1))) -> 802.27002 | E64: =IF(A64>$B$30,NA(),IF(A64>$A$8,"",OFFSET(InputPriceData!$D$15,CalculationsAndCharts!$A64+$A$11,IF($C$5,8,0),1,1))) -> 807.320007 | F64: =IF(A64>$B$30,NA(),IF(A64>$A$8,"",OFFSET(InputPriceData!$E$15,CalculationsAndCharts!$A64+$A$11,IF($C$5,8,0),1,1))) -> 798.690002 | G64: =IF(A64>$B$30,NA(),IF(A64>$A$8,"",OFFSET(InputPriceData!$F$15,CalculationsAndCharts!$A64+$A$11,IF($C$5,8,0),1,1))) -> 799.309998 | H64: 742.4174565 | I64: 785.0718686 | J64: 0 | K64: 2.960022 | L64: 2.276190787 | M64: 1.695042647 | N64: 1.463394558 | O64: 0.09660370816 | P64: 798.4476029 | Q64: 2.402824097 | R64: 1.83103976 | S64: 1.350502415 | T64: 0.02338808373 | U64: 774.2549191 | AX64: 0
A65: 33 | B65: =IF(A65>$B$30,NA(),IF($A65>$A$8,"",OFFSET(InputPriceData!$B$15,$A65+$A$11,0,1,1))) -> 2006-04-25 | C65: =IF(A65>$B$30,NA(),IF($A65>$A$8,"",OFFSET(InputPriceData!$G$15,CalculationsAndCharts!$A65+$A$11,IF($C$5,8,0),1,1))) -> 0 | D65: =IF(A65>$B$30,NA(),IF(A65>$A$8,"",OFFSET(InputPriceData!$C$15,CalculationsAndCharts!$A65+$A$11,IF($C$5,8,0),1,1))) -> 805.219971 | E65: =IF(A65>$B$30,NA(),IF(A65>$A$8,"",OFFSET(InputPriceData!$D$15,CalculationsAndCharts!$A65+$A$11,IF($C$5,8,0),1,1))) -> 806.77002 | F65: =IF(A65>$B$30,NA(),IF(A65>$A$8,"",OFFSET(InputPriceData!$E$15,CalculationsAndCharts!$A65+$A$11,IF($C$5,8,0),1,1))) -> 799.02002 | G65: =IF(A65>$B$30,NA(),IF(A65>$A$8,"",OFFSET(InputPriceData!$F$15,CalculationsAndCharts!$A65+$A$11,IF($C$5,8,0),1,1))) -> 802.27002 | H65: 741.8456722 | I65: 784.4907204 | J65: 0 | K65: 2.949951 | L65: 2.369096533 | M65: 1.643410837 | N65: 1.808559161 | O65: 0.1101395749 | P65: 798.3553836 | Q65: 2.426973082 | R65: 1.819693205 | S65: 1.430015538 | T65: 0.02417925908 | U65: 773.6548954 | AX65: 0
A66: 34 | B66: =IF(A66>$B$30,NA(),IF($A66>$A$8,"",OFFSET(InputPriceData!$B$15,$A66+$A$11,0,1,1))) -> 2006-04-24 | C66: =IF(A66>$B$30,NA(),IF($A66>$A$8,"",OFFSET(InputPriceData!$G$15,CalculationsAndCharts!$A66+$A$11,IF($C$5,8,0),1,1))) -> 0 | D66: =IF(A66>$B$30,NA(),IF(A66>$A$8,"",OFFSET(InputPriceData!$C$15,CalculationsAndCharts!$A66+$A$11,IF($C$5,8,0),1,1))) -> 808.309998 | E66: =IF(A66>$B$30,NA(),IF(A66>$A$8,"",OFFSET(InputPriceData!$D$15,CalculationsAndCharts!$A66+$A$11,IF($C$5,8,0),1,1))) -> 808.309998 | F66: =IF(A66>$B$30,NA(),IF(A66>$A$8,"",OFFSET(InputPriceData!$E$15,CalculationsAndCharts!$A66+$A$11,IF($C$5,8,0),1,1))) -> 801.460022 | G66: =IF(A66>$B$30,NA(),IF(A66>$A$8,"",OFFSET(InputPriceData!$F$15,CalculationsAndCharts!$A66+$A$11,IF($C$5,8,0),1,1))) -> 805.219971 | H66: 741.2383923 | I66: 783.7650347 | J66: 0 | K66: 3.090027 | L66: 2.465794351 | M66: 1.590082667 | N66: 2.159117942 | O66: 0.1238869781 | P66: 797.8708623 | Q66: 2.451364772 | R66: 1.80833383 | S66: 1.509569107 | T66: 0.02497083689 | U66: 772.9458589 | AX66: 0
A67: 35 | B67: =IF(A67>$B$30,NA(),IF($A67>$A$8,"",OFFSET(InputPriceData!$B$15,$A67+$A$11,0,1,1))) -> 2006-04-21 | C67: =IF(A67>$B$30,NA(),IF($A67>$A$8,"",OFFSET(InputPriceData!$G$15,CalculationsAndCharts!$A67+$A$11,IF($C$5,8,0),1,1))) -> 0 | D67: =IF(A67>$B$30,NA(),IF(A67>$A$8,"",OFFSET(InputPriceData!$C$15,CalculationsAndCharts!$A67+$A$11,IF($C$5,8,0),1,1))) -> 809.650024 | E67: =IF(A67>$B$30,NA(),IF(A67>$A$8,"",OFFSET(InputPriceData!$D$15,CalculationsAndCharts!$A67+$A$11,IF($C$5,8,0),1,1))) -> 813.320007 | F67: =IF(A67>$B$30,NA(),IF(A67>$A$8,"",OFFSET(InputPriceData!$E$15,CalculationsAndCharts!$A67+$A$11,IF($C$5,8,0),1,1))) -> 804.049988 | G67: =IF(A67>$B$30,NA(),IF(A67>$A$8,"",OFFSET(InputPriceData!$F$15,CalculationsAndCharts!$A67+$A$11,IF($C$5,8,0),1,1))) -> 808.309998 | H67: 740.5953614 | I67: 782.8893231 | J67: 0 | K67: 1.340026 | L67: 2.566439018 | M67: 1.528860449 | N67: 2.533584118 | O67: 0.1385719262 | P67: 796.8316597 | Q67: 2.476001604 | R67: 1.795452492 | S67: 1.59324927 | T67: 0.02580347532 | U67: 772.1193076 | AX67: 0
A68: 36 | B68: =IF(A68>$B$30,NA(),IF($A68>$A$8,"",OFFSET(InputPriceData!$B$15,$A68+$A$11,0,1,1))) -> 2006-04-20 | C68: =IF(A68>$B$30,NA(),IF($A68>$A$8,"",OFFSET(InputPriceData!$G$15,CalculationsAndCharts!$A68+$A$11,IF($C$5,8,0),1,1))) -> 0 | D68: =IF(A68>$B$30,NA(),IF(A68>$A$8,"",OFFSET(InputPriceData!$C$15,CalculationsAndCharts!$A68+$A$11,IF($C$5,8,0),1,1))) -> 809.309998 | E68: =IF(A68>$B$30,NA(),IF(A68>$A$8,"",OFFSET(InputPriceData!$D$15,CalculationsAndCharts!$A68+$A$11,IF($C$5,8,0),1,1))) -> 813.039978 | F68: =IF(A68>$B$30,NA(),IF(A68>$A$8,"",OFFSET(InputPriceData!$E$15,CalculationsAndCharts!$A68+$A$11,IF($C$5,8,0),1,1))) -> 804.059998 | G68: =IF(A68>$B$30,NA(),IF(A68>$A$8,"",OFFSET(InputPriceData!$F$15,CalculationsAndCharts!$A68+$A$11,IF($C$5,8,0),1,1))) -> 809.650024 | H68: 739.9148123 | I68: 781.8517445 | J68: 0.340026 | K68: 0 | L68: 2.671191631 | M68: 1.536567978 | N68: 2.69650303 | O68: 0.1449609031 | P68: 794.9852195 | Q68: 2.500886042 | R68: 1.800029643 | S68: 1.62955159 | T68: 0.02616469244 | U68: 771.1607273 | AW68: 0
A69: 37 | B69: =IF(A69>$B$30,NA(),IF($A69>$A$8,"",OFFSET(InputPriceData!$B$15,$A69+$A$11,0,1,1))) -> 2006-04-19 | C69: =IF(A69>$B$30,NA(),IF($A69>$A$8,"",OFFSET(InputPriceData!$G$15,CalculationsAndCharts!$A69+$A$11,IF($C$5,8,0),1,1))) -> 0 | D69: =IF(A69>$B$30,NA(),IF(A69>$A$8,"",OFFSET(InputPriceData!$C$15,CalculationsAndCharts!$A69+$A$11,IF($C$5,8,0),1,1))) -> 801.530029 | E69: =IF(A69>$B$30,NA(),IF(A69>$A$8,"",OFFSET(InputPriceData!$D$15,CalculationsAndCharts!$A69+$A$11,IF($C$5,8,0),1,1))) -> 809.309998 | F69: =IF(A69>$B$30,NA(),IF(A69>$A$8,"",OFFSET(InputPriceData!$E$15,CalculationsAndCharts!$A69+$A$11,IF($C$5,8,0),1,1))) -> 801.070007 | G69: =IF(A69>$B$30,NA(),IF(A69>$A$8,"",OFFSET(InputPriceData!$F$15,CalculationsAndCharts!$A69+$A$11,IF($C$5,8,0),1,1))) -> 809.309998 | H69: 739.2139559 | I69: 780.7171208 | J69: 7.779969 | K69: 0 | L69: 2.766341249 | M69: 1.599285038 | N69: 2.673284734 | O69: 0.1440503817 | P69: 792.4989902 | Q69: 2.522603228 | R69: 1.818120393 | S69: 1.622961739 | T69: 0.02609912178 | U69: 770.1266093 | AW69: 0
A70: 38 | B70: =IF(A70>$B$30,NA(),IF($A70>$A$8,"",OFFSET(InputPriceData!$B$15,$A70+$A$11,0,1,1))) -> 2006-04-18 | C70: =IF(A70>$B$30,NA(),IF($A70>$A$8,"",OFFSET(InputPriceData!$G$15,CalculationsAndCharts!$A70+$A$11,IF($C$5,8,0),1,1))) -> 0 | D70: =IF(A70>$B$30,NA(),IF(A70>$A$8,"",OFFSET(InputPriceData!$C$15,CalculationsAndCharts!$A70+$A$11,IF($C$5,8,0),1,1))) -> 784.01001 | E70: =IF(A70>$B$30,NA(),IF(A70>$A$8,"",OFFSET(InputPriceData!$D$15,CalculationsAndCharts!$A70+$A$11,IF($C$5,8,0),1,1))) -> 802.419983 | F70: =IF(A70>$B$30,NA(),IF(A70>$A$8,"",OFFSET(InputPriceData!$E$15,CalculationsAndCharts!$A70+$A$11,IF($C$5,8,0),1,1))) -> 784.01001 | G70: =IF(A70>$B$30,NA(),IF(A70>$A$8,"",OFFSET(InputPriceData!$F$15,CalculationsAndCharts!$A70+$A$11,IF($C$5,8,0),1,1))) -> 801.530029 | H70: 738.509473 | I70: 779.5500646 | J70: 17.520019 | K70: 0 | L70: 2.561703381 | M70: 1.664561978 | N70: 2.122775847 | O70: 0.1224617979 | P70: 789.6698142 | Q70: 2.469765381 | R70: 1.836392959 | S70: 1.470852606 | T70: 0.02458559807 | U70: 769.0765517 | AW70: 0
A71: 39 | B71: =IF(A71>$B$30,NA(),IF($A71>$A$8,"",OFFSET(InputPriceData!$B$15,$A71+$A$11,0,1,1))) -> 2006-04-17 | C71: =IF(A71>$B$30,NA(),IF($A71>$A$8,"",OFFSET(InputPriceData!$G$15,CalculationsAndCharts!$A71+$A$11,IF($C$5,8,0),1,1))) -> 0 | D71: =IF(A71>$B$30,NA(),IF(A71>$A$8,"",OFFSET(InputPriceData!$C$15,CalculationsAndCharts!$A71+$A$11,IF($C$5,8,0),1,1))) -> 784.299988 | E71: =IF(A71>$B$30,NA(),IF(A71>$A$8,"",OFFSET(InputPriceData!$D$15,CalculationsAndCharts!$A71+$A$11,IF($C$5,8,0),1,1))) -> 787.390015 | F71: =IF(A71>$B$30,NA(),IF(A71>$A$8,"",OFFSET(InputPriceData!$E$15,CalculationsAndCharts!$A71+$A$11,IF($C$5,8,0),1,1))) -> 780 | G71: =IF(A71>$B$30,NA(),IF(A71>$A$8,"",OFFSET(InputPriceData!$F$15,CalculationsAndCharts!$A71+$A$11,IF($C$5,8,0),1,1))) -> 784.01001 | H71: 737.8761006 | I71: 778.6529232 | J71: 0 | K71: 0.289978 | L71: 1.951159887 | M71: 1.732503284 | N71: 0.5935846817 | O71: 0.06249351693 | P71: 788.0147031 | Q71: 2.318506551 | R71: 1.85484917 | S71: 1.110994154 | T71: 0.02100491695 | U71: 768.2585526 | AX71: 0
A72: 40 | B72: =IF(A72>$B$30,NA(),IF($A72>$A$8,"",OFFSET(InputPriceData!$B$15,$A72+$A$11,0,1,1))) -> 2006-04-13 | C72: =IF(A72>$B$30,NA(),IF($A72>$A$8,"",OFFSET(InputPriceData!$G$15,CalculationsAndCharts!$A72+$A$11,IF($C$5,8,0),1,1))) -> 0 | D72: =IF(A72>$B$30,NA(),IF(A72>$A$8,"",OFFSET(InputPriceData!$C$15,CalculationsAndCharts!$A72+$A$11,IF($C$5,8,0),1,1))) -> 783.659973 | E72: =IF(A72>$B$30,NA(),IF(A72>$A$8,"",OFFSET(InputPriceData!$D$15,CalculationsAndCharts!$A72+$A$11,IF($C$5,8,0),1,1))) -> 786.679993 | F72: =IF(A72>$B$30,NA(),IF(A72>$A$8,"",OFFSET(InputPriceData!$E$15,CalculationsAndCharts!$A72+$A$11,IF($C$5,8,0),1,1))) -> 779.130005 | G72: =IF(A72>$B$30,NA(),IF(A72>$A$8,"",OFFSET(InputPriceData!$F$15,CalculationsAndCharts!$A72+$A$11,IF($C$5,8,0),1,1))) -> 784.299988 | H72: 737.4124432 | I72: 778.4342666 | J72: 0.640015 | K72: 0 | L72: 2.030799066 | M72: 1.791381867 | N72: 0.6263889735 | O72: 0.06377995975 | P72: 788.2816531 | Q72: 2.341808124 | R72: 1.870576519 | S72: 1.118681331 | T72: 0.02108140627 | U72: 767.9205958 | AW72: 0
A73: 41 | B73: =IF(A73>$B$30,NA(),IF($A73>$A$8,"",OFFSET(InputPriceData!$B$15,$A73+$A$11,0,1,1))) -> 2006-04-12 | C73: =IF(A73>$B$30,NA(),IF($A73>$A$8,"",OFFSET(InputPriceData!$G$15,CalculationsAndCharts!$A73+$A$11,IF($C$5,8,0),1,1))) -> 0 | D73: =IF(A73>$B$30,NA(),IF(A73>$A$8,"",OFFSET(InputPriceData!$C$15,CalculationsAndCharts!$A73+$A$11,IF($C$5,8,0),1,1))) -> 781.330017 | E73: =IF(A73>$B$30,NA(),IF(A73>$A$8,"",OFFSET(InputPriceData!$D$15,CalculationsAndCharts!$A73+$A$11,IF($C$5,8,0),1,1))) -> 785.039978 | F73: =IF(A73>$B$30,NA(),IF(A73>$A$8,"",OFFSET(InputPriceData!$E$15,CalculationsAndCharts!$A73+$A$11,IF($C$5,8,0),1,1))) -> 781.330017 | G73: =IF(A73>$B$30,NA(),IF(A73>$A$8,"",OFFSET(InputPriceData!$F$15,CalculationsAndCharts!$A73+$A$11,IF($C$5,8,0),1,1))) -> 783.659973 | H73: 736.9412116 | I73: 778.1948494 | J73: 2.329956 | K73: 0 | L73: 2.087565762 | M73: 1.864499494 | N73: 0.5644296184 | O73: 0.06135018111 | P73: 788.5529039 | Q73: 2.358911573 | R73: 1.889376283 | S73: 1.10523417 | T73: 0.02094760368 | U73: 767.567859 | AW73: 0
A74: 42 | B74: =IF(A74>$B$30,NA(),IF($A74>$A$8,"",OFFSET(InputPriceData!$B$15,$A74+$A$11,0,1,1))) -> 2006-04-11 | C74: =IF(A74>$B$30,NA(),IF($A74>$A$8,"",OFFSET(InputPriceData!$G$15,CalculationsAndCharts!$A74+$A$11,IF($C$5,8,0),1,1))) -> 0 | D74: =IF(A74>$B$30,NA(),IF(A74>$A$8,"",OFFSET(InputPriceData!$C$15,CalculationsAndCharts!$A74+$A$11,IF($C$5,8,0),1,1))) -> 789.200012 | E74: =IF(A74>$B$30,NA(),IF(A74>$A$8,"",OFFSET(InputPriceData!$D$15,CalculationsAndCharts!$A74+$A$11,IF($C$5,8,0),1,1))) -> 791.849976 | F74: =IF(A74>$B$30,NA(),IF(A74>$A$8,"",OFFSET(InputPriceData!$E$15,CalculationsAndCharts!$A74+$A$11,IF($C$5,8,0),1,1))) -> 779.820007 | G74: =IF(A74>$B$30,NA(),IF(A74>$A$8,"",OFFSET(InputPriceData!$F$15,CalculationsAndCharts!$A74+$A$11,IF($C$5,8,0),1,1))) -> 781.330017 | H74: 736.4716763 | I74: 777.9717832 | J74: 0 | K74: 7.869995 | L74: 2.077672283 | M74: 1.940601514 | N74: 0.3411185402 | O74: 0.05259288393 | P74: 788.872706 | Q74: 2.359202584 | R74: 1.908364989 | S74: 1.056427548 | T74: 0.02046196565 | U74: 767.2235554 | AX74: 0
A75: 43 | B75: =IF(A75>$B$30,NA(),IF($A75>$A$8,"",OFFSET(InputPriceData!$B$15,$A75+$A$11,0,1,1))) -> 2006-04-10 | C75: =IF(A75>$B$30,NA(),IF($A75>$A$8,"",OFFSET(InputPriceData!$G$15,CalculationsAndCharts!$A75+$A$11,IF($C$5,8,0),1,1))) -> 0 | D75: =IF(A75>$B$30,NA(),IF(A75>$A$8,"",OFFSET(InputPriceData!$C$15,CalculationsAndCharts!$A75+$A$11,IF($C$5,8,0),1,1))) -> 792.039978 | E75: =IF(A75>$B$30,NA(),IF(A75>$A$8,"",OFFSET(InputPriceData!$D$15,CalculationsAndCharts!$A75+$A$11,IF($C$5,8,0),1,1))) -> 794.01001 | F75: =IF(A75>$B$30,NA(),IF(A75>$A$8,"",OFFSET(InputPriceData!$E$15,CalculationsAndCharts!$A75+$A$11,IF($C$5,8,0),1,1))) -> 787.51001 | G75: =IF(A75>$B$30,NA(),IF(A75>$A$8,"",OFFSET(InputPriceData!$F$15,CalculationsAndCharts!$A75+$A$11,IF($C$5,8,0),1,1))) -> 789.200012 | H75: 736.0208387 | I75: 777.8347124 | J75: 0 | K75: 2.839966 | L75: 2.162475234 | M75: 1.698585453 | N75: 1.201456848 | O75: 0.08633164109 | P75: 789.2914191 | Q75: 2.382913162 | R75: 1.848449109 | S75: 1.263101617 | T75: 0.02251842405 | U75: 766.9288798 | AX75: 0
A76: 44 | B76: =IF(A76>$B$30,NA(),IF($A76>$A$8,"",OFFSET(InputPriceData!$B$15,$A76+$A$11,0,1,1))) -> 2006-04-07 | C76: =IF(A76>$B$30,NA(),IF($A76>$A$8,"",OFFSET(InputPriceData!$G$15,CalculationsAndCharts!$A76+$A$11,IF($C$5,8,0),1,1))) -> 0 | D76: =IF(A76>$B$30,NA(),IF(A76>$A$8,"",OFFSET(InputPriceData!$C$15,CalculationsAndCharts!$A76+$A$11,IF($C$5,8,0),1,1))) -> 799.900024 | E76: =IF(A76>$B$30,NA(),IF(A76>$A$8,"",OFFSET(InputPriceData!$D$15,CalculationsAndCharts!$A76+$A$11,IF($C$5,8,0),1,1))) -> 803.619995 | F76: =IF(A76>$B$30,NA(),IF(A76>$A$8,"",OFFSET(InputPriceData!$E$15,CalculationsAndCharts!$A76+$A$11,IF($C$5,8,0),1,1))) -> 790.460022 | G76: =IF(A76>$B$30,NA(),IF(A76>$A$8,"",OFFSET(InputPriceData!$F$15,CalculationsAndCharts!$A76+$A$11,IF($C$5,8,0),1,1))) -> 792.039978 | H76: 735.4863747 | I76: 777.3708226 | J76: 0 | K76: 7.860046 | L76: 2.250739529 | M76: 1.651998492 | N76: 1.534156362 | O76: 0.09937868087 | P76: 789.3000561 | Q76: 2.406862038 | R76: 1.838484116 | S76: 1.338825863 | T76: 0.02327189913 | U76: 766.4158156 | AX76: 0
A77: 45 | B77: =IF(A77>$B$30,NA(),IF($A77>$A$8,"",OFFSET(InputPriceData!$B$15,$A77+$A$11,0,1,1))) -> 2006-04-06 | C77: =IF(A77>$B$30,NA(),IF($A77>$A$8,"",OFFSET(InputPriceData!$G$15,CalculationsAndCharts!$A77+$A$11,IF($C$5,8,0),1,1))) -> 0 | D77: =IF(A77>$B$30,NA(),IF(A77>$A$8,"",OFFSET(InputPriceData!$C$15,CalculationsAndCharts!$A77+$A$11,IF($C$5,8,0),1,1))) -> 799.51001 | E77: =IF(A77>$B$30,NA(),IF(A77>$A$8,"",OFFSET(InputPriceData!$D$15,CalculationsAndCharts!$A77+$A$11,IF($C$5,8,0),1,1))) -> 801.01001 | F77: =IF(A77>$B$30,NA(),IF(A77>$A$8,"",OFFSET(InputPriceData!$E$15,CalculationsAndCharts!$A77+$A$11,IF($C$5,8,0),1,1))) -> 795.780029 | G77: =IF(A77>$B$30,NA(),IF(A77>$A$8,"",OFFSET(InputPriceData!$F$15,CalculationsAndCharts!$A77+$A$11,IF($C$5,8,0),1,1))) -> 799.900024 | H77: 734.9179968 | I77: 776.7720816 | J77: 0.390014 | K77: 0 | L77: 2.342606448 | M77: 1.398608798 | N77: 2.523238007 | O77: 0.1381661964 | P77: 788.9977205 | Q77: 2.431051607 | R77: 1.777965906 | S77: 1.551634554 | T77: 0.02538939854 | U77: 765.8052845 | AW77: 0
A78: 46 | B78: =IF(A78>$B$30,NA(),IF($A78>$A$8,"",OFFSET(InputPriceData!$B$15,$A78+$A$11,0,1,1))) -> 2006-04-05 | C78: =IF(A78>$B$30,NA(),IF($A78>$A$8,"",OFFSET(InputPriceData!$G$15,CalculationsAndCharts!$A78+$A$11,IF($C$5,8,0),1,1))) -> 0 | D78: =IF(A78>$B$30,NA(),IF(A78>$A$8,"",OFFSET(InputPriceData!$C$15,CalculationsAndCharts!$A78+$A$11,IF($C$5,8,0),1,1))) -> 793.650024 | E78: =IF(A78>$B$30,NA(),IF(A78>$A$8,"",OFFSET(InputPriceData!$D$15,CalculationsAndCharts!$A78+$A$11,IF($C$5,8,0),1,1))) -> 800.109985 | F78: =IF(A78>$B$30,NA(),IF(A78>$A$8,"",OFFSET(InputPriceData!$E$15,CalculationsAndCharts!$A78+$A$11,IF($C$5,8,0),1,1))) -> 792.700012 | G78: =IF(A78>$B$30,NA(),IF(A78>$A$8,"",OFFSET(InputPriceData!$F$15,CalculationsAndCharts!$A78+$A$11,IF($C$5,8,0),1,1))) -> 799.51001 | H78: 734.2649111 | I78: 775.8280839 | J78: 5.859986 | K78: 0 | L78: 2.422304099 | M78: 1.455694872 | N78: 2.492546375 | O78: 0.136962603 | P78: 787.2499012 | Q78: 2.451564547 | R78: 1.79583491 | S78: 1.543837928 | T78: 0.02531182018 | U78: 764.9170888 | AW78: 0
A79: 47 | B79: =IF(A79>$B$30,NA(),IF($A79>$A$8,"",OFFSET(InputPriceData!$B$15,$A79+$A$11,0,1,1))) -> 2006-04-04 | C79: =IF(A79>$B$30,NA(),IF($A79>$A$8,"",OFFSET(InputPriceData!$G$15,CalculationsAndCharts!$A79+$A$11,IF($C$5,8,0),1,1))) -> 0 | D79: =IF(A79>$B$30,NA(),IF(A79>$A$8,"",OFFSET(InputPriceData!$C$15,CalculationsAndCharts!$A79+$A$11,IF($C$5,8,0),1,1))) -> 791.109985 | E79: =IF(A79>$B$30,NA(),IF(A79>$A$8,"",OFFSET(InputPriceData!$D$15,CalculationsAndCharts!$A79+$A$11,IF($C$5,8,0),1,1))) -> 795.159973 | F79: =IF(A79>$B$30,NA(),IF(A79>$A$8,"",OFFSET(InputPriceData!$E$15,CalculationsAndCharts!$A79+$A$11,IF($C$5,8,0),1,1))) -> 788.27002 | G79: =IF(A79>$B$30,NA(),IF(A79>$A$8,"",OFFSET(InputPriceData!$F$15,CalculationsAndCharts!$A79+$A$11,IF($C$5,8,0),1,1))) -> 793.650024 | H79: 733.6091814 | I79: 774.8614747 | J79: 2.540039 | K79: 0 | L79: 2.281990552 | M79: 1.515110989 | N79: 2.019644604 | O79: 0.1184174354 | P79: 785.3042423 | Q79: 2.417309055 | R79: 1.813883502 | S79: 1.426135883 | T79: 0.02414065556 | U79: 764.0187402 | AW79: 0
A80: 48 | B80: =IF(A80>$B$30,NA(),IF($A80>$A$8,"",OFFSET(InputPriceData!$B$15,$A80+$A$11,0,1,1))) -> 2006-04-03 | C80: =IF(A80>$B$30,NA(),IF($A80>$A$8,"",OFFSET(InputPriceData!$G$15,CalculationsAndCharts!$A80+$A$11,IF($C$5,8,0),1,1))) -> 0 | D80: =IF(A80>$B$30,NA(),IF(A80>$A$8,"",OFFSET(InputPriceData!$C$15,CalculationsAndCharts!$A80+$A$11,IF($C$5,8,0),1,1))) -> 792.109985 | E80: =IF(A80>$B$30,NA(),IF(A80>$A$8,"",OFFSET(InputPriceData!$D$15,CalculationsAndCharts!$A80+$A$11,IF($C$5,8,0),1,1))) -> 797.73999 | F80: =IF(A80>$B$30,NA(),IF(A80>$A$8,"",OFFSET(InputPriceData!$E$15,CalculationsAndCharts!$A80+$A$11,IF($C$5,8,0),1,1))) -> 790.01001 | G80: =IF(A80>$B$30,NA(),IF(A80>$A$8,"",OFFSET(InputPriceData!$F$15,CalculationsAndCharts!$A80+$A$11,IF($C$5,8,0),1,1))) -> 791.109985 | H80: 733.0057559 | I80: 774.0945951 | J80: 0 | K80: 1 | L80: 2.271457963 | M80: 1.576952254 | N80: 1.804656131 | O80: 0.1099865149 | P80: 784.183206 | Q80: 2.416075589 | R80: 1.832113487 | S80: 1.374614198 | T80: 0.02362800197 | U80: 763.2857261 | AX80: 0
A81: 49 | B81: =IF(A81>$B$30,NA(),IF($A81>$A$8,"",OFFSET(InputPriceData!$B$15,$A81+$A$11,0,1,1))) -> 2006-03-31 | C81: =IF(A81>$B$30,NA(),IF($A81>$A$8,"",OFFSET(InputPriceData!$G$15,CalculationsAndCharts!$A81+$A$11,IF($C$5,8,0),1,1))) -> 0 | D81: =IF(A81>$B$30,NA(),IF(A81>$A$8,"",OFFSET(InputPriceData!$C$15,CalculationsAndCharts!$A81+$A$11,IF($C$5,8,0),1,1))) -> 791.849976 | E81: =IF(A81>$B$30,NA(),IF(A81>$A$8,"",OFFSET(InputPriceData!$D$15,CalculationsAndCharts!$A81+$A$11,IF($C$5,8,0),1,1))) -> 793.140015 | F81: =IF(A81>$B$30,NA(),IF(A81>$A$8,"",OFFSET(InputPriceData!$E$15,CalculationsAndCharts!$A81+$A$11,IF($C$5,8,0),1,1))) -> 787.01001 | G81: =IF(A81>$B$30,NA(),IF(A81>$A$8,"",OFFSET(InputPriceData!$F$15,CalculationsAndCharts!$A81+$A$11,IF($C$5,8,0),1,1))) -> 792.109985 | H81: 732.4217938 | I81: 773.4000894 | J81: 0.260009 | K81: 0 | L81: 2.364170533 | M81: 1.600501325 | N81: 1.926185154 | O81: 0.114752359 | P81: 783.3272051 | Q81: 2.440357755 | R81: 1.840476436 | S81: 1.401318743 | T81: 0.02389371884 | U81: 762.6123847 | AW81: 0
A82: 50 | B82: =IF(A82>$B$30,NA(),IF($A82>$A$8,"",OFFSET(InputPriceData!$B$15,$A82+$A$11,0,1,1))) -> 2006-03-30 | C82: =IF(A82>$B$30,NA(),IF($A82>$A$8,"",OFFSET(InputPriceData!$G$15,CalculationsAndCharts!$A82+$A$11,IF($C$5,8,0),1,1))) -> 0 | D82: =IF(A82>$B$30,NA(),IF(A82>$A$8,"",OFFSET(InputPriceData!$C$15,CalculationsAndCharts!$A82+$A$11,IF($C$5,8,0),1,1))) -> 791.640015 | E82: =IF(A82>$B$30,NA(),IF(A82>$A$8,"",OFFSET(InputPriceData!$D$15,CalculationsAndCharts!$A82+$A$11,IF($C$5,8,0),1,1))) -> 795.5 | F82: =IF(A82>$B$30,NA(),IF(A82>$A$8,"",OFFSET(InputPriceData!$E$15,CalculationsAndCharts!$A82+$A$11,IF($C$5,8,0),1,1))) -> 788.880005 | G82: =IF(A82>$B$30,NA(),IF(A82>$A$8,"",OFFSET(InputPriceData!$F$15,CalculationsAndCharts!$A82+$A$11,IF($C$5,8,0),1,1))) -> 791.849976 | H82: 731.8219125 | I82: 772.6364202 | J82: 0.209961 | K82: 0 | L82: 2.450054677 | M82: 1.66582791 | N82: 1.905367197 | O82: 0.1139359685 | P82: 782.1887161 | Q82: 2.462270808 | R82: 1.858973687 | S82: 1.396118923 | T82: 0.02384197933 | U82: 761.8903247 | AW82: 0
A83: 51 | B83: =IF(A83>$B$30,NA(),IF($A83>$A$8,"",OFFSET(InputPriceData!$B$15,$A83+$A$11,0,1,1))) -> 2006-03-29 | C83: =IF(A83>$B$30,NA(),IF($A83>$A$8,"",OFFSET(InputPriceData!$G$15,CalculationsAndCharts!$A83+$A$11,IF($C$5,8,0),1,1))) -> 0 | D83: =IF(A83>$B$30,NA(),IF(A83>$A$8,"",OFFSET(InputPriceData!$C$15,CalculationsAndCharts!$A83+$A$11,IF($C$5,8,0),1,1))) -> 783.530029 | E83: =IF(A83>$B$30,NA(),IF(A83>$A$8,"",OFFSET(InputPriceData!$D$15,CalculationsAndCharts!$A83+$A$11,IF($C$5,8,0),1,1))) -> 792.52002 | F83: =IF(A83>$B$30,NA(),IF(A83>$A$8,"",OFFSET(InputPriceData!$E$15,CalculationsAndCharts!$A83+$A$11,IF($C$5,8,0),1,1))) -> 783.530029 | G83: =IF(A83>$B$30,NA(),IF(A83>$A$8,"",OFFSET(InputPriceData!$F$15,CalculationsAndCharts!$A83+$A$11,IF($C$5,8,0),1,1))) -> 791.640015 | H83: 731.2186153 | I83: 771.8521934 | J83: 8.109986 | K83: 0 | L83: 2.541487072 | M83: 1.733820886 | N83: 1.88914154 | O83: 0.1132996682 | P83: 780.9464075 | Q83: 2.484907088 | R83: 1.87765684 | S83: 1.391957248 | T83: 0.02380056963 | U83: 761.1585811 | AW83: 0
A84: 52 | B84: =IF(A84>$B$30,NA(),IF($A84>$A$8,"",OFFSET(InputPriceData!$B$15,$A84+$A$11,0,1,1))) -> 2006-03-28 | C84: =IF(A84>$B$30,NA(),IF($A84>$A$8,"",OFFSET(InputPriceData!$G$15,CalculationsAndCharts!$A84+$A$11,IF($C$5,8,0),1,1))) -> 0 | D84: =IF(A84>$B$30,NA(),IF(A84>$A$8,"",OFFSET(InputPriceData!$C$15,CalculationsAndCharts!$A84+$A$11,IF($C$5,8,0),1,1))) -> 785.940002 | E84: =IF(A84>$B$30,NA(),IF(A84>$A$8,"",OFFSET(InputPriceData!$D$15,CalculationsAndCharts!$A84+$A$11,IF($C$5,8,0),1,1))) -> 789.669983 | F84: =IF(A84>$B$30,NA(),IF(A84>$A$8,"",OFFSET(InputPriceData!$E$15,CalculationsAndCharts!$A84+$A$11,IF($C$5,8,0),1,1))) -> 782.049988 | G84: =IF(A84>$B$30,NA(),IF(A84>$A$8,"",OFFSET(InputPriceData!$F$15,CalculationsAndCharts!$A84+$A$11,IF($C$5,8,0),1,1))) -> 783.530029 | H84: 730.6113651 | I84: 771.0445273 | J84: 0 | K84: 2.409973 | L84: 2.314201401 | M84: 1.804589085 | N84: 1.237286329 | O84: 0.08773671878 | P84: 779.5800133 | Q84: 2.428373631 | R84: 1.896527763 | S84: 1.229729467 | T84: 0.02218636285 | U84: 760.4154179 | AX84: 0
A85: 53 | B85: =IF(A85>$B$30,NA(),IF($A85>$A$8,"",OFFSET(InputPriceData!$B$15,$A85+$A$11,0,1,1))) -> 2006-03-27 | C85: =IF(A85>$B$30,NA(),IF($A85>$A$8,"",OFFSET(InputPriceData!$G$15,CalculationsAndCharts!$A85+$A$11,IF($C$5,8,0),1,1))) -> 0 | D85: =IF(A85>$B$30,NA(),IF(A85>$A$8,"",OFFSET(InputPriceData!$C$15,CalculationsAndCharts!$A85+$A$11,IF($C$5,8,0),1,1))) -> 786.289978 | E85: =IF(A85>$B$30,NA(),IF(A85>$A$8,"",OFFSET(InputPriceData!$D$15,CalculationsAndCharts!$A85+$A$11,IF($C$5,8,0),1,1))) -> 787.299988 | F85: =IF(A85>$B$30,NA(),IF(A85>$A$8,"",OFFSET(InputPriceData!$E$15,CalculationsAndCharts!$A85+$A$11,IF($C$5,8,0),1,1))) -> 783.820007 | G85: =IF(A85>$B$30,NA(),IF(A85>$A$8,"",OFFSET(InputPriceData!$F$15,CalculationsAndCharts!$A85+$A$11,IF($C$5,8,0),1,1))) -> 785.940002 | H85: 730.0795192 | I85: 770.5349149 | J85: 0 | K85: 0.349976 | L85: 2.408658601 | M85: 1.779879538 | N85: 1.501189777 | O85: 0.09808587362 | P85: 779.2001214 | Q85: 2.452779396 | R85: 1.891367509 | S85: 1.292340935 | T85: 0.02280936254 | U85: 759.8909527 | AX85: 0
A86: 54 | B86: =IF(A86>$B$30,NA(),IF($A86>$A$8,"",OFFSET(InputPriceData!$B$15,$A86+$A$11,0,1,1))) -> 2006-03-24 | C86: =IF(A86>$B$30,NA(),IF($A86>$A$8,"",OFFSET(InputPriceData!$G$15,CalculationsAndCharts!$A86+$A$11,IF($C$5,8,0),1,1))) -> 0 | D86: =IF(A86>$B$30,NA(),IF(A86>$A$8,"",OFFSET(InputPriceData!$C$15,CalculationsAndCharts!$A86+$A$11,IF($C$5,8,0),1,1))) -> 782.280029 | E86: =IF(A86>$B$30,NA(),IF(A86>$A$8,"",OFFSET(InputPriceData!$D$15,CalculationsAndCharts!$A86+$A$11,IF($C$5,8,0),1,1))) -> 786.409973 | F86: =IF(A86>$B$30,NA(),IF(A86>$A$8,"",OFFSET(InputPriceData!$E$15,CalculationsAndCharts!$A86+$A$11,IF($C$5,8,0),1,1))) -> 782.140015 | G86: =IF(A86>$B$30,NA(),IF(A86>$A$8,"",OFFSET(InputPriceData!$F$15,CalculationsAndCharts!$A86+$A$11,IF($C$5,8,0),1,1))) -> 786.289978 | H86: 729.5181073 | I86: 769.9061359 | J86: 4.009949 | K86: 0 | L86: 2.506971197 | M86: 1.838242947 | N86: 1.538999524 | O86: 0.09956860877 | P86: 778.4671391 | Q86: 2.477430445 | R86: 1.906858881 | S86: 1.301400346 | T86: 0.02289950593 | U86: 759.2829217 | AW86: 0
A87: 55 | B87: =IF(A87>$B$30,NA(),IF($A87>$A$8,"",OFFSET(InputPriceData!$B$15,$A87+$A$11,0,1,1))) -> 2006-03-23 | C87: =IF(A87>$B$30,NA(),IF($A87>$A$8,"",OFFSET(InputPriceData!$G$15,CalculationsAndCharts!$A87+$A$11,IF($C$5,8,0),1,1))) -> 0 | D87: =IF(A87>$B$30,NA(),IF(A87>$A$8,"",OFFSET(InputPriceData!$C$15,CalculationsAndCharts!$A87+$A$11,IF($C$5,8,0),1,1))) -> 781.330017 | E87: =IF(A87>$B$30,NA(),IF(A87>$A$8,"",OFFSET(InputPriceData!$D$15,CalculationsAndCharts!$A87+$A$11,IF($C$5,8,0),1,1))) -> 783.309998 | F87: =IF(A87>$B$30,NA(),IF(A87>$A$8,"",OFFSET(InputPriceData!$E$15,CalculationsAndCharts!$A87+$A$11,IF($C$5,8,0),1,1))) -> 778.440002 | G87: =IF(A87>$B$30,NA(),IF(A87>$A$8,"",OFFSET(InputPriceData!$F$15,CalculationsAndCharts!$A87+$A$11,IF($C$5,8,0),1,1))) -> 782.280029 | H87: 728.9475358 | I87: 769.2374076 | J87: 0.950012 | K87: 0 | L87: 2.445625164 | M87: 1.913273272 | N87: 1.221299144 | O87: 0.08710977034 | P87: 777.6020991 | Q87: 2.462028249 | R87: 1.926023292 | S87: 1.221510167 | T87: 0.02210457878 | U87: 758.6499794 | AW87: 0
A88: 56 | B88: =IF(A88>$B$30,NA(),IF($A88>$A$8,"",OFFSET(InputPriceData!$B$15,$A88+$A$11,0,1,1))) -> 2006-03-22 | C88: =IF(A88>$B$30,NA(),IF($A88>$A$8,"",OFFSET(InputPriceData!$G$15,CalculationsAndCharts!$A88+$A$11,IF($C$5,8,0),1,1))) -> 0 | D88: =IF(A88>$B$30,NA(),IF(A88>$A$8,"",OFFSET(InputPriceData!$C$15,CalculationsAndCharts!$A88+$A$11,IF($C$5,8,0),1,1))) -> 775.280029 | E88: =IF(A88>$B$30,NA(),IF(A88>$A$8,"",OFFSET(InputPriceData!$D$15,CalculationsAndCharts!$A88+$A$11,IF($C$5,8,0),1,1))) -> 782.289978 | F88: =IF(A88>$B$30,NA(),IF(A88>$A$8,"",OFFSET(InputPriceData!$E$15,CalculationsAndCharts!$A88+$A$11,IF($C$5,8,0),1,1))) -> 773.309998 | G88: =IF(A88>$B$30,NA(),IF(A88>$A$8,"",OFFSET(InputPriceData!$F$15,CalculationsAndCharts!$A88+$A$11,IF($C$5,8,0),1,1))) -> 781.330017 | H88: 728.4115308 | I88: 768.7050557 | J88: 6.049988 | K88: 0 | L88: 2.5066706 | M88: 1.991366058 | N88: 1.145621036 | O88: 0.08414200139 | P88: 777.1557219 | Q88: 2.477224392 | R88: 1.94538031 | S88: 1.202558488 | T88: 0.02191600486 | U88: 758.1158402 | AW88: 0
A89: 57 | B89: =IF(A89>$B$30,NA(),IF($A89>$A$8,"",OFFSET(InputPriceData!$B$15,$A89+$A$11,0,1,1))) -> 2006-03-21 | C89: =IF(A89>$B$30,NA(),IF($A89>$A$8,"",OFFSET(InputPriceData!$G$15,CalculationsAndCharts!$A89+$A$11,IF($C$5,8,0),1,1))) -> 0 | D89: =IF(A89>$B$30,NA(),IF(A89>$A$8,"",OFFSET(InputPriceData!$C$15,CalculationsAndCharts!$A89+$A$11,IF($C$5,8,0),1,1))) -> 781.940002 | E89: =IF(A89>$B$30,NA(),IF(A89>$A$8,"",OFFSET(InputPriceData!$D$15,CalculationsAndCharts!$A89+$A$11,IF($C$5,8,0),1,1))) -> 785.880005 | F89: =IF(A89>$B$30,NA(),IF(A89>$A$8,"",OFFSET(InputPriceData!$E$15,CalculationsAndCharts!$A89+$A$11,IF($C$5,8,0),1,1))) -> 774.190002 | G89: =IF(A89>$B$30,NA(),IF(A89>$A$8,"",OFFSET(InputPriceData!$F$15,CalculationsAndCharts!$A89+$A$11,IF($C$5,8,0),1,1))) -> 775.280029 | H89: 727.8796867 | I89: 768.1897512 | J89: 0 | K89: 6.659973 | L89: 2.3620454 | M89: 2.072646306 | N89: 0.6525799613 | O89: 0.06480705731 | P89: 776.7722197 | Q89: 2.44131722 | R89: 1.964931871 | S89: 1.081158463 | T89: 0.02070804441 | U89: 757.5956783 | AX89: 0
A90: 58 | B90: =IF(A90>$B$30,NA(),IF($A90>$A$8,"",OFFSET(InputPriceData!$B$15,$A90+$A$11,0,1,1))) -> 2006-03-20 | C90: =IF(A90>$B$30,NA(),IF($A90>$A$8,"",OFFSET(InputPriceData!$G$15,CalculationsAndCharts!$A90+$A$11,IF($C$5,8,0),1,1))) -> 0 | D90: =IF(A90>$B$30,NA(),IF(A90>$A$8,"",OFFSET(InputPriceData!$C$15,CalculationsAndCharts!$A90+$A$11,IF($C$5,8,0),1,1))) -> 784.590027 | E90: =IF(A90>$B$30,NA(),IF(A90>$A$8,"",OFFSET(InputPriceData!$D$15,CalculationsAndCharts!$A90+$A$11,IF($C$5,8,0),1,1))) -> 786.840027 | F90: =IF(A90>$B$30,NA(),IF(A90>$A$8,"",OFFSET(InputPriceData!$E$15,CalculationsAndCharts!$A90+$A$11,IF($C$5,8,0),1,1))) -> 780.77002 | G90: =IF(A90>$B$30,NA(),IF(A90>$A$8,"",OFFSET(InputPriceData!$F$15,CalculationsAndCharts!$A90+$A$11,IF($C$5,8,0),1,1))) -> 781.940002 | H90: 727.4033014 | I90: 767.9003521 | J90: 0 | K90: 2.650025 | L90: 2.458455416 | M90: 1.885408481 | N90: 1.319210151 | O90: 0.09094941768 | P90: 776.8756256 | Q90: 2.465853072 | R90: 1.917745528 | S90: 1.250359794 | T90: 0.02239163974 | U90: 757.2217262 | AX90: 0
A91: 59 | B91: =IF(A91>$B$30,NA(),IF($A91>$A$8,"",OFFSET(InputPriceData!$B$15,$A91+$A$11,0,1,1))) -> 2006-03-17 | C91: =IF(A91>$B$30,NA(),IF($A91>$A$8,"",OFFSET(InputPriceData!$G$15,CalculationsAndCharts!$A91+$A$11,IF($C$5,8,0),1,1))) -> 0 | D91: =IF(A91>$B$30,NA(),IF(A91>$A$8,"",OFFSET(InputPriceData!$C$15,CalculationsAndCharts!$A91+$A$11,IF($C$5,8,0),1,1))) -> 782.51001 | E91: =IF(A91>$B$30,NA(),IF(A91>$A$8,"",OFFSET(InputPriceData!$D$15,CalculationsAndCharts!$A91+$A$11,IF($C$5,8,0),1,1))) -> 785.150024 | F91: =IF(A91>$B$30,NA(),IF(A91>$A$8,"",OFFSET(InputPriceData!$E$15,CalculationsAndCharts!$A91+$A$11,IF($C$5,8,0),1,1))) -> 781.48999 | G91: =IF(A91>$B$30,NA(),IF(A91>$A$8,"",OFFSET(InputPriceData!$F$15,CalculationsAndCharts!$A91+$A$11,IF($C$5,8,0),1,1))) -> 784.590027 | H91: 726.8551938 | I91: 767.3273052 | J91: 2.080017 | K91: 0 | L91: 2.558800535 | M91: 1.854199644 | N91: 1.596648227 | O91: 0.1018293422 | P91: 776.3689408 | Q91: 2.490635515 | R91: 1.910385935 | S91: 1.318442971 | T91: 0.02306908429 | U91: 756.6555662 | AW91: 0
A92: 60 | B92: =IF(A92>$B$30,NA(),IF($A92>$A$8,"",OFFSET(InputPriceData!$B$15,$A92+$A$11,0,1,1))) -> 2006-03-16 | C92: =IF(A92>$B$30,NA(),IF($A92>$A$8,"",OFFSET(InputPriceData!$G$15,CalculationsAndCharts!$A92+$A$11,IF($C$5,8,0),1,1))) -> 0 | D92: =IF(A92>$B$30,NA(),IF(A92>$A$8,"",OFFSET(InputPriceData!$C$15,CalculationsAndCharts!$A92+$A$11,IF($C$5,8,0),1,1))) -> 782.130005 | E92: =IF(A92>$B$30,NA(),IF(A92>$A$8,"",OFFSET(InputPriceData!$D$15,CalculationsAndCharts!$A92+$A$11,IF($C$5,8,0),1,1))) -> 786.390015 | F92: =IF(A92>$B$30,NA(),IF(A92>$A$8,"",OFFSET(InputPriceData!$E$15,CalculationsAndCharts!$A92+$A$11,IF($C$5,8,0),1,1))) -> 782.130005 | G92: =IF(A92>$B$30,NA(),IF(A92>$A$8,"",OFFSET(InputPriceData!$F$15,CalculationsAndCharts!$A92+$A$11,IF($C$5,8,0),1,1))) -> 782.51001 | H92: 726.2749443 | I92: 766.6227043 | J92: 0.380005 | K92: 0 | L92: 2.57834272 | M92: 1.929881262 | N92: 1.438396719 | O92: 0.09562340073 | P92: 775.4368821 | Q92: 2.494762334 | R92: 1.929585794 | S92: 1.277423304 | T92: 0.0226609284 | U92: 755.9959265 | AW92: 0
A93: 61 | B93: =IF(A93>$B$30,NA(),IF($A93>$A$8,"",OFFSET(InputPriceData!$B$15,$A93+$A$11,0,1,1))) -> 2006-03-15 | C93: =IF(A93>$B$30,NA(),IF($A93>$A$8,"",OFFSET(InputPriceData!$G$15,CalculationsAndCharts!$A93+$A$11,IF($C$5,8,0),1,1))) -> 0 | D93: =IF(A93>$B$30,NA(),IF(A93>$A$8,"",OFFSET(InputPriceData!$C$15,CalculationsAndCharts!$A93+$A$11,IF($C$5,8,0),1,1))) -> 776.700012 | E93: =IF(A93>$B$30,NA(),IF(A93>$A$8,"",OFFSET(InputPriceData!$D$15,CalculationsAndCharts!$A93+$A$11,IF($C$5,8,0),1,1))) -> 782.549988 | F93: =IF(A93>$B$30,NA(),IF(A93>$A$8,"",OFFSET(InputPriceData!$E$15,CalculationsAndCharts!$A93+$A$11,IF($C$5,8,0),1,1))) -> 775.679993 | G93: =IF(A93>$B$30,NA(),IF(A93>$A$8,"",OFFSET(InputPriceData!$F$15,CalculationsAndCharts!$A93+$A$11,IF($C$5,8,0),1,1))) -> 782.130005 | H93: 725.7097677 | I93: 765.9742428 | J93: 5.429993 | K93: 0 | L93: 2.66807079 | M93: 2.008651926 | N93: 1.410002056 | O93: 0.09450988456 | P93: 774.6890116 | Q93: 2.516016176 | R93: 1.948978616 | S93: 1.269962423 | T93: 0.02258669078 | U93: 755.3811616 | AW93: 0
A94: 62 | B94: =IF(A94>$B$30,NA(),IF($A94>$A$8,"",OFFSET(InputPriceData!$B$15,$A94+$A$11,0,1,1))) -> 2006-03-14 | C94: =IF(A94>$B$30,NA(),IF($A94>$A$8,"",OFFSET(InputPriceData!$G$15,CalculationsAndCharts!$A94+$A$11,IF($C$5,8,0),1,1))) -> 0 | D94: =IF(A94>$B$30,NA(),IF(A94>$A$8,"",OFFSET(InputPriceData!$C$15,CalculationsAndCharts!$A94+$A$11,IF($C$5,8,0),1,1))) -> 768.539978 | E94: =IF(A94>$B$30,NA(),IF(A94>$A$8,"",OFFSET(InputPriceData!$D$15,CalculationsAndCharts!$A94+$A$11,IF($C$5,8,0),1,1))) -> 776.840027 | F94: =IF(A94>$B$30,NA(),IF(A94>$A$8,"",OFFSET(InputPriceData!$E$15,CalculationsAndCharts!$A94+$A$11,IF($C$5,8,0),1,1))) -> 766.630005 | G94: =IF(A94>$B$30,NA(),IF(A94>$A$8,"",OFFSET(InputPriceData!$F$15,CalculationsAndCharts!$A94+$A$11,IF($C$5,8,0),1,1))) -> 776.700012 | H94: 725.1427301 | I94: 765.314824 | J94: 8.160034 | K94: 0 | L94: 2.555339272 | M94: 2.090637719 | N94: 1.000223535 | O94: 0.07844013864 | P94: 773.9123633 | Q94: 2.486729977 | R94: 1.96856634 | S94: 1.163028449 | T94: 0.02152267114 | U94: 754.7630323 | AW94: 0
A95: 63 | B95: =IF(A95>$B$30,NA(),IF($A95>$A$8,"",OFFSET(InputPriceData!$B$15,$A95+$A$11,0,1,1))) -> 2006-03-13 | C95: =IF(A95>$B$30,NA(),IF($A95>$A$8,"",OFFSET(InputPriceData!$G$15,CalculationsAndCharts!$A95+$A$11,IF($C$5,8,0),1,1))) -> 0 | D95: =IF(A95>$B$30,NA(),IF(A95>$A$8,"",OFFSET(InputPriceData!$C$15,CalculationsAndCharts!$A95+$A$11,IF($C$5,8,0),1,1))) -> 765.200012 | E95: =IF(A95>$B$30,NA(),IF(A95>$A$8,"",OFFSET(InputPriceData!$D$15,CalculationsAndCharts!$A95+$A$11,IF($C$5,8,0),1,1))) -> 772.640015 | F95: =IF(A95>$B$30,NA(),IF(A95>$A$8,"",OFFSET(InputPriceData!$E$15,CalculationsAndCharts!$A95+$A$11,IF($C$5,8,0),1,1))) -> 765.200012 | G95: =IF(A95>$B$30,NA(),IF(A95>$A$8,"",OFFSET(InputPriceData!$F$15,CalculationsAndCharts!$A95+$A$11,IF($C$5,8,0),1,1))) -> 768.539978 | H95: 724.6245665 | I95: 764.8501224 | J95: 3.339966 | K95: 0 | L95: 2.326576222 | M95: 2.17596987 | N95: 0.3344915256 | O95: 0.052333001 | P95: 773.6750878 | Q95: 2.429711846 | R95: 1.988350927 | S95: 0.9989919613 | T95: 0.01989046728 | U95: 754.2805046 | AW95: 0
A96: 64 | B96: =IF(A96>$B$30,NA(),IF($A96>$A$8,"",OFFSET(InputPriceData!$B$15,$A96+$A$11,0,1,1))) -> 2006-03-10 | C96: =IF(A96>$B$30,NA(),IF($A96>$A$8,"",OFFSET(InputPriceData!$G$15,CalculationsAndCharts!$A96+$A$11,IF($C$5,8,0),1,1))) -> 0 | D96: =IF(A96>$B$30,NA(),IF(A96>$A$8,"",OFFSET(InputPriceData!$C$15,CalculationsAndCharts!$A96+$A$11,IF($C$5,8,0),1,1))) -> 760.26001 | E96: =IF(A96>$B$30,NA(),IF(A96>$A$8,"",OFFSET(InputPriceData!$D$15,CalculationsAndCharts!$A96+$A$11,IF($C$5,8,0),1,1))) -> 766.669983 | F96: =IF(A96>$B$30,NA(),IF(A96>$A$8,"",OFFSET(InputPriceData!$E$15,CalculationsAndCharts!$A96+$A$11,IF($C$5,8,0),1,1))) -> 756.409973 | G96: =IF(A96>$B$30,NA(),IF(A96>$A$8,"",OFFSET(InputPriceData!$F$15,CalculationsAndCharts!$A96+$A$11,IF($C$5,8,0),1,1))) -> 765.200012 | H96: 724.1832056 | I96: 764.699516 | J96: 4.940002 | K96: 0 | L96: 2.285213373 | M96: 2.264784967 | N96: 0.04489761257 | O96: 0.04097637696 | P96: 773.9586639 | Q96: 2.420563563 | R96: 2.008334353 | S96: 0.9307715325 | T96: 0.01921165704 | U96: 753.991121 | AW96: 0
A97: 65 | B97: =IF(A97>$B$30,NA(),IF($A97>$A$8,"",OFFSET(InputPriceData!$B$15,$A97+$A$11,0,1,1))) -> 2006-03-09 | C97: =IF(A97>$B$30,NA(),IF($A97>$A$8,"",OFFSET(InputPriceData!$G$15,CalculationsAndCharts!$A97+$A$11,IF($C$5,8,0),1,1))) -> 0 | D97: =IF(A97>$B$30,NA(),IF(A97>$A$8,"",OFFSET(InputPriceData!$C$15,CalculationsAndCharts!$A97+$A$11,IF($C$5,8,0),1,1))) -> 763.869995 | E97: =IF(A97>$B$30,NA(),IF(A97>$A$8,"",OFFSET(InputPriceData!$D$15,CalculationsAndCharts!$A97+$A$11,IF($C$5,8,0),1,1))) -> 766.309998 | F97: =IF(A97>$B$30,NA(),IF(A97>$A$8,"",OFFSET(InputPriceData!$E$15,CalculationsAndCharts!$A97+$A$11,IF($C$5,8,0),1,1))) -> 759.679993 | G97: =IF(A97>$B$30,NA(),IF(A97>$A$8,"",OFFSET(InputPriceData!$F$15,CalculationsAndCharts!$A97+$A$11,IF($C$5,8,0),1,1))) -> 760.26001 | H97: =IF(A97>$H$30,NA(),IF(A97=$H$30,AVERAGE(OFFSET(G97,0,0,$B$16,1)),(G97-H98)*$C$16+H98)) -> 723.7709764 | I97: 764.6790876 | J97: =IF(A97>$J$30,NA(),IF(G97>G98,G97-G98,0)) -> 0 | K97: =IF(A97>$J$30,NA(),IF(G97<G98,G98-G97,0)) -> 3.609985 | L97: 2.176854654 | M97: 2.35722517 | N97: 0.3978106318 | O97: 0.05481610321 | P97: 774.3328964 | Q97: 2.395242574 | R97: 2.028518618 | S97: 0.828986783 | T97: 0.01819887346 | U97: 753.7715615 | AW97: =IF(G97>=D97,C97,NA()) ->  | AX97: =IF(G97<D97,C97,NA()) -> 0
A98: 66 | B98: =IF(A98>$B$30,NA(),IF($A98>$A$8,"",OFFSET(InputPriceData!$B$15,$A98+$A$11,0,1,1))) -> 2006-03-08 | C98: =IF(A98>$B$30,NA(),IF($A98>$A$8,"",OFFSET(InputPriceData!$G$15,CalculationsAndCharts!$A98+$A$11,IF($C$5,8,0),1,1))) -> 0 | D98: =IF(A98>$B$30,NA(),IF(A98>$A$8,"",OFFSET(InputPriceData!$C$15,CalculationsAndCharts!$A98+$A$11,IF($C$5,8,0),1,1))) -> 763.330017 | E98: =IF(A98>$B$30,NA(),IF(A98>$A$8,"",OFFSET(InputPriceData!$D$15,CalculationsAndCharts!$A98+$A$11,IF($C$5,8,0),1,1))) -> 765.330017 | F98: =IF(A98>$B$30,NA(),IF(A98>$A$8,"",OFFSET(InputPriceData!$E$15,CalculationsAndCharts!$A98+$A$11,IF($C$5,8,0),1,1))) -> 756.039978 | G98: =IF(A98>$B$30,NA(),IF(A98>$A$8,"",OFFSET(InputPriceData!$F$15,CalculationsAndCharts!$A98+$A$11,IF($C$5,8,0),1,1))) -> 763.869995 | H98: 723.4042524 | I98: =IF(A98>$I$30,NA(),IF(A98=$I$30,AVERAGE(OFFSET($G98,0,0,$B$17,1)),(G98-I99)*$C$17+I99)) -> 764.8594582 | J98: 0.539978 | K98: 0 | L98: =IF($A98>$L$30,NA(),IF($A98=$L$30,AVERAGE(OFFSET($J98,0,0,$C$21,1)),($J98-L99)*$C$22+L99)) -> 2.265705864 | M98: =IF($A98>$L$30,NA(),IF($A98=$L$30,AVERAGE(OFFSET($K98,0,0,$C$21,1)),($K98-M99)*$C$22+M99)) -> 2.306092116 | N98: =IF($A98>$L$30,NA(),ABS((L98-M98))/(L98+M98))*$D$21 -> 0.08833778624 | O98: =IF($A98>$L$30,NA(),$B$22*(N98+1)) -> 0.04267991319 | P98: =IF($A98>$P$30,NA(),IF($A98=$P$30,G98,O98*(G98-P99)+P99)) -> 775.1490559 | Q98: =IF($A98>$Q$30,NA(),IF($A98=$Q$30,AVERAGE(OFFSET($J98,0,0,$C$23,1)),($J98-Q99)*$C$24+Q99)) -> 2.419315364 | R98: =IF($A98>$Q$30,NA(),IF($A98=$Q$30,AVERAGE(OFFSET($K98,0,0,$C$23,1)),($K98-R99)*$C$24+R99)) -> 2.012624484 | S98: =IF($A98>$Q$30,NA(),ABS((Q98-R98))/(Q98+R98))*$D$23 -> 0.9176362815 | T98: =IF($A98>$Q$30,NA(),$B$24*(S98+1)) -> 0.01908095802 | U98: =IF($A98>$U$30,NA(),IF($A98=$U$30,$G98,T98*($G98-U99)+U99)) -> 753.6512903 | AW98: 0
A99: 67 | B99: =IF(A99>$B$30,NA(),IF($A99>$A$8,"",OFFSET(InputPriceData!$B$15,$A99+$A$11,0,1,1))) -> 2006-03-07 | C99: =IF(A99>$B$30,NA(),IF($A99>$A$8,"",OFFSET(InputPriceData!$G$15,CalculationsAndCharts!$A99+$A$11,IF($C$5,8,0),1,1))) -> 0 | D99: =IF(A99>$B$30,NA(),IF(A99>$A$8,"",OFFSET(InputPriceData!$C$15,CalculationsAndCharts!$A99+$A$11,IF($C$5,8,0),1,1))) -> 767.73999 | E99: =IF(A99>$B$30,NA(),IF(A99>$A$8,"",OFFSET(InputPriceData!$D$15,CalculationsAndCharts!$A99+$A$11,IF($C$5,8,0),1,1))) -> 767.73999 | F99: =IF(A99>$B$30,NA(),IF(A99>$A$8,"",OFFSET(InputPriceData!$E$15,CalculationsAndCharts!$A99+$A$11,IF($C$5,8,0),1,1))) -> 760.950012 | G99: =IF(A99>$B$30,NA(),IF(A99>$A$8,"",OFFSET(InputPriceData!$F$15,CalculationsAndCharts!$A99+$A$11,IF($C$5,8,0),1,1))) -> 763.330017 | H99: 722.9975615 | I99: 764.8998444 | J99: 0 | K99: 9.01001 | L99: 2.336143736 | M99: 2.400218324 | N99: 0.1352822847 | O99: 0.04452087391 | P99: 775.6519068 | Q99: 2.438203176 | R99: 2.032851865 | S99: 0.9066122141 | T99: 0.01897126581 | U99: 753.4525148 | AX99: 0
A100: 68 | B100: =IF(A100>$B$30,NA(),IF($A100>$A$8,"",OFFSET(InputPriceData!$B$15,$A100+$A$11,0,1,1))) -> 2006-03-06 | C100: =IF(A100>$B$30,NA(),IF($A100>$A$8,"",OFFSET(InputPriceData!$G$15,CalculationsAndCharts!$A100+$A$11,IF($C$5,8,0),1,1))) -> 0 | D100: =IF(A100>$B$30,NA(),IF(A100>$A$8,"",OFFSET(InputPriceData!$C$15,CalculationsAndCharts!$A100+$A$11,IF($C$5,8,0),1,1))) -> 779.869995 | E100: =IF(A100>$B$30,NA(),IF(A100>$A$8,"",OFFSET(InputPriceData!$D$15,CalculationsAndCharts!$A100+$A$11,IF($C$5,8,0),1,1))) -> 780.109985 | F100: =IF(A100>$B$30,NA(),IF(A100>$A$8,"",OFFSET(InputPriceData!$E$15,CalculationsAndCharts!$A100+$A$11,IF($C$5,8,0),1,1))) -> 770.320007 | G100: =IF(A100>$B$30,NA(),IF(A100>$A$8,"",OFFSET(InputPriceData!$F$15,CalculationsAndCharts!$A100+$A$11,IF($C$5,8,0),1,1))) -> 772.340027 | H100: 722.5922102 | I100: 764.963919 | J100: 0 | K100: 7.529968 | L100: 2.431496542 | M100: 2.130430909 | N100: 0.6599526978 | O100: 0.06509618423 | P100: 776.2260495 | Q100: 2.462707731 | R100: 1.962729673 | S100: 1.129782239 | T100: 0.02119186308 | U100: 753.2615023 | AX100: 0
A101: 69 | B101: =IF(A101>$B$30,NA(),IF($A101>$A$8,"",OFFSET(InputPriceData!$B$15,$A101+$A$11,0,1,1))) -> 2006-03-03 | C101: =IF(A101>$B$30,NA(),IF($A101>$A$8,"",OFFSET(InputPriceData!$G$15,CalculationsAndCharts!$A101+$A$11,IF($C$5,8,0),1,1))) -> 0 | D101: =IF(A101>$B$30,NA(),IF(A101>$A$8,"",OFFSET(InputPriceData!$C$15,CalculationsAndCharts!$A101+$A$11,IF($C$5,8,0),1,1))) -> 782.309998 | E101: =IF(A101>$B$30,NA(),IF(A101>$A$8,"",OFFSET(InputPriceData!$D$15,CalculationsAndCharts!$A101+$A$11,IF($C$5,8,0),1,1))) -> 785.419983 | F101: =IF(A101>$B$30,NA(),IF(A101>$A$8,"",OFFSET(InputPriceData!$E$15,CalculationsAndCharts!$A101+$A$11,IF($C$5,8,0),1,1))) -> 778.859985 | G101: =IF(A101>$B$30,NA(),IF(A101>$A$8,"",OFFSET(InputPriceData!$F$15,CalculationsAndCharts!$A101+$A$11,IF($C$5,8,0),1,1))) -> 779.869995 | H101: 722.0922322 | I101: 764.6628534 | J101: 0 | K101: 2.440003 | L101: 2.530741299 | M101: 1.91004164 | N101: 1.397725733 | O101: 0.0940284601 | P101: 776.4966284 | Q101: 2.487458562 | R101: 1.906777529 | S101: 1.321460707 | T101: 0.02309911152 | U101: 752.8484393 | AX101: 0
A102: 70 | B102: =IF(A102>$B$30,NA(),IF($A102>$A$8,"",OFFSET(InputPriceData!$B$15,$A102+$A$11,0,1,1))) -> 2006-03-02 | C102: =IF(A102>$B$30,NA(),IF($A102>$A$8,"",OFFSET(InputPriceData!$G$15,CalculationsAndCharts!$A102+$A$11,IF($C$5,8,0),1,1))) -> 0 | D102: =IF(A102>$B$30,NA(),IF(A102>$A$8,"",OFFSET(InputPriceData!$C$15,CalculationsAndCharts!$A102+$A$11,IF($C$5,8,0),1,1))) -> 785.150024 | E102: =IF(A102>$B$30,NA(),IF(A102>$A$8,"",OFFSET(InputPriceData!$D$15,CalculationsAndCharts!$A102+$A$11,IF($C$5,8,0),1,1))) -> 785.150024 | F102: =IF(A102>$B$30,NA(),IF(A102>$A$8,"",OFFSET(InputPriceData!$E$15,CalculationsAndCharts!$A102+$A$11,IF($C$5,8,0),1,1))) -> 778.530029 | G102: =IF(A102>$B$30,NA(),IF(A102>$A$8,"",OFFSET(InputPriceData!$F$15,CalculationsAndCharts!$A102+$A$11,IF($C$5,8,0),1,1))) -> 782.309998 | H102: 721.5115511 | I102: 764.0421537 | J102: 0 | K102: 2.840026 | L102: 2.634036862 | M102: 1.888410564 | N102: 1.648722976 | O102: 0.1038714892 | P102: 776.1465153 | Q102: 2.512458146 | R102: 1.901418479 | S102: 1.384360549 | T102: 0.02372498059 | U102: 752.2095066 | AX102: 0
A103: 71 | B103: =IF(A103>$B$30,NA(),IF($A103>$A$8,"",OFFSET(InputPriceData!$B$15,$A103+$A$11,0,1,1))) -> 2006-03-01 | C103: =IF(A103>$B$30,NA(),IF($A103>$A$8,"",OFFSET(InputPriceData!$G$15,CalculationsAndCharts!$A103+$A$11,IF($C$5,8,0),1,1))) -> 0 | D103: =IF(A103>$B$30,NA(),IF(A103>$A$8,"",OFFSET(InputPriceData!$C$15,CalculationsAndCharts!$A103+$A$11,IF($C$5,8,0),1,1))) -> 773.599976 | E103: =IF(A103>$B$30,NA(),IF(A103>$A$8,"",OFFSET(InputPriceData!$D$15,CalculationsAndCharts!$A103+$A$11,IF($C$5,8,0),1,1))) -> 785.169983 | F103: =IF(A103>$B$30,NA(),IF(A103>$A$8,"",OFFSET(InputPriceData!$E$15,CalculationsAndCharts!$A103+$A$11,IF($C$5,8,0),1,1))) -> 773.599976 | G103: =IF(A103>$B$30,NA(),IF(A103>$A$8,"",OFFSET(InputPriceData!$F$15,CalculationsAndCharts!$A103+$A$11,IF($C$5,8,0),1,1))) -> 785.150024 | H103: 720.9005115 | I103: 763.2965274 | J103: 11.550048 | K103: 0 | L103: 2.741548571 | M103: 1.849569118 | N103: 1.942837264 | O103: 0.1154053829 | P103: 775.4320975 | Q103: 2.537708982 | R103: 1.891985238 | S103: 1.457716294 | T103: 0.02445488849 | U103: 751.4780184 | AW103: 0
A104: 72 | B104: =IF(A104>$B$30,NA(),IF($A104>$A$8,"",OFFSET(InputPriceData!$B$15,$A104+$A$11,0,1,1))) -> 2006-02-28 | C104: =IF(A104>$B$30,NA(),IF($A104>$A$8,"",OFFSET(InputPriceData!$G$15,CalculationsAndCharts!$A104+$A$11,IF($C$5,8,0),1,1))) -> 0 | D104: =IF(A104>$B$30,NA(),IF(A104>$A$8,"",OFFSET(InputPriceData!$C$15,CalculationsAndCharts!$A104+$A$11,IF($C$5,8,0),1,1))) -> 782.390015 | E104: =IF(A104>$B$30,NA(),IF(A104>$A$8,"",OFFSET(InputPriceData!$D$15,CalculationsAndCharts!$A104+$A$11,IF($C$5,8,0),1,1))) -> 782.390015 | F104: =IF(A104>$B$30,NA(),IF(A104>$A$8,"",OFFSET(InputPriceData!$E$15,CalculationsAndCharts!$A104+$A$11,IF($C$5,8,0),1,1))) -> 771.359985 | G104: =IF(A104>$B$30,NA(),IF(A104>$A$8,"",OFFSET(InputPriceData!$F$15,CalculationsAndCharts!$A104+$A$11,IF($C$5,8,0),1,1))) -> 773.599976 | H104: 720.2547877 | I104: 762.404548 | J104: 0 | K104: 8.790039 | L104: 2.382017982 | M104: 1.925061735 | N104: 1.060942162 | O104: 0.08082126127 | P104: 774.164284 | Q104: 2.44713271 | R104: 1.911000165 | S104: 1.230188617 | T104: 0.02219093151 | U104: 750.6339312 | AX104: 0
A105: 73 | B105: =IF(A105>$B$30,NA(),IF($A105>$A$8,"",OFFSET(InputPriceData!$B$15,$A105+$A$11,0,1,1))) -> 2006-02-27 | C105: =IF(A105>$B$30,NA(),IF($A105>$A$8,"",OFFSET(InputPriceData!$G$15,CalculationsAndCharts!$A105+$A$11,IF($C$5,8,0),1,1))) -> 0 | D105: =IF(A105>$B$30,NA(),IF(A105>$A$8,"",OFFSET(InputPriceData!$C$15,CalculationsAndCharts!$A105+$A$11,IF($C$5,8,0),1,1))) -> 780.650024 | E105: =IF(A105>$B$30,NA(),IF(A105>$A$8,"",OFFSET(InputPriceData!$D$15,CalculationsAndCharts!$A105+$A$11,IF($C$5,8,0),1,1))) -> 784.159973 | F105: =IF(A105>$B$30,NA(),IF(A105>$A$8,"",OFFSET(InputPriceData!$E$15,CalculationsAndCharts!$A105+$A$11,IF($C$5,8,0),1,1))) -> 780.650024 | G105: =IF(A105>$B$30,NA(),IF(A105>$A$8,"",OFFSET(InputPriceData!$F$15,CalculationsAndCharts!$A105+$A$11,IF($C$5,8,0),1,1))) -> 782.390015 | H105: 719.7186552 | I105: 761.9475917 | J105: 1.739991 | K105: 0 | L105: 2.479243205 | M105: 1.644858581 | N105: 2.023191151 | O105: 0.1185565157 | P105: 774.2139023 | Q105: 2.471727009 | R105: 1.841864096 | S105: 1.460182241 | T105: 0.02447942529 | U105: 750.1127273 | AW105: 0
A106: 74 | B106: =IF(A106>$B$30,NA(),IF($A106>$A$8,"",OFFSET(InputPriceData!$B$15,$A106+$A$11,0,1,1))) -> 2006-02-24 | C106: =IF(A106>$B$30,NA(),IF($A106>$A$8,"",OFFSET(InputPriceData!$G$15,CalculationsAndCharts!$A106+$A$11,IF($C$5,8,0),1,1))) -> 0 | D106: =IF(A106>$B$30,NA(),IF(A106>$A$8,"",OFFSET(InputPriceData!$C$15,CalculationsAndCharts!$A106+$A$11,IF($C$5,8,0),1,1))) -> 777.299988 | E106: =IF(A106>$B$30,NA(),IF(A106>$A$8,"",OFFSET(InputPriceData!$D$15,CalculationsAndCharts!$A106+$A$11,IF($C$5,8,0),1,1))) -> 780.77002 | F106: =IF(A106>$B$30,NA(),IF(A106>$A$8,"",OFFSET(InputPriceData!$E$15,CalculationsAndCharts!$A106+$A$11,IF($C$5,8,0),1,1))) -> 775.969971 | G106: =IF(A106>$B$30,NA(),IF(A106>$A$8,"",OFFSET(InputPriceData!$F$15,CalculationsAndCharts!$A106+$A$11,IF($C$5,8,0),1,1))) -> 780.650024 | H106: 719.0887923 | I106: 761.1132071 | J106: 3.350036 | K106: 0 | L106: 2.509416765 | M106: 1.711995666 | N106: 1.888991213 | O106: 0.113293773 | P106: 773.1141932 | Q106: 2.479081139 | R106: 1.860375293 | S106: 1.42576808 | T106: 0.02413699582 | U106: 749.3027706 | AW106: 0
A107: 75 | B107: =IF(A107>$B$30,NA(),IF($A107>$A$8,"",OFFSET(InputPriceData!$B$15,$A107+$A$11,0,1,1))) -> 2006-02-23 | C107: =IF(A107>$B$30,NA(),IF($A107>$A$8,"",OFFSET(InputPriceData!$G$15,CalculationsAndCharts!$A107+$A$11,IF($C$5,8,0),1,1))) -> 0 | D107: =IF(A107>$B$30,NA(),IF(A107>$A$8,"",OFFSET(InputPriceData!$C$15,CalculationsAndCharts!$A107+$A$11,IF($C$5,8,0),1,1))) -> 779.440002 | E107: =IF(A107>$B$30,NA(),IF(A107>$A$8,"",OFFSET(InputPriceData!$D$15,CalculationsAndCharts!$A107+$A$11,IF($C$5,8,0),1,1))) -> 780.799988 | F107: =IF(A107>$B$30,NA(),IF(A107>$A$8,"",OFFSET(InputPriceData!$E$15,CalculationsAndCharts!$A107+$A$11,IF($C$5,8,0),1,1))) -> 774.549988 | G107: =IF(A107>$B$30,NA(),IF(A107>$A$8,"",OFFSET(InputPriceData!$F$15,CalculationsAndCharts!$A107+$A$11,IF($C$5,8,0),1,1))) -> 777.299988 | H107: 718.4700864 | I107: 760.315786 | J107: 0 | K107: 2.140014 | L107: 2.475105776 | M107: 1.78187304 | N107: 1.628461793 | O107: 0.103076933 | P107: 772.1513459 | Q107: 2.470327824 | R107: 1.879072532 | S107: 1.35939496 | T107: 0.02347656676 | U107: 748.5274276 | AX107: 0
A108: 76 | B108: =IF(A108>$B$30,NA(),IF($A108>$A$8,"",OFFSET(InputPriceData!$B$15,$A108+$A$11,0,1,1))) -> 2006-02-22 | C108: =IF(A108>$B$30,NA(),IF($A108>$A$8,"",OFFSET(InputPriceData!$G$15,CalculationsAndCharts!$A108+$A$11,IF($C$5,8,0),1,1))) -> 0 | D108: =IF(A108>$B$30,NA(),IF(A108>$A$8,"",OFFSET(InputPriceData!$C$15,CalculationsAndCharts!$A108+$A$11,IF($C$5,8,0),1,1))) -> 772.599976 | E108: =IF(A108>$B$30,NA(),IF(A108>$A$8,"",OFFSET(InputPriceData!$D$15,CalculationsAndCharts!$A108+$A$11,IF($C$5,8,0),1,1))) -> 779.77002 | F108: =IF(A108>$B$30,NA(),IF(A108>$A$8,"",OFFSET(InputPriceData!$E$15,CalculationsAndCharts!$A108+$A$11,IF($C$5,8,0),1,1))) -> 771.47998 | G108: =IF(A108>$B$30,NA(),IF(A108>$A$8,"",OFFSET(InputPriceData!$F$15,CalculationsAndCharts!$A108+$A$11,IF($C$5,8,0),1,1))) -> 779.440002 | H108: 717.8788311 | I108: 759.6225532 | J108: 6.840026 | K108: 0 | L108: 2.576130501 | M108: 1.767255042 | N108: 1.862315586 | O108: 0.11224767 | P108: 771.5596494 | Q108: 2.49515524 | R108: 1.876450005 | S108: 1.415281573 | T108: 0.02403265247 | U108: 747.8357075 | AW108: 0
A109: 77 | B109: =IF(A109>$B$30,NA(),IF($A109>$A$8,"",OFFSET(InputPriceData!$B$15,$A109+$A$11,0,1,1))) -> 2006-02-21 | C109: =IF(A109>$B$30,NA(),IF($A109>$A$8,"",OFFSET(InputPriceData!$G$15,CalculationsAndCharts!$A109+$A$11,IF($C$5,8,0),1,1))) -> 0 | D109: =IF(A109>$B$30,NA(),IF(A109>$A$8,"",OFFSET(InputPriceData!$C$15,CalculationsAndCharts!$A109+$A$11,IF($C$5,8,0),1,1))) -> 774.609985 | E109: =IF(A109>$B$30,NA(),IF(A109>$A$8,"",OFFSET(InputPriceData!$D$15,CalculationsAndCharts!$A109+$A$11,IF($C$5,8,0),1,1))) -> 777.669983 | F109: =IF(A109>$B$30,NA(),IF(A109>$A$8,"",OFFSET(InputPriceData!$E$15,CalculationsAndCharts!$A109+$A$11,IF($C$5,8,0),1,1))) -> 769.929993 | G109: =IF(A109>$B$30,NA(),IF(A109>$A$8,"",OFFSET(InputPriceData!$F$15,CalculationsAndCharts!$A109+$A$11,IF($C$5,8,0),1,1))) -> 772.599976 | H109: 717.2601259 | I109: 758.8136778 | J109: 0 | K109: 2.010009 | L109: 2.40209395 | M109: 1.839387901 | N109: 1.326673246 | O109: 0.09124208807 | P109: 770.5632552 | Q109: 2.451488197 | R109: 1.895308799 | S109: 1.279515465 | T109: 0.02268174592 | U109: 747.0574693 | AX109: 0
A110: 78 | B110: =IF(A110>$B$30,NA(),IF($A110>$A$8,"",OFFSET(InputPriceData!$B$15,$A110+$A$11,0,1,1))) -> 2006-02-17 | C110: =IF(A110>$B$30,NA(),IF($A110>$A$8,"",OFFSET(InputPriceData!$G$15,CalculationsAndCharts!$A110+$A$11,IF($C$5,8,0),1,1))) -> 0 | D110: =IF(A110>$B$30,NA(),IF(A110>$A$8,"",OFFSET(InputPriceData!$C$15,CalculationsAndCharts!$A110+$A$11,IF($C$5,8,0),1,1))) -> 774.72998 | E110: =IF(A110>$B$30,NA(),IF(A110>$A$8,"",OFFSET(InputPriceData!$D$15,CalculationsAndCharts!$A110+$A$11,IF($C$5,8,0),1,1))) -> 776.320007 | F110: =IF(A110>$B$30,NA(),IF(A110>$A$8,"",OFFSET(InputPriceData!$E$15,CalculationsAndCharts!$A110+$A$11,IF($C$5,8,0),1,1))) -> 772.400024 | G110: =IF(A110>$B$30,NA(),IF(A110>$A$8,"",OFFSET(InputPriceData!$F$15,CalculationsAndCharts!$A110+$A$11,IF($C$5,8,0),1,1))) -> 774.609985 | H110: 716.7039465 | I110: 758.2509717 | J110: 0 | K110: 0.119995 | L110: 2.500138601 | M110: 1.832423774 | N110: 1.541154562 | O110: 0.09965312008 | P110: 770.3587622 | Q110: 2.476126269 | R110: 1.894156033 | S110: 1.331653646 | T110: 0.02320053379 | U110: 746.4646751 | AX110: 0
A111: 79 | B111: =IF(A111>$B$30,NA(),IF($A111>$A$8,"",OFFSET(InputPriceData!$B$15,$A111+$A$11,0,1,1))) -> 2006-02-16 | C111: =IF(A111>$B$30,NA(),IF($A111>$A$8,"",OFFSET(InputPriceData!$G$15,CalculationsAndCharts!$A111+$A$11,IF($C$5,8,0),1,1))) -> 0 | D111: =IF(A111>$B$30,NA(),IF(A111>$A$8,"",OFFSET(InputPriceData!$C$15,CalculationsAndCharts!$A111+$A$11,IF($C$5,8,0),1,1))) -> 767.940002 | E111: =IF(A111>$B$30,NA(),IF(A111>$A$8,"",OFFSET(InputPriceData!$D$15,CalculationsAndCharts!$A111+$A$11,IF($C$5,8,0),1,1))) -> 774.919983 | F111: =IF(A111>$B$30,NA(),IF(A111>$A$8,"",OFFSET(InputPriceData!$E$15,CalculationsAndCharts!$A111+$A$11,IF($C$5,8,0),1,1))) -> 767.940002 | G111: =IF(A111>$B$30,NA(),IF(A111>$A$8,"",OFFSET(InputPriceData!$F$15,CalculationsAndCharts!$A111+$A$11,IF($C$5,8,0),1,1))) -> 774.72998 | H111: 716.1219763 | I111: 757.5832569 | J111: 6.789978 | K111: 0 | L111: 2.602185075 | M111: 1.902318826 | N111: 1.55370328 | O111: 0.1001452267 | P111: 769.888224 | Q111: 2.50101196 | R111: 1.911986797 | S111: 1.334750349 | T111: 0.02323134676 | U111: 745.7961794 | AW111: 0
A112: 80 | B112: =IF(A112>$B$30,NA(),IF($A112>$A$8,"",OFFSET(InputPriceData!$B$15,$A112+$A$11,0,1,1))) -> 2006-02-15 | C112: =IF(A112>$B$30,NA(),IF($A112>$A$8,"",OFFSET(InputPriceData!$G$15,CalculationsAndCharts!$A112+$A$11,IF($C$5,8,0),1,1))) -> 0 | D112: =IF(A112>$B$30,NA(),IF(A112>$A$8,"",OFFSET(InputPriceData!$C$15,CalculationsAndCharts!$A112+$A$11,IF($C$5,8,0),1,1))) -> 765.51001 | E112: =IF(A112>$B$30,NA(),IF(A112>$A$8,"",OFFSET(InputPriceData!$D$15,CalculationsAndCharts!$A112+$A$11,IF($C$5,8,0),1,1))) -> 770.02002 | F112: =IF(A112>$B$30,NA(),IF(A112>$A$8,"",OFFSET(InputPriceData!$E$15,CalculationsAndCharts!$A112+$A$11,IF($C$5,8,0),1,1))) -> 763.159973 | G112: =IF(A112>$B$30,NA(),IF(A112>$A$8,"",OFFSET(InputPriceData!$F$15,CalculationsAndCharts!$A112+$A$11,IF($C$5,8,0),1,1))) -> 767.940002 | H112: 715.5329511 | I112: 756.8833907 | J112: 2.429992 | K112: 0 | L112: 2.431254751 | M112: 1.979964493 | N112: 1.023051074 | O112: 0.07933533625 | P112: 769.3493829 | Q112: 2.457906774 | R112: 1.931202745 | S112: 1.200024804 | T112: 0.02189079407 | U112: 745.1080214 | AW112: 0
A113: 81 | B113: =IF(A113>$B$30,NA(),IF($A113>$A$8,"",OFFSET(InputPriceData!$B$15,$A113+$A$11,0,1,1))) -> 2006-02-14 | C113: =IF(A113>$B$30,NA(),IF($A113>$A$8,"",OFFSET(InputPriceData!$G$15,CalculationsAndCharts!$A113+$A$11,IF($C$5,8,0),1,1))) -> 0 | D113: =IF(A113>$B$30,NA(),IF(A113>$A$8,"",OFFSET(InputPriceData!$C$15,CalculationsAndCharts!$A113+$A$11,IF($C$5,8,0),1,1))) -> 759.52002 | E113: =IF(A113>$B$30,NA(),IF(A113>$A$8,"",OFFSET(InputPriceData!$D$15,CalculationsAndCharts!$A113+$A$11,IF($C$5,8,0),1,1))) -> 767.169983 | F113: =IF(A113>$B$30,NA(),IF(A113>$A$8,"",OFFSET(InputPriceData!$E$15,CalculationsAndCharts!$A113+$A$11,IF($C$5,8,0),1,1))) -> 755.869995 | G113: =IF(A113>$B$30,NA(),IF(A113>$A$8,"",OFFSET(InputPriceData!$F$15,CalculationsAndCharts!$A113+$A$11,IF($C$5,8,0),1,1))) -> 765.51001 | H113: 715.0062471 | I113: 756.4321004 | J113: 5.98999 | K113: 0 | L113: 2.431306292 | M113: 2.06077937 | N113: 0.8248438479 | O113: 0.07156250384 | P113: 769.4708318 | Q113: 2.458187324 | R113: 1.950611818 | S113: 1.151278365 | T113: 0.02140575488 | U113: 744.5970251 | AW113: 0
A114: 82 | B114: =IF(A114>$B$30,NA(),IF($A114>$A$8,"",OFFSET(InputPriceData!$B$15,$A114+$A$11,0,1,1))) -> 2006-02-13 | C114: =IF(A114>$B$30,NA(),IF($A114>$A$8,"",OFFSET(InputPriceData!$G$15,CalculationsAndCharts!$A114+$A$11,IF($C$5,8,0),1,1))) -> 0 | D114: =IF(A114>$B$30,NA(),IF(A114>$A$8,"",OFFSET(InputPriceData!$C$15,CalculationsAndCharts!$A114+$A$11,IF($C$5,8,0),1,1))) -> 765.469971 | E114: =IF(A114>$B$30,NA(),IF(A114>$A$8,"",OFFSET(InputPriceData!$D$15,CalculationsAndCharts!$A114+$A$11,IF($C$5,8,0),1,1))) -> 765.469971 | F114: =IF(A114>$B$30,NA(),IF(A114>$A$8,"",OFFSET(InputPriceData!$E$15,CalculationsAndCharts!$A114+$A$11,IF($C$5,8,0),1,1))) -> 757.919983 | G114: =IF(A114>$B$30,NA(),IF(A114>$A$8,"",OFFSET(InputPriceData!$F$15,CalculationsAndCharts!$A114+$A$11,IF($C$5,8,0),1,1))) -> 759.52002 | H114: 714.4986716 | I114: 756.0615735 | J114: 0 | K114: 5.949951 | L114: 2.286053896 | M114: 2.144892813 | N114: 0.3185799595 | O114: 0.05170901802 | P114: 769.7761257 | Q114: 2.42269182 | R114: 1.970215956 | S114: 1.030014484 | T114: 0.02019914909 | U114: 744.1395748 | AX114: 0
A115: 83 | B115: =IF(A115>$B$30,NA(),IF($A115>$A$8,"",OFFSET(InputPriceData!$B$15,$A115+$A$11,0,1,1))) -> 2006-02-10 | C115: =IF(A115>$B$30,NA(),IF($A115>$A$8,"",OFFSET(InputPriceData!$G$15,CalculationsAndCharts!$A115+$A$11,IF($C$5,8,0),1,1))) -> 0 | D115: =IF(A115>$B$30,NA(),IF(A115>$A$8,"",OFFSET(InputPriceData!$C$15,CalculationsAndCharts!$A115+$A$11,IF($C$5,8,0),1,1))) -> 765.219971 | E115: =IF(A115>$B$30,NA(),IF(A115>$A$8,"",OFFSET(InputPriceData!$D$15,CalculationsAndCharts!$A115+$A$11,IF($C$5,8,0),1,1))) -> 766.669983 | F115: =IF(A115>$B$30,NA(),IF(A115>$A$8,"",OFFSET(InputPriceData!$E$15,CalculationsAndCharts!$A115+$A$11,IF($C$5,8,0),1,1))) -> 757.859985 | G115: =IF(A115>$B$30,NA(),IF(A115>$A$8,"",OFFSET(InputPriceData!$F$15,CalculationsAndCharts!$A115+$A$11,IF($C$5,8,0),1,1))) -> 765.469971 | H115: 714.0461957 | I115: 755.9204124 | J115: 0.25 | K115: 0 | L115: 2.379362218 | M115: 1.989584316 | N115: 0.892155349 | O115: 0.07420217055 | P115: 770.3353772 | Q115: 2.447040482 | R115: 1.930218619 | S115: 1.180697442 | T115: 0.02169848201 | U115: 743.8224982 | AW115: 0
A116: 84 | B116: =IF(A116>$B$30,NA(),IF($A116>$A$8,"",OFFSET(InputPriceData!$B$15,$A116+$A$11,0,1,1))) -> 2006-02-09 | C116: =IF(A116>$B$30,NA(),IF($A116>$A$8,"",OFFSET(InputPriceData!$G$15,CalculationsAndCharts!$A116+$A$11,IF($C$5,8,0),1,1))) -> 0 | D116: =IF(A116>$B$30,NA(),IF(A116>$A$8,"",OFFSET(InputPriceData!$C$15,CalculationsAndCharts!$A116+$A$11,IF($C$5,8,0),1,1))) -> 768.26001 | E116: =IF(A116>$B$30,NA(),IF(A116>$A$8,"",OFFSET(InputPriceData!$D$15,CalculationsAndCharts!$A116+$A$11,IF($C$5,8,0),1,1))) -> 774.359985 | F116: =IF(A116>$B$30,NA(),IF(A116>$A$8,"",OFFSET(InputPriceData!$E$15,CalculationsAndCharts!$A116+$A$11,IF($C$5,8,0),1,1))) -> 764.73999 | G116: =IF(A116>$B$30,NA(),IF(A116>$A$8,"",OFFSET(InputPriceData!$F$15,CalculationsAndCharts!$A116+$A$11,IF($C$5,8,0),1,1))) -> 765.219971 | H116: 713.5293738 | I116: 755.5306345 | J116: 0 | K116: 3.040039 | L116: 2.466274962 | M116: 2.070791839 | N116: 0.871671368 | O116: 0.07339887718 | P116: 770.7253367 | Q116: 2.46912129 | R116: 1.949617801 | S116: 1.175682651 | T116: 0.02164858359 | U116: 743.3423627 | AX116: 0
A117: 85 | B117: =IF(A117>$B$30,NA(),IF($A117>$A$8,"",OFFSET(InputPriceData!$B$15,$A117+$A$11,0,1,1))) -> 2006-02-08 | C117: =IF(A117>$B$30,NA(),IF($A117>$A$8,"",OFFSET(InputPriceData!$G$15,CalculationsAndCharts!$A117+$A$11,IF($C$5,8,0),1,1))) -> 0 | D117: =IF(A117>$B$30,NA(),IF(A117>$A$8,"",OFFSET(InputPriceData!$C$15,CalculationsAndCharts!$A117+$A$11,IF($C$5,8,0),1,1))) -> 765.859985 | E117: =IF(A117>$B$30,NA(),IF(A117>$A$8,"",OFFSET(InputPriceData!$D$15,CalculationsAndCharts!$A117+$A$11,IF($C$5,8,0),1,1))) -> 769.210022 | F117: =IF(A117>$B$30,NA(),IF(A117>$A$8,"",OFFSET(InputPriceData!$E$15,CalculationsAndCharts!$A117+$A$11,IF($C$5,8,0),1,1))) -> 762.22998 | G117: =IF(A117>$B$30,NA(),IF(A117>$A$8,"",OFFSET(InputPriceData!$F$15,CalculationsAndCharts!$A117+$A$11,IF($C$5,8,0),1,1))) -> 768.26001 | H117: 713.0098704 | I117: 755.1351514 | J117: 2.400025 | K117: 0 | L117: 2.566939246 | M117: 2.031230731 | N117: 1.165047221 | O117: 0.08490381259 | P117: 771.1614334 | Q117: 2.49393658 | R117: 1.938658794 | S117: 1.252714806 | T117: 0.0224150727 | U117: 742.8582634 | AW117: 0
A118: 86 | B118: =IF(A118>$B$30,NA(),IF($A118>$A$8,"",OFFSET(InputPriceData!$B$15,$A118+$A$11,0,1,1))) -> 2006-02-07 | C118: =IF(A118>$B$30,NA(),IF($A118>$A$8,"",OFFSET(InputPriceData!$G$15,CalculationsAndCharts!$A118+$A$11,IF($C$5,8,0),1,1))) -> 0 | D118: =IF(A118>$B$30,NA(),IF(A118>$A$8,"",OFFSET(InputPriceData!$C$15,CalculationsAndCharts!$A118+$A$11,IF($C$5,8,0),1,1))) -> 776.02002 | E118: =IF(A118>$B$30,NA(),IF(A118>$A$8,"",OFFSET(InputPriceData!$D$15,CalculationsAndCharts!$A118+$A$11,IF($C$5,8,0),1,1))) -> 776.02002 | F118: =IF(A118>$B$30,NA(),IF(A118>$A$8,"",OFFSET(InputPriceData!$E$15,CalculationsAndCharts!$A118+$A$11,IF($C$5,8,0),1,1))) -> 765.630005 | G118: =IF(A118>$B$30,NA(),IF(A118>$A$8,"",OFFSET(InputPriceData!$F$15,CalculationsAndCharts!$A118+$A$11,IF($C$5,8,0),1,1))) -> 765.859985 | H118: 712.4545926 | I118: 754.5994429 | J118: 0 | K118: 10.160035 | L118: 2.573752072 | M118: 2.114138107 | N118: 0.9804281825 | O118: 0.07766385029 | P118: 771.4306313 | Q118: 2.494880415 | R118: 1.958142802 | S118: 1.205333065 | T118: 0.02194361259 | U118: 742.275826 | AX118: 0
A119: 87 | B119: =IF(A119>$B$30,NA(),IF($A119>$A$8,"",OFFSET(InputPriceData!$B$15,$A119+$A$11,0,1,1))) -> 2006-02-06 | C119: =IF(A119>$B$30,NA(),IF($A119>$A$8,"",OFFSET(InputPriceData!$G$15,CalculationsAndCharts!$A119+$A$11,IF($C$5,8,0),1,1))) -> 0 | D119: =IF(A119>$B$30,NA(),IF(A119>$A$8,"",OFFSET(InputPriceData!$C$15,CalculationsAndCharts!$A119+$A$11,IF($C$5,8,0),1,1))) -> 772.549988 | E119: =IF(A119>$B$30,NA(),IF(A119>$A$8,"",OFFSET(InputPriceData!$D$15,CalculationsAndCharts!$A119+$A$11,IF($C$5,8,0),1,1))) -> 776.090027 | F119: =IF(A119>$B$30,NA(),IF(A119>$A$8,"",OFFSET(InputPriceData!$E$15,CalculationsAndCharts!$A119+$A$11,IF($C$5,8,0),1,1))) -> 771.73999 | G119: =IF(A119>$B$30,NA(),IF(A119>$A$8,"",OFFSET(InputPriceData!$F$15,CalculationsAndCharts!$A119+$A$11,IF($C$5,8,0),1,1))) -> 776.02002 | H119: 711.917855 | I119: 754.1398289 | J119: 3.470032 | K119: 0 | L119: 2.678803177 | M119: 1.785734153 | N119: 2.000361871 | O119: 0.1176612498 | P119: 771.8996987 | Q119: 2.51995459 | R119: 1.875711725 | S119: 1.465631872 | T119: 0.02453365046 | U119: 741.7466933 | AW119: 0
A120: 88 | B120: =IF(A120>$B$30,NA(),IF($A120>$A$8,"",OFFSET(InputPriceData!$B$15,$A120+$A$11,0,1,1))) -> 2006-02-03 | C120: =IF(A120>$B$30,NA(),IF($A120>$A$8,"",OFFSET(InputPriceData!$G$15,CalculationsAndCharts!$A120+$A$11,IF($C$5,8,0),1,1))) -> 0 | D120: =IF(A120>$B$30,NA(),IF(A120>$A$8,"",OFFSET(InputPriceData!$C$15,CalculationsAndCharts!$A120+$A$11,IF($C$5,8,0),1,1))) -> 774.98999 | E120: =IF(A120>$B$30,NA(),IF(A120>$A$8,"",OFFSET(InputPriceData!$D$15,CalculationsAndCharts!$A120+$A$11,IF($C$5,8,0),1,1))) -> 777.130005 | F120: =IF(A120>$B$30,NA(),IF(A120>$A$8,"",OFFSET(InputPriceData!$E$15,CalculationsAndCharts!$A120+$A$11,IF($C$5,8,0),1,1))) -> 769.619995 | G120: =IF(A120>$B$30,NA(),IF(A120>$A$8,"",OFFSET(InputPriceData!$F$15,CalculationsAndCharts!$A120+$A$11,IF($C$5,8,0),1,1))) -> 772.549988 | H120: 711.2736121 | I120: 753.2467599 | J120: 0 | K120: 2.440002 | L120: 2.646508123 | M120: 1.858621261 | N120: 1.748866226 | O120: 0.1077986755 | P120: 771.3502474 | Q120: 2.510406073 | R120: 1.894563099 | S120: 1.398064209 | T120: 0.02386133541 | U120: 740.8846955 | AX120: 0
A121: 89 | B121: =IF(A121>$B$30,NA(),IF($A121>$A$8,"",OFFSET(InputPriceData!$B$15,$A121+$A$11,0,1,1))) -> 2006-02-02 | C121: =IF(A121>$B$30,NA(),IF($A121>$A$8,"",OFFSET(InputPriceData!$G$15,CalculationsAndCharts!$A121+$A$11,IF($C$5,8,0),1,1))) -> 0 | D121: =IF(A121>$B$30,NA(),IF(A121>$A$8,"",OFFSET(InputPriceData!$C$15,CalculationsAndCharts!$A121+$A$11,IF($C$5,8,0),1,1))) -> 781.929993 | E121: =IF(A121>$B$30,NA(),IF(A121>$A$8,"",OFFSET(InputPriceData!$D$15,CalculationsAndCharts!$A121+$A$11,IF($C$5,8,0),1,1))) -> 781.950012 | F121: =IF(A121>$B$30,NA(),IF(A121>$A$8,"",OFFSET(InputPriceData!$E$15,CalculationsAndCharts!$A121+$A$11,IF($C$5,8,0),1,1))) -> 771.97998 | G121: =IF(A121>$B$30,NA(),IF(A121>$A$8,"",OFFSET(InputPriceData!$F$15,CalculationsAndCharts!$A121+$A$11,IF($C$5,8,0),1,1))) -> 774.98999 | H121: 710.6577691 | I121: 752.458873 | J121: 0 | K121: 6.940003 | L121: 2.754528863 | M121: 1.834891435 | N121: 2.003820458 | O121: 0.1177968807 | P121: 771.2052908 | Q121: 2.535636285 | R121: 1.889081301 | S121: 1.461234466 | T121: 0.02448989518 | U121: 740.1106496 | AX121: 0
A122: 90 | B122: =IF(A122>$B$30,NA(),IF($A122>$A$8,"",OFFSET(InputPriceData!$B$15,$A122+$A$11,0,1,1))) -> 2006-02-01 | C122: =IF(A122>$B$30,NA(),IF($A122>$A$8,"",OFFSET(InputPriceData!$G$15,CalculationsAndCharts!$A122+$A$11,IF($C$5,8,0),1,1))) -> 0 | D122: =IF(A122>$B$30,NA(),IF(A122>$A$8,"",OFFSET(InputPriceData!$C$15,CalculationsAndCharts!$A122+$A$11,IF($C$5,8,0),1,1))) -> 781.02002 | E122: =IF(A122>$B$30,NA(),IF(A122>$A$8,"",OFFSET(InputPriceData!$D$15,CalculationsAndCharts!$A122+$A$11,IF($C$5,8,0),1,1))) -> 784.47998 | F122: =IF(A122>$B$30,NA(),IF(A122>$A$8,"",OFFSET(InputPriceData!$E$15,CalculationsAndCharts!$A122+$A$11,IF($C$5,8,0),1,1))) -> 778.690002 | G122: =IF(A122>$B$30,NA(),IF(A122>$A$8,"",OFFSET(InputPriceData!$F$15,CalculationsAndCharts!$A122+$A$11,IF($C$5,8,0),1,1))) -> 781.929993 | H122: 710.0112141 | I122: 751.5392356 | J122: 0.909973 | K122: 0 | L122: 2.866958612 | M122: 1.626519534 | N122: 2.760532127 | O122: 0.1474718481 | P122: 770.6999358 | Q122: 2.561120067 | R122: 1.838318269 | S122: 1.642941081 | T122: 0.02629792121 | U122: 739.235014 | AW122: 0
A123: 91 | B123: =IF(A123>$B$30,NA(),IF($A123>$A$8,"",OFFSET(InputPriceData!$B$15,$A123+$A$11,0,1,1))) -> 2006-01-31 | C123: =IF(A123>$B$30,NA(),IF($A123>$A$8,"",OFFSET(InputPriceData!$G$15,CalculationsAndCharts!$A123+$A$11,IF($C$5,8,0),1,1))) -> 0 | D123: =IF(A123>$B$30,NA(),IF(A123>$A$8,"",OFFSET(InputPriceData!$C$15,CalculationsAndCharts!$A123+$A$11,IF($C$5,8,0),1,1))) -> 776.559998 | E123: =IF(A123>$B$30,NA(),IF(A123>$A$8,"",OFFSET(InputPriceData!$D$15,CalculationsAndCharts!$A123+$A$11,IF($C$5,8,0),1,1))) -> 781.73999 | F123: =IF(A123>$B$30,NA(),IF(A123>$A$8,"",OFFSET(InputPriceData!$E$15,CalculationsAndCharts!$A123+$A$11,IF($C$5,8,0),1,1))) -> 773.659973 | G123: =IF(A123>$B$30,NA(),IF(A123>$A$8,"",OFFSET(InputPriceData!$F$15,CalculationsAndCharts!$A123+$A$11,IF($C$5,8,0),1,1))) -> 781.02002 | H123: 709.2884123 | I123: 750.2987965 | J123: 4.460022 | K123: 0 | L123: 2.946835576 | M123: 1.692908087 | N123: 2.702579239 | O123: 0.1451991858 | P123: 768.7573404 | Q123: 2.57771451 | R123: 1.856793829 | S123: 1.625705997 | T123: 0.02612642783 | U123: 738.0819003 | AW123: 0
A124: 92 | B124: =IF(A124>$B$30,NA(),IF($A124>$A$8,"",OFFSET(InputPriceData!$B$15,$A124+$A$11,0,1,1))) -> 2006-01-30 | C124: =IF(A124>$B$30,NA(),IF($A124>$A$8,"",OFFSET(InputPriceData!$G$15,CalculationsAndCharts!$A124+$A$11,IF($C$5,8,0),1,1))) -> 0 | D124: =IF(A124>$B$30,NA(),IF(A124>$A$8,"",OFFSET(InputPriceData!$C$15,CalculationsAndCharts!$A124+$A$11,IF($C$5,8,0),1,1))) -> 775.27002 | E124: =IF(A124>$B$30,NA(),IF(A124>$A$8,"",OFFSET(InputPriceData!$D$15,CalculationsAndCharts!$A124+$A$11,IF($C$5,8,0),1,1))) -> 779.099976 | F124: =IF(A124>$B$30,NA(),IF(A124>$A$8,"",OFFSET(InputPriceData!$E$15,CalculationsAndCharts!$A124+$A$11,IF($C$5,8,0),1,1))) -> 775.119995 | G124: =IF(A124>$B$30,NA(),IF(A124>$A$8,"",OFFSET(InputPriceData!$F$15,CalculationsAndCharts!$A124+$A$11,IF($C$5,8,0),1,1))) -> 776.559998 | H124: 708.5674917 | I124: 749.044869 | J124: 1.289978 | K124: 0 | L124: 2.885072865 | M124: 1.762006376 | N124: 2.416714739 | O124: 0.1339888133 | P124: 766.6743626 | Q124: 2.558796846 | R124: 1.875455074 | S124: 1.541053112 | T124: 0.02528411057 | U124: 736.9299852 | AW124: 0
A125: 93 | B125: =IF(A125>$B$30,NA(),IF($A125>$A$8,"",OFFSET(InputPriceData!$B$15,$A125+$A$11,0,1,1))) -> 2006-01-27 | C125: =IF(A125>$B$30,NA(),IF($A125>$A$8,"",OFFSET(InputPriceData!$G$15,CalculationsAndCharts!$A125+$A$11,IF($C$5,8,0),1,1))) -> 0 | D125: =IF(A125>$B$30,NA(),IF(A125>$A$8,"",OFFSET(InputPriceData!$C$15,CalculationsAndCharts!$A125+$A$11,IF($C$5,8,0),1,1))) -> 771.75 | E125: =IF(A125>$B$30,NA(),IF(A125>$A$8,"",OFFSET(InputPriceData!$D$15,CalculationsAndCharts!$A125+$A$11,IF($C$5,8,0),1,1))) -> 779.609985 | F125: =IF(A125>$B$30,NA(),IF(A125>$A$8,"",OFFSET(InputPriceData!$E$15,CalculationsAndCharts!$A125+$A$11,IF($C$5,8,0),1,1))) -> 770.929993 | G125: =IF(A125>$B$30,NA(),IF(A125>$A$8,"",OFFSET(InputPriceData!$F$15,CalculationsAndCharts!$A125+$A$11,IF($C$5,8,0),1,1))) -> 775.27002 | H125: 707.8841499 | I125: 747.9218025 | J125: 3.52002 | K125: 0 | L125: 2.950178778 | M125: 1.833925003 | N125: 2.333255769 | O125: 0.1307159125 | P125: 765.1448621 | Q125: 2.571548795 | R125: 1.894303869 | S125: 1.516496349 | T125: 0.02503976466 | U125: 735.9019834 | AW125: 0
A126: 94 | B126: =IF(A126>$B$30,NA(),IF($A126>$A$8,"",OFFSET(InputPriceData!$B$15,$A126+$A$11,0,1,1))) -> 2006-01-26 | C126: =IF(A126>$B$30,NA(),IF($A126>$A$8,"",OFFSET(InputPriceData!$G$15,CalculationsAndCharts!$A126+$A$11,IF($C$5,8,0),1,1))) -> 0 | D126: =IF(A126>$B$30,NA(),IF(A126>$A$8,"",OFFSET(InputPriceData!$C$15,CalculationsAndCharts!$A126+$A$11,IF($C$5,8,0),1,1))) -> 762.960022 | E126: =IF(A126>$B$30,NA(),IF(A126>$A$8,"",OFFSET(InputPriceData!$D$15,CalculationsAndCharts!$A126+$A$11,IF($C$5,8,0),1,1))) -> 772.140015 | F126: =IF(A126>$B$30,NA(),IF(A126>$A$8,"",OFFSET(InputPriceData!$E$15,CalculationsAndCharts!$A126+$A$11,IF($C$5,8,0),1,1))) -> 762.960022 | G126: =IF(A126>$B$30,NA(),IF(A126>$A$8,"",OFFSET(InputPriceData!$F$15,CalculationsAndCharts!$A126+$A$11,IF($C$5,8,0),1,1))) -> 771.75 | H126: 707.206905 | I126: 746.8055487 | J126: 8.789978 | K126: 0 | L126: 2.926919952 | M126: 1.908779085 | N126: 2.105467812 | O126: 0.1217830515 | P126: 763.6223227 | Q126: 2.562016421 | R126: 1.913342099 | S126: 1.449435435 | T126: 0.02437249189 | U126: 734.8908998 | AW126: 0
A127: 95 | B127: =IF(A127>$B$30,NA(),IF($A127>$A$8,"",OFFSET(InputPriceData!$B$15,$A127+$A$11,0,1,1))) -> 2006-01-25 | C127: =IF(A127>$B$30,NA(),IF($A127>$A$8,"",OFFSET(InputPriceData!$G$15,CalculationsAndCharts!$A127+$A$11,IF($C$5,8,0),1,1))) -> 0 | D127: =IF(A127>$B$30,NA(),IF(A127>$A$8,"",OFFSET(InputPriceData!$C$15,CalculationsAndCharts!$A127+$A$11,IF($C$5,8,0),1,1))) -> 767.950012 | E127: =IF(A127>$B$30,NA(),IF(A127>$A$8,"",OFFSET(InputPriceData!$D$15,CalculationsAndCharts!$A127+$A$11,IF($C$5,8,0),1,1))) -> 771.059998 | F127: =IF(A127>$B$30,NA(),IF(A127>$A$8,"",OFFSET(InputPriceData!$E$15,CalculationsAndCharts!$A127+$A$11,IF($C$5,8,0),1,1))) -> 759.940002 | G127: =IF(A127>$B$30,NA(),IF(A127>$A$8,"",OFFSET(InputPriceData!$F$15,CalculationsAndCharts!$A127+$A$11,IF($C$5,8,0),1,1))) -> 762.960022 | H127: 706.5582306 | I127: 745.7874079 | J127: 0 | K127: 4.98999 | L127: 2.687611461 | M127: 1.986688436 | N127: 1.49952515 | O127: 0.09802059411 | P127: 762.4952512 | Q127: 2.499423842 | R127: 1.932571667 | S127: 1.278999885 | T127: 0.02267661577 | U127: 733.9701097 | AX127: 0
A128: 96 | B128: =IF(A128>$B$30,NA(),IF($A128>$A$8,"",OFFSET(InputPriceData!$B$15,$A128+$A$11,0,1,1))) -> 2006-01-24 | C128: =IF(A128>$B$30,NA(),IF($A128>$A$8,"",OFFSET(InputPriceData!$G$15,CalculationsAndCharts!$A128+$A$11,IF($C$5,8,0),1,1))) -> 0 | D128: =IF(A128>$B$30,NA(),IF(A128>$A$8,"",OFFSET(InputPriceData!$C$15,CalculationsAndCharts!$A128+$A$11,IF($C$5,8,0),1,1))) -> 761.340027 | E128: =IF(A128>$B$30,NA(),IF(A128>$A$8,"",OFFSET(InputPriceData!$D$15,CalculationsAndCharts!$A128+$A$11,IF($C$5,8,0),1,1))) -> 768.849976 | F128: =IF(A128>$B$30,NA(),IF(A128>$A$8,"",OFFSET(InputPriceData!$E$15,CalculationsAndCharts!$A128+$A$11,IF($C$5,8,0),1,1))) -> 761.340027 | G128: =IF(A128>$B$30,NA(),IF(A128>$A$8,"",OFFSET(InputPriceData!$F$15,CalculationsAndCharts!$A128+$A$11,IF($C$5,8,0),1,1))) -> 767.950012 | H128: 705.9913785 | I128: 745.0864849 | J128: 6.609985 | K128: 0 | L128: 2.797309888 | M128: 1.864104698 | N128: 2.001978525 | O128: 0.117724648 | P128: 762.4447432 | Q128: 2.524543679 | R128: 1.901843845 | S128: 1.406790145 | T128: 0.02394816064 | U128: 733.2974633 | AW128: 0
A129: 97 | B129: =IF(A129>$B$30,NA(),IF($A129>$A$8,"",OFFSET(InputPriceData!$B$15,$A129+$A$11,0,1,1))) -> 2006-01-23 | C129: =IF(A129>$B$30,NA(),IF($A129>$A$8,"",OFFSET(InputPriceData!$G$15,CalculationsAndCharts!$A129+$A$11,IF($C$5,8,0),1,1))) -> 0 | D129: =IF(A129>$B$30,NA(),IF(A129>$A$8,"",OFFSET(InputPriceData!$C$15,CalculationsAndCharts!$A129+$A$11,IF($C$5,8,0),1,1))) -> 758.609985 | E129: =IF(A129>$B$30,NA(),IF(A129>$A$8,"",OFFSET(InputPriceData!$D$15,CalculationsAndCharts!$A129+$A$11,IF($C$5,8,0),1,1))) -> 763.02002 | F129: =IF(A129>$B$30,NA(),IF(A129>$A$8,"",OFFSET(InputPriceData!$E$15,CalculationsAndCharts!$A129+$A$11,IF($C$5,8,0),1,1))) -> 758.140015 | G129: =IF(A129>$B$30,NA(),IF(A129>$A$8,"",OFFSET(InputPriceData!$F$15,CalculationsAndCharts!$A129+$A$11,IF($C$5,8,0),1,1))) -> 761.340027 | H129: 705.3686786 | I129: 744.1532797 | J129: 2.730042 | K129: 0 | L129: 2.641690495 | M129: 1.940190604 | N129: 1.531030326 | O129: 0.0992560912 | P129: 761.7101587 | Q129: 2.483483968 | R129: 1.920957853 | S129: 1.277179123 | T129: 0.02265849874 | U129: 732.4472371 | AW129: 0
A130: 98 | B130: =IF(A130>$B$30,NA(),IF($A130>$A$8,"",OFFSET(InputPriceData!$B$15,$A130+$A$11,0,1,1))) -> 2006-01-20 | C130: =IF(A130>$B$30,NA(),IF($A130>$A$8,"",OFFSET(InputPriceData!$G$15,CalculationsAndCharts!$A130+$A$11,IF($C$5,8,0),1,1))) -> 0 | D130: =IF(A130>$B$30,NA(),IF(A130>$A$8,"",OFFSET(InputPriceData!$C$15,CalculationsAndCharts!$A130+$A$11,IF($C$5,8,0),1,1))) -> 771.47998 | E130: =IF(A130>$B$30,NA(),IF(A130>$A$8,"",OFFSET(InputPriceData!$D$15,CalculationsAndCharts!$A130+$A$11,IF($C$5,8,0),1,1))) -> 771.799988 | F130: =IF(A130>$B$30,NA(),IF(A130>$A$8,"",OFFSET(InputPriceData!$E$15,CalculationsAndCharts!$A130+$A$11,IF($C$5,8,0),1,1))) -> 758.609985 | G130: =IF(A130>$B$30,NA(),IF(A130>$A$8,"",OFFSET(InputPriceData!$F$15,CalculationsAndCharts!$A130+$A$11,IF($C$5,8,0),1,1))) -> 758.609985 | H130: 704.8061525 | I130: 743.4517798 | J130: 0 | K130: 12.869995 | L130: 2.638084312 | M130: 2.019382057 | N130: 1.328409494 | O130: 0.09131017622 | P130: 761.7509448 | Q130: 2.481005998 | R130: 1.940263963 | S130: 1.223046862 | T130: 0.02211986927 | U130: 731.7773922 | AX130: 0
A131: 99 | B131: =IF(A131>$B$30,NA(),IF($A131>$A$8,"",OFFSET(InputPriceData!$B$15,$A131+$A$11,0,1,1))) -> 2006-01-19 | C131: =IF(A131>$B$30,NA(),IF($A131>$A$8,"",OFFSET(InputPriceData!$G$15,CalculationsAndCharts!$A131+$A$11,IF($C$5,8,0),1,1))) -> 0 | D131: =IF(A131>$B$30,NA(),IF(A131>$A$8,"",OFFSET(InputPriceData!$C$15,CalculationsAndCharts!$A131+$A$11,IF($C$5,8,0),1,1))) -> 761.799988 | E131: =IF(A131>$B$30,NA(),IF(A131>$A$8,"",OFFSET(InputPriceData!$D$15,CalculationsAndCharts!$A131+$A$11,IF($C$5,8,0),1,1))) -> 772.039978 | F131: =IF(A131>$B$30,NA(),IF(A131>$A$8,"",OFFSET(InputPriceData!$E$15,CalculationsAndCharts!$A131+$A$11,IF($C$5,8,0),1,1))) -> 761.799988 | G131: =IF(A131>$B$30,NA(),IF(A131>$A$8,"",OFFSET(InputPriceData!$F$15,CalculationsAndCharts!$A131+$A$11,IF($C$5,8,0),1,1))) -> 771.47998 | H131: 704.2654105 | I131: 742.8330775 | J131: 9.679992 | K131: 0 | L131: 2.745761222 | M131: 1.576499897 | N131: 2.705207514 | O131: 0.1453022555 | P131: 762.0665658 | Q131: 2.505940731 | R131: 1.830417419 | S131: 1.557812543 | T131: 0.02545087107 | U131: 731.1704329 | AW131: 0
A132: 100 | B132: =IF(A132>$B$30,NA(),IF($A132>$A$8,"",OFFSET(InputPriceData!$B$15,$A132+$A$11,0,1,1))) -> 2006-01-18 | C132: =IF(A132>$B$30,NA(),IF($A132>$A$8,"",OFFSET(InputPriceData!$G$15,CalculationsAndCharts!$A132+$A$11,IF($C$5,8,0),1,1))) -> 0 | D132: =IF(A132>$B$30,NA(),IF(A132>$A$8,"",OFFSET(InputPriceData!$C$15,CalculationsAndCharts!$A132+$A$11,IF($C$5,8,0),1,1))) -> 763.440002 | E132: =IF(A132>$B$30,NA(),IF(A132>$A$8,"",OFFSET(InputPriceData!$D$15,CalculationsAndCharts!$A132+$A$11,IF($C$5,8,0),1,1))) -> 764.409973 | F132: =IF(A132>$B$30,NA(),IF(A132>$A$8,"",OFFSET(InputPriceData!$E$15,CalculationsAndCharts!$A132+$A$11,IF($C$5,8,0),1,1))) -> 757.47998 | G132: =IF(A132>$B$30,NA(),IF(A132>$A$8,"",OFFSET(InputPriceData!$F$15,CalculationsAndCharts!$A132+$A$11,IF($C$5,8,0),1,1))) -> 761.799988 | H132: 703.5898872 | I132: 741.6638162 | J132: 0 | K132: 1.640014 | L132: 2.462731395 | M132: 1.640846831 | N132: 2.002848534 | O132: 0.117758766 | P132: 760.4662453 | Q132: 2.433839713 | R132: 1.848813574 | S132: 1.366036659 | T132: 0.02354265333 | U132: 730.1177275 | AX132: 0
A133: 101 | B133: =IF(A133>$B$30,NA(),IF($A133>$A$8,"",OFFSET(InputPriceData!$B$15,$A133+$A$11,0,1,1))) -> 2006-01-17 | C133: =IF(A133>$B$30,NA(),IF($A133>$A$8,"",OFFSET(InputPriceData!$G$15,CalculationsAndCharts!$A133+$A$11,IF($C$5,8,0),1,1))) -> 0 | D133: =IF(A133>$B$30,NA(),IF(A133>$A$8,"",OFFSET(InputPriceData!$C$15,CalculationsAndCharts!$A133+$A$11,IF($C$5,8,0),1,1))) -> 766.72998 | E133: =IF(A133>$B$30,NA(),IF(A133>$A$8,"",OFFSET(InputPriceData!$D$15,CalculationsAndCharts!$A133+$A$11,IF($C$5,8,0),1,1))) -> 766.72998 | F133: =IF(A133>$B$30,NA(),IF(A133>$A$8,"",OFFSET(InputPriceData!$E$15,CalculationsAndCharts!$A133+$A$11,IF($C$5,8,0),1,1))) -> 759.820007 | G133: =IF(A133>$B$30,NA(),IF(A133>$A$8,"",OFFSET(InputPriceData!$F$15,CalculationsAndCharts!$A133+$A$11,IF($C$5,8,0),1,1))) -> 763.440002 | H133: 703.004861 | I133: 740.8419316 | J133: 0 | K133: 3.289978 | L133: 2.563251043 | M133: 1.640880824 | N133: 2.193961198 | O133: 0.1252533803 | P133: 760.2882216 | Q133: 2.458300414 | R133: 1.850912063 | S133: 1.409511262 | T133: 0.02397523643 | U133: 729.3538596 | AX133: 0
A134: 102 | B134: =IF(A134>$B$30,NA(),IF($A134>$A$8,"",OFFSET(InputPriceData!$B$15,$A134+$A$11,0,1,1))) -> 2006-01-13 | C134: =IF(A134>$B$30,NA(),IF($A134>$A$8,"",OFFSET(InputPriceData!$G$15,CalculationsAndCharts!$A134+$A$11,IF($C$5,8,0),1,1))) -> 0 | D134: =IF(A134>$B$30,NA(),IF(A134>$A$8,"",OFFSET(InputPriceData!$C$15,CalculationsAndCharts!$A134+$A$11,IF($C$5,8,0),1,1))) -> 767.039978 | E134: =IF(A134>$B$30,NA(),IF(A134>$A$8,"",OFFSET(InputPriceData!$D$15,CalculationsAndCharts!$A134+$A$11,IF($C$5,8,0),1,1))) -> 768.679993 | F134: =IF(A134>$B$30,NA(),IF(A134>$A$8,"",OFFSET(InputPriceData!$E$15,CalculationsAndCharts!$A134+$A$11,IF($C$5,8,0),1,1))) -> 765.359985 | G134: =IF(A134>$B$30,NA(),IF(A134>$A$8,"",OFFSET(InputPriceData!$F$15,CalculationsAndCharts!$A134+$A$11,IF($C$5,8,0),1,1))) -> 766.72998 | H134: 702.3974727 | I134: 739.9195614 | J134: 0 | K134: 0.309998 | L134: 2.667873535 | M134: 1.573570735 | N134: 2.580023996 | O134: 0.1403930979 | P134: 759.8369238 | Q134: 2.483006951 | R134: 1.836449088 | S134: 1.496850198 | T134: 0.02484428057 | U134: 728.5165618 | AX134: 0
A135: 103 | B135: =IF(A135>$B$30,NA(),IF($A135>$A$8,"",OFFSET(InputPriceData!$B$15,$A135+$A$11,0,1,1))) -> 2006-01-12 | C135: =IF(A135>$B$30,NA(),IF($A135>$A$8,"",OFFSET(InputPriceData!$G$15,CalculationsAndCharts!$A135+$A$11,IF($C$5,8,0),1,1))) -> 0 | D135: =IF(A135>$B$30,NA(),IF(A135>$A$8,"",OFFSET(InputPriceData!$C$15,CalculationsAndCharts!$A135+$A$11,IF($C$5,8,0),1,1))) -> 772.409973 | E135: =IF(A135>$B$30,NA(),IF(A135>$A$8,"",OFFSET(InputPriceData!$D$15,CalculationsAndCharts!$A135+$A$11,IF($C$5,8,0),1,1))) -> 773.02002 | F135: =IF(A135>$B$30,NA(),IF(A135>$A$8,"",OFFSET(InputPriceData!$E$15,CalculationsAndCharts!$A135+$A$11,IF($C$5,8,0),1,1))) -> 766.51001 | G135: =IF(A135>$B$30,NA(),IF(A135>$A$8,"",OFFSET(InputPriceData!$F$15,CalculationsAndCharts!$A135+$A$11,IF($C$5,8,0),1,1))) -> 767.039978 | H135: 701.7509148 | I135: 738.8252586 | J135: 0 | K135: 5.369995 | L135: 2.776766332 | M135: 1.625145133 | N135: 2.616184375 | O135: 0.141811152 | P135: 758.7111331 | Q135: 2.507961795 | R135: 1.851790305 | S135: 1.505066055 | T135: 0.0249260304 | U135: 727.5429892 | AX135: 0
A136: 104 | B136: =IF(A136>$B$30,NA(),IF($A136>$A$8,"",OFFSET(InputPriceData!$B$15,$A136+$A$11,0,1,1))) -> 2006-01-11 | C136: =IF(A136>$B$30,NA(),IF($A136>$A$8,"",OFFSET(InputPriceData!$G$15,CalculationsAndCharts!$A136+$A$11,IF($C$5,8,0),1,1))) -> 0 | D136: =IF(A136>$B$30,NA(),IF(A136>$A$8,"",OFFSET(InputPriceData!$C$15,CalculationsAndCharts!$A136+$A$11,IF($C$5,8,0),1,1))) -> 771.340027 | E136: =IF(A136>$B$30,NA(),IF(A136>$A$8,"",OFFSET(InputPriceData!$D$15,CalculationsAndCharts!$A136+$A$11,IF($C$5,8,0),1,1))) -> 773.090027 | F136: =IF(A136>$B$30,NA(),IF(A136>$A$8,"",OFFSET(InputPriceData!$E$15,CalculationsAndCharts!$A136+$A$11,IF($C$5,8,0),1,1))) -> 768.929993 | G136: =IF(A136>$B$30,NA(),IF(A136>$A$8,"",OFFSET(InputPriceData!$F$15,CalculationsAndCharts!$A136+$A$11,IF($C$5,8,0),1,1))) -> 772.409973 | H136: 701.0947433 | I136: 737.6736374 | J136: 1.069946 | K136: 0 | L136: 2.890103733 | M136: 1.472294118 | N136: 3.250069489 | O136: 0.1666693917 | P136: 757.3348357 | Q136: 2.533167441 | R136: 1.816431464 | S136: 1.64782085 | T136: 0.02634647612 | U136: 726.533319 | AW136: 0
A137: 105 | B137: =IF(A137>$B$30,NA(),IF($A137>$A$8,"",OFFSET(InputPriceData!$B$15,$A137+$A$11,0,1,1))) -> 2006-01-10 | C137: =IF(A137>$B$30,NA(),IF($A137>$A$8,"",OFFSET(InputPriceData!$G$15,CalculationsAndCharts!$A137+$A$11,IF($C$5,8,0),1,1))) -> 0 | D137: =IF(A137>$B$30,NA(),IF(A137>$A$8,"",OFFSET(InputPriceData!$C$15,CalculationsAndCharts!$A137+$A$11,IF($C$5,8,0),1,1))) -> 768.710022 | E137: =IF(A137>$B$30,NA(),IF(A137>$A$8,"",OFFSET(InputPriceData!$D$15,CalculationsAndCharts!$A137+$A$11,IF($C$5,8,0),1,1))) -> 771.359985 | F137: =IF(A137>$B$30,NA(),IF(A137>$A$8,"",OFFSET(InputPriceData!$E$15,CalculationsAndCharts!$A137+$A$11,IF($C$5,8,0),1,1))) -> 764.77002 | G137: =IF(A137>$B$30,NA(),IF(A137>$A$8,"",OFFSET(InputPriceData!$F$15,CalculationsAndCharts!$A137+$A$11,IF($C$5,8,0),1,1))) -> 771.340027 | H137: 700.3780073 | I137: 736.2558278 | J137: 2.630005 | K137: 0 | L137: 2.964395886 | M137: 1.532387755 | N137: 3.184516412 | O137: 0.1640986828 | P137: 754.319749 | Q137: 2.547873184 | R137: 1.834687057 | S137: 1.627327608 | T137: 0.02614256326 | U137: 725.2919245 | AW137: 0
A138: 106 | B138: =IF(A138>$B$30,NA(),IF($A138>$A$8,"",OFFSET(InputPriceData!$B$15,$A138+$A$11,0,1,1))) -> 2006-01-09 | C138: =IF(A138>$B$30,NA(),IF($A138>$A$8,"",OFFSET(InputPriceData!$G$15,CalculationsAndCharts!$A138+$A$11,IF($C$5,8,0),1,1))) -> 0 | D138: =IF(A138>$B$30,NA(),IF(A138>$A$8,"",OFFSET(InputPriceData!$C$15,CalculationsAndCharts!$A138+$A$11,IF($C$5,8,0),1,1))) -> 762.780029 | E138: =IF(A138>$B$30,NA(),IF(A138>$A$8,"",OFFSET(InputPriceData!$D$15,CalculationsAndCharts!$A138+$A$11,IF($C$5,8,0),1,1))) -> 769.789978 | F138: =IF(A138>$B$30,NA(),IF(A138>$A$8,"",OFFSET(InputPriceData!$E$15,CalculationsAndCharts!$A138+$A$11,IF($C$5,8,0),1,1))) -> 762.780029 | G138: =IF(A138>$B$30,NA(),IF(A138>$A$8,"",OFFSET(InputPriceData!$F$15,CalculationsAndCharts!$A138+$A$11,IF($C$5,8,0),1,1))) -> 768.710022 | H138: 699.6648212 | I138: 734.8238197 | J138: 5.929993 | K138: 0 | L138: 2.978044493 | M138: 1.594934194 | N138: 3.024528199 | O138: 0.1578246352 | P138: 750.9784393 | Q138: 2.547047739 | R138: 1.853126123 | S138: 1.577032267 | T138: 0.02564211211 | U138: 724.0557934 | AW138: 0
A139: 107 | B139: =IF(A139>$B$30,NA(),IF($A139>$A$8,"",OFFSET(InputPriceData!$B$15,$A139+$A$11,0,1,1))) -> 2006-01-06 | C139: =IF(A139>$B$30,NA(),IF($A139>$A$8,"",OFFSET(InputPriceData!$G$15,CalculationsAndCharts!$A139+$A$11,IF($C$5,8,0),1,1))) -> 0 | D139: =IF(A139>$B$30,NA(),IF(A139>$A$8,"",OFFSET(InputPriceData!$C$15,CalculationsAndCharts!$A139+$A$11,IF($C$5,8,0),1,1))) -> 754.299988 | E139: =IF(A139>$B$30,NA(),IF(A139>$A$8,"",OFFSET(InputPriceData!$D$15,CalculationsAndCharts!$A139+$A$11,IF($C$5,8,0),1,1))) -> 763.030029 | F139: =IF(A139>$B$30,NA(),IF(A139>$A$8,"",OFFSET(InputPriceData!$E$15,CalculationsAndCharts!$A139+$A$11,IF($C$5,8,0),1,1))) -> 754.210022 | G139: =IF(A139>$B$30,NA(),IF(A139>$A$8,"",OFFSET(InputPriceData!$F$15,CalculationsAndCharts!$A139+$A$11,IF($C$5,8,0),1,1))) -> 762.780029 | H139: 698.9708996 | I139: 733.4407094 | J139: 8.480041 | K139: 0 | L139: 2.857556799 | M139: 1.660033549 | N139: 2.650800887 | O139: 0.1431686622 | P139: 747.6555202 | Q139: 2.513048289 | R139: 1.871750506 | S139: 1.4625478 | T139: 0.02450296318 | U139: 722.880631 | AW139: 0
A140: 108 | B140: =IF(A140>$B$30,NA(),IF($A140>$A$8,"",OFFSET(InputPriceData!$B$15,$A140+$A$11,0,1,1))) -> 2006-01-05 | C140: =IF(A140>$B$30,NA(),IF($A140>$A$8,"",OFFSET(InputPriceData!$G$15,CalculationsAndCharts!$A140+$A$11,IF($C$5,8,0),1,1))) -> 0 | D140: =IF(A140>$B$30,NA(),IF(A140>$A$8,"",OFFSET(InputPriceData!$C$15,CalculationsAndCharts!$A140+$A$11,IF($C$5,8,0),1,1))) -> 754.080017 | E140: =IF(A140>$B$30,NA(),IF(A140>$A$8,"",OFFSET(InputPriceData!$D$15,CalculationsAndCharts!$A140+$A$11,IF($C$5,8,0),1,1))) -> 755.47998 | F140: =IF(A140>$B$30,NA(),IF(A140>$A$8,"",OFFSET(InputPriceData!$E$15,CalculationsAndCharts!$A140+$A$11,IF($C$5,8,0),1,1))) -> 751.25 | G140: =IF(A140>$B$30,NA(),IF(A140>$A$8,"",OFFSET(InputPriceData!$F$15,CalculationsAndCharts!$A140+$A$11,IF($C$5,8,0),1,1))) -> 754.299988 | H140: 698.3296018 | I140: 732.2431861 | J140: 0.219971 | K140: 0 | L140: 2.628067648 | M140: 1.72779002 | N140: 2.066820581 | O140: 0.1202674738 | P140: 745.1283535 | Q140: 2.453078513 | R140: 1.890562069 | S140: 1.295034507 | T140: 0.02283616425 | U140: 721.8784204 | AW140: 0
A141: 109 | B141: =IF(A141>$B$30,NA(),IF($A141>$A$8,"",OFFSET(InputPriceData!$B$15,$A141+$A$11,0,1,1))) -> 2006-01-04 | C141: =IF(A141>$B$30,NA(),IF($A141>$A$8,"",OFFSET(InputPriceData!$G$15,CalculationsAndCharts!$A141+$A$11,IF($C$5,8,0),1,1))) -> 0 | D141: =IF(A141>$B$30,NA(),IF(A141>$A$8,"",OFFSET(InputPriceData!$C$15,CalculationsAndCharts!$A141+$A$11,IF($C$5,8,0),1,1))) -> 749.02002 | E141: =IF(A141>$B$30,NA(),IF(A141>$A$8,"",OFFSET(InputPriceData!$D$15,CalculationsAndCharts!$A141+$A$11,IF($C$5,8,0),1,1))) -> 754.369995 | F141: =IF(A141>$B$30,NA(),IF(A141>$A$8,"",OFFSET(InputPriceData!$E$15,CalculationsAndCharts!$A141+$A$11,IF($C$5,8,0),1,1))) -> 748.169983 | G141: =IF(A141>$B$30,NA(),IF(A141>$A$8,"",OFFSET(InputPriceData!$F$15,CalculationsAndCharts!$A141+$A$11,IF($C$5,8,0),1,1))) -> 754.080017 | H141: 697.7670854 | I141: 731.3429085 | J141: 5.059997 | K141: 0 | L141: 2.726357307 | M141: 1.798312062 | N141: 2.051078586 | O141: 0.1196501406 | P141: 743.8745072 | Q141: 2.475521804 | R141: 1.909562692 | S141: 1.290645852 | T141: 0.02279249604 | U141: 721.1207335 | AW141: 0
A142: 110 | B142: =IF(A142>$B$30,NA(),IF($A142>$A$8,"",OFFSET(InputPriceData!$B$15,$A142+$A$11,0,1,1))) -> 2006-01-03 | C142: =IF(A142>$B$30,NA(),IF($A142>$A$8,"",OFFSET(InputPriceData!$G$15,CalculationsAndCharts!$A142+$A$11,IF($C$5,8,0),1,1))) -> 0 | D142: =IF(A142>$B$30,NA(),IF(A142>$A$8,"",OFFSET(InputPriceData!$C$15,CalculationsAndCharts!$A142+$A$11,IF($C$5,8,0),1,1))) -> 738.049988 | E142: =IF(A142>$B$30,NA(),IF(A142>$A$8,"",OFFSET(InputPriceData!$D$15,CalculationsAndCharts!$A142+$A$11,IF($C$5,8,0),1,1))) -> 750 | F142: =IF(A142>$B$30,NA(),IF(A142>$A$8,"",OFFSET(InputPriceData!$E$15,CalculationsAndCharts!$A142+$A$11,IF($C$5,8,0),1,1))) -> 732.570007 | G142: =IF(A142>$B$30,NA(),IF(A142>$A$8,"",OFFSET(InputPriceData!$F$15,CalculationsAndCharts!$A142+$A$11,IF($C$5,8,0),1,1))) -> 749.02002 | H142: 697.2011263 | I142: 730.4148632 | J142: 10.970032 | K142: 0 | L142: 2.631106708 | M142: 1.871712554 | N142: 1.686485975 | O142: 0.1053523912 | P142: 742.4874557 | Q142: 2.449547179 | R142: 1.928754277 | S142: 1.189486167 | T142: 0.02178593201 | U142: 720.3519875 | AW142: 0
A143: 111 | B143: =IF(A143>$B$30,NA(),IF($A143>$A$8,"",OFFSET(InputPriceData!$B$15,$A143+$A$11,0,1,1))) -> 2005-12-30 | C143: =IF(A143>$B$30,NA(),IF($A143>$A$8,"",OFFSET(InputPriceData!$G$15,CalculationsAndCharts!$A143+$A$11,IF($C$5,8,0),1,1))) -> 0 | D143: =IF(A143>$B$30,NA(),IF(A143>$A$8,"",OFFSET(InputPriceData!$C$15,CalculationsAndCharts!$A143+$A$11,IF($C$5,8,0),1,1))) -> 742.210022 | E143: =IF(A143>$B$30,NA(),IF(A143>$A$8,"",OFFSET(InputPriceData!$D$15,CalculationsAndCharts!$A143+$A$11,IF($C$5,8,0),1,1))) -> 744.130005 | F143: =IF(A143>$B$30,NA(),IF(A143>$A$8,"",OFFSET(InputPriceData!$E$15,CalculationsAndCharts!$A143+$A$11,IF($C$5,8,0),1,1))) -> 735.049988 | G143: =IF(A143>$B$30,NA(),IF(A143>$A$8,"",OFFSET(InputPriceData!$F$15,CalculationsAndCharts!$A143+$A$11,IF($C$5,8,0),1,1))) -> 738.049988 | H143: 696.6803334 | I143: 729.6554691 | J143: 0 | K143: 4.160034 | L143: 2.29074241 | M143: 1.948108985 | N143: 0.8083166708 | O143: 0.07091437925 | P143: 741.7181904 | Q143: 2.363914166 | R143: 1.948138742 | S143: 0.9642168877 | T143: 0.01954444664 | U143: 719.7135181 | AX143: 0
A144: 112 | B144: =IF(A144>$B$30,NA(),IF($A144>$A$8,"",OFFSET(InputPriceData!$B$15,$A144+$A$11,0,1,1))) -> 2005-12-29 | C144: =IF(A144>$B$30,NA(),IF($A144>$A$8,"",OFFSET(InputPriceData!$G$15,CalculationsAndCharts!$A144+$A$11,IF($C$5,8,0),1,1))) -> 0 | D144: =IF(A144>$B$30,NA(),IF(A144>$A$8,"",OFFSET(InputPriceData!$C$15,CalculationsAndCharts!$A144+$A$11,IF($C$5,8,0),1,1))) -> 744.130005 | E144: =IF(A144>$B$30,NA(),IF(A144>$A$8,"",OFFSET(InputPriceData!$D$15,CalculationsAndCharts!$A144+$A$11,IF($C$5,8,0),1,1))) -> 746.25 | F144: =IF(A144>$B$30,NA(),IF(A144>$A$8,"",OFFSET(InputPriceData!$E$15,CalculationsAndCharts!$A144+$A$11,IF($C$5,8,0),1,1))) -> 739.25 | G144: =IF(A144>$B$30,NA(),IF(A144>$A$8,"",OFFSET(InputPriceData!$F$15,CalculationsAndCharts!$A144+$A$11,IF($C$5,8,0),1,1))) -> 742.210022 | H144: 696.2645579 | I144: 729.3128357 | J144: 0 | K144: 1.919983 | L144: 2.3842421 | M144: 1.857826332 | N144: 1.240941246 | O144: 0.08788004887 | P144: 741.9981736 | Q144: 2.387672097 | R144: 1.925908639 | S144: 1.070487574 | T144: 0.02060186641 | U144: 719.347998 | AX144: 0
A145: 113 | B145: =IF(A145>$B$30,NA(),IF($A145>$A$8,"",OFFSET(InputPriceData!$B$15,$A145+$A$11,0,1,1))) -> 2005-12-28 | C145: =IF(A145>$B$30,NA(),IF($A145>$A$8,"",OFFSET(InputPriceData!$G$15,CalculationsAndCharts!$A145+$A$11,IF($C$5,8,0),1,1))) -> 0 | D145: =IF(A145>$B$30,NA(),IF(A145>$A$8,"",OFFSET(InputPriceData!$C$15,CalculationsAndCharts!$A145+$A$11,IF($C$5,8,0),1,1))) -> 739.25 | E145: =IF(A145>$B$30,NA(),IF(A145>$A$8,"",OFFSET(InputPriceData!$D$15,CalculationsAndCharts!$A145+$A$11,IF($C$5,8,0),1,1))) -> 748.47998 | F145: =IF(A145>$B$30,NA(),IF(A145>$A$8,"",OFFSET(InputPriceData!$E$15,CalculationsAndCharts!$A145+$A$11,IF($C$5,8,0),1,1))) -> 739.25 | G145: =IF(A145>$B$30,NA(),IF(A145>$A$8,"",OFFSET(InputPriceData!$F$15,CalculationsAndCharts!$A145+$A$11,IF($C$5,8,0),1,1))) -> 744.130005 | H145: 695.8027945 | I145: 728.7864199 | J145: 4.880005 | K145: 0 | L145: 2.481558104 | M145: 1.855289325 | N145: 1.444064588 | O145: 0.09584567012 | P145: 741.9777626 | Q145: 2.411668802 | R145: 1.925968193 | S145: 1.119735489 | T145: 0.02109189541 | U145: 718.8670901 | AW145: 0
A146: 114 | B146: =IF(A146>$B$30,NA(),IF($A146>$A$8,"",OFFSET(InputPriceData!$B$15,$A146+$A$11,0,1,1))) -> 2005-12-27 | C146: =IF(A146>$B$30,NA(),IF($A146>$A$8,"",OFFSET(InputPriceData!$G$15,CalculationsAndCharts!$A146+$A$11,IF($C$5,8,0),1,1))) -> 0 | D146: =IF(A146>$B$30,NA(),IF(A146>$A$8,"",OFFSET(InputPriceData!$C$15,CalculationsAndCharts!$A146+$A$11,IF($C$5,8,0),1,1))) -> 748.47998 | E146: =IF(A146>$B$30,NA(),IF(A146>$A$8,"",OFFSET(InputPriceData!$D$15,CalculationsAndCharts!$A146+$A$11,IF($C$5,8,0),1,1))) -> 750.309998 | F146: =IF(A146>$B$30,NA(),IF(A146>$A$8,"",OFFSET(InputPriceData!$E$15,CalculationsAndCharts!$A146+$A$11,IF($C$5,8,0),1,1))) -> 739.23999 | G146: =IF(A146>$B$30,NA(),IF(A146>$A$8,"",OFFSET(InputPriceData!$F$15,CalculationsAndCharts!$A146+$A$11,IF($C$5,8,0),1,1))) -> 739.25 | H146: 695.3170939 | I146: 728.1601511 | J146: 0 | K146: 9.22998 | L146: 2.383662313 | M146: 1.93101542 | N146: 1.049086215 | O146: 0.08035632215 | P146: 741.7496123 | Q146: 2.386861403 | R146: 1.945324658 | S146: 1.019200789 | T146: 0.02009155014 | U146: 718.3227665 | AX146: 0
A147: 115 | B147: =IF(A147>$B$30,NA(),IF($A147>$A$8,"",OFFSET(InputPriceData!$B$15,$A147+$A$11,0,1,1))) -> 2005-12-23 | C147: =IF(A147>$B$30,NA(),IF($A147>$A$8,"",OFFSET(InputPriceData!$G$15,CalculationsAndCharts!$A147+$A$11,IF($C$5,8,0),1,1))) -> 0 | D147: =IF(A147>$B$30,NA(),IF(A147>$A$8,"",OFFSET(InputPriceData!$C$15,CalculationsAndCharts!$A147+$A$11,IF($C$5,8,0),1,1))) -> 745.98999 | E147: =IF(A147>$B$30,NA(),IF(A147>$A$8,"",OFFSET(InputPriceData!$D$15,CalculationsAndCharts!$A147+$A$11,IF($C$5,8,0),1,1))) -> 749.090027 | F147: =IF(A147>$B$30,NA(),IF(A147>$A$8,"",OFFSET(InputPriceData!$E$15,CalculationsAndCharts!$A147+$A$11,IF($C$5,8,0),1,1))) -> 745.900024 | G147: =IF(A147>$B$30,NA(),IF(A147>$A$8,"",OFFSET(InputPriceData!$F$15,CalculationsAndCharts!$A147+$A$11,IF($C$5,8,0),1,1))) -> 748.47998 | H147: 694.8755571 | I147: 727.7075042 | J147: 2.48999 | K147: 0 | L147: 2.480954652 | M147: 1.633098498 | N147: 2.060877979 | O147: 0.1200344305 | P147: 741.9680226 | Q147: 2.41084996 | R147: 1.872112041 | S147: 1.257862942 | T147: 0.02246629793 | U147: 717.893685 | AW147: 0
A148: 116 | B148: =IF(A148>$B$30,NA(),IF($A148>$A$8,"",OFFSET(InputPriceData!$B$15,$A148+$A$11,0,1,1))) -> 2005-12-22 | C148: =IF(A148>$B$30,NA(),IF($A148>$A$8,"",OFFSET(InputPriceData!$G$15,CalculationsAndCharts!$A148+$A$11,IF($C$5,8,0),1,1))) -> 0 | D148: =IF(A148>$B$30,NA(),IF(A148>$A$8,"",OFFSET(InputPriceData!$C$15,CalculationsAndCharts!$A148+$A$11,IF($C$5,8,0),1,1))) -> 741.23999 | E148: =IF(A148>$B$30,NA(),IF(A148>$A$8,"",OFFSET(InputPriceData!$D$15,CalculationsAndCharts!$A148+$A$11,IF($C$5,8,0),1,1))) -> 746.039978 | F148: =IF(A148>$B$30,NA(),IF(A148>$A$8,"",OFFSET(InputPriceData!$E$15,CalculationsAndCharts!$A148+$A$11,IF($C$5,8,0),1,1))) -> 740.820007 | G148: =IF(A148>$B$30,NA(),IF(A148>$A$8,"",OFFSET(InputPriceData!$F$15,CalculationsAndCharts!$A148+$A$11,IF($C$5,8,0),1,1))) -> 745.98999 | H148: 694.3368192 | I148: 726.8596481 | J148: 4.75 | K148: 0 | L148: 2.480585862 | M148: 1.69975558 | N148: 1.867862455 | O148: 0.1124651943 | P148: 741.0797388 | Q148: 2.410054582 | R148: 1.890927238 | S148: 1.206997301 | T148: 0.02196017214 | U148: 717.1907314 | AW148: 0
A149: 117 | B149: =IF(A149>$B$30,NA(),IF($A149>$A$8,"",OFFSET(InputPriceData!$B$15,$A149+$A$11,0,1,1))) -> 2005-12-21 | C149: =IF(A149>$B$30,NA(),IF($A149>$A$8,"",OFFSET(InputPriceData!$G$15,CalculationsAndCharts!$A149+$A$11,IF($C$5,8,0),1,1))) -> 0 | D149: =IF(A149>$B$30,NA(),IF(A149>$A$8,"",OFFSET(InputPriceData!$C$15,CalculationsAndCharts!$A149+$A$11,IF($C$5,8,0),1,1))) -> 736.140015 | E149: =IF(A149>$B$30,NA(),IF(A149>$A$8,"",OFFSET(InputPriceData!$D$15,CalculationsAndCharts!$A149+$A$11,IF($C$5,8,0),1,1))) -> 743.72998 | F149: =IF(A149>$B$30,NA(),IF(A149>$A$8,"",OFFSET(InputPriceData!$E$15,CalculationsAndCharts!$A149+$A$11,IF($C$5,8,0),1,1))) -> 736.140015 | G149: =IF(A149>$B$30,NA(),IF(A149>$A$8,"",OFFSET(InputPriceData!$F$15,CalculationsAndCharts!$A149+$A$11,IF($C$5,8,0),1,1))) -> 741.23999 | H149: 693.8176919 | I149: 726.0788178 | J149: 5.099975 | K149: 0 | L149: 2.387956714 | M149: 1.769133358 | N149: 1.48859742 | O149: 0.09759205568 | P149: 740.4575296 | Q149: 2.386537543 | R149: 1.909931531 | S149: 1.109296967 | T149: 0.02098802952 | U149: 716.5440945 | AW149: 0
A150: 118 | B150: =IF(A150>$B$30,NA(),IF($A150>$A$8,"",OFFSET(InputPriceData!$B$15,$A150+$A$11,0,1,1))) -> 2005-12-20 | C150: =IF(A150>$B$30,NA(),IF($A150>$A$8,"",OFFSET(InputPriceData!$G$15,CalculationsAndCharts!$A150+$A$11,IF($C$5,8,0),1,1))) -> 0 | D150: =IF(A150>$B$30,NA(),IF(A150>$A$8,"",OFFSET(InputPriceData!$C$15,CalculationsAndCharts!$A150+$A$11,IF($C$5,8,0),1,1))) -> 733.909973 | E150: =IF(A150>$B$30,NA(),IF(A150>$A$8,"",OFFSET(InputPriceData!$D$15,CalculationsAndCharts!$A150+$A$11,IF($C$5,8,0),1,1))) -> 739.02002 | F150: =IF(A150>$B$30,NA(),IF(A150>$A$8,"",OFFSET(InputPriceData!$E$15,CalculationsAndCharts!$A150+$A$11,IF($C$5,8,0),1,1))) -> 732.02002 | G150: =IF(A150>$B$30,NA(),IF(A150>$A$8,"",OFFSET(InputPriceData!$F$15,CalculationsAndCharts!$A150+$A$11,IF($C$5,8,0),1,1))) -> 736.140015 | H150: 693.3410859 | I150: 725.4599944 | J150: 2.230042 | K150: 0 | L150: 2.27726209 | M150: 1.841342883 | N150: 1.058414705 | O150: 0.08072214529 | P150: 740.3729094 | Q150: 2.359266815 | R150: 1.929126823 | S150: 1.003032902 | T150: 0.01993067564 | U150: 716.0146646 | AW150: 0
A151: 119 | B151: =IF(A151>$B$30,NA(),IF($A151>$A$8,"",OFFSET(InputPriceData!$B$15,$A151+$A$11,0,1,1))) -> 2005-12-19 | C151: =IF(A151>$B$30,NA(),IF($A151>$A$8,"",OFFSET(InputPriceData!$G$15,CalculationsAndCharts!$A151+$A$11,IF($C$5,8,0),1,1))) -> 0 | D151: =IF(A151>$B$30,NA(),IF(A151>$A$8,"",OFFSET(InputPriceData!$C$15,CalculationsAndCharts!$A151+$A$11,IF($C$5,8,0),1,1))) -> 742.159973 | E151: =IF(A151>$B$30,NA(),IF(A151>$A$8,"",OFFSET(InputPriceData!$D$15,CalculationsAndCharts!$A151+$A$11,IF($C$5,8,0),1,1))) -> 742.76001 | F151: =IF(A151>$B$30,NA(),IF(A151>$A$8,"",OFFSET(InputPriceData!$E$15,CalculationsAndCharts!$A151+$A$11,IF($C$5,8,0),1,1))) -> 733.5 | G151: =IF(A151>$B$30,NA(),IF(A151>$A$8,"",OFFSET(InputPriceData!$F$15,CalculationsAndCharts!$A151+$A$11,IF($C$5,8,0),1,1))) -> 733.909973 | H151: 692.9109459 | I151: 725.0240752 | J151: 0 | K151: 8.25 | L151: 2.27918944 | M151: 1.916499735 | N151: 0.8644341603 | O151: 0.07311506511 | P151: 740.7446015 | Q151: 2.360565557 | R151: 1.948515033 | S151: 0.9562376833 | T151: 0.01946505158 | U151: 715.6053958 | AX151: 0
A152: 120 | B152: =IF(A152>$B$30,NA(),IF($A152>$A$8,"",OFFSET(InputPriceData!$B$15,$A152+$A$11,0,1,1))) -> 2005-12-16 | C152: =IF(A152>$B$30,NA(),IF($A152>$A$8,"",OFFSET(InputPriceData!$G$15,CalculationsAndCharts!$A152+$A$11,IF($C$5,8,0),1,1))) -> 0 | D152: =IF(A152>$B$30,NA(),IF(A152>$A$8,"",OFFSET(InputPriceData!$C$15,CalculationsAndCharts!$A152+$A$11,IF($C$5,8,0),1,1))) -> 745.98999 | E152: =IF(A152>$B$30,NA(),IF(A152>$A$8,"",OFFSET(InputPriceData!$D$15,CalculationsAndCharts!$A152+$A$11,IF($C$5,8,0),1,1))) -> 748 | F152: =IF(A152>$B$30,NA(),IF(A152>$A$8,"",OFFSET(InputPriceData!$E$15,CalculationsAndCharts!$A152+$A$11,IF($C$5,8,0),1,1))) -> 741.530029 | G152: =IF(A152>$B$30,NA(),IF(A152>$A$8,"",OFFSET(InputPriceData!$F$15,CalculationsAndCharts!$A152+$A$11,IF($C$5,8,0),1,1))) -> 742.159973 | H152: 692.4988953 | I152: 724.6613855 | J152: 0 | K152: 3.830017 | L152: 2.372217581 | M152: 1.657989521 | N152: 1.772186993 | O152: 0.1087132154 | P152: 741.2837346 | Q152: 2.384289833 | R152: 1.885183525 | S152: 1.169011412 | T152: 0.02158220311 | U152: 715.2420232 | AX152: 0
A153: 121 | B153: =IF(A153>$B$30,NA(),IF($A153>$A$8,"",OFFSET(InputPriceData!$B$15,$A153+$A$11,0,1,1))) -> 2005-12-15 | C153: =IF(A153>$B$30,NA(),IF($A153>$A$8,"",OFFSET(InputPriceData!$G$15,CalculationsAndCharts!$A153+$A$11,IF($C$5,8,0),1,1))) -> 0 | D153: =IF(A153>$B$30,NA(),IF(A153>$A$8,"",OFFSET(InputPriceData!$C$15,CalculationsAndCharts!$A153+$A$11,IF($C$5,8,0),1,1))) -> 749.609985 | E153: =IF(A153>$B$30,NA(),IF(A153>$A$8,"",OFFSET(InputPriceData!$D$15,CalculationsAndCharts!$A153+$A$11,IF($C$5,8,0),1,1))) -> 750.169983 | F153: =IF(A153>$B$30,NA(),IF(A153>$A$8,"",OFFSET(InputPriceData!$E$15,CalculationsAndCharts!$A153+$A$11,IF($C$5,8,0),1,1))) -> 741.780029 | G153: =IF(A153>$B$30,NA(),IF(A153>$A$8,"",OFFSET(InputPriceData!$F$15,CalculationsAndCharts!$A153+$A$11,IF($C$5,8,0),1,1))) -> 745.98999 | H153: 691.999789 | I153: 723.9471575 | J153: 0 | K153: 3.619995 | L153: 2.469042788 | M153: 1.569335338 | N153: 2.227893036 | O153: 0.1265840406 | P153: 741.1768569 | Q153: 2.408252545 | R153: 1.86563746 | S153: 1.269604703 | T153: 0.02258313137 | U153: 714.6482598 | AX153: 0
A154: 122 | B154: =IF(A154>$B$30,NA(),IF($A154>$A$8,"",OFFSET(InputPriceData!$B$15,$A154+$A$11,0,1,1))) -> 2005-12-14 | C154: =IF(A154>$B$30,NA(),IF($A154>$A$8,"",OFFSET(InputPriceData!$G$15,CalculationsAndCharts!$A154+$A$11,IF($C$5,8,0),1,1))) -> 0 | D154: =IF(A154>$B$30,NA(),IF(A154>$A$8,"",OFFSET(InputPriceData!$C$15,CalculationsAndCharts!$A154+$A$11,IF($C$5,8,0),1,1))) -> 746.289978 | E154: =IF(A154>$B$30,NA(),IF(A154>$A$8,"",OFFSET(InputPriceData!$D$15,CalculationsAndCharts!$A154+$A$11,IF($C$5,8,0),1,1))) -> 752 | F154: =IF(A154>$B$30,NA(),IF(A154>$A$8,"",OFFSET(InputPriceData!$E$15,CalculationsAndCharts!$A154+$A$11,IF($C$5,8,0),1,1))) -> 745.650024 | G154: =IF(A154>$B$30,NA(),IF(A154>$A$8,"",OFFSET(InputPriceData!$F$15,CalculationsAndCharts!$A154+$A$11,IF($C$5,8,0),1,1))) -> 749.609985 | H154: 691.4571739 | I154: 723.04745 | J154: 3.320007 | K154: 0 | L154: 2.569820045 | M154: 1.485634943 | N154: 2.67339942 | O154: 0.1440548792 | P154: 740.4792902 | Q154: 2.432456089 | R154: 1.848005726 | S154: 1.365390903 | T154: 0.02353622789 | U154: 713.9241119 | AW154: 0
A155: 123 | B155: =IF(A155>$B$30,NA(),IF($A155>$A$8,"",OFFSET(InputPriceData!$B$15,$A155+$A$11,0,1,1))) -> 2005-12-13 | C155: =IF(A155>$B$30,NA(),IF($A155>$A$8,"",OFFSET(InputPriceData!$G$15,CalculationsAndCharts!$A155+$A$11,IF($C$5,8,0),1,1))) -> 0 | D155: =IF(A155>$B$30,NA(),IF(A155>$A$8,"",OFFSET(InputPriceData!$C$15,CalculationsAndCharts!$A155+$A$11,IF($C$5,8,0),1,1))) -> 745.219971 | E155: =IF(A155>$B$30,NA(),IF(A155>$A$8,"",OFFSET(InputPriceData!$D$15,CalculationsAndCharts!$A155+$A$11,IF($C$5,8,0),1,1))) -> 749.450012 | F155: =IF(A155>$B$30,NA(),IF(A155>$A$8,"",OFFSET(InputPriceData!$E$15,CalculationsAndCharts!$A155+$A$11,IF($C$5,8,0),1,1))) -> 744.039978 | G155: =IF(A155>$B$30,NA(),IF(A155>$A$8,"",OFFSET(InputPriceData!$F$15,CalculationsAndCharts!$A155+$A$11,IF($C$5,8,0),1,1))) -> 746.289978 | H155: 690.8727236 | I155: 721.9632649 | J155: 1.070007 | K155: 0 | L155: 2.539200169 | M155: 1.546273104 | N155: 2.430384434 | O155: 0.1345248798 | P155: 738.9426016 | Q155: 2.423535979 | R155: 1.866578648 | S155: 1.298234148 | T155: 0.02286800147 | U155: 713.0639562 | AW155: 0
A156: 124 | B156: =IF(A156>$B$30,NA(),IF($A156>$A$8,"",OFFSET(InputPriceData!$B$15,$A156+$A$11,0,1,1))) -> 2005-12-12 | C156: =IF(A156>$B$30,NA(),IF($A156>$A$8,"",OFFSET(InputPriceData!$G$15,CalculationsAndCharts!$A156+$A$11,IF($C$5,8,0),1,1))) -> 0 | D156: =IF(A156>$B$30,NA(),IF(A156>$A$8,"",OFFSET(InputPriceData!$C$15,CalculationsAndCharts!$A156+$A$11,IF($C$5,8,0),1,1))) -> 744.539978 | E156: =IF(A156>$B$30,NA(),IF(A156>$A$8,"",OFFSET(InputPriceData!$D$15,CalculationsAndCharts!$A156+$A$11,IF($C$5,8,0),1,1))) -> 747.859985 | F156: =IF(A156>$B$30,NA(),IF(A156>$A$8,"",OFFSET(InputPriceData!$E$15,CalculationsAndCharts!$A156+$A$11,IF($C$5,8,0),1,1))) -> 741.539978 | G156: =IF(A156>$B$30,NA(),IF(A156>$A$8,"",OFFSET(InputPriceData!$F$15,CalculationsAndCharts!$A156+$A$11,IF($C$5,8,0),1,1))) -> 745.219971 | H156: 690.3157663 | I156: 720.9703378 | J156: 0.679993 | K156: 0 | L156: 2.599167237 | M156: 1.609386292 | N156: 2.351831664 | O156: 0.131444379 | P156: 737.8005642 | Q156: 2.437139285 | R156: 1.885338232 | S156: 1.276585131 | T156: 0.02265258837 | U156: 712.2863615 | AW156: 0
A157: 125 | B157: =IF(A157>$B$30,NA(),IF($A157>$A$8,"",OFFSET(InputPriceData!$B$15,$A157+$A$11,0,1,1))) -> 2005-12-09 | C157: =IF(A157>$B$30,NA(),IF($A157>$A$8,"",OFFSET(InputPriceData!$G$15,CalculationsAndCharts!$A157+$A$11,IF($C$5,8,0),1,1))) -> 0 | D157: =IF(A157>$B$30,NA(),IF(A157>$A$8,"",OFFSET(InputPriceData!$C$15,CalculationsAndCharts!$A157+$A$11,IF($C$5,8,0),1,1))) -> 741.059998 | E157: =IF(A157>$B$30,NA(),IF(A157>$A$8,"",OFFSET(InputPriceData!$D$15,CalculationsAndCharts!$A157+$A$11,IF($C$5,8,0),1,1))) -> 745.679993 | F157: =IF(A157>$B$30,NA(),IF(A157>$A$8,"",OFFSET(InputPriceData!$E$15,CalculationsAndCharts!$A157+$A$11,IF($C$5,8,0),1,1))) -> 738.650024 | G157: =IF(A157>$B$30,NA(),IF(A157>$A$8,"",OFFSET(InputPriceData!$F$15,CalculationsAndCharts!$A157+$A$11,IF($C$5,8,0),1,1))) -> 744.539978 | H157: 689.7639652 | I157: 719.9805569 | J157: 3.47998 | K157: 0 | L157: 2.67750088 | M157: 1.675075529 | N157: 2.303062042 | O157: 0.1295318448 | P157: 736.6777354 | Q157: 2.454799047 | R157: 1.904286355 | S157: 1.262908708 | T157: 0.02251650456 | U157: 711.5230387 | AW157: 0
A158: 126 | B158: =IF(A158>$B$30,NA(),IF($A158>$A$8,"",OFFSET(InputPriceData!$B$15,$A158+$A$11,0,1,1))) -> 2005-12-08 | C158: =IF(A158>$B$30,NA(),IF($A158>$A$8,"",OFFSET(InputPriceData!$G$15,CalculationsAndCharts!$A158+$A$11,IF($C$5,8,0),1,1))) -> 0 | D158: =IF(A158>$B$30,NA(),IF(A158>$A$8,"",OFFSET(InputPriceData!$C$15,CalculationsAndCharts!$A158+$A$11,IF($C$5,8,0),1,1))) -> 738.900024 | E158: =IF(A158>$B$30,NA(),IF(A158>$A$8,"",OFFSET(InputPriceData!$D$15,CalculationsAndCharts!$A158+$A$11,IF($C$5,8,0),1,1))) -> 744.76001 | F158: =IF(A158>$B$30,NA(),IF(A158>$A$8,"",OFFSET(InputPriceData!$E$15,CalculationsAndCharts!$A158+$A$11,IF($C$5,8,0),1,1))) -> 736.72998 | G158: =IF(A158>$B$30,NA(),IF(A158>$A$8,"",OFFSET(InputPriceData!$F$15,CalculationsAndCharts!$A158+$A$11,IF($C$5,8,0),1,1))) -> 741.059998 | H158: 689.2134525 | I158: 718.9781315 | J158: 2.159974 | K158: 0 | L158: 2.64474663 | M158: 1.743445958 | N158: 2.053922323 | O158: 0.1197616597 | P158: 735.5077778 | Q158: 2.444495721 | R158: 1.923424912 | S158: 1.192949352 | T158: 0.02182039157 | U158: 710.7624877 | AW158: 0
A159: 127 | B159: =IF(A159>$B$30,NA(),IF($A159>$A$8,"",OFFSET(InputPriceData!$B$15,$A159+$A$11,0,1,1))) -> 2005-12-07 | C159: =IF(A159>$B$30,NA(),IF($A159>$A$8,"",OFFSET(InputPriceData!$G$15,CalculationsAndCharts!$A159+$A$11,IF($C$5,8,0),1,1))) -> 0 | D159: =IF(A159>$B$30,NA(),IF(A159>$A$8,"",OFFSET(InputPriceData!$C$15,CalculationsAndCharts!$A159+$A$11,IF($C$5,8,0),1,1))) -> 742.039978 | E159: =IF(A159>$B$30,NA(),IF(A159>$A$8,"",OFFSET(InputPriceData!$D$15,CalculationsAndCharts!$A159+$A$11,IF($C$5,8,0),1,1))) -> 743.52002 | F159: =IF(A159>$B$30,NA(),IF(A159>$A$8,"",OFFSET(InputPriceData!$E$15,CalculationsAndCharts!$A159+$A$11,IF($C$5,8,0),1,1))) -> 736.909973 | G159: =IF(A159>$B$30,NA(),IF(A159>$A$8,"",OFFSET(InputPriceData!$F$15,CalculationsAndCharts!$A159+$A$11,IF($C$5,8,0),1,1))) -> 738.900024 | H159: 688.6923817 | I159: 718.0768309 | J159: 0 | K159: 3.139954 | L159: 2.664533268 | M159: 1.814607018 | N159: 1.897520943 | O159: 0.1136282723 | P159: 734.7523653 | Q159: 2.447355235 | R159: 1.942755815 | S159: 1.149400127 | T159: 0.02138706594 | U159: 710.0866368 | AX159: 0
A160: 128 | B160: =IF(A160>$B$30,NA(),IF($A160>$A$8,"",OFFSET(InputPriceData!$B$15,$A160+$A$11,0,1,1))) -> 2005-12-06 | C160: =IF(A160>$B$30,NA(),IF($A160>$A$8,"",OFFSET(InputPriceData!$G$15,CalculationsAndCharts!$A160+$A$11,IF($C$5,8,0),1,1))) -> 0 | D160: =IF(A160>$B$30,NA(),IF(A160>$A$8,"",OFFSET(InputPriceData!$C$15,CalculationsAndCharts!$A160+$A$11,IF($C$5,8,0),1,1))) -> 742.210022 | E160: =IF(A160>$B$30,NA(),IF(A160>$A$8,"",OFFSET(InputPriceData!$D$15,CalculationsAndCharts!$A160+$A$11,IF($C$5,8,0),1,1))) -> 746.919983 | F160: =IF(A160>$B$30,NA(),IF(A160>$A$8,"",OFFSET(InputPriceData!$E$15,CalculationsAndCharts!$A160+$A$11,IF($C$5,8,0),1,1))) -> 741.419983 | G160: =IF(A160>$B$30,NA(),IF(A160>$A$8,"",OFFSET(InputPriceData!$F$15,CalculationsAndCharts!$A160+$A$11,IF($C$5,8,0),1,1))) -> 742.039978 | H160: 688.1877823 | I160: 717.2269046 | J160: 0 | K160: 0.170044 | L160: 2.773289728 | M160: 1.760511223 | N160: 2.233839809 | O160: 0.1268172474 | P160: 734.2206569 | Q160: 2.471951771 | R160: 1.930723673 | S160: 1.229316366 | T160: 0.0221822524 | U160: 709.4569356 | AX160: 0
A161: 129 | B161: =IF(A161>$B$30,NA(),IF($A161>$A$8,"",OFFSET(InputPriceData!$B$15,$A161+$A$11,0,1,1))) -> 2005-12-05 | C161: =IF(A161>$B$30,NA(),IF($A161>$A$8,"",OFFSET(InputPriceData!$G$15,CalculationsAndCharts!$A161+$A$11,IF($C$5,8,0),1,1))) -> 0 | D161: =IF(A161>$B$30,NA(),IF(A161>$A$8,"",OFFSET(InputPriceData!$C$15,CalculationsAndCharts!$A161+$A$11,IF($C$5,8,0),1,1))) -> 745.340027 | E161: =IF(A161>$B$30,NA(),IF(A161>$A$8,"",OFFSET(InputPriceData!$D$15,CalculationsAndCharts!$A161+$A$11,IF($C$5,8,0),1,1))) -> 745.340027 | F161: =IF(A161>$B$30,NA(),IF(A161>$A$8,"",OFFSET(InputPriceData!$E$15,CalculationsAndCharts!$A161+$A$11,IF($C$5,8,0),1,1))) -> 738.400024 | G161: =IF(A161>$B$30,NA(),IF(A161>$A$8,"",OFFSET(InputPriceData!$F$15,CalculationsAndCharts!$A161+$A$11,IF($C$5,8,0),1,1))) -> 742.210022 | H161: =IF(A161>$H$30,NA(),IF(A161=$H$30,AVERAGE(OFFSET(G161,0,0,$B$16,1)),(G161-H162)*$C$16+H162)) -> 687.6465542 | I161: 716.2141261 | J161: =IF(A161>$J$30,NA(),IF(G161>G162,G161-G162,0)) -> 0 | K161: =IF(A161>$J$30,NA(),IF(G161<G162,G162-G161,0)) -> 3.130005 | L161: 2.886485227 | M161: 1.825428252 | N161: 2.251860055 | O161: 0.1275239237 | P161: 733.0850128 | Q161: 2.496795507 | R161: 1.948418946 | S161: 1.233633533 | T161: 0.02222520928 | U161: 708.717774 | AW161: =IF(G161>=D161,C161,NA()) ->  | AX161: =IF(G161<D161,C161,NA()) -> 0
A162: 130 | B162: =IF(A162>$B$30,NA(),IF($A162>$A$8,"",OFFSET(InputPriceData!$B$15,$A162+$A$11,0,1,1))) -> 2005-12-02 | C162: =IF(A162>$B$30,NA(),IF($A162>$A$8,"",OFFSET(InputPriceData!$G$15,CalculationsAndCharts!$A162+$A$11,IF($C$5,8,0),1,1))) -> 0 | D162: =IF(A162>$B$30,NA(),IF(A162>$A$8,"",OFFSET(InputPriceData!$C$15,CalculationsAndCharts!$A162+$A$11,IF($C$5,8,0),1,1))) -> 745.419983 | E162: =IF(A162>$B$30,NA(),IF(A162>$A$8,"",OFFSET(InputPriceData!$D$15,CalculationsAndCharts!$A162+$A$11,IF($C$5,8,0),1,1))) -> 745.969971 | F162: =IF(A162>$B$30,NA(),IF(A162>$A$8,"",OFFSET(InputPriceData!$E$15,CalculationsAndCharts!$A162+$A$11,IF($C$5,8,0),1,1))) -> 741.340027 | G162: =IF(A162>$B$30,NA(),IF(A162>$A$8,"",OFFSET(InputPriceData!$F$15,CalculationsAndCharts!$A162+$A$11,IF($C$5,8,0),1,1))) -> 745.340027 | H162: 687.0981776 | I162: =IF(A162>$I$30,NA(),IF(A162=$I$30,AVERAGE(OFFSET($G162,0,0,$B$17,1)),(G162-I163)*$C$17+I163)) -> 715.1530691 | J162: 0 | K162: 0.079956 | L162: =IF($A162>$L$30,NA(),IF($A162=$L$30,AVERAGE(OFFSET($J162,0,0,$C$21,1)),($J162-L163)*$C$22+L163)) -> 3.00430095 | M162: =IF($A162>$L$30,NA(),IF($A162=$L$30,AVERAGE(OFFSET($K162,0,0,$C$21,1)),($K162-M163)*$C$22+M163)) -> 1.772180222 | N162: =IF($A162>$L$30,NA(),ABS((L162-M162))/(L162+M162))*$D$21 -> 2.579557386 | O162: =IF($A162>$L$30,NA(),$B$22*(N162+1)) -> 0.1403747994 | P162: =IF($A162>$P$30,NA(),IF($A162=$P$30,G162,O162*(G162-P163)+P163)) -> 731.751272 | Q162: =IF($A162>$Q$30,NA(),IF($A162=$Q$30,AVERAGE(OFFSET($J162,0,0,$C$23,1)),($J162-Q163)*$C$24+Q163)) -> 2.521888929 | R162: =IF($A162>$Q$30,NA(),IF($A162=$Q$30,AVERAGE(OFFSET($K162,0,0,$C$23,1)),($K162-R163)*$C$24+R163)) -> 1.936543709 | S162: =IF($A162>$Q$30,NA(),ABS((Q162-R162))/(Q162+R162))*$D$23 -> 1.312894614 | T162: =IF($A162>$Q$30,NA(),$B$24*(S162+1)) -> 0.02301387676 | U162: =IF($A162>$U$30,NA(),IF($A162=$U$30,$G162,T162*($G162-U163)+U163)) -> 707.9564819 | AX162: 0
A163: 131 | B163: =IF(A163>$B$30,NA(),IF($A163>$A$8,"",OFFSET(InputPriceData!$B$15,$A163+$A$11,0,1,1))) -> 2005-12-01 | C163: =IF(A163>$B$30,NA(),IF($A163>$A$8,"",OFFSET(InputPriceData!$G$15,CalculationsAndCharts!$A163+$A$11,IF($C$5,8,0),1,1))) -> 0 | D163: =IF(A163>$B$30,NA(),IF(A163>$A$8,"",OFFSET(InputPriceData!$C$15,CalculationsAndCharts!$A163+$A$11,IF($C$5,8,0),1,1))) -> 733.659973 | E163: =IF(A163>$B$30,NA(),IF(A163>$A$8,"",OFFSET(InputPriceData!$D$15,CalculationsAndCharts!$A163+$A$11,IF($C$5,8,0),1,1))) -> 745.5 | F163: =IF(A163>$B$30,NA(),IF(A163>$A$8,"",OFFSET(InputPriceData!$E$15,CalculationsAndCharts!$A163+$A$11,IF($C$5,8,0),1,1))) -> 733.659973 | G163: =IF(A163>$B$30,NA(),IF(A163>$A$8,"",OFFSET(InputPriceData!$F$15,CalculationsAndCharts!$A163+$A$11,IF($C$5,8,0),1,1))) -> 745.419983 | H163: 686.5128324 | I163: 713.9209484 | J163: 11.76001 | K163: 0 | L163: 3.126925479 | M163: 1.841250598 | N163: 2.587820683 | O163: 0.1406988503 | P163: 729.5322599 | Q163: 2.547234546 | R163: 1.955202882 | S163: 1.314913697 | T163: 0.02303396713 | U163: 707.0758755 | AW163: 0
A164: 132 | B164: =IF(A164>$B$30,NA(),IF($A164>$A$8,"",OFFSET(InputPriceData!$B$15,$A164+$A$11,0,1,1))) -> 2005-11-30 | C164: =IF(A164>$B$30,NA(),IF($A164>$A$8,"",OFFSET(InputPriceData!$G$15,CalculationsAndCharts!$A164+$A$11,IF($C$5,8,0),1,1))) -> 0 | D164: =IF(A164>$B$30,NA(),IF(A164>$A$8,"",OFFSET(InputPriceData!$C$15,CalculationsAndCharts!$A164+$A$11,IF($C$5,8,0),1,1))) -> 733.659973 | E164: =IF(A164>$B$30,NA(),IF(A164>$A$8,"",OFFSET(InputPriceData!$D$15,CalculationsAndCharts!$A164+$A$11,IF($C$5,8,0),1,1))) -> 737.77002 | F164: =IF(A164>$B$30,NA(),IF(A164>$A$8,"",OFFSET(InputPriceData!$E$15,CalculationsAndCharts!$A164+$A$11,IF($C$5,8,0),1,1))) -> 733.109985 | G164: =IF(A164>$B$30,NA(),IF(A164>$A$8,"",OFFSET(InputPriceData!$F$15,CalculationsAndCharts!$A164+$A$11,IF($C$5,8,0),1,1))) -> 733.659973 | H164: 685.9208007 | I164: 712.6352735 | J164: 0 | K164: 0 | L164: 2.774554682 | M164: 1.916403684 | N164: 1.829372447 | O164: 0.1109557822 | P164: 726.9308618 | Q164: 2.454643838 | R164: 1.974853162 | S164: 1.083171918 | T164: 0.02072807878 | U164: 706.1718349 | AW164: 0
A165: 133 | B165: =IF(A165>$B$30,NA(),IF($A165>$A$8,"",OFFSET(InputPriceData!$B$15,$A165+$A$11,0,1,1))) -> 2005-11-29 | C165: =IF(A165>$B$30,NA(),IF($A165>$A$8,"",OFFSET(InputPriceData!$G$15,CalculationsAndCharts!$A165+$A$11,IF($C$5,8,0),1,1))) -> 0 | D165: =IF(A165>$B$30,NA(),IF(A165>$A$8,"",OFFSET(InputPriceData!$C$15,CalculationsAndCharts!$A165+$A$11,IF($C$5,8,0),1,1))) -> 730.76001 | E165: =IF(A165>$B$30,NA(),IF(A165>$A$8,"",OFFSET(InputPriceData!$D$15,CalculationsAndCharts!$A165+$A$11,IF($C$5,8,0),1,1))) -> 738.150024 | F165: =IF(A165>$B$30,NA(),IF(A165>$A$8,"",OFFSET(InputPriceData!$E$15,CalculationsAndCharts!$A165+$A$11,IF($C$5,8,0),1,1))) -> 730.76001 | G165: =IF(A165>$B$30,NA(),IF(A165>$A$8,"",OFFSET(InputPriceData!$F$15,CalculationsAndCharts!$A165+$A$11,IF($C$5,8,0),1,1))) -> 733.659973 | H165: 685.4410101 | I165: 711.7771225 | J165: 2.899963 | K165: 0 | L165: 2.887801812 | M165: 1.994624242 | N165: 1.829372447 | O165: 0.1109557822 | P165: 726.0910455 | Q165: 2.479313626 | R165: 1.994700933 | S165: 1.083171918 | T165: 0.02072807878 | U165: 705.5899983 | AW165: 0
A166: 134 | B166: =IF(A166>$B$30,NA(),IF($A166>$A$8,"",OFFSET(InputPriceData!$B$15,$A166+$A$11,0,1,1))) -> 2005-11-28 | C166: =IF(A166>$B$30,NA(),IF($A166>$A$8,"",OFFSET(InputPriceData!$G$15,CalculationsAndCharts!$A166+$A$11,IF($C$5,8,0),1,1))) -> 0 | D166: =IF(A166>$B$30,NA(),IF(A166>$A$8,"",OFFSET(InputPriceData!$C$15,CalculationsAndCharts!$A166+$A$11,IF($C$5,8,0),1,1))) -> 742.700012 | E166: =IF(A166>$B$30,NA(),IF(A166>$A$8,"",OFFSET(InputPriceData!$D$15,CalculationsAndCharts!$A166+$A$11,IF($C$5,8,0),1,1))) -> 742.929993 | F166: =IF(A166>$B$30,NA(),IF(A166>$A$8,"",OFFSET(InputPriceData!$E$15,CalculationsAndCharts!$A166+$A$11,IF($C$5,8,0),1,1))) -> 730.76001 | G166: =IF(A166>$B$30,NA(),IF(A166>$A$8,"",OFFSET(InputPriceData!$F$15,CalculationsAndCharts!$A166+$A$11,IF($C$5,8,0),1,1))) -> 730.76001 | H166: 684.9563974 | I166: 710.883945 | J166: 0 | K166: 11.940002 | L166: 2.887305437 | M166: 2.076037477 | N166: 1.634519263 | O166: 0.1033144809 | P166: 725.1464172 | Q166: 2.475085994 | R166: 2.014748178 | S166: 1.025289126 | T166: 0.02015213061 | U166: 704.995846 | AX166: 0
A167: 135 | B167: =IF(A167>$B$30,NA(),IF($A167>$A$8,"",OFFSET(InputPriceData!$B$15,$A167+$A$11,0,1,1))) -> 2005-11-25 | C167: =IF(A167>$B$30,NA(),IF($A167>$A$8,"",OFFSET(InputPriceData!$G$15,CalculationsAndCharts!$A167+$A$11,IF($C$5,8,0),1,1))) -> 0 | D167: =IF(A167>$B$30,NA(),IF(A167>$A$8,"",OFFSET(InputPriceData!$C$15,CalculationsAndCharts!$A167+$A$11,IF($C$5,8,0),1,1))) -> 741.140015 | E167: =IF(A167>$B$30,NA(),IF(A167>$A$8,"",OFFSET(InputPriceData!$D$15,CalculationsAndCharts!$A167+$A$11,IF($C$5,8,0),1,1))) -> 742.969971 | F167: =IF(A167>$B$30,NA(),IF(A167>$A$8,"",OFFSET(InputPriceData!$E$15,CalculationsAndCharts!$A167+$A$11,IF($C$5,8,0),1,1))) -> 739.599976 | G167: =IF(A167>$B$30,NA(),IF(A167>$A$8,"",OFFSET(InputPriceData!$F$15,CalculationsAndCharts!$A167+$A$11,IF($C$5,8,0),1,1))) -> 742.700012 | H167: 684.4960596 | I167: 710.072677 | J167: 1.559997 | K167: 0 | L167: 3.005154639 | M167: 1.67342668 | N167: 2.846435422 | O167: 0.1508406048 | P167: 724.4996293 | Q167: 2.49996123 | R167: 1.914996884 | S167: 1.324960127 | T167: 0.02313393161 | U167: 704.4659649 | AW167: 0
A168: 136 | B168: =IF(A168>$B$30,NA(),IF($A168>$A$8,"",OFFSET(InputPriceData!$B$15,$A168+$A$11,0,1,1))) -> 2005-11-23 | C168: =IF(A168>$B$30,NA(),IF($A168>$A$8,"",OFFSET(InputPriceData!$G$15,CalculationsAndCharts!$A168+$A$11,IF($C$5,8,0),1,1))) -> 0 | D168: =IF(A168>$B$30,NA(),IF(A168>$A$8,"",OFFSET(InputPriceData!$C$15,CalculationsAndCharts!$A168+$A$11,IF($C$5,8,0),1,1))) -> 739.77002 | E168: =IF(A168>$B$30,NA(),IF(A168>$A$8,"",OFFSET(InputPriceData!$D$15,CalculationsAndCharts!$A168+$A$11,IF($C$5,8,0),1,1))) -> 744.359985 | F168: =IF(A168>$B$30,NA(),IF(A168>$A$8,"",OFFSET(InputPriceData!$E$15,CalculationsAndCharts!$A168+$A$11,IF($C$5,8,0),1,1))) -> 738.48999 | G168: =IF(A168>$B$30,NA(),IF(A168>$A$8,"",OFFSET(InputPriceData!$F$15,CalculationsAndCharts!$A168+$A$11,IF($C$5,8,0),1,1))) -> 741.140015 | H168: 683.9110952 | I168: 708.7409491 | J168: 1.369995 | K168: 0 | L168: 3.064140665 | M168: 1.74172981 | N168: 2.751657295 | O168: 0.1471238155 | P168: 721.2666005 | Q168: 2.509408107 | R168: 1.934243084 | S168: 1.294352321 | T168: 0.02282937633 | U168: 703.5605145 | AW168: 0
A169: 137 | B169: =IF(A169>$B$30,NA(),IF($A169>$A$8,"",OFFSET(InputPriceData!$B$15,$A169+$A$11,0,1,1))) -> 2005-11-22 | C169: =IF(A169>$B$30,NA(),IF($A169>$A$8,"",OFFSET(InputPriceData!$G$15,CalculationsAndCharts!$A169+$A$11,IF($C$5,8,0),1,1))) -> 0 | D169: =IF(A169>$B$30,NA(),IF(A169>$A$8,"",OFFSET(InputPriceData!$C$15,CalculationsAndCharts!$A169+$A$11,IF($C$5,8,0),1,1))) -> 735.070007 | E169: =IF(A169>$B$30,NA(),IF(A169>$A$8,"",OFFSET(InputPriceData!$D$15,CalculationsAndCharts!$A169+$A$11,IF($C$5,8,0),1,1))) -> 740.140015 | F169: =IF(A169>$B$30,NA(),IF(A169>$A$8,"",OFFSET(InputPriceData!$E$15,CalculationsAndCharts!$A169+$A$11,IF($C$5,8,0),1,1))) -> 733.429993 | G169: =IF(A169>$B$30,NA(),IF(A169>$A$8,"",OFFSET(InputPriceData!$F$15,CalculationsAndCharts!$A169+$A$11,IF($C$5,8,0),1,1))) -> 739.77002 | H169: 683.3359302 | I169: 707.4185382 | J169: 4.700013 | K169: 0 | L169: 3.133289467 | M169: 1.812820822 | N169: 2.669711284 | O169: 0.1439102464 | P169: 717.8383742 | Q169: 2.520859495 | R169: 1.953682713 | S169: 1.267563822 | T169: 0.0225628241 | U169: 702.6825546 | AW169: 0
A170: 138 | B170: =IF(A170>$B$30,NA(),IF($A170>$A$8,"",OFFSET(InputPriceData!$B$15,$A170+$A$11,0,1,1))) -> 2005-11-21 | C170: =IF(A170>$B$30,NA(),IF($A170>$A$8,"",OFFSET(InputPriceData!$G$15,CalculationsAndCharts!$A170+$A$11,IF($C$5,8,0),1,1))) -> 0 | D170: =IF(A170>$B$30,NA(),IF(A170>$A$8,"",OFFSET(InputPriceData!$C$15,CalculationsAndCharts!$A170+$A$11,IF($C$5,8,0),1,1))) -> 728.900024 | E170: =IF(A170>$B$30,NA(),IF(A170>$A$8,"",OFFSET(InputPriceData!$D$15,CalculationsAndCharts!$A170+$A$11,IF($C$5,8,0),1,1))) -> 735.070007 | F170: =IF(A170>$B$30,NA(),IF(A170>$A$8,"",OFFSET(InputPriceData!$E$15,CalculationsAndCharts!$A170+$A$11,IF($C$5,8,0),1,1))) -> 726.690002 | G170: =IF(A170>$B$30,NA(),IF(A170>$A$8,"",OFFSET(InputPriceData!$F$15,CalculationsAndCharts!$A170+$A$11,IF($C$5,8,0),1,1))) -> 735.070007 | H170: 682.7687534 | I170: 706.0980696 | J170: 6.169983 | K170: 0 | L170: 3.069341568 | M170: 1.886813509 | N170: 2.385978729 | O170: 0.1327834796 | P170: 714.1516246 | Q170: 2.498958454 | R170: 1.973317715 | S170: 1.175331576 | T170: 0.02164509031 | U170: 701.8264403 | AW170: 0
A171: 139 | B171: =IF(A171>$B$30,NA(),IF($A171>$A$8,"",OFFSET(InputPriceData!$B$15,$A171+$A$11,0,1,1))) -> 2005-11-18 | C171: =IF(A171>$B$30,NA(),IF($A171>$A$8,"",OFFSET(InputPriceData!$G$15,CalculationsAndCharts!$A171+$A$11,IF($C$5,8,0),1,1))) -> 0 | D171: =IF(A171>$B$30,NA(),IF(A171>$A$8,"",OFFSET(InputPriceData!$C$15,CalculationsAndCharts!$A171+$A$11,IF($C$5,8,0),1,1))) -> 727.059998 | E171: =IF(A171>$B$30,NA(),IF(A171>$A$8,"",OFFSET(InputPriceData!$D$15,CalculationsAndCharts!$A171+$A$11,IF($C$5,8,0),1,1))) -> 730.169983 | F171: =IF(A171>$B$30,NA(),IF(A171>$A$8,"",OFFSET(InputPriceData!$E$15,CalculationsAndCharts!$A171+$A$11,IF($C$5,8,0),1,1))) -> 724.900024 | G171: =IF(A171>$B$30,NA(),IF(A171>$A$8,"",OFFSET(InputPriceData!$F$15,CalculationsAndCharts!$A171+$A$11,IF($C$5,8,0),1,1))) -> 728.900024 | H171: 682.2431127 | I171: 704.9155415 | J171: 1.840026 | K171: 0 | L171: 2.942784775 | M171: 1.963826305 | N171: 1.995182528 | O171: 0.1174581383 | P171: 710.9487156 | Q171: 2.462063735 | R171: 1.993150053 | S171: 1.052505455 | T171: 0.02042293986 | U171: 701.0909608 | AW171: 0
A172: 140 | B172: =IF(A172>$B$30,NA(),IF($A172>$A$8,"",OFFSET(InputPriceData!$B$15,$A172+$A$11,0,1,1))) -> 2005-11-17 | C172: =IF(A172>$B$30,NA(),IF($A172>$A$8,"",OFFSET(InputPriceData!$G$15,CalculationsAndCharts!$A172+$A$11,IF($C$5,8,0),1,1))) -> 0 | D172: =IF(A172>$B$30,NA(),IF(A172>$A$8,"",OFFSET(InputPriceData!$C$15,CalculationsAndCharts!$A172+$A$11,IF($C$5,8,0),1,1))) -> 716.880005 | E172: =IF(A172>$B$30,NA(),IF(A172>$A$8,"",OFFSET(InputPriceData!$D$15,CalculationsAndCharts!$A172+$A$11,IF($C$5,8,0),1,1))) -> 727.059998 | F172: =IF(A172>$B$30,NA(),IF(A172>$A$8,"",OFFSET(InputPriceData!$E$15,CalculationsAndCharts!$A172+$A$11,IF($C$5,8,0),1,1))) -> 716.880005 | G172: =IF(A172>$B$30,NA(),IF(A172>$A$8,"",OFFSET(InputPriceData!$F$15,CalculationsAndCharts!$A172+$A$11,IF($C$5,8,0),1,1))) -> 727.059998 | H172: 681.774199 | I172: 703.936583 | J172: 10.179993 | K172: 0 | L172: 2.987795337 | M172: 2.043982481 | N172: 1.875704553 | O172: 0.1127727276 | P172: 708.5595629 | Q172: 2.468315371 | R172: 2.013181712 | S172: 1.015583967 | T172: 0.02005556186 | U172: 700.5111771 | AW172: 0
A173: 141 | B173: =IF(A173>$B$30,NA(),IF($A173>$A$8,"",OFFSET(InputPriceData!$B$15,$A173+$A$11,0,1,1))) -> 2005-11-16 | C173: =IF(A173>$B$30,NA(),IF($A173>$A$8,"",OFFSET(InputPriceData!$G$15,CalculationsAndCharts!$A173+$A$11,IF($C$5,8,0),1,1))) -> 0 | D173: =IF(A173>$B$30,NA(),IF(A173>$A$8,"",OFFSET(InputPriceData!$C$15,CalculationsAndCharts!$A173+$A$11,IF($C$5,8,0),1,1))) -> 715.98999 | E173: =IF(A173>$B$30,NA(),IF(A173>$A$8,"",OFFSET(InputPriceData!$D$15,CalculationsAndCharts!$A173+$A$11,IF($C$5,8,0),1,1))) -> 718.539978 | F173: =IF(A173>$B$30,NA(),IF(A173>$A$8,"",OFFSET(InputPriceData!$E$15,CalculationsAndCharts!$A173+$A$11,IF($C$5,8,0),1,1))) -> 712.5 | G173: =IF(A173>$B$30,NA(),IF(A173>$A$8,"",OFFSET(InputPriceData!$F$15,CalculationsAndCharts!$A173+$A$11,IF($C$5,8,0),1,1))) -> 716.880005 | H173: 681.3190653 | I173: 702.9927702 | J173: 0.890015 | K173: 0 | L173: 2.694236249 | M173: 2.127410337 | N173: 1.17558577 | O173: 0.08531708903 | P173: 706.2080295 | Q173: 2.390811073 | R173: 2.033414694 | S173: 0.807816774 | T173: 0.01798822661 | U173: 699.9678284 | AW173: 0
A174: 142 | B174: =IF(A174>$B$30,NA(),IF($A174>$A$8,"",OFFSET(InputPriceData!$B$15,$A174+$A$11,0,1,1))) -> 2005-11-15 | C174: =IF(A174>$B$30,NA(),IF($A174>$A$8,"",OFFSET(InputPriceData!$G$15,CalculationsAndCharts!$A174+$A$11,IF($C$5,8,0),1,1))) -> 0 | D174: =IF(A174>$B$30,NA(),IF(A174>$A$8,"",OFFSET(InputPriceData!$C$15,CalculationsAndCharts!$A174+$A$11,IF($C$5,8,0),1,1))) -> 719.880005 | E174: =IF(A174>$B$30,NA(),IF(A174>$A$8,"",OFFSET(InputPriceData!$D$15,CalculationsAndCharts!$A174+$A$11,IF($C$5,8,0),1,1))) -> 723.25 | F174: =IF(A174>$B$30,NA(),IF(A174>$A$8,"",OFFSET(InputPriceData!$E$15,CalculationsAndCharts!$A174+$A$11,IF($C$5,8,0),1,1))) -> 714.47998 | G174: =IF(A174>$B$30,NA(),IF(A174>$A$8,"",OFFSET(InputPriceData!$F$15,CalculationsAndCharts!$A174+$A$11,IF($C$5,8,0),1,1))) -> 715.98999 | H174: 680.9616689 | I174: 702.4259443 | J174: 0 | K174: 3.890015 | L174: 2.767877932 | M174: 2.214243412 | N174: 1.111242545 | O174: 0.08279382529 | P174: 705.2126006 | Q174: 2.405894451 | R174: 2.053851023 | S174: 0.7893800886 | T174: 0.017804777 | U174: 699.6580357 | AX174: 0
A175: 143 | B175: =IF(A175>$B$30,NA(),IF($A175>$A$8,"",OFFSET(InputPriceData!$B$15,$A175+$A$11,0,1,1))) -> 2005-11-14 | C175: =IF(A175>$B$30,NA(),IF($A175>$A$8,"",OFFSET(InputPriceData!$G$15,CalculationsAndCharts!$A175+$A$11,IF($C$5,8,0),1,1))) -> 0 | D175: =IF(A175>$B$30,NA(),IF(A175>$A$8,"",OFFSET(InputPriceData!$C$15,CalculationsAndCharts!$A175+$A$11,IF($C$5,8,0),1,1))) -> 719.469971 | E175: =IF(A175>$B$30,NA(),IF(A175>$A$8,"",OFFSET(InputPriceData!$D$15,CalculationsAndCharts!$A175+$A$11,IF($C$5,8,0),1,1))) -> 721.26001 | F175: =IF(A175>$B$30,NA(),IF(A175>$A$8,"",OFFSET(InputPriceData!$E$15,CalculationsAndCharts!$A175+$A$11,IF($C$5,8,0),1,1))) -> 717.830017 | G175: =IF(A175>$B$30,NA(),IF(A175>$A$8,"",OFFSET(InputPriceData!$F$15,CalculationsAndCharts!$A175+$A$11,IF($C$5,8,0),1,1))) -> 719.880005 | H175: 680.6096255 | I175: 701.8723097 | J175: 0.410034 | K175: 0 | L175: 2.880852542 | M175: 2.145844572 | N175: 1.46220859 | O175: 0.09655719961 | P175: 704.2397535 | Q175: 2.430074294 | R175: 2.035397114 | S175: 0.8838421405 | T175: 0.01874469792 | U175: 699.3619777 | AW175: 0
A176: 144 | B176: =IF(A176>$B$30,NA(),IF($A176>$A$8,"",OFFSET(InputPriceData!$B$15,$A176+$A$11,0,1,1))) -> 2005-11-11 | C176: =IF(A176>$B$30,NA(),IF($A176>$A$8,"",OFFSET(InputPriceData!$G$15,CalculationsAndCharts!$A176+$A$11,IF($C$5,8,0),1,1))) -> 0 | D176: =IF(A176>$B$30,NA(),IF(A176>$A$8,"",OFFSET(InputPriceData!$C$15,CalculationsAndCharts!$A176+$A$11,IF($C$5,8,0),1,1))) -> 716.97998 | E176: =IF(A176>$B$30,NA(),IF(A176>$A$8,"",OFFSET(InputPriceData!$D$15,CalculationsAndCharts!$A176+$A$11,IF($C$5,8,0),1,1))) -> 719.909973 | F176: =IF(A176>$B$30,NA(),IF(A176>$A$8,"",OFFSET(InputPriceData!$E$15,CalculationsAndCharts!$A176+$A$11,IF($C$5,8,0),1,1))) -> 716.190002 | G176: =IF(A176>$B$30,NA(),IF(A176>$A$8,"",OFFSET(InputPriceData!$F$15,CalculationsAndCharts!$A176+$A$11,IF($C$5,8,0),1,1))) -> 719.469971 | H176: 680.2149483 | I176: 701.1373018 | J176: 2.489991 | K176: 0 | L176: 2.981702278 | M176: 2.233430065 | N176: 1.434809636 | O176: 0.09548273081 | P176: 702.5681714 | Q176: 2.450376207 | R176: 2.055853366 | S176: 0.8755054186 | T176: 0.01866174546 | U176: 698.9700264 | AW176: 0
A177: 145 | B177: =IF(A177>$B$30,NA(),IF($A177>$A$8,"",OFFSET(InputPriceData!$B$15,$A177+$A$11,0,1,1))) -> 2005-11-10 | C177: =IF(A177>$B$30,NA(),IF($A177>$A$8,"",OFFSET(InputPriceData!$G$15,CalculationsAndCharts!$A177+$A$11,IF($C$5,8,0),1,1))) -> 0 | D177: =IF(A177>$B$30,NA(),IF(A177>$A$8,"",OFFSET(InputPriceData!$C$15,CalculationsAndCharts!$A177+$A$11,IF($C$5,8,0),1,1))) -> 713.559998 | E177: =IF(A177>$B$30,NA(),IF(A177>$A$8,"",OFFSET(InputPriceData!$D$15,CalculationsAndCharts!$A177+$A$11,IF($C$5,8,0),1,1))) -> 717.799988 | F177: =IF(A177>$B$30,NA(),IF(A177>$A$8,"",OFFSET(InputPriceData!$E$15,CalculationsAndCharts!$A177+$A$11,IF($C$5,8,0),1,1))) -> 704.97998 | G177: =IF(A177>$B$30,NA(),IF(A177>$A$8,"",OFFSET(InputPriceData!$F$15,CalculationsAndCharts!$A177+$A$11,IF($C$5,8,0),1,1))) -> 716.97998 | H177: 679.8204255 | I177: 700.3890296 | J177: 3.419982 | K177: 0 | L177: 3.001772126 | M177: 2.324590475 | N177: 1.271377301 | O177: 0.08907361965 | P177: 700.7839821 | Q177: 2.449978068 | R177: 2.076515209 | S177: 0.8250600111 | T177: 0.01815980111 | U177: 698.5801866 | AW177: 0
A178: 146 | B178: =IF(A178>$B$30,NA(),IF($A178>$A$8,"",OFFSET(InputPriceData!$B$15,$A178+$A$11,0,1,1))) -> 2005-11-09 | C178: =IF(A178>$B$30,NA(),IF($A178>$A$8,"",OFFSET(InputPriceData!$G$15,CalculationsAndCharts!$A178+$A$11,IF($C$5,8,0),1,1))) -> 0 | D178: =IF(A178>$B$30,NA(),IF(A178>$A$8,"",OFFSET(InputPriceData!$C$15,CalculationsAndCharts!$A178+$A$11,IF($C$5,8,0),1,1))) -> 710.530029 | E178: =IF(A178>$B$30,NA(),IF(A178>$A$8,"",OFFSET(InputPriceData!$D$15,CalculationsAndCharts!$A178+$A$11,IF($C$5,8,0),1,1))) -> 716.869995 | F178: =IF(A178>$B$30,NA(),IF(A178>$A$8,"",OFFSET(InputPriceData!$E$15,CalculationsAndCharts!$A178+$A$11,IF($C$5,8,0),1,1))) -> 708.23999 | G178: =IF(A178>$B$30,NA(),IF(A178>$A$8,"",OFFSET(InputPriceData!$F$15,CalculationsAndCharts!$A178+$A$11,IF($C$5,8,0),1,1))) -> 713.559998 | H178: 679.4469626 | I178: 699.7118479 | J178: 3.029969 | K178: 0 | L178: 2.984702336 | M178: 2.419471719 | N178: 1.045914899 | O178: 0.08023195684 | P178: 699.2002799 | Q178: 2.440229285 | R178: 2.097384708 | S178: 0.7555613524 | T178: 0.01746827216 | U178: 698.2398699 | AW178: 0
A179: 147 | B179: =IF(A179>$B$30,NA(),IF($A179>$A$8,"",OFFSET(InputPriceData!$B$15,$A179+$A$11,0,1,1))) -> 2005-11-08 | C179: =IF(A179>$B$30,NA(),IF($A179>$A$8,"",OFFSET(InputPriceData!$G$15,CalculationsAndCharts!$A179+$A$11,IF($C$5,8,0),1,1))) -> 0 | D179: =IF(A179>$B$30,NA(),IF(A179>$A$8,"",OFFSET(InputPriceData!$C$15,CalculationsAndCharts!$A179+$A$11,IF($C$5,8,0),1,1))) -> 715.780029 | E179: =IF(A179>$B$30,NA(),IF(A179>$A$8,"",OFFSET(InputPriceData!$D$15,CalculationsAndCharts!$A179+$A$11,IF($C$5,8,0),1,1))) -> 715.780029 | F179: =IF(A179>$B$30,NA(),IF(A179>$A$8,"",OFFSET(InputPriceData!$E$15,CalculationsAndCharts!$A179+$A$11,IF($C$5,8,0),1,1))) -> 708.400024 | G179: =IF(A179>$B$30,NA(),IF(A179>$A$8,"",OFFSET(InputPriceData!$F$15,CalculationsAndCharts!$A179+$A$11,IF($C$5,8,0),1,1))) -> 710.530029 | H179: 679.1041181 | I179: 699.1466173 | J179: 0 | K179: 5.25 | L179: 2.982854717 | M179: 2.518225667 | N179: 0.8446141798 | O179: 0.07233781097 | P179: 697.9476724 | Q179: 2.434302253 | R179: 2.118463952 | S179: 0.6937283549 | T179: 0.01685301846 | U179: 697.9674959 | AX179: 0
A180: 148 | B180: =IF(A180>$B$30,NA(),IF($A180>$A$8,"",OFFSET(InputPriceData!$B$15,$A180+$A$11,0,1,1))) -> 2005-11-07 | C180: =IF(A180>$B$30,NA(),IF($A180>$A$8,"",OFFSET(InputPriceData!$G$15,CalculationsAndCharts!$A180+$A$11,IF($C$5,8,0),1,1))) -> 0 | D180: =IF(A180>$B$30,NA(),IF(A180>$A$8,"",OFFSET(InputPriceData!$C$15,CalculationsAndCharts!$A180+$A$11,IF($C$5,8,0),1,1))) -> 714.159973 | E180: =IF(A180>$B$30,NA(),IF(A180>$A$8,"",OFFSET(InputPriceData!$D$15,CalculationsAndCharts!$A180+$A$11,IF($C$5,8,0),1,1))) -> 717.090027 | F180: =IF(A180>$B$30,NA(),IF(A180>$A$8,"",OFFSET(InputPriceData!$E$15,CalculationsAndCharts!$A180+$A$11,IF($C$5,8,0),1,1))) -> 711.780029 | G180: =IF(A180>$B$30,NA(),IF(A180>$A$8,"",OFFSET(InputPriceData!$F$15,CalculationsAndCharts!$A180+$A$11,IF($C$5,8,0),1,1))) -> 715.780029 | H180: 678.7882798 | I180: 698.6819882 | J180: 1.620056 | K180: 0 | L180: 3.104603889 | M180: 2.406724674 | N180: 1.266263129 | O180: 0.08887306387 | P180: 696.9665177 | Q180: 2.458767602 | R180: 2.086991228 | S180: 0.8178532743 | T180: 0.01808809228 | U180: 697.75215 | AW180: 0
A181: 149 | B181: =IF(A181>$B$30,NA(),IF($A181>$A$8,"",OFFSET(InputPriceData!$B$15,$A181+$A$11,0,1,1))) -> 2005-11-04 | C181: =IF(A181>$B$30,NA(),IF($A181>$A$8,"",OFFSET(InputPriceData!$G$15,CalculationsAndCharts!$A181+$A$11,IF($C$5,8,0),1,1))) -> 0 | D181: =IF(A181>$B$30,NA(),IF(A181>$A$8,"",OFFSET(InputPriceData!$C$15,CalculationsAndCharts!$A181+$A$11,IF($C$5,8,0),1,1))) -> 715.099976 | E181: =IF(A181>$B$30,NA(),IF(A181>$A$8,"",OFFSET(InputPriceData!$D$15,CalculationsAndCharts!$A181+$A$11,IF($C$5,8,0),1,1))) -> 716.539978 | F181: =IF(A181>$B$30,NA(),IF(A181>$A$8,"",OFFSET(InputPriceData!$E$15,CalculationsAndCharts!$A181+$A$11,IF($C$5,8,0),1,1))) -> 710.130005 | G181: =IF(A181>$B$30,NA(),IF(A181>$A$8,"",OFFSET(InputPriceData!$F$15,CalculationsAndCharts!$A181+$A$11,IF($C$5,8,0),1,1))) -> 714.159973 | H181: 678.4165034 | I181: 697.984109 | J181: 0 | K181: 0.940003 | L181: 3.16519768 | M181: 2.504958334 | N181: 1.164411252 | O181: 0.08487887261 | P181: 695.1314118 | Q181: 2.467196864 | R181: 2.107966014 | S181: 0.785176091 | T181: 0.01776294618 | U181: 697.4200531 | AX181: 0
A182: 150 | B182: =IF(A182>$B$30,NA(),IF($A182>$A$8,"",OFFSET(InputPriceData!$B$15,$A182+$A$11,0,1,1))) -> 2005-11-03 | C182: =IF(A182>$B$30,NA(),IF($A182>$A$8,"",OFFSET(InputPriceData!$G$15,CalculationsAndCharts!$A182+$A$11,IF($C$5,8,0),1,1))) -> 0 | D182: =IF(A182>$B$30,NA(),IF(A182>$A$8,"",OFFSET(InputPriceData!$C$15,CalculationsAndCharts!$A182+$A$11,IF($C$5,8,0),1,1))) -> 712.780029 | E182: =IF(A182>$B$30,NA(),IF(A182>$A$8,"",OFFSET(InputPriceData!$D$15,CalculationsAndCharts!$A182+$A$11,IF($C$5,8,0),1,1))) -> 719.330017 | F182: =IF(A182>$B$30,NA(),IF(A182>$A$8,"",OFFSET(InputPriceData!$E$15,CalculationsAndCharts!$A182+$A$11,IF($C$5,8,0),1,1))) -> 712.429993 | G182: =IF(A182>$B$30,NA(),IF(A182>$A$8,"",OFFSET(InputPriceData!$F$15,CalculationsAndCharts!$A182+$A$11,IF($C$5,8,0),1,1))) -> 715.099976 | H182: 678.0572725 | I182: 697.3238697 | J182: 2.319947 | K182: 0 | L182: 3.294389422 | M182: 2.568834062 | N182: 1.237468369 | O182: 0.08774385761 | P182: 693.3664839 | Q182: 2.491992813 | R182: 2.119704336 | S182: 0.807270003 | T182: 0.0179827861 | U182: 697.1173255 | AW182: 0
A183: 151 | B183: =IF(A183>$B$30,NA(),IF($A183>$A$8,"",OFFSET(InputPriceData!$B$15,$A183+$A$11,0,1,1))) -> 2005-11-02 | C183: =IF(A183>$B$30,NA(),IF($A183>$A$8,"",OFFSET(InputPriceData!$G$15,CalculationsAndCharts!$A183+$A$11,IF($C$5,8,0),1,1))) -> 0 | D183: =IF(A183>$B$30,NA(),IF(A183>$A$8,"",OFFSET(InputPriceData!$C$15,CalculationsAndCharts!$A183+$A$11,IF($C$5,8,0),1,1))) -> 700.5 | E183: =IF(A183>$B$30,NA(),IF(A183>$A$8,"",OFFSET(InputPriceData!$D$15,CalculationsAndCharts!$A183+$A$11,IF($C$5,8,0),1,1))) -> 712.780029 | F183: =IF(A183>$B$30,NA(),IF(A183>$A$8,"",OFFSET(InputPriceData!$E$15,CalculationsAndCharts!$A183+$A$11,IF($C$5,8,0),1,1))) -> 700.159973 | G183: =IF(A183>$B$30,NA(),IF(A183>$A$8,"",OFFSET(InputPriceData!$F$15,CalculationsAndCharts!$A183+$A$11,IF($C$5,8,0),1,1))) -> 712.780029 | H183: 677.6849841 | I183: 696.5983143 | J183: 12.280029 | K183: 0 | L183: 3.334162582 | M183: 2.673684432 | N183: 1.099359136 | O183: 0.08232780927 | P183: 691.2760837 | Q183: 2.493721916 | R183: 2.141007897 | S183: 0.7610239081 | T183: 0.01752262595 | U183: 696.7880256 | AW183: 0
A184: 152 | B184: =IF(A184>$B$30,NA(),IF($A184>$A$8,"",OFFSET(InputPriceData!$B$15,$A184+$A$11,0,1,1))) -> 2005-11-01 | C184: =IF(A184>$B$30,NA(),IF($A184>$A$8,"",OFFSET(InputPriceData!$G$15,CalculationsAndCharts!$A184+$A$11,IF($C$5,8,0),1,1))) -> 0 | D184: =IF(A184>$B$30,NA(),IF(A184>$A$8,"",OFFSET(InputPriceData!$C$15,CalculationsAndCharts!$A184+$A$11,IF($C$5,8,0),1,1))) -> 700.380005 | E184: =IF(A184>$B$30,NA(),IF(A184>$A$8,"",OFFSET(InputPriceData!$D$15,CalculationsAndCharts!$A184+$A$11,IF($C$5,8,0),1,1))) -> 702.409973 | F184: =IF(A184>$B$30,NA(),IF(A184>$A$8,"",OFFSET(InputPriceData!$E$15,CalculationsAndCharts!$A184+$A$11,IF($C$5,8,0),1,1))) -> 695.200012 | G184: =IF(A184>$B$30,NA(),IF(A184>$A$8,"",OFFSET(InputPriceData!$F$15,CalculationsAndCharts!$A184+$A$11,IF($C$5,8,0),1,1))) -> 700.5 | H184: 677.33227 | I184: 695.9378362 | J184: 0.119995 | K184: 0 | L184: 2.969025177 | M184: 2.782814409 | N184: 0.3237412415 | O184: 0.05191142124 | P184: 689.3468843 | Q184: 2.395367071 | R184: 2.162525564 | S184: 0.5108534268 | T184: 0.01503336743 | U184: 696.5028059 | AW184: 0
A185: 153 | B185: =IF(A185>$B$30,NA(),IF($A185>$A$8,"",OFFSET(InputPriceData!$B$15,$A185+$A$11,0,1,1))) -> 2005-10-31 | C185: =IF(A185>$B$30,NA(),IF($A185>$A$8,"",OFFSET(InputPriceData!$G$15,CalculationsAndCharts!$A185+$A$11,IF($C$5,8,0),1,1))) -> 0 | D185: =IF(A185>$B$30,NA(),IF(A185>$A$8,"",OFFSET(InputPriceData!$C$15,CalculationsAndCharts!$A185+$A$11,IF($C$5,8,0),1,1))) -> 689.51001 | E185: =IF(A185>$B$30,NA(),IF(A185>$A$8,"",OFFSET(InputPriceData!$D$15,CalculationsAndCharts!$A185+$A$11,IF($C$5,8,0),1,1))) -> 701.590027 | F185: =IF(A185>$B$30,NA(),IF(A185>$A$8,"",OFFSET(InputPriceData!$E$15,CalculationsAndCharts!$A185+$A$11,IF($C$5,8,0),1,1))) -> 689.51001 | G185: =IF(A185>$B$30,NA(),IF(A185>$A$8,"",OFFSET(InputPriceData!$F$15,CalculationsAndCharts!$A185+$A$11,IF($C$5,8,0),1,1))) -> 700.380005 | H185: 677.0994285 | I185: 695.7516254 | J185: 10.869995 | K185: 0 | L185: 3.085312123 | M185: 2.89639867 | N185: 0.3158184336 | O185: 0.05160072288 | P185: 688.7362092 | Q185: 2.418235132 | R185: 2.184259489 | S185: 0.50836701 | T185: 0.01500862697 | U185: 696.4417974 | AW185: 0
A186: 154 | B186: =IF(A186>$B$30,NA(),IF($A186>$A$8,"",OFFSET(InputPriceData!$B$15,$A186+$A$11,0,1,1))) -> 2005-10-28 | C186: =IF(A186>$B$30,NA(),IF($A186>$A$8,"",OFFSET(InputPriceData!$G$15,CalculationsAndCharts!$A186+$A$11,IF($C$5,8,0),1,1))) -> 0 | D186: =IF(A186>$B$30,NA(),IF(A186>$A$8,"",OFFSET(InputPriceData!$C$15,CalculationsAndCharts!$A186+$A$11,IF($C$5,8,0),1,1))) -> 678.330017 | E186: =IF(A186>$B$30,NA(),IF(A186>$A$8,"",OFFSET(InputPriceData!$D$15,CalculationsAndCharts!$A186+$A$11,IF($C$5,8,0),1,1))) -> 689.51001 | F186: =IF(A186>$B$30,NA(),IF(A186>$A$8,"",OFFSET(InputPriceData!$E$15,CalculationsAndCharts!$A186+$A$11,IF($C$5,8,0),1,1))) -> 677.890015 | G186: =IF(A186>$B$30,NA(),IF(A186>$A$8,"",OFFSET(InputPriceData!$F$15,CalculationsAndCharts!$A186+$A$11,IF($C$5,8,0),1,1))) -> 689.51001 | H186: 676.8654529 | I186: 695.5627119 | J186: 11.179993 | K186: 0 | L186: 2.767569965 | M186: 3.014619024 | N186: 0.4272587065 | O186: 0.05597092967 | P186: 688.1026909 | Q186: 2.333292822 | R186: 2.206211846 | S186: 0.2799445872 | T186: 0.01273576704 | U186: 696.3817897 | AW186: 0
A187: 155 | B187: =IF(A187>$B$30,NA(),IF($A187>$A$8,"",OFFSET(InputPriceData!$B$15,$A187+$A$11,0,1,1))) -> 2005-10-27 | C187: =IF(A187>$B$30,NA(),IF($A187>$A$8,"",OFFSET(InputPriceData!$G$15,CalculationsAndCharts!$A187+$A$11,IF($C$5,8,0),1,1))) -> 0 | D187: =IF(A187>$B$30,NA(),IF(A187>$A$8,"",OFFSET(InputPriceData!$C$15,CalculationsAndCharts!$A187+$A$11,IF($C$5,8,0),1,1))) -> 690.409973 | E187: =IF(A187>$B$30,NA(),IF(A187>$A$8,"",OFFSET(InputPriceData!$D$15,CalculationsAndCharts!$A187+$A$11,IF($C$5,8,0),1,1))) -> 690.409973 | F187: =IF(A187>$B$30,NA(),IF(A187>$A$8,"",OFFSET(InputPriceData!$E$15,CalculationsAndCharts!$A187+$A$11,IF($C$5,8,0),1,1))) -> 677.659973 | G187: =IF(A187>$B$30,NA(),IF(A187>$A$8,"",OFFSET(InputPriceData!$F$15,CalculationsAndCharts!$A187+$A$11,IF($C$5,8,0),1,1))) -> 678.330017 | H187: 676.7383719 | I187: 695.809761 | J187: 0 | K187: 12.079956 | L187: 2.42420576 | M187: 3.137664699 | N187: 1.28276799 | O187: 0.08952031333 | P187: 688.0192517 | Q187: 2.244381263 | R187: 2.228384829 | S187: 0.03576407248 | T187: 0.01030611017 | U187: 696.4704361 | AX187: 0
A188: 156 | B188: =IF(A188>$B$30,NA(),IF($A188>$A$8,"",OFFSET(InputPriceData!$B$15,$A188+$A$11,0,1,1))) -> 2005-10-26 | C188: =IF(A188>$B$30,NA(),IF($A188>$A$8,"",OFFSET(InputPriceData!$G$15,CalculationsAndCharts!$A188+$A$11,IF($C$5,8,0),1,1))) -> 0 | D188: =IF(A188>$B$30,NA(),IF(A188>$A$8,"",OFFSET(InputPriceData!$C$15,CalculationsAndCharts!$A188+$A$11,IF($C$5,8,0),1,1))) -> 693.900024 | E188: =IF(A188>$B$30,NA(),IF(A188>$A$8,"",OFFSET(InputPriceData!$D$15,CalculationsAndCharts!$A188+$A$11,IF($C$5,8,0),1,1))) -> 697.02002 | F188: =IF(A188>$B$30,NA(),IF(A188>$A$8,"",OFFSET(InputPriceData!$E$15,CalculationsAndCharts!$A188+$A$11,IF($C$5,8,0),1,1))) -> 689.570007 | G188: =IF(A188>$B$30,NA(),IF(A188>$A$8,"",OFFSET(InputPriceData!$F$15,CalculationsAndCharts!$A188+$A$11,IF($C$5,8,0),1,1))) -> 690.409973 | H188: 676.7223755 | I188: 696.5232199 | J188: 0 | K188: 3.490051 | L188: 2.523152934 | M188: 2.772673217 | N188: 0.4711640377 | O188: 0.05769270736 | P188: 688.9719181 | Q188: 2.266937858 | R188: 2.129374064 | S188: 0.3129072656 | T188: 0.01306375389 | U188: 696.6593401 | AX188: 0
A189: 157 | B189: =IF(A189>$B$30,NA(),IF($A189>$A$8,"",OFFSET(InputPriceData!$B$15,$A189+$A$11,0,1,1))) -> 2005-10-25 | C189: =IF(A189>$B$30,NA(),IF($A189>$A$8,"",OFFSET(InputPriceData!$G$15,CalculationsAndCharts!$A189+$A$11,IF($C$5,8,0),1,1))) -> 0 | D189: =IF(A189>$B$30,NA(),IF(A189>$A$8,"",OFFSET(InputPriceData!$C$15,CalculationsAndCharts!$A189+$A$11,IF($C$5,8,0),1,1))) -> 695.429993 | E189: =IF(A189>$B$30,NA(),IF(A189>$A$8,"",OFFSET(InputPriceData!$D$15,CalculationsAndCharts!$A189+$A$11,IF($C$5,8,0),1,1))) -> 696.890015 | F189: =IF(A189>$B$30,NA(),IF(A189>$A$8,"",OFFSET(InputPriceData!$E$15,CalculationsAndCharts!$A189+$A$11,IF($C$5,8,0),1,1))) -> 688.51001 | G189: =IF(A189>$B$30,NA(),IF(A189>$A$8,"",OFFSET(InputPriceData!$F$15,CalculationsAndCharts!$A189+$A$11,IF($C$5,8,0),1,1))) -> 693.900024 | H189: 676.5848117 | I189: 696.7727402 | J189: 0 | K189: 1.529969 | L189: 2.626138768 | M189: 2.743392491 | N189: 0.2183686391 | O189: 0.04777916232 | P189: 688.8838732 | Q189: 2.289721153 | R189: 2.115698919 | S189: 0.3950184807 | T189: 0.0138807809 | U189: 696.7420609 | AX189: 0
A190: 158 | B190: =IF(A190>$B$30,NA(),IF($A190>$A$8,"",OFFSET(InputPriceData!$B$15,$A190+$A$11,0,1,1))) -> 2005-10-24 | C190: =IF(A190>$B$30,NA(),IF($A190>$A$8,"",OFFSET(InputPriceData!$G$15,CalculationsAndCharts!$A190+$A$11,IF($C$5,8,0),1,1))) -> 0 | D190: =IF(A190>$B$30,NA(),IF(A190>$A$8,"",OFFSET(InputPriceData!$C$15,CalculationsAndCharts!$A190+$A$11,IF($C$5,8,0),1,1))) -> 682.200012 | E190: =IF(A190>$B$30,NA(),IF(A190>$A$8,"",OFFSET(InputPriceData!$D$15,CalculationsAndCharts!$A190+$A$11,IF($C$5,8,0),1,1))) -> 695.440002 | F190: =IF(A190>$B$30,NA(),IF(A190>$A$8,"",OFFSET(InputPriceData!$E$15,CalculationsAndCharts!$A190+$A$11,IF($C$5,8,0),1,1))) -> 682.200012 | G190: =IF(A190>$B$30,NA(),IF(A190>$A$8,"",OFFSET(InputPriceData!$F$15,CalculationsAndCharts!$A190+$A$11,IF($C$5,8,0),1,1))) -> 695.429993 | H190: 676.4107894 | I190: 696.8899939 | J190: 13.229981 | K190: 0 | L190: 2.733328105 | M190: 2.79291998 | N190: 0.1078342383 | O190: 0.04344447993 | P190: 688.6321801 | Q190: 2.312733426 | R190: 2.121585652 | S190: 0.4310645469 | T190: 0.01423944823 | U190: 696.7820659 | AW190: 0
A191: 159 | B191: =IF(A191>$B$30,NA(),IF($A191>$A$8,"",OFFSET(InputPriceData!$B$15,$A191+$A$11,0,1,1))) -> 2005-10-21 | C191: =IF(A191>$B$30,NA(),IF($A191>$A$8,"",OFFSET(InputPriceData!$G$15,CalculationsAndCharts!$A191+$A$11,IF($C$5,8,0),1,1))) -> 0 | D191: =IF(A191>$B$30,NA(),IF(A191>$A$8,"",OFFSET(InputPriceData!$C$15,CalculationsAndCharts!$A191+$A$11,IF($C$5,8,0),1,1))) -> 676.049988 | E191: =IF(A191>$B$30,NA(),IF(A191>$A$8,"",OFFSET(InputPriceData!$D$15,CalculationsAndCharts!$A191+$A$11,IF($C$5,8,0),1,1))) -> 685.570007 | F191: =IF(A191>$B$30,NA(),IF(A191>$A$8,"",OFFSET(InputPriceData!$E$15,CalculationsAndCharts!$A191+$A$11,IF($C$5,8,0),1,1))) -> 676.049988 | G191: =IF(A191>$B$30,NA(),IF(A191>$A$8,"",OFFSET(InputPriceData!$F$15,CalculationsAndCharts!$A191+$A$11,IF($C$5,8,0),1,1))) -> 682.200012 | H191: 676.2196417 | I191: 696.9495858 | J191: 6.150024 | K191: 0 | L191: 2.304893293 | M191: 2.906916714 | N191: 1.155113906 | O191: 0.0845142708 | P191: 688.3234395 | Q191: 2.203012345 | R191: 2.142908121 | S191: 0.1383003322 | T191: 0.01132637146 | U191: 696.8015968 | AW191: 0
A192: 160 | B192: =IF(A192>$B$30,NA(),IF($A192>$A$8,"",OFFSET(InputPriceData!$B$15,$A192+$A$11,0,1,1))) -> 2005-10-20 | C192: =IF(A192>$B$30,NA(),IF($A192>$A$8,"",OFFSET(InputPriceData!$G$15,CalculationsAndCharts!$A192+$A$11,IF($C$5,8,0),1,1))) -> 0 | D192: =IF(A192>$B$30,NA(),IF(A192>$A$8,"",OFFSET(InputPriceData!$C$15,CalculationsAndCharts!$A192+$A$11,IF($C$5,8,0),1,1))) -> 685.159973 | E192: =IF(A192>$B$30,NA(),IF(A192>$A$8,"",OFFSET(InputPriceData!$D$15,CalculationsAndCharts!$A192+$A$11,IF($C$5,8,0),1,1))) -> 687.440002 | F192: =IF(A192>$B$30,NA(),IF(A192>$A$8,"",OFFSET(InputPriceData!$E$15,CalculationsAndCharts!$A192+$A$11,IF($C$5,8,0),1,1))) -> 672.330017 | G192: =IF(A192>$B$30,NA(),IF(A192>$A$8,"",OFFSET(InputPriceData!$F$15,CalculationsAndCharts!$A192+$A$11,IF($C$5,8,0),1,1))) -> 676.049988 | H192: 676.1595374 | I192: 697.5516092 | J192: 0 | K192: 9.109985 | L192: 2.147949183 | M192: 3.025566376 | N192: 1.696365235 | O192: 0.1057398131 | P192: 688.8887318 | Q192: 2.163343886 | R192: 2.164444886 | S192: 0.002544023163 | T192: 0.00997556242 | U192: 696.9688744 | AX192: 0
A193: 161 | B193: =IF(A193>$B$30,NA(),IF($A193>$A$8,"",OFFSET(InputPriceData!$B$15,$A193+$A$11,0,1,1))) -> 2005-10-19 | C193: =IF(A193>$B$30,NA(),IF($A193>$A$8,"",OFFSET(InputPriceData!$G$15,CalculationsAndCharts!$A193+$A$11,IF($C$5,8,0),1,1))) -> 0 | D193: =IF(A193>$B$30,NA(),IF(A193>$A$8,"",OFFSET(InputPriceData!$C$15,CalculationsAndCharts!$A193+$A$11,IF($C$5,8,0),1,1))) -> 675.960022 | E193: =IF(A193>$B$30,NA(),IF(A193>$A$8,"",OFFSET(InputPriceData!$D$15,CalculationsAndCharts!$A193+$A$11,IF($C$5,8,0),1,1))) -> 685.359985 | F193: =IF(A193>$B$30,NA(),IF(A193>$A$8,"",OFFSET(InputPriceData!$E$15,CalculationsAndCharts!$A193+$A$11,IF($C$5,8,0),1,1))) -> 669.119995 | G193: =IF(A193>$B$30,NA(),IF(A193>$A$8,"",OFFSET(InputPriceData!$F$15,CalculationsAndCharts!$A193+$A$11,IF($C$5,8,0),1,1))) -> 685.159973 | H193: 676.1606384 | I193: 698.4292264 | J193: 9.199951 | K193: 0 | L193: 2.235620578 | M193: 2.777222759 | N193: 1.080429099 | O193: 0.08158545487 | P193: 690.4068206 | Q193: 2.185086036 | R193: 2.094640462 | S193: 0.2113349379 | T193: 0.01205308396 | U193: 697.1796547 | AW193: 0
A194: 162 | B194: =IF(A194>$B$30,NA(),IF($A194>$A$8,"",OFFSET(InputPriceData!$B$15,$A194+$A$11,0,1,1))) -> 2005-10-18 | C194: =IF(A194>$B$30,NA(),IF($A194>$A$8,"",OFFSET(InputPriceData!$G$15,CalculationsAndCharts!$A194+$A$11,IF($C$5,8,0),1,1))) -> 0 | D194: =IF(A194>$B$30,NA(),IF(A194>$A$8,"",OFFSET(InputPriceData!$C$15,CalculationsAndCharts!$A194+$A$11,IF($C$5,8,0),1,1))) -> 684.289978 | E194: =IF(A194>$B$30,NA(),IF(A194>$A$8,"",OFFSET(InputPriceData!$D$15,CalculationsAndCharts!$A194+$A$11,IF($C$5,8,0),1,1))) -> 684.289978 | F194: =IF(A194>$B$30,NA(),IF(A194>$A$8,"",OFFSET(InputPriceData!$E$15,CalculationsAndCharts!$A194+$A$11,IF($C$5,8,0),1,1))) -> 675.960022 | G194: =IF(A194>$B$30,NA(),IF(A194>$A$8,"",OFFSET(InputPriceData!$F$15,CalculationsAndCharts!$A194+$A$11,IF($C$5,8,0),1,1))) -> 675.960022 | H194: 676.0701929 | I194: 698.9708286 | J194: 0 | K194: 8.329956 | L194: 1.951362193 | M194: 2.89057879 | N194: 1.93975226 | O194: 0.1152844024 | P194: 690.8729135 | Q194: 2.11458488 | R194: 2.115692125 | S194: 0.002617429013 | T194: 0.009976292826 | U194: 697.3262965 | AX194: 0
A195: 163 | B195: =IF(A195>$B$30,NA(),IF($A195>$A$8,"",OFFSET(InputPriceData!$B$15,$A195+$A$11,0,1,1))) -> 2005-10-17 | C195: =IF(A195>$B$30,NA(),IF($A195>$A$8,"",OFFSET(InputPriceData!$G$15,CalculationsAndCharts!$A195+$A$11,IF($C$5,8,0),1,1))) -> 0 | D195: =IF(A195>$B$30,NA(),IF(A195>$A$8,"",OFFSET(InputPriceData!$C$15,CalculationsAndCharts!$A195+$A$11,IF($C$5,8,0),1,1))) -> 681.119995 | E195: =IF(A195>$B$30,NA(),IF(A195>$A$8,"",OFFSET(InputPriceData!$D$15,CalculationsAndCharts!$A195+$A$11,IF($C$5,8,0),1,1))) -> 684.77002 | F195: =IF(A195>$B$30,NA(),IF(A195>$A$8,"",OFFSET(InputPriceData!$E$15,CalculationsAndCharts!$A195+$A$11,IF($C$5,8,0),1,1))) -> 678.580017 | G195: =IF(A195>$B$30,NA(),IF(A195>$A$8,"",OFFSET(InputPriceData!$F$15,CalculationsAndCharts!$A195+$A$11,IF($C$5,8,0),1,1))) -> 684.289978 | H195: 676.0713001 | I195: 699.9100452 | J195: 3.169983 | K195: 0 | L195: 2.03100963 | M195: 2.668563393 | N195: 1.356620614 | O195: 0.09241649465 | P195: 692.8161637 | Q195: 2.13583699 | R195: 2.053237212 | S195: 0.1971790752 | T195: 0.0119122296 | U195: 697.5416006 | AW195: 0
A196: 164 | B196: =IF(A196>$B$30,NA(),IF($A196>$A$8,"",OFFSET(InputPriceData!$B$15,$A196+$A$11,0,1,1))) -> 2005-10-14 | C196: =IF(A196>$B$30,NA(),IF($A196>$A$8,"",OFFSET(InputPriceData!$G$15,CalculationsAndCharts!$A196+$A$11,IF($C$5,8,0),1,1))) -> 0 | D196: =IF(A196>$B$30,NA(),IF(A196>$A$8,"",OFFSET(InputPriceData!$C$15,CalculationsAndCharts!$A196+$A$11,IF($C$5,8,0),1,1))) -> 672.119995 | E196: =IF(A196>$B$30,NA(),IF(A196>$A$8,"",OFFSET(InputPriceData!$D$15,CalculationsAndCharts!$A196+$A$11,IF($C$5,8,0),1,1))) -> 681.27002 | F196: =IF(A196>$B$30,NA(),IF(A196>$A$8,"",OFFSET(InputPriceData!$E$15,CalculationsAndCharts!$A196+$A$11,IF($C$5,8,0),1,1))) -> 671.380005 | G196: =IF(A196>$B$30,NA(),IF(A196>$A$8,"",OFFSET(InputPriceData!$F$15,CalculationsAndCharts!$A196+$A$11,IF($C$5,8,0),1,1))) -> 681.119995 | H196: 675.9887003 | I196: 700.547599 | J196: 9 | K196: 0 | L196: 1.984520921 | M196: 2.777484348 | N196: 1.665188052 | O196: 0.1045171785 | P196: 693.6843595 | Q196: 2.125443562 | R196: 2.073872762 | S196: 0.122807611 | T196: 0.01117221504 | U196: 697.7013601 | AW196: 0
A197: 165 | B197: =IF(A197>$B$30,NA(),IF($A197>$A$8,"",OFFSET(InputPriceData!$B$15,$A197+$A$11,0,1,1))) -> 2005-10-13 | C197: =IF(A197>$B$30,NA(),IF($A197>$A$8,"",OFFSET(InputPriceData!$G$15,CalculationsAndCharts!$A197+$A$11,IF($C$5,8,0),1,1))) -> 0 | D197: =IF(A197>$B$30,NA(),IF(A197>$A$8,"",OFFSET(InputPriceData!$C$15,CalculationsAndCharts!$A197+$A$11,IF($C$5,8,0),1,1))) -> 675.030029 | E197: =IF(A197>$B$30,NA(),IF(A197>$A$8,"",OFFSET(InputPriceData!$D$15,CalculationsAndCharts!$A197+$A$11,IF($C$5,8,0),1,1))) -> 675.030029 | F197: =IF(A197>$B$30,NA(),IF(A197>$A$8,"",OFFSET(InputPriceData!$E$15,CalculationsAndCharts!$A197+$A$11,IF($C$5,8,0),1,1))) -> 665.22998 | G197: =IF(A197>$B$30,NA(),IF(A197>$A$8,"",OFFSET(InputPriceData!$F$15,CalculationsAndCharts!$A197+$A$11,IF($C$5,8,0),1,1))) -> 672.119995 | H197: 675.9371295 | I197: 701.3405624 | J197: 0 | K197: 2.910034 | L197: 1.698174836 | M197: 2.890851056 | N197: 2.598974703 | O197: 0.1411362629 | P197: 695.1508219 | Q197: 2.056352543 | R197: 2.094715704 | S197: 0.09241756324 | T197: 0.0108698265 | U197: 697.8887037 | AX197: 0
A198: 166 | B198: =IF(A198>$B$30,NA(),IF($A198>$A$8,"",OFFSET(InputPriceData!$B$15,$A198+$A$11,0,1,1))) -> 2005-10-12 | C198: =IF(A198>$B$30,NA(),IF($A198>$A$8,"",OFFSET(InputPriceData!$G$15,CalculationsAndCharts!$A198+$A$11,IF($C$5,8,0),1,1))) -> 0 | D198: =IF(A198>$B$30,NA(),IF(A198>$A$8,"",OFFSET(InputPriceData!$C$15,CalculationsAndCharts!$A198+$A$11,IF($C$5,8,0),1,1))) -> 683.909973 | E198: =IF(A198>$B$30,NA(),IF(A198>$A$8,"",OFFSET(InputPriceData!$D$15,CalculationsAndCharts!$A198+$A$11,IF($C$5,8,0),1,1))) -> 685.909973 | F198: =IF(A198>$B$30,NA(),IF(A198>$A$8,"",OFFSET(InputPriceData!$E$15,CalculationsAndCharts!$A198+$A$11,IF($C$5,8,0),1,1))) -> 671.429993 | G198: =IF(A198>$B$30,NA(),IF(A198>$A$8,"",OFFSET(InputPriceData!$F$15,CalculationsAndCharts!$A198+$A$11,IF($C$5,8,0),1,1))) -> 675.030029 | H198: 675.9754927 | I198: 702.5332386 | J198: 0 | K198: 8.879944 | L198: 1.767488094 | M198: 2.890068079 | N198: 2.410233914 | O198: 0.1337346633 | P198: 698.9354559 | Q198: 2.077019403 | R198: 2.08652155 | S198: 0.02282227526 | T198: 0.01017733607 | U198: 698.1718832 | AX198: 0
A199: 167 | B199: =IF(A199>$B$30,NA(),IF($A199>$A$8,"",OFFSET(InputPriceData!$B$15,$A199+$A$11,0,1,1))) -> 2005-10-11 | C199: =IF(A199>$B$30,NA(),IF($A199>$A$8,"",OFFSET(InputPriceData!$G$15,CalculationsAndCharts!$A199+$A$11,IF($C$5,8,0),1,1))) -> 0 | D199: =IF(A199>$B$30,NA(),IF(A199>$A$8,"",OFFSET(InputPriceData!$C$15,CalculationsAndCharts!$A199+$A$11,IF($C$5,8,0),1,1))) -> 687.799988 | E199: =IF(A199>$B$30,NA(),IF(A199>$A$8,"",OFFSET(InputPriceData!$D$15,CalculationsAndCharts!$A199+$A$11,IF($C$5,8,0),1,1))) -> 692.109985 | F199: =IF(A199>$B$30,NA(),IF(A199>$A$8,"",OFFSET(InputPriceData!$E$15,CalculationsAndCharts!$A199+$A$11,IF($C$5,8,0),1,1))) -> 683.630005 | G199: =IF(A199>$B$30,NA(),IF(A199>$A$8,"",OFFSET(InputPriceData!$F$15,CalculationsAndCharts!$A199+$A$11,IF($C$5,8,0),1,1))) -> 683.909973 | H199: 675.9849949 | I199: 703.6558186 | J199: 0 | K199: 3.890015 | L199: 1.839630466 | M199: 2.645583348 | N199: 1.796910728 | O199: 0.1096827737 | P199: 702.6259928 | Q199: 2.097893969 | R199: 2.018245948 | S199: 0.1935017351 | T199: 0.01187563916 | U199: 698.4098273 | AX199: 0
A200: 168 | B200: =IF(A200>$B$30,NA(),IF($A200>$A$8,"",OFFSET(InputPriceData!$B$15,$A200+$A$11,0,1,1))) -> 2005-10-10 | C200: =IF(A200>$B$30,NA(),IF($A200>$A$8,"",OFFSET(InputPriceData!$G$15,CalculationsAndCharts!$A200+$A$11,IF($C$5,8,0),1,1))) -> 0 | D200: =IF(A200>$B$30,NA(),IF(A200>$A$8,"",OFFSET(InputPriceData!$C$15,CalculationsAndCharts!$A200+$A$11,IF($C$5,8,0),1,1))) -> 692.859985 | E200: =IF(A200>$B$30,NA(),IF(A200>$A$8,"",OFFSET(InputPriceData!$D$15,CalculationsAndCharts!$A200+$A$11,IF($C$5,8,0),1,1))) -> 693.76001 | F200: =IF(A200>$B$30,NA(),IF(A200>$A$8,"",OFFSET(InputPriceData!$E$15,CalculationsAndCharts!$A200+$A$11,IF($C$5,8,0),1,1))) -> 687.02002 | G200: =IF(A200>$B$30,NA(),IF(A200>$A$8,"",OFFSET(InputPriceData!$F$15,CalculationsAndCharts!$A200+$A$11,IF($C$5,8,0),1,1))) -> 687.799988 | H200: 675.9053468 | I200: 704.4617715 | J200: 0 | K200: 5.059997 | L200: 1.914717423 | M200: 2.594790219 | N200: 1.50808658 | O200: 0.09835633645 | P200: 704.9317159 | Q200: 2.118978331 | R200: 1.999434199 | S200: 0.2902675036 | T200: 0.01283848262 | U200: 698.5840918 | AX200: 0
A201: 169 | B201: =IF(A201>$B$30,NA(),IF($A201>$A$8,"",OFFSET(InputPriceData!$B$15,$A201+$A$11,0,1,1))) -> 2005-10-07 | C201: =IF(A201>$B$30,NA(),IF($A201>$A$8,"",OFFSET(InputPriceData!$G$15,CalculationsAndCharts!$A201+$A$11,IF($C$5,8,0),1,1))) -> 0 | D201: =IF(A201>$B$30,NA(),IF(A201>$A$8,"",OFFSET(InputPriceData!$C$15,CalculationsAndCharts!$A201+$A$11,IF($C$5,8,0),1,1))) -> 689.849976 | E201: =IF(A201>$B$30,NA(),IF(A201>$A$8,"",OFFSET(InputPriceData!$D$15,CalculationsAndCharts!$A201+$A$11,IF($C$5,8,0),1,1))) -> 694.929993 | F201: =IF(A201>$B$30,NA(),IF(A201>$A$8,"",OFFSET(InputPriceData!$E$15,CalculationsAndCharts!$A201+$A$11,IF($C$5,8,0),1,1))) -> 689.840027 | G201: =IF(A201>$B$30,NA(),IF(A201>$A$8,"",OFFSET(InputPriceData!$F$15,CalculationsAndCharts!$A201+$A$11,IF($C$5,8,0),1,1))) -> 692.859985 | H201: 675.7858027 | I201: 705.1418443 | J201: 3.010009 | K201: 0 | L201: 1.992869155 | M201: 2.494169534 | N201: 1.117218758 | O201: 0.08302818658 | P201: 706.8005406 | Q201: 2.140274596 | R201: 1.968674773 | S201: 0.4176245719 | T201: 0.01410571713 | U201: 698.724344 | AW201: 0
A202: 170 | B202: =IF(A202>$B$30,NA(),IF($A202>$A$8,"",OFFSET(InputPriceData!$B$15,$A202+$A$11,0,1,1))) -> 2005-10-06 | C202: =IF(A202>$B$30,NA(),IF($A202>$A$8,"",OFFSET(InputPriceData!$G$15,CalculationsAndCharts!$A202+$A$11,IF($C$5,8,0),1,1))) -> 0 | D202: =IF(A202>$B$30,NA(),IF(A202>$A$8,"",OFFSET(InputPriceData!$C$15,CalculationsAndCharts!$A202+$A$11,IF($C$5,8,0),1,1))) -> 696.179993 | E202: =IF(A202>$B$30,NA(),IF(A202>$A$8,"",OFFSET(InputPriceData!$D$15,CalculationsAndCharts!$A202+$A$11,IF($C$5,8,0),1,1))) -> 696.47998 | F202: =IF(A202>$B$30,NA(),IF(A202>$A$8,"",OFFSET(InputPriceData!$E$15,CalculationsAndCharts!$A202+$A$11,IF($C$5,8,0),1,1))) -> 684 | G202: =IF(A202>$B$30,NA(),IF(A202>$A$8,"",OFFSET(InputPriceData!$F$15,CalculationsAndCharts!$A202+$A$11,IF($C$5,8,0),1,1))) -> 689.849976 | H202: 675.6142029 | I202: 705.6431447 | J202: 0 | K202: 6.330017 | L202: 1.951353243 | M202: 2.595972372 | N202: 1.417578559 | O202: 0.09480700231 | P202: 708.062803 | Q202: 2.131533546 | R202: 1.98846045 | S202: 0.347265304 | T202: 0.01340562492 | U202: 698.8082485 | AX202: 0
A203: 171 | B203: =IF(A203>$B$30,NA(),IF($A203>$A$8,"",OFFSET(InputPriceData!$B$15,$A203+$A$11,0,1,1))) -> 2005-10-05 | C203: =IF(A203>$B$30,NA(),IF($A203>$A$8,"",OFFSET(InputPriceData!$G$15,CalculationsAndCharts!$A203+$A$11,IF($C$5,8,0),1,1))) -> 0 | D203: =IF(A203>$B$30,NA(),IF(A203>$A$8,"",OFFSET(InputPriceData!$C$15,CalculationsAndCharts!$A203+$A$11,IF($C$5,8,0),1,1))) -> 712.880005 | E203: =IF(A203>$B$30,NA(),IF(A203>$A$8,"",OFFSET(InputPriceData!$D$15,CalculationsAndCharts!$A203+$A$11,IF($C$5,8,0),1,1))) -> 712.880005 | F203: =IF(A203>$B$30,NA(),IF(A203>$A$8,"",OFFSET(InputPriceData!$E$15,CalculationsAndCharts!$A203+$A$11,IF($C$5,8,0),1,1))) -> 696.179993 | G203: =IF(A203>$B$30,NA(),IF(A203>$A$8,"",OFFSET(InputPriceData!$F$15,CalculationsAndCharts!$A203+$A$11,IF($C$5,8,0),1,1))) -> 696.179993 | H203: 675.4711298 | I203: 706.2877638 | J203: 0 | K203: 16.700012 | L203: 2.031000314 | M203: 2.443562387 | N203: 0.9220165205 | O203: 0.07537319688 | P203: 709.9703559 | Q203: 2.152955994 | R203: 1.944826715 | S203: 0.5079070643 | T203: 0.01500405039 | U203: 698.9299715 | AX203: 0
... 922 more rows

Sheet Follow
A1: Stocks and Indexes I wish to follow
A3: To ease following a stock, enter a Yahoo Finance acceptable symbol in column "A" anywhere below cell "A9".
A4: Thereafter you may doubleclick the cell containing a symbol of interest to initiate data retrieval and charting for that symbol.
A7: Symbol
A8: To | B8: Description | C8: Last Trade as of most recent check
A9: Follow | C9: Date | D9: Time | E9: Open | F9: High | G9: Low | H9: Close | I9: Volume | J9: Change | K9: Retrieved @
A10: A | B10: Agilent Technologies, Inc. (A) -NYSE (Daily) | C10: 2020-03-09 | D10: 16:04:00 | E10: 72.589996 | F10: 74.190002 | G10: 70.169998 | H10: 70.75 | I10: 4591093 | J10: -7.809998 | K10: 2020-03-09T16:59:21
A11: AA | B11: Alcoa Corporation (AA) -NYSE (Daily) | C11: 2020-01-31 | D11: 16:04:00 | E11: 14.01 | F11: 14.24 | G11: 13.62 | H11: 13.95 | I11: 9931500 | J11: -0.34 | K11: 2020-02-02T15:07:13
A12: AAL | B12: American Airlines Group Inc. (AAL) -NasdaqGS (Daily) | C12: 2020-03-09 | D12: 16:00:00 | E12: 14.87 | F12: 15.79 | G12: 14.46 | H12: 14.75 | I12: 41078614 | J12: -1.22 | K12: 2020-03-09T17:00:15
A13: AAPL | B13: Apple Inc. (AAPL) -NasdaqGS (Daily) | C13: 2020-06-17 | D13: 16:00:00 | E13: 355.149994 | F13: 355.369995 | G13: 351.089996 | H13: 351.589996 | I13: 27604481 | J13: -0.489991 | K13: 2020-06-17T17:45:34
A14: ADM | B14: Archer-Daniels-Midland Company (ADM) -NYSE (Weekly) | C14: 2018-07-13 | D14: 16:00:00 | E14: 47.5 | F14: 47.84 | G14: 47.169998 | H14: 47.57 | I14: 2402809 | J14: 0
A15: ADBE | B15: Adobe Inc. (ADBE) -NasdaqGS (Daily) | C15: 2020-06-17 | D15: 16:00:00 | E15: 414 | F15: 417.425995 | G15: 411.429993 | H15: 413.48999 | I15: 2026063 | J15: 1.819977 | K15: 2020-06-17T17:42:59
A16: ALGN | B16: Align Technology, Inc. (ALGN) -NasdaqGS (Daily) | C16: 2020-01-30 | D16: 16:00:00 | E16: 248.740005 | F16: 264.450012 | G16: 248.350006 | H16: 262.890015 | I16: 1833160 | J16: 1.290009
A17: AMC | B17: AMC Entertainment Holdings, Inc. (AMC) -NYSE (Weekly) | C17: 2018-07-13 | D17: 16:02:00 | E17: 17.049999 | F17: 17.15 | G17: 16.525 | H17: 17.049999 | I17: 1442776 | J17: 0
A18: AMD | B18: Advanced Micro Devices, Inc. (AMD) -NasdaqGS (Daily) | C18: 2020-08-19 | D18: 12:40:00 | E18: 81.775703 | F18: 81.849998 | G18: 80.449997 | H18: 80.760002 | I18: 18434143 | J18: -0.900002 | K18: 2020-08-19T12:40:49
A19: BSX | B19: Boston Scientific Corporation C (BSX) -NYQ (Daily) | C19: 2015-03-13 | D19: 16:01:00 | E19: 16.84 | F19: 16.91 | G19: 16.44 | H19: 16.61 | I19: 7262460 | J19: -0.28
A20: CASY | B20: Casey's General Stores, Inc. (CASY) -NasdaqGS (Daily) | C20: 2019-04-10 | D20: 16:00:00 | E20: 128.979996 | F20: 130.330002 | G20: 128.779999 | H20: 130.179993 | I20: 351300 | J20: 1.489991
A21: CAT | B21: Caterpillar Inc. (CAT) -NYSE (Daily) | C21: 2022-03-15 | D21: 15:43:00 | E21: 216.119995 | F21: 217.190002 | G21: 210.514999 | H21: 217.070007 | I21: 3247033 | J21: 1.630005 | K21: 2022-03-15T15:44:21
A22: CSCO | B22: Cisco Systems, In (CSCO) -NasdaqNM (Daily) | C22: 2015-02-19 | D22: 16:00:00 | E22: 29.32 | F22: 29.39 | G22: 29.13 | H22: 29.31 | I22: 21469012 | J22: -0.18
A23: CVS | B23: CVS Health Corporation (CVS) -NYSE (Daily) | C23: 2020-03-09 | D23: 16:07:00 | E23: 59.75 | F23: 63 | G23: 59.599998 | H23: 61.299999 | I23: 13065424 | J23: -2.850003 | K23: 2020-03-09T17:51:54
A24: DIS | B24: The Walt Disney Company (DIS) -NYSE (Daily) | C24: 2020-03-09 | D24: 16:07:00 | E24: 108.690002 | F24: 110.43 | G24: 104.279999 | H24: 104.349998 | I24: 26101127 | J24: -10.919999 | K24: 2020-03-09T16:59:51
A25: F | B25: Ford Motor Company (F) -NYSE (Daily) | C25: 2020-01-31 | D25: 16:03:00 | E25: 8.78 | F25: 8.84 | G25: 8.74 | H25: 8.82 | I25: 59781000 | J25: -0.02 | K25: 2020-02-02T15:09:03
A26: FAS | B26: Direxion Daily Financial Bull 3X ETF (FAS) -NYSEArca (Daily) | C26: 2017-10-13 | D26: 16:00:00 | E26: 58.099998 | F26: 58.939999 | G26: 57.43 | H26: 58.450001 | I26: 1709300 | J26: 0.07
A27: FB | B27: Facebook, Inc. (FB) -NasdaqGS (Daily) | C27: 2020-02-14 | D27: 16:00:00 | E27: 214 | F27: 214.929993 | G27: 212.649994 | H27: 214.179993 | I27: 10727400 | J27: 1.039994 | K27: 2020-02-15T17:19:34
A28: GSK | B28: GlaxoSmithKline plc (GSK) -NYSE (Daily) | C28: 2021-01-15 | D28: 16:00:00 | E28: 38.41 | F28: 38.66 | G28: 38.209999 | H28: 38.470001 | I28: 3100400 | J28: 0.310001 | K28: 2021-01-17T18:07:58
A29: GDX | B29: VanEck Vectors Gold Miners ETF (GDX) -NYSEArca (Daily) | C29: 2020-01-31 | D29: 16:00:00 | E29: 28.799999 | F29: 29.24 | G29: 28.76 | H29: 28.99 | I29: 41946000 | J29: 0.26 | K29: 2020-02-02T15:11:17
A30: GOOG | B30: Alphabet Inc. (GOOG) -NasdaqGS (Daily) | C30: 2021-06-10 | D30: 16:00:00 | E30: 2494.01001 | F30: 2523.26001 | G30: 2494.01001 | H30: 2521.600098 | I30: 1390763 | J30: 30.200196 | K30: 2021-06-10T16:45:42
A31: HAL | B31: Halliburton Company (HAL) -NYSE (Daily) | C31: 2020-09-17 | D31: 11:11:00 | E31: 14.73 | F31: 14.945 | G31: 14.57 | H31: 14.91 | I31: 4265279 | J31: -0.16 | K31: 2020-09-17T11:11:52
A32: HD | B32: The Home Depot, Inc. (HD) -NYSE (Daily) | C32: 2020-03-13 | D32: 11:54:00 | E32: 200.449997 | F32: 201.179993 | G32: 192.270096 | H32: 193.449997 | I32: 3274582 | J32: 2.860001 | K32: 2020-03-13T11:54:29
A33: HSY | B33: The Hershey Company (HSY) -NYSE (Daily) | C33: 2021-01-15 | D33: 16:00:00 | E33: 147.089996 | F33: 149.490005 | G33: 146.880005 | H33: 148.460007 | I33: 1193700 | J33: 1.040009 | K33: 2021-01-17T18:06:10
A34: HTLD | B34: Heartland Express, Inc. (HTLD) -NasdaqGS (Daily) | C34: 2020-03-09 | D34: 16:00:00 | E34: 17.33 | F34: 17.690001 | G34: 16.82 | H34: 16.879999 | I34: 284762 | J34: -1.280001 | K34: 2020-03-09T17:00:56
A35: IDEX | B35: Ideanomics, Inc. (IDEX) -NasdaqGS (Daily) | C35: 2021-02-19 | D35: 10:11:00 | E35: 3.99 | F35: 4.15 | G35: 3.88 | H35: 3.92 | I35: 8623006 | J35: 0.19 | K35: 2021-02-19T10:11:40
A36: IBM | B36: International Business Machines Corporation (IBM) -NYSE (Daily) | C36: 2021-02-09 | D36: 16:00:00 | E36: 121.900002 | F36: 122.565002 | G36: 121.050003 | H36: 122.099998 | I36: 4173266 | J36: -1.510003 | K36: 2021-02-09T17:01:49
A37: INTC | B37: Intel Corporation (INTC) -NasdaqGS (Daily) | C37: 2020-02-14 | D37: 16:00:00 | E37: 67.519997 | F37: 67.860001 | G37: 66.82 | H37: 67.269997 | I37: 13402800 | J37: -0.170005 | K37: 2020-02-15T17:21:41
A38: JAH | B38: Jarden Corporation Common Stock (JAH) -NYQ (Daily) | C38: 2016-01-08 | D38: 16:02:00 | E38: 53.82 | F38: 53.88 | G38: 52.65 | H38: 52.73 | I38: 4519480 | J38: -0.81
A39: JNJ | B39: Johnson & Johnson (JNJ) -NYSE (Daily) | C39: 2019-08-14 | D39: 10:33:00 | E39: 132.529999 | F39: 132.539993 | G39: 131.419998 | H39: 131.759995 | I39: 870520 | J39: -0.169998
A40: KO | B40: The Coca-Cola Company (KO) -NYSE (Daily) | C40: 2020-03-09 | D40: 16:07:00 | E40: 52.049999 | F40: 53.580002 | G40: 51.474998 | H40: 51.860001 | I40: 27771279 | J40: -3.399997 | K40: 2020-03-09T17:05:43
A41: LOW | B41: Lowe's Companies, Inc. (LOW) -NYSE (Daily) | C41: 2020-03-09 | D41: 16:03:00 | E41: 97.82 | F41: 99.82 | G41: 93.150101 | H41: 94.220001 | I41: 8167579 | J41: -11.089997 | K41: 2020-03-09T16:57:19
A42: LMT | B42: Lockheed Martin Corporation (LMT) -NYSE (Daily) | C42: 2021-02-09 | D42: 16:04:00 | E42: 338.540009 | F42: 344.48999 | G42: 336.570007 | H42: 342.339996 | I42: 1545066 | J42: 4.5 | K42: 2021-02-09T16:56:05
A43: MCD | B43: McDonald's Corporation (MCD) -NYSE (Daily) | C43: 2022-03-15 | D43: 16:00:00 | E43: 227.979996 | F43: 234.565002 | G43: 227.979996 | H43: 232.570007 | I43: 4989454 | J43: 6.390014 | K43: 2022-03-15T20:08:37
A44: MDT | B44: Medtronic plc (MDT) -NYSE (Daily) | C44: 2020-03-09 | D44: 16:07:00 | E44: 94.019997 | F44: 95.470001 | G44: 91.709999 | H44: 92.400002 | I44: 9000931 | J44: -6.659996 | K44: 2020-03-09T17:48:45
A45: MGM | B45: MGM Resorts International (MGM) -NYSE (Daily) | C45: 2020-03-09 | D45: 16:02:00 | E45: 18.6 | F45: 19.58 | G45: 17.530001 | H45: 17.879999 | I45: 26050818 | J45: -2.51 | K45: 2020-03-09T17:13:53
A46: MO | B46: Altria Group, Inc. (MO) -NYSE (Daily) | C46: 2020-01-31 | D46: 16:05:00 | E46: 48.25 | F46: 48.799999 | G46: 47.240002 | H46: 47.529999 | I46: 11790800 | J46: -0.470001 | K46: 2020-02-02T15:20:55
A47: MSFT | B47: Microsoft Corporation (MSFT) -NasdaqGS (Daily) | C47: 2020-03-09 | D47: 16:00:00 | E47: 151 | F47: 157.75 | G47: 150 | H47: 150.619995 | I47: 69167627 | J47: -10.950012 | K47: 2020-03-09T17:06:41
A48: NFLX | B48: Netflix, Inc. (NFLX) -NasdaqGS (Daily) | C48: 2020-03-09 | D48: 16:00:00 | E48: 343.859985 | F48: 357.470001 | G48: 341.720886 | H48: 346.48999 | I48: 6746188 | J48: -22.480011 | K48: 2020-03-09T17:23:37
A49: NUGT | B49: Direxion Daily Gold Miners Index Bull 3X Shares (NUGT) -NYSEArca (Daily) | C49: 2020-01-31 | D49: 16:00:00 | E49: 32.439999 | F49: 33.830002 | G49: 32.240002 | H49: 33.02 | I49: 11325200 | J49: 0.84 | K49: 2020-02-02T15:21:51
A50: NVS | B50: Novartis AG (NVS) -NYSE (Daily) | C50: 2020-03-06 | D50: 16:02:00 | E50: 84.330002 | F50: 85.830002 | G50: 83.970001 | H50: 85.720001 | I50: 5624700 | J50: -0.089997 | K50: 2020-03-08T16:56:35
A51: NVDA | B51: html id="atomic" class="NoJs chrome desktop" lang="en-US"> -html id="atomic" class="NoJs chrome desktop" lang="en (Daily) | C51: 2022-01-14 | D51: 16:00:00 | E51: 263 | F51: 271.970001 | G51: 262.100006 | H51: 269.420013 | I51: 39522800 | J51: 3.670013 | K51: 2022-01-17T20:12:45
A52: PRU | B52: Prudential Financial, Inc. (PRU) -NYSE (Daily) | C52: 2020-03-09 | D52: 16:02:00 | E52: 63.75 | F52: 65.830002 | G52: 57.375 | H52: 58.240002 | I52: 7614493 | J52: -11.569996 | K52: 2020-03-09T17:11:43
A53: PSEC | B53: Prospect Capital Corporation (PSEC) -NasdaqGS (Daily) | C53: 2020-02-14 | D53: 16:00:00 | E53: 6.53 | F53: 6.56 | G53: 6.51 | H53: 6.52 | I53: 1235500 | J53: -0.04 | K53: 2020-02-15T14:43:16
A54: RPM | B54: RPM International Inc. (RPM) -NYSE (Daily) | C54: 2020-03-09 | D54: 16:02:00 | E54: 64.470001 | F54: 66.730003 | G54: 63.5 | H54: 65.290001 | I54: 1115882 | J54: -2.919998 | K54: 2020-03-09T17:10:08
A55: RSP | B55: Invesco S&P 500 Equal Weight ETF (RSP) -NYSEArca (Daily) | C55: 2020-01-31 | D55: 16:00:00 | E55: 115.279999 | F55: 115.32 | G55: 113.230003 | H55: 113.540001 | I55: 747600 | J55: -2.309997 | K55: 2020-02-02T15:28:52
A56: RY | B56: Royal Bank of Canada (RY) -NYSE (Daily) | C56: 2022-02-15 | D56: 16:00:00 | E56: 114.610001 | F56: 114.75 | G56: 113.550003 | H56: 113.910004 | I56: 906101 | J56: 0.010002 | K56: 2022-02-15T16:32:43
A57: SPR | B57: Spirit AeroSystems Holdings, Inc. (SPR) -NYSE (Daily) | C57: 2020-03-09 | D57: 16:06:00 | E57: 43.700001 | F57: 43.880001 | G57: 41.5 | H57: 42.139999 | I57: 2091368 | J57: -5.23 | K57: 2020-03-09T17:09:37
A58: SQ | B58: Square, Inc. (SQ) -NYSE (Daily) | C58: 2020-10-02 | D58: 16:00:00 | E58: 164.050003 | F58: 171.240005 | G58: 163.800995 | H58: 169.610001 | I58: 11150500 | J58: 1.119996 | K58: 2020-10-04T20:00:52
A59: SWKS | B59: Skyworks Solutions, Inc. (SWKS) -NasdaqGS (Daily) | C59: 2020-01-31 | D59: 16:00:00 | E59: 115.5 | F59: 115.739998 | G59: 112.720001 | H59: 113.150002 | I59: 2444600 | J59: -3.080001 | K59: 2020-02-02T15:26:46
A60: TOL | B60: Toll Brothers, Inc. (TOL) -NYSE (Daily) | C60: 2020-03-09 | D60: 16:07:00 | E60: 34.759998 | F60: 35.314999 | G60: 32.060001 | H60: 34.110001 | I60: 3127968 | J60: -2.86 | K60: 2020-03-09T17:12:09
A61: TSLA | B61: Tesla, Inc. (TSLA) -NasdaqGS (Daily) | C61: 2020-03-13 | D61: 12:08:00 | E61: 595 | F61: 607.570007 | G61: 502.01001 | H61: 510 | I61: 12224537 | J61: -50.549988 | K61: 2020-03-13T12:08:39
A62: TXN | B62: Texas Instruments Incorporated (TXN) -NasdaqGS (Daily) | C62: 2020-06-19 | D62: 11:30:00 | E62: 128.059998 | F62: 128.179993 | G62: 126.07 | H62: 126.370003 | I62: 2078988 | J62: 0.39 | K62: 2020-06-19T11:31:00
A63: UNP | B63: Union Pacific Corporation (UNP) -NYSE (Daily) | C63: 2020-03-09 | D63: 16:07:00 | E63: 145.199997 | F63: 145.580002 | G63: 133.179993 | H63: 135.839996 | I63: 9380024 | J63: -20.25 | K63: 2020-03-09T17:11:21
A64: VZ | B64: Verizon Communications Inc. (VZ) -NYSE (Daily) | C64: 2019-04-10 | D64: 16:00:00 | E64: 58.400002 | F64: 58.700001 | G64: 58.360001 | H64: 58.610001 | I64: 8022000 | J64: 0.209999
A65: WBA | B65: Walgreens Boots Alliance, Inc. (WBA) -NasdaqGS (Daily) | C65: 2020-01-31 | D65: 16:00:00 | E65: 51.709999 | F65: 51.919998 | G65: 50.66 | H65: 50.849998 | I65: 6532300 | J65: -1.100003 | K65: 2020-02-02T15:28:06
A66: WMT | B66: Walmart Inc. (WMT) -NYSE (Daily) | C66: 2020-03-09 | D66: 16:01:00 | E66: 113.82 | F66: 120.629997 | G66: 112.730003 | H66: 117.160004 | I66: 19567750 | J66: -0.069999 | K66: 2020-03-09T17:10:39
A68: ^AEX | B68: AEX-INDEX (^AEX) -Amsterdam (Daily) | C68: 2020-03-09 | D68: 18:05:00 | E68: 506.950012 | F68: 506.950012 | G68: 485.730011 | H68: 490.660004 | I68: 0 | J68: -40.629974 | K68: 2020-03-09T17:41:58
A69: ^AORD | B69: ALL ORDINARIES (^AORD) -ASX (Daily) | C69: 2020-03-09 | D69: 16:17:00 | E69: 6472.399902 | F69: 6287.299805 | G69: 5822.399902 | H69: 5822.399902 | I69: 0 | J69: -465.100098 | K69: 2020-03-09T17:45:59
A70: ^DJI | B70: Dow Jones Industrial Average (^DJI) -DJI (Daily) | C70: 2021-01-15 | D70: 17:18:00 | E70: 30926.76953 | F70: 30941.98047 | G70: 30612.66992 | H70: 30814.25977 | I70: 433000000 | J70: -177.259765 | K70: 2021-01-18T09:45:18
A71: ^FTSE | B71: FTSE 100 (^FTSE) -FTSE Index (Daily) | C71: 2022-03-15 | D71: 16:50:00 | E71: 7193.470215 | F71: 7193.470215 | G71: 7075.819824 | H71: 7175.700195 | I71: 0 | J71: -17.799805 | K71: 2022-03-15T20:53:13
A72: ^GSPC | B72: S&P 500 (^GSPC) -SNP (Daily) | C72: 2022-03-15 | D72: 17:28:00 | E72: 4188.819824 | F72: 4271.049805 | G72: 4187.899902 | H72: 4262.450195 | I72: 2636945000 | J72: 89.340332 | K72: 2022-03-15T21:04:33
A73: ^HSI | B73: HANG SENG INDEX (^HSI) -HKSE (Daily) | C73: 2020-03-09 | D73: 16:08:00 | E73: 25134.01953 | F73: 25321.2793 | G73: 24948.38086 | H73: 25040.46094 | I73: 0 | J73: -1106.208984 | K73: 2020-03-09T17:39:06
A74: ^MID | B74: S&P MID CAP 400 INDEX (^MID) -NYSE (Daily) | C74: 2022-03-15 | D74: 16:04:00 | E74: 0 | F74: 0 | G74: 0 | H74: 2585.330078 | I74: 0 | J74: 38.180176 | K74: 2022-03-15T21:08:08
A75: ^NDX | B75: NASDAQ 100 (^NDX) -Nasdaq GIDS (Weekly) | C75: 2022-03-15 | D75: 13:30:00 | E75: 13175 | F75: 13402.97754 | G75: 13092.45019 | H75: 13290.41406 | I75: 520738514 | J75: 243.774415 | K75: 2022-03-15T13:30:48
A76: ^NYA | B76: NYSE COMPOSITE (DJ) (^NYA) -NYSE (Daily) | C76: 2022-03-15 | D76: 12:28:00 | E76: 15694.40039 | F76: 15839.09863 | G76: 15694.35059 | H76: 15825.58691 | I76: 0 | J76: 131.237305 | K76: 2022-03-15T12:43:18
A77: ^OEX | B77: S&P 100 INDEX (^OEX) -Chicago Options (Daily) | C77: 2019-09-13 | D77: 16:56:00 | E77: 1332.27002 | F77: 1334.420044 | G77: 1328.73999 | H77: 1330.969971 | I77: 3520060000 | J77: -1.010009
A78: ^RUT | B78: Russell 2000 (^RUT) -Chicago Options (Daily) | C78: 2022-03-15 | D78: 11:22:00 | E78: 1979.785767 | F78: 1983.430908 | G78: 1932.708618 | H78: 1954.294556 | I78: 0 | J78: 12.574585 | K78: 2022-03-15T11:37:16
A79: ^SSEC | B79: SSE Composite Index (^SSEC) -Shanghai (Daily) | C79: 2020-03-09 | D79: 15:00:00 | E79: 3039.939453 | F79: 2989.205078 | G79: 2940.713867 | H79: 2943.290771 | I79: 2801367936 | J79: -388.231202 | K79: 2020-03-09T17:38:09
A80: ^VIX | B80: CBOE Volatility Index (^VIX) -Chicago Options (Daily) | C80: 2022-02-15 | D80: 16:15:00 | E80: 28.09 | F80: 28.09 | G80: 25.33 | H80: 25.700001 | I80: 0 | J80: -2.629999 | K80: 2022-02-15T16:45:54
A81: IWM | B81: iShares Russell 2000 ETF (IWM) -NYSEArca (Daily) | C81: 2021-02-19 | D81: 09:56:00 | E81: 222.460007 | F81: 223.080002 | G81: 222.169998 | H81: 222.970001 | I81: 3614630 | J81: 2.380005 | K81: 2021-02-19T09:56:07
A82: QQQ | B82: Invesco QQQ Trust (QQQ) -NasdaqGM (Daily) | C82: 2020-08-27 | D82: 15:01:00 | E82: 293.079987 | F82: 293.851013 | G82: 288.704987 | H82: 291.994995 | I82: 41822663 | J82: 0.035004 | K82: 2020-08-27T15:02:03
A83: XLE | B83: Energy Select Sector SPDR Fund (XLE) -NYSEArca (Daily) | C83: 2020-07-10 | D83: 16:00:00 | E83: 34.240002 | F83: 35.580002 | G83: 34.240002 | H83: 35.540001 | I83: 25223900 | J83: 1.100002 | K83: 2020-07-11T16:34:13
A84: SPY | B84: SPDR S&P 500 ETF Trust (SPY) -NYSEArca (Daily) | C84: 2022-02-15 | D84: 16:00:00 | E84: 443.730011 | F84: 446.279999 | G84: 443.179993 | H84: 446.100006 | I84: 85650218 | J84: 7.080017 | K84: 2022-02-15T16:45:36
A86: ACAD | B86: ACADIA Pharmaceut (ACAD) -NasdaqNM (Daily) | C86: 2014-07-21 | D86: 16:00:00 | E86: 20.13 | F86: 20.55 | G86: 19.8101 | H86: 20.31 | I86: 691016
A87: CLDX | B87: Celldex Therapeut (CLDX) -NasdaqNM (Daily) | C87: 2015-02-02 | D87: 16:00:00 | E87: 21.47 | F87: 21.69 | G87: 20.11 | H87: 21.02 | I87: 1570418 | J87: -0.4
A88: ICPT | B88: Intercept Pharmac (ICPT) -NasdaqNM (Daily) | C88: 2014-07-21 | D88: 16:00:00 | E88: 215.97 | F88: 218.43 | G88: 213.05 | H88: 218.14 | I88: 191276
A89: INO | B89: Inovio Pharmaceut (INO) -AMEX (Daily) | C89: 2014-07-21 | D89: 16:00:00 | E89: 10.3 | F89: 11.08 | G89: 10.1 | H89: 11.01 | I89: 1800796
A90: JCP | B90: J. C. Penney Company, Inc. (JCP) -NYSE (Daily) | C90: 2017-12-07 | D90: 16:01:00 | E90: 3.34 | F90: 3.4 | G90: 3.25 | H90: 3.27 | I90: 14485464 | J90: -0.07
A91: LCI | B91: Lannett Co Inc Co (LCI) -NYSE (Daily) | C91: 2014-07-21 | D91: 16:02:00 | E91: 38.09 | F91: 38.803 | G91: 36.5101 | H91: 37.76 | I91: 611367
A92: NPSP | B92: NPS Pharmaceutica (NPSP) -NasdaqNM (Daily) | C92: 2014-07-21 | D92: 15:59:00 | E92: 28.75 | F92: 29.43 | G92: 28.31 | H92: 29.29 | I92: 1126758
A93: PBYI | B93: Puma Biotechnolog (PBYI) -NYSE (Daily) | C93: 2014-07-21 | D93: 16:02:00 | E93: 58.27 | F93: 59.46 | G93: 57.39 | H93: 58.98 | I93: 348030
